Workbook

Sheet Resumen de Contratos WEB
A2: Número de Contrato | B2: Inicio | C2: Finalización | D2: Comprador | E2: Vendedor | F2: Tecno- logía | G2: Tipo de Contrato | H2: Precio Potencia ($/kW-mes) | I2: Precio Energía ($/kWh) | J2: Indicador de Referencia | K2: Ind Ref (0) | L2: Faju | M2: 2024-03-01
A3: EDEMET
A4: No.24-11 Enmienda 1 | B4: 2016-09-01 | C4: 2029-12-31 | D4: EDEMET | E4: Empresa Nacional de Energía, S.A. | F4: H | G4: PE | H4: 10.25 | I4: 0.0797 | J4: CT | L4: 0 | M4: 6.667
A5: No.25-11 | B5: 2015-01-01 | C5: 2029-12-31 | D5: EDEMET | E5: Enel Fortuna, S.A. | F5: HE | G5: PE | H5: 6.782307692 | I5: 0.09606153846 | J5: CT | K5: 2.59 | L5: 0 | M5: 19.68098
A6: No.26-11 | B6: 2015-01-01 | C6: 2029-12-31 | D6: EDEMET | E6: Electrogeneradora del Istmo, S.A. | F6: H | G6: PE | H6: 25 | I6: 0.0633 | J6: CT | K6: 4.75 | L6: 0 | M6: 0.83338
A7: No.27-11 | B7: 2015-01-01 | C7: 2029-12-31 | D7: EDEMET | E7: Energía y Servicios de Panamá, S.A. | F7: H | G7: PE | H7: 11.57692308 | I7: 0.091 | J7: 0 | K7: 4.01 | L7: 0 | M7: 3.65352
A8: No.28-11 Enmienda 1 | B8: 2015-01-01 | C8: 2029-12-31 | D8: EDEMET | E8: Generadora Pedregalito, S.A. | F8: H | G8: PE | H8: 30 | I8: 0.0542 | J8: CT | K8: 0 | L8: 0 | M8: 1.02168
A9: No.29-11 Enmienda 1 | B9: 2015-01-01 | C9: 2029-12-31 | D9: EDEMET | E9: Generadora Río Chico, S.A. | F9: H | G9: PE | H9: 30 | I9: 0.0542 | J9: CT | K9: 2.59 | L9: 0 | M9: 0.18801
A10: No.30-11 Enmienda 1 | B10: 2015-07-01 | C10: 2030-06-30 | D10: EDEMET | E10: Generadora Alto Valle, S.A. | F10: H | G10: PE | H10: 30 | I10: 0.0542 | J10: CT | K10: 2.59 | L10: 0 | M10: 1.53208
A11: No.31-11 Enmienda 3 | B11: 2015-04-01 | C11: 2030-03-31 | D11: EDEMET | E11: Hidroecológica del Teribe, S.A. | F11: H | G11: PE | H11: 8.5 | I11: 0.102245283 | J11: CT | K11: 4.01 | L11: 0 | M11: 6.667
A12: No.32-11 Enmienda 3 | B12: 2015-11-15 | C12: 2030-11-15 | D12: EDEMET | E12: Desarrollos Hidroeléctricos Corp. | F12: H | G12: PE | H12: 10.35 | I12: 0.0965 | J12: CT | K12: 3.76 | L12: 0 | M12: 1.26873
A13: No.33-11 Enmienda 1 | B13: 2016-08-06 | C13: 2029-12-31 | D13: EDEMET | E13: Las Perlas Norte, S.A. | F13: H | G13: PE | H13: 9 | I13: 0.1008 | J13: CT | K13: 3.01 | L13: 0 | M13: 7.93373
A14: No.34-11 | B14: 2015-01-01 | C14: 2029-12-31 | D14: EDEMET | E14: Hidroeléctrica San Lorenzo, S.A. | F14: H | G14: PE | H14: 15 | I14: 0.0895 | J14: CT | K14: 2.59 | L14: 0 | M14: 0.88871
A15: No.35-11 | B15: 2015-01-01 | C15: 2029-12-31 | D15: EDEMET | E15: Caldera Energy Corp. | F15: H | G15: PE | H15: 25 | I15: 0.0633 | J15: CT | K15: 2.59 | L15: 0 | M15: 2.0001
A16: No.86-11 | B16: 2014-01-01 | C16: 2024-06-30 | D16: EDEMET | E16: Paso Ancho Hydro Power Corporation | F16: H | G16: E | H16: 0 | I16: 0.0899 | J16: CT | K16: 4.01 | L16: 0 | M16: 2.08
A17: No.87-11 Enmienda 2 | B17: 2015-04-01 | C17: 2025-03-31 | D17: EDEMET | E17: Hidroecológica del Teribe, S.A. | F17: H | G17: E | H17: 0 | I17: 0.1075787879 | J17: CMS / CT | K17: 30.7 | L17: 0 | M17: 2.6
A18: No.117-12 | B18: 2016-01-01 | C18: 2030-12-31 | D18: EDEMET | E18: AES Panamá, S.R.L. | F18: HE | G18: PE | H18: 10 | I18: 0.09008333333 | J18: 0 | K18: 0 / 2,815 | L18: 0 | M18: 210
A19: No.118-12 | B19: 2016-01-01 | C19: 2030-12-31 | D19: EDEMET | E19: HidroPiedra, S.A. | F19: H | G19: PE | H19: 8.274285714 | I19: 0.09428571429 | J19: 0 | K19: 0 | L19: 0 | M19: 1.0716
A20: No.119-12 | B20: 2016-01-01 | C20: 2030-12-31 | D20: EDEMET | E20: Corporación de Energía del Istmo | F20: H | G20: PE | H20: 8.9 | I20: 0.1 | J20: 0 | K20: 0 | L20: 0 | M20: 5.286
A21: No.121-12 | B21: 2016-01-01 | C21: 2030-12-31 | D21: EDEMET | E21: Saltos del Francolí, S.A. | F21: H | G21: PE | H21: 13.53 | I21: 0.1035 | J21: CMS | K21: 0 | L21: 0 | M21: 0.553
A22: No.15-12 Enmienda 4 | B22: 2014-07-01 | C22: 2029-06-30 | D22: EDEMET | E22: UEP Penonomé II, S.A. | F22: E | G22: E | H22: 0 | I22: 0.095 | J22: IPC / CT | K22: 0 | L22: 0.25 | M22: 25.4737
A23: No.16-12 Enmienda 4 | B23: 2014-07-01 | C23: 2029-06-30 | D23: EDEMET | E23: UEP Penonomé II, S.A. | F23: E | G23: E | H23: 0 | I23: 0.098 | J23: IPC / CT | K23: 93,5 / 12,30 | L23: 0.25 | M23: 20.2632
A24: No.17-12 Enmienda 4 | B24: 2014-07-01 | C24: 2029-06-30 | D24: EDEMET | E24: UEP Penonomé II, S.A. | F24: E | G24: E | H24: 0 | I24: 0.108 | J24: IPC / CT | K24: 93,5 / 12,30 | L24: 0.25 | M24: 12.4474
A25: No.18-12 Enmienda 4 | B25: 2014-07-01 | C25: 2029-06-30 | D25: EDEMET | E25: UEP Penonomé II, S.A. | F25: E | G25: E | H25: 0 | I25: 0.11 | J25: IPC / CT | K25: 93,5 / 12,30 | L25: 0.25 | M25: 7.3526
A26: No.02-13 Enmienda 2 | B26: 2016-07-01 | C26: 2027-12-31 | D26: EDEMET | E26: Istmus Hydro Power, Corp. | F26: H | G26: E | H26: 0 | I26: 0.12 | J26: 0 | K26: 93,05 / 12,30 | L26: 0 | M26: 0.993
A27: No.03-13 | B27: 2013-03-01 | C27: 2027-12-31 | D27: EDEMET | E27: Caldera Energy Corp. | F27: H | G27: E | H27: 0 | I27: 0.1209090909 | J27: 0 | K27: 0 | L27: 0 | M27: 0
A28: No.04-13 | B28: 2013-03-01 | C28: 2027-12-31 | D28: EDEMET | E28: Electrogeneradora del Istmo, S.A. | F28: H | G28: E | H28: 0 | I28: 0.1231818182 | J28: 0 | K28: 0 | L28: 0 | M28: 0
A29: No.05-13 | B29: 2013-03-01 | C29: 2027-12-31 | D29: EDEMET | E29: Fountain Intertrade Corp. | F29: H | G29: E | H29: 0 | I29: 0.1305454545 | J29: 0 | K29: 0 | L29: 0 | M29: 3.3184
A30: No.06-13 | B30: 2013-03-01 | C30: 2027-12-31 | D30: EDEMET | E30: Generadora Hidroibérica, S.A. | F30: H | G30: E | H30: 0 | I30: 0.1090909091 | J30: 0 | K30: 0 | L30: 0 | M30: 0.4346
A31: No.07-13 Enmienda 4 Cedido a Hidro Boquerón | B31: 2017-12-01 | C31: 2027-12-31 | D31: EDEMET | E31: Navitas Internacional, S.A. | F31: H | G31: E | H31: 0 | I31: 0.104338843 | J31: 0 | K31: 0 | L31: 0 | M31: 0.8301
A32: No.08-13 | B32: 2013-03-01 | C32: 2027-12-31 | D32: EDEMET | E32: Hidroecológica del Teribe, S.A. | F32: H | G32: E | H32: 0 | I32: 0.136 | J32: 0 | K32: 0 | L32: 0 | M32: 0
A33: No.09-13 | B33: 2013-03-01 | C33: 2027-12-31 | D33: EDEMET | E33: Hidronorth Corp. | F33: H | G33: E | H33: 0 | I33: 0.1418181818 | J33: 0 | K33: 0 | L33: 0 | M33: 0.0477
A34: No.20-13 Enmienda 4 | B34: 2024-10-01 | C34: 2044-09-30 | D34: EDEMET | E34: Generadora Gatún, S. A. (Panama NGP) | F34: T | G34: PE | H34: 18.89 | I34: 0.088 | J34: Precio Spot de EIA Gas Henry Hub en la Costa del Golfo | K34: 0 | L34: 0.4
A35: No.23-13 | B35: 2024-07-01 | C35: 2027-12-31 | D35: EDEMET | E35: Paso Ancho Hydro Power Corporation | F35: H | G35: E | H35: 0 | I35: 0.122 | J35: 0 | K35: 3.81 | L35: 0 | M35: 0
A36: No.24-13 | B36: 2014-01-01 | C36: 2027-12-31 | D36: EDEMET | E36: Empresa Nacional de Energía, S.A. | F36: H | G36: E | H36: 0 | I36: 0.1275 | J36: 0 | K36: 0 | L36: 0 | M36: 0.1855
A37: No.25-13 Enmienda 1 | B37: 2016-03-01 | C37: 2027-12-31 | D37: EDEMET | E37: Fuerza Eléctrica del Istmo, S.A. | F37: H | G37: E | H37: 0 | I37: 0.1276 | J37: 0 | K37: 0 | L37: 0 | M37: 0.3975
A38: No.26-13 | B38: 2013-07-01 | C38: 2027-12-31 | D38: EDEMET | E38: Café de Eleta, S.A. | F38: H | G38: E | H38: 0 | I38: 0.128 | J38: 0 | K38: 0 | L38: 0 | M38: 0.0265
A39: No.27-13 Enmienda 1 | B39: 2013-07-01 | C39: 2027-12-31 | D39: EDEMET | E39: Energía y Servicios de Panamá, S.A. | F39: H | G39: E | H39: 0 | I39: 0.1319454545 | J39: 0 | K39: 0 | L39: 0 | M39: 2.43142
A40: No.28-13 | B40: 2015-12-01 | C40: 2027-12-31 | D40: EDEMET | E40: Generadora Pedregalito, S.A. | F40: H | G40: E | H40: 0 | I40: 0.132 | J40: 0 | K40: 0 | L40: 0 | M40: 0
A41: No.29-13 | B41: 2015-12-01 | C41: 2027-12-31 | D41: EDEMET | E41: Generadora Río Chico, S.A. | F41: H | G41: E | H41: 0 | I41: 0.132 | J41: 0 | K41: 0 | L41: 0 | M41: 0
A42: No.30-13 | B42: 2015-12-01 | C42: 2027-12-31 | D42: EDEMET | E42: Generadora Alto Valle, S.A. | F42: H | G42: E | H42: 0 | I42: 0.1325 | J42: 0 | K42: 0 | L42: 0 | M42: 0
A43: No.31-13 | B43: 2015-12-01 | C43: 2027-12-31 | D43: EDEMET | E43: Hydro Caisán, S.A. | F43: H | G43: E | H43: 0 | I43: 0.1325 | J43: 0 | K43: 0 | L43: 0 | M43: 0
A44: No.03-14 | B44: 2019-01-01 | C44: 2033-12-31 | D44: EDEMET | E44: UEP Penonomé II, S.A. | F44: E | G44: E | H44: 0 | I44: 0.0919 | J44: IPC | K44: 0 | L44: 0.25 | M44: 0
A45: No.04-14 | B45: 2019-01-01 | C45: 2033-12-31 | D45: EDEMET | E45: UEP Penonomé II, S.A. | F45: E | G45: E | H45: 0 | I45: 0.0949 | J45: IPC | K45: 149.9 | L45: 0.25 | M45: 0
A46: No.05-14 Enmieda 3 | B46: 2019-01-01 | C46: 2033-12-31 | D46: EDEMET | E46: FERSA PANAMÁ, S.A. | F46: E | G46: E | H46: 0 | I46: 0.095 | J46: IPC | K46: 149.9 | L46: 0.25 | M46: 23.2
A47: No.06-14 | B47: 2019-01-01 | C47: 2033-12-31 | D47: EDEMET | E47: Naura Energy Corporation | F47: E | G47: E | H47: 0 | I47: 0.0975 | J47: IPC | K47: 149.9 | L47: 0.25 | M47: 2.784
A48: No.11-14 | B48: 2020-07-01 | C48: 2040-06-30 | D48: EDEMET | E48: Empresa de Generación Eléctrica, S.A. | F48: HE | G48: PE | H48: 32.06 | I48: 0.0727 | J48: 0 | K48: 149.9 | L48: 0 | M48: 60
A49: No.14-14 Enmienda 2 | B49: 2018-09-19 | C49: 2033-09-18 | D49: EDEMET | E49: Coal Power, S.A. | F49: T | G49: PE | H49: 10 | I49: 0.1004 | J49: CIF ARA 6000 kCal/Kg | K49: 0 | L49: 0.9 | M49: 90
A50: No.29-14 Enmienda 2 | B50: 2015-07-01 | C50: 2020-06-30 | D50: EDEMET | E50: AES Panamá, S.R.L. | F50: T | G50: PE | H50: 45.195 | I50: 0.148 | J50: US Gulf Coast Waterborne No. 2 Oil azufre 1000 PPM | K50: 87.6414 | L50: 0.9 | M50: 0
A51: No.30-14 Enmienda 1 | B51: 2015-10-01 | C51: 2020-09-30 | D51: EDEMET | E51: Pan-Am Generating Limited | F51: T | G51: PE | H51: 30 | I51: 0.191 | J51: US Gulf Coast Posting, Fuel Oil 6 (3% azufre) | K51: 2.77 | L51: 0.9 | M51: 0
A52: No.07-15 Enmienda 2 | B52: 2017-01-01 | C52: 2036-12-31 | D52: EDEMET | E52: PanamaSolar2, S.A. | F52: F | G52: E | H52: 0 | I52: 0.086 | J52: IPC / CT | K52: 87.65 | L52: 0.25 | M52: 3.67
A53: No.08-15 Enmienda 4 | B53: 2017-07-01 | C53: 2037-06-30 | D53: EDEMET | E53: Solpac Investment, S.A. | F53: F | G53: E | H53: 0 | I53: 0.1048 | J53: IPC | K53: 102,7 / 0,161 | L53: 0.25 | M53: 0.5
A54: No.16-15 Enmienda 2 | B54: 2018-09-01 | C54: 2028-08-31 | D54: EDEMET | E54: Gas Natural Atlántico, S. de R.L. | F54: G | G54: PE | H54: 38.83 | I54: 0.0268 | J54: Henry Hub Spot Price (midpoint) Lousiana-Onshore Platts Gas Daily | K54: 102.7 | L54: 0.84 | M54: 196
A55: No.18-15 Enmienda No.3 | B55: 2023-03-01 | C55: 2038-02-28 | D55: EDEMET | E55: Enel Fortuna, S. A. / Sinolam | F55: H | G55: PE | H55: 32.09 | I55: 0.0209 | J55: Henry Hub Natural Gas Spot Price http://tonto.eia.gov/dnav/ng/hist/rngwhhdd.htm | K55: 2.8 | L55: 0 | M55: 196
A56: 01-23 | B56: 2024-03-01 | C56: 2027-03-31 | D56: EDEMET | E56: Caldera Energy Corp. | F56: H | G56: SEG | I56: 0.085 | L56: 0 | M56: 0
A57: 02-23 | B57: 2024-03-01 | C57: 2027-03-31 | D57: EDEMET | E57: Empresa Nacional de Energía, S.A. | F57: H | G57: SED | I57: 0.0565 | L57: 0 | M57: 0
A58: 04-23 | B58: 2024-03-01 | C58: 2027-03-31 | D58: EDEMET | E58: Generadora del Istmo S.A., | F58: H | G58: SED | I58: 0.09063 | L58: 0 | M58: 0
A59: 06-23 | B59: 2024-03-01 | C59: 2027-03-31 | D59: EDEMET | E59: Generadora Hidroibérica, S.A. | F59: H | G59: SED | I59: 0.0809375 | L59: 0 | M59: 0
A60: 13-23 | B60: 2024-03-01 | C60: 2027-03-31 | D60: EDEMET | E60: Autoridad del Canal de Panamá | F60: T | G60: SP | H60: 7.5 | L60: 0 | M60: 0
A61: 15-23 | B61: 2024-03-01 | C61: 2027-03-31 | D61: EDEMET | E61: Generadora del Atlántico, S.A. | F61: T | G61: SP | H61: 7.47 | L61: 0 | M61: 0
A62: 16-23 | B62: 2024-03-01 | C62: 2027-03-31 | D62: EDEMET | E62: Generadora del Atlántico, S.A. | F62: T | G62: SP | H62: 8.17 | L62: 0 | M62: 0
A63: 17-23 | B63: 2024-03-01 | C63: 2025-04-30 | D63: EDEMET | E63: Pedregal Power Company, S. de R.L. | F63: T | G63: SP | H63: 8.785 | L63: 0 | M63: 0
A64: 18-23 | B64: 2024-03-01 | C64: 2027-03-31 | D64: EDEMET | E64: Pan-Am Generating Limited | F64: T | G64: SP | H64: 8.75 | L64: 0 | M64: 0
A65: 19-23 | B65: 2024-03-01 | C65: 2027-03-31 | D65: EDEMET | E65: Pan-Am Generating Limited | F65: T | G65: SP | H65: 8.65 | L65: 0 | M65: 0
A66: 21-23 | B66: 2024-03-01 | C66: 2027-03-31 | D66: EDEMET | E66: Tropitérmica | F66: T | G66: SP | H66: 8.568 | L66: 0 | M66: 0
A67: 03-23 | B67: 2024-03-01 | C67: 2027-03-31 | D67: EDEMET | E67: Fountain Intertrade Corp. | F67: H | G67: SED | I67: 0.1025 | L67: 0 | M67: 0
A68: 05-23 | B68: 2024-03-01 | C68: 2027-03-31 | D68: EDEMET | E68: Hidro Boquerón, S.A. | F68: H | G68: SED | I68: 0.0745 | L68: 0 | M68: 0
A69: 07-23 | B69: 2024-03-01 | C69: 2027-03-31 | D69: EDEMET | E69: Hidroecológica del Teribe, S.A. | F69: H | G69: SEG | I69: 0.1095 | L69: 0 | M69: 0
A70: 08-23 | B70: 2024-03-01 | C70: 2027-03-31 | D70: EDEMET | E70: Ideal Panamá, S.A. | F70: H | G70: SED | I70: 0.09 | L70: 0 | M70: 0
A71: 09-23 | B71: 2024-03-01 | C71: 2027-03-31 | D71: EDEMET | E71: Istmus Hydro Power, Corp. | F71: H | G71: SED | I71: 0.117 | L71: 0 | M71: 0
A72: 10-23 | B72: 2024-03-01 | C72: 2027-03-31 | D72: EDEMET | E72: Las Perlas Norte, S.A. | F72: H | G72: SED | I72: 0.117 | L72: 0 | M72: 0
A73: 11-23 | B73: 2024-03-01 | C73: 2027-03-31 | D73: EDEMET | E73: Las Perlas Sur, S.A. | F73: H | G73: SED | I73: 0.0979 | L73: 0 | M73: 0
A74: 12-23 | B74: 2024-03-01 | C74: 2027-03-31 | D74: EDEMET | E74: Solar Boquerón, S.A. | F74: F | G74: SEG | I74: 0.0785 | L74: 0 | M74: 0
A75: 14-23 | B75: 2024-03-01 | C75: 2027-03-31 | D75: EDEMET | E75: Celsia Centroamérica, S.A. | F75: T | G75: SP | H75: 5.97 | L75: 0 | M75: 0
A76: 20-23 | B76: 2024-03-01 | C76: 2027-03-31 | D76: EDEMET | E76: SPARKLEPW | F76: T | G76: SP | H76: 5.5 | L76: 0 | M76: 0
A77: 50-23 | B77: 2025-02-01 | C77: 2027-01-31 | D77: EDEMET | E77: HidroPiedra, S.A. | F77: H | G77: SED | I77: 0.13571
A78: 51-23 | B78: 2025-02-01 | C78: 2027-01-31 | D78: EDEMET | E78: Pedregal Power Company, S. de R.L. | F78: T | G78: SED | I78: 0.19323
A79: 52-23 | B79: 2025-02-01 | C79: 2027-01-31 | D79: EDEMET | E79: Celsia Centroamérica, S.A. | F79: T | G79: SP | I79: 10.24
A80: 53-23 | B80: 2025-02-01 | C80: 2027-01-31 | D80: EDEMET | E80: Generadora del Atlántico, S.A. | F80: T | G80: SP | I80: 8.571428571
A81: EDECHI
A82: No.36-11 Enmienda 1 | B82: 2016-09-01 | C82: 2029-12-31 | D82: EDECHI | E82: Empresa Nacional de Energía, S.A. | F82: H | G82: PE | H82: 10.25 | I82: 0.0797 | J82: CT | L82: 0 | M82: 0.666
A83: No.37-11 | B83: 2015-01-01 | C83: 2029-12-31 | D83: EDECHI | E83: Enel Fortuna, S.A. | F83: HE | G83: PE | H83: 6.782307692 | I83: 0.09606153846 | J83: CT | K83: 2.59 | L83: 0 | M83: 1.96603
A84: No. 38-11 | B84: 2015-01-01 | C84: 2029-12-31 | D84: EDECHI | E84: Electrogeneradora del Istmo, S.A. | F84: H | G84: PE | H84: 25 | I84: 0.0633 | K84: 4.75 | M84: 0.08325
A85: No.39-11 | B85: 2015-01-01 | C85: 2029-12-31 | D85: EDECHI | E85: Energía y Servicios de Panamá, S.A. | F85: H | G85: PE | H85: 11.57692308 | I85: 0.091 | J85: 0 | L85: 0 | M85: 0.36497
A86: No.40-11 Enmienda 1 | B86: 2015-01-01 | C86: 2029-12-31 | D86: EDECHI | E86: Generadora Pedregalito, S.A. | F86: H | G86: PE | H86: 30 | I86: 0.0542 | J86: CT | K86: 0 | L86: 0 | M86: 0.10206
A87: No.41-11 Enmienda 1 | B87: 2015-01-01 | C87: 2029-12-31 | D87: EDECHI | E87: Generadora Río Chico, S.A. | F87: H | G87: PE | H87: 30 | I87: 0.0542 | J87: CT | K87: 2.59 | L87: 0 | M87: 0.01878
A88: No.42-11 Enmienda 1 | B88: 2015-07-01 | C88: 2030-06-30 | D88: EDECHI | E88: Generadora Alto Valle, S.A. | F88: H | G88: PE | H88: 30 | I88: 0.0542 | J88: CT | K88: 2.59 | L88: 0 | M88: 0.15305
A89: No.43-11 Enmienda 3 | B89: 2015-04-01 | C89: 2030-03-31 | D89: EDECHI | E89: Hidroecológica del Teribe, S.A. | F89: H | G89: PE | H89: 8.5 | I89: 0.102245283 | J89: CT | K89: 4.01 | L89: 0 | M89: 0.666
A90: No.44-11 Enmienda 3 | B90: 2015-11-15 | C90: 2030-11-30 | D90: EDECHI | E90: Desarrollos Hidroeléctricos Corp. | F90: H | G90: PE | H90: 10.35 | I90: 0.0965 | J90: CT | K90: 3.76 | L90: 0 | M90: 0.12674
A91: No.45-11 Enmienda 1 | B91: 2016-08-06 | C91: 2029-12-31 | D91: EDECHI | E91: Las Perlas Norte, S.A. | F91: H | G91: PE | H91: 9 | I91: 0.1008 | J91: CT | K91: 3.01 | L91: 0 | M91: 0.79254
A92: No.46-11 | B92: 2015-01-01 | C92: 2029-12-31 | D92: EDECHI | E92: Hidroeléctrica San Lorenzo, S.A. | F92: H | G92: PE | H92: 15 | I92: 0.0895 | J92: CT | K92: 2.59 | L92: 0 | M92: 0.08878
A93: No.47-11 | B93: 2015-01-01 | C93: 2029-12-31 | D93: EDECHI | E93: Caldera Energy Corp. | F93: H | G93: PE | H93: 25 | I93: 0.0633 | J93: CT | K93: 2.59 | L93: 0 | M93: 0.1998
A94: No.88-11 | B94: 2014-01-01 | C94: 2024-06-30 | D94: EDECHI | E94: Paso Ancho Hydro Power Corporation | F94: H | G94: E | H94: 0 | I94: 0.0899 | J94: CT | K94: 4.01 | L94: 0 | M94: 1.44
A95: No.89-11 Enmienda 2 | B95: 2015-04-01 | C95: 2025-03-31 | D95: EDECHI | E95: Hidroecológica del Teribe, S.A. | F95: H | G95: E | H95: 0 | I95: 0.1075787879 | J95: CMS / CT | K95: 30.7 | L95: 0 | M95: 1.85
A96: No.122-12 | B96: 2016-01-01 | C96: 2030-12-31 | D96: EDECHI | E96: AES Panamá, S.R.L. | F96: HE | G96: PE | H96: 10 | I96: 0.09008333333 | J96: 0 | K96: 0 / 2,815 | L96: 0 | M96: 24.5
A97: No.123-12 | B97: 2016-01-01 | C97: 2030-12-31 | D97: EDECHI | E97: HidroPiedra, S.A. | F97: H | G97: PE | H97: 8.274285714 | I97: 0.09428571429 | J97: 0 | K97: 0 | L97: 0 | M97: 0.125
A98: No.124-12 | B98: 2016-01-01 | C98: 2030-12-31 | D98: EDECHI | E98: Corporación de Energía del Istmo | F98: H | G98: PE | H98: 8.9 | I98: 0.1 | J98: 0 | K98: 0 | L98: 0 | M98: 0.6167
A99: No.126-12 | B99: 2016-01-01 | C99: 2030-12-31 | D99: EDECHI | E99: Saltos del Francolí, S.A. | F99: H | G99: PE | H99: 13.53 | I99: 0.1035 | J99: CMS | K99: 0 | L99: 0 | M99: 0.0645
A100: No.137-12 Enmienda 1 | B100: 2014-01-01 | C100: 2023-12-31 | D100: EDECHI | E100: Sistemas de Generación, S.A. | F100: T | G100: PE | H100: 23.72 | I100: 0.0511 | J100: Precio de Paridad SNE / Pecomb | K100: 0 | L100: 0 | M100: 0
A101: No.19-12 Enmienda 4 | B101: 2014-07-01 | C101: 2029-06-30 | D101: EDECHI | E101: UEP Penonomé II, S.A. | F101: E | G101: E | H101: 0 | I101: 0.095 | J101: IPC / CT | K101: 133,366 / 0,2579 | L101: 0.25 | M101: 7.7193
A102: No.20-12 Enmienda 4 | B102: 2014-07-01 | C102: 2029-06-30 | D102: EDECHI | E102: UEP Penonomé II, S.A. | F102: E | G102: E | H102: 0 | I102: 0.098 | J102: IPC / CT | K102: 93,5 / 12,30 | L102: 0.25 | M102: 6.1403
A103: No.21-12 Enmienda 4 | B103: 2014-07-01 | C103: 2029-06-30 | D103: EDECHI | E103: UEP Penonomé II, S.A. | F103: E | G103: E | H103: 0 | I103: 0.108 | J103: IPC / CT | K103: 93,5 / 12,30 | L103: 0.25 | M103: 3.7719
A104: No.22-12 Enmienda 4 | B104: 2014-07-01 | C104: 2029-06-30 | D104: EDECHI | E104: UEP Penonomé II, S.A. | F104: E | G104: E | H104: 0 | I104: 0.11 | J104: IPC / CT | K104: 93,5 / 12,30 | L104: 0.25 | M104: 2.2281
A105: No.10-13 Enmienda 2 | B105: 2016-07-01 | C105: 2027-12-31 | D105: EDECHI | E105: Istmus Hydro Power, Corp. | F105: H | G105: E | H105: 0 | I105: 0.12 | J105: 0 | K105: 93,05 / 12,30 | L105: 0 | M105: 0.3373
A106: No.11-13 | B106: 2013-03-01 | C106: 2027-12-31 | D106: EDECHI | E106: Caldera Energy Corp. | F106: H | G106: E | H106: 0 | I106: 0.1209090909 | J106: 0 | K106: 0 | L106: 0 | M106: 0
A107: No.12-13 | B107: 2013-03-01 | C107: 2027-12-31 | D107: EDECHI | E107: Electrogeneradora del Istmo, S.A. | F107: H | G107: E | H107: 0 | I107: 0.1231818182 | J107: 0 | K107: 0 | L107: 0 | M107: 0
A108: No.13-13 | B108: 2013-03-01 | C108: 2027-12-31 | D108: EDECHI | E108: Fountain Intertrade Corp. | F108: H | G108: E | H108: 0 | I108: 0.1305454545 | J108: 0 | K108: 0 | L108: 0 | M108: 1.1271
A109: No.14-13 | B109: 2013-03-01 | C109: 2027-12-31 | D109: EDECHI | E109: Generadora Hidroibérica, S.A. | F109: H | G109: E | H109: 0 | I109: 0.1090909091 | J109: 0 | K109: 0 | L109: 0 | M109: 0.1476
A110: No.15-13 Enmienda 4 Cedido a Hidro Boquerón | B110: 2017-12-01 | C110: 2027-12-31 | D110: EDECHI | E110: Navitas Internacional, S.A. | F110: H | G110: E | H110: 0 | I110: 0.104338843 | J110: 0 | K110: 0 | L110: 0 | M110: 0.282
A111: No.16-13 | B111: 2013-03-01 | C111: 2027-12-31 | D111: EDECHI | E111: Hidroecológica del Teribe, S.A. | F111: H | G111: E | H111: 0 | I111: 0.136 | J111: 0 | K111: 0 | L111: 0 | M111: 0
A112: No.17-13 | B112: 2013-03-01 | C112: 2027-12-31 | D112: EDECHI | E112: Hidronorth Corp. | F112: H | G112: E | H112: 0 | I112: 0.1418181818 | J112: 0 | K112: 0 | L112: 0 | M112: 0.0162
A113: No.21-13 Enmienda 4 | B113: 2024-10-01 | C113: 2044-09-30 | D113: EDECHI | E113: Generadora Gatún, S. A. (Panama NGP) | F113: T | G113: PE | H113: 18.89 | I113: 0.088 | J113: Precio Spot de EIA del Gas Natural Henry Hub en la Costa del Golfo | K113: 0 | L113: 0.4
A114: No.32-13 | B114: 2024-07-01 | C114: 2027-12-31 | D114: EDECHI | E114: Paso Ancho Hydro Power Corporation | F114: H | G114: E | H114: 0 | I114: 0.122 | J114: 0 | K114: 3.81 | L114: 0 | M114: 0
A115: No.33-13 | B115: 2014-01-01 | C115: 2027-12-31 | D115: EDECHI | E115: Empresa Nacional de Energía, S.A. | F115: H | G115: E | H115: 0 | I115: 0.1275 | J115: 0 | K115: 0 | L115: 0 | M115: 0.063
A116: No.34-13 Enmienda 1 | B116: 2016-03-01 | C116: 2027-12-31 | D116: EDECHI | E116: Fuerza Eléctrica del Istmo, S.A. | F116: H | G116: E | H116: 0 | I116: 0.1276 | J116: 0 | K116: 0 | L116: 0 | M116: 0.135
A117: No.35-13 | B117: 2013-07-01 | C117: 2027-12-31 | D117: EDECHI | E117: Café de Eleta, S.A. | F117: H | G117: E | H117: 0 | I117: 0.128 | J117: 0 | K117: 0 | L117: 0 | M117: 0.009
A118: No.36-13 | B118: 2013-07-01 | C118: 2027-12-31 | D118: EDECHI | E118: Energía y Servicios de Panamá, S.A. | F118: H | G118: E | H118: 0 | I118: 0.1319454545 | J118: 0 | K118: 0 | L118: 0 | M118: 0.82578
A119: No.37-13 | B119: 2015-12-01 | C119: 2027-12-31 | D119: EDECHI | E119: Generadora Pedregalito, S.A. | F119: H | G119: E | H119: 0 | I119: 0.132 | J119: 0 | K119: 0 | L119: 0 | M119: 0
A120: No.38-13 | B120: 2015-12-01 | C120: 2027-12-31 | D120: EDECHI | E120: Generadora Río Chico, S.A. | F120: H | G120: E | H120: 0 | I120: 0.132 | J120: 0 | K120: 0 | L120: 0 | M120: 0
A121: No.39-13 | B121: 2015-12-01 | C121: 2027-12-31 | D121: EDECHI | E121: Generadora Alto Valle, S.A. | F121: H | G121: E | H121: 0 | I121: 0.1325 | J121: 0 | K121: 0 | L121: 0 | M121: 0
A122: No.40-13 | B122: 2015-12-01 | C122: 2027-12-31 | D122: EDECHI | E122: Hydro Caisán, S.A. | F122: H | G122: E | H122: 0 | I122: 0.1325 | J122: 0 | K122: 0 | L122: 0 | M122: 0
A123: No.07-14 | B123: 2019-01-01 | C123: 2033-12-31 | D123: EDECHI | E123: UEP Penonomé II, S.A. | F123: E | G123: E | H123: 0 | I123: 0.0919 | J123: IPC | K123: 0 | L123: 0.25 | M123: 0
A124: No.08-14 | B124: 2019-01-01 | C124: 2033-12-31 | D124: EDECHI | E124: UEP Penonomé II, S.A. | F124: E | G124: E | H124: 0 | I124: 0.0949 | J124: IPC | K124: 149.9 | L124: 0.25 | M124: 0
A125: No.09-14 Enmienda 3 | B125: 2019-01-01 | C125: 2033-12-31 | D125: EDECHI | E125: FERSA PANAMÁ, S.A. | F125: E | G125: E | H125: 0 | I125: 0.095 | J125: IPC | K125: 149.9 | L125: 0.25 | M125: 12.76
A126: No.10-14 | B126: 2019-01-01 | C126: 2033-12-31 | D126: EDECHI | E126: Naura Energy Corporation | F126: E | G126: E | H126: 0 | I126: 0.0975 | J126: IPC | K126: 149.9 | L126: 0.25 | M126: 1.5312
A127: No.12-14 | B127: 2020-07-01 | C127: 2040-06-30 | D127: EDECHI | E127: Empresa de Generación Eléctrica, S.A. | F127: HE | G127: PE | H127: 32.06 | I127: 0.0727 | J127: 0 | K127: 149.9 | L127: 0 | M127: 12
A128: No.15-14 Enmienda 2 | B128: 2018-09-19 | C128: 2033-09-18 | D128: EDECHI | E128: Coal Power, S.A. | F128: T | G128: PE | H128: 10 | I128: 0.1004 | J128: CIF ARA 6000 kCal/Kg | K128: 0 | L128: 0.9 | M128: 10.05
A129: No.33-14 Enmienda 2 | B129: 2015-07-01 | C129: 2020-06-30 | D129: EDECHI | E129: AES Panamá, S.R.L. | F129: T | G129: PE | H129: 45.195 | I129: 0.148 | J129: US Gulf Coast Waterborne No. 2 Oil azufre 1000 PPM | K129: 87.6414 | L129: 0.9 | M129: 0
A130: No.34-14 Enmienda 1 | B130: 2015-10-01 | C130: 2020-09-30 | D130: EDECHI | E130: Pan-Am Generating Limited | F130: T | G130: PE | H130: 30 | I130: 0.191 | J130: US Gulf Coast Posting, Fuel Oil 6 (3% azufre) | K130: 2.77 | L130: 0.9 | M130: 0
A131: No.10-15 Enmienda 2 | B131: 2017-01-01 | C131: 2036-12-31 | D131: EDECHI | E131: PanamaSolar2, S.A. | F131: F | G131: E | H131: 0 | I131: 0.086 | J131: IPC / CT | K131: 87.65 | L131: 0.25 | M131: 0.83
A132: No.11-15 Enmienda 3 | B132: 2017-07-01 | C132: 2037-06-30 | D132: EDECHI | E132: Solpac Investment, S.A. | F132: F | G132: E | H132: 0 | I132: 0.1048 | J132: IPC | K132: 102,7 / 0,161 | L132: 0.25 | M132: 0.11
A133: No.17-15 Enmienda 2 | B133: 2018-09-01 | C133: 2028-08-31 | D133: EDECHI | E133: Gas Natural Atlántico, S. de R.L. | F133: G | G133: PE | H133: 38.83 | I133: 0.0268 | J133: Henry Hub Spot Price (midpoint) Lousiana-Onshore Platts Gas Daily | K133: 102.7 | L133: 0.84 | M133: 28
A134: No.19-15 Enmienda No.3 | B134: 2023-03-01 | C134: 2038-02-28 | D134: EDECHI | E134: Enel Fortuna, S. A. / Sinolam | F134: H | G134: PE | H134: 32.09 | I134: 0.0209 | J134: Henry Hub Natural Gas Spot Price http://tonto.eia.gov/dnav/ng/hist/rngwhhdd.htm | K134: 2.8 | L134: 0 | M134: 28
A135: No.33-13 | B135: 2017-01-01 | C135: 2027-12-31 | D135: EDECHI | E135: Empresa Nacional de Energía, S.A. | F135: H | G135: E | K135: 2.39 | M135: 0.063
A136: 22-23 | B136: 2024-03-01 | C136: 2027-03-31 | D136: EDECHI | E136: Caldera Energy Corp. | F136: H | G136: SEG | I136: 0.085 | L136: 0 | M136: 0
A137: 23-23 | B137: 2024-03-01 | C137: 2027-03-31 | D137: EDECHI | E137: Empresa Nacional de Energía, S.A. | F137: H | G137: SED | I137: 0.08 | L137: 0 | M137: 0
A138: 25-23 | B138: 2024-03-01 | C138: 2027-03-31 | D138: EDECHI | E138: Generadora del Istmo S.A., | F138: H | G138: SED | I138: 0.09063 | L138: 0 | M138: 0
A139: 27-23 | B139: 2024-03-01 | C139: 2027-03-31 | D139: EDECHI | E139: Hidroibérica, S.A. | F139: H | G139: SED | I139: 0.08043478 | L139: 0 | M139: 0
A140: 34-23 | B140: 2024-03-01 | C140: 2027-03-31 | D140: EDECHI | E140: Autoridad del Canal de Panamá | F140: T | G140: SP | H140: 7.5 | L140: 0 | M140: 0
A141: 36-23 | B141: 2024-03-01 | C141: 2027-03-31 | D141: EDECHI | E141: Generadora del Atlántico, S.A. | F141: T | G141: SP | H141: 6.418 | L141: 0 | M141: 0
A142: 37-23 | B142: 2024-03-01 | C142: 2027-03-31 | D142: EDECHI | E142: Generadora del Atlántico, S.A. | F142: T | G142: SP | H142: 7.955 | L142: 0 | M142: 0
A143: 38-23 | B143: 2024-03-01 | C143: 2027-03-31 | D143: EDECHI | E143: Pedregal Power Company, S. de R.L. | F143: T | G143: SP | H143: 8.393 | L143: 0 | M143: 0
A144: 39-23 | B144: 2024-03-01 | C144: 2027-03-31 | D144: EDECHI | E144: Pan-Am Generating Limited | F144: T | G144: SP | H144: 8.731 | L144: 0 | M144: 0
A145: 40-23 | B145: 2024-03-01 | C145: 2027-03-31 | D145: EDECHI | E145: Pan-Am Generating Limited | F145: T | G145: SP | H145: 8.65 | L145: 0 | M145: 0
A146: 42-23 | B146: 2024-03-01 | C146: 2027-03-31 | D146: EDECHI | E146: Tropitérmica | F146: T | G146: SP | H146: 7.29825 | L146: 0 | M146: 0
A147: 24-23 | B147: 2024-03-01 | C147: 2027-03-31 | D147: EDECHI | E147: Fountain Intertrade Corp. | F147: H | G147: SED | I147: 0.1025 | L147: 0 | M147: 0
A148: 26-23 | B148: 2024-03-01 | C148: 2027-03-31 | D148: EDECHI | E148: Hidro Boquerón, S.A. | F148: H | G148: SED | I148: 0.0745 | L148: 0 | M148: 0
A149: 28-23 | B149: 2024-03-01 | C149: 2027-03-31 | D149: EDECHI | E149: Hidroecológica del Teribe, S.A. | F149: H | G149: SEG | I149: 0.1095 | L149: 0 | M149: 0
A150: 29-23 | B150: 2024-03-01 | C150: 2027-03-31 | D150: EDECHI | E150: Ideal Panamá, S.A. | F150: H | G150: SED | I150: 0.08 | L150: 0 | M150: 0
A151: 30-23 | B151: 2024-03-01 | C151: 2027-03-31 | D151: EDECHI | E151: Istmus Hydro Power, Corp. | F151: H | G151: SED | I151: 0.117 | L151: 0 | M151: 0
A152: 31-23 | B152: 2024-03-01 | C152: 2027-03-31 | D152: EDECHI | E152: Las Perlas Norte, S.A. | F152: H | G152: SED | I152: 0.117 | L152: 0 | M152: 0
A153: 32-23 | B153: 2024-03-01 | C153: 2027-03-31 | D153: EDECHI | E153: Las Perlas Sur, S.A. | F153: H | G153: SED | I153: 0.095157143 | L153: 0 | M153: 0
A154: 33-23 | B154: 2024-03-01 | C154: 2027-03-31 | D154: EDECHI | E154: Solar Boquerón, S.A. | F154: F | G154: SEG | I154: 0.0785 | L154: 0 | M154: 0
A155: 35-23 | B155: 2024-03-01 | C155: 2027-03-31 | D155: EDECHI | E155: Celsia Centroamérica, S.A. | F155: T | G155: SP | H155: 5.97 | L155: 0 | M155: 0
A156: 41-23 | B156: 2024-03-01 | C156: 2027-03-31 | D156: EDECHI | E156: SPARKLEPW | F156: T | G156: SP | H156: 5.5 | L156: 0 | M156: 0
A157: 54-23 | B157: 2025-02-01 | C157: 2027-01-31 | D157: EDECHI | E157: Caldera Energy Corp. | F157: H | G157: SEG | I157: 0.085
A158: 55-23 | B158: 2025-02-01 | C158: 2027-01-31 | D158: EDECHI | E158: Electron Investment, S.A. | F158: H | G158: SEG | I158: 0.089
A159: 56-23 | B159: 2025-02-01 | C159: 2027-01-31 | D159: EDECHI | E159: Empresa Nacional de Energía, S.A. | F159: H | G159: SED | I159: 0.11275
A160: 58-23 | B160: 2025-02-01 | C160: 2027-01-31 | D160: EDECHI | E160: Generadora del Istmo S.A., | F160: H | G160: SED | I160: 0.09432
A161: 59-23 | B161: 2025-02-01 | C161: 2027-01-31 | D161: EDECHI | E161: GENA SOLAR, S.A. | F161: F | G161: SEG | I161: 0.092
A162: 60-23 | B162: 2025-02-01 | C162: 2027-01-31 | D162: EDECHI | E162: Hydro Caisán, S.A. | F162: H | G162: SED | I162: 0.09765
A163: 61-23 | B163: 2025-02-01 | C163: 2027-01-31 | D163: EDECHI | E163: HidroPiedra, S.A. | F163: H | G163: SED | I163: 0.1312675
A164: 62-23 | B164: 2025-02-01 | C164: 2027-01-31 | D164: EDECHI | E164: Istmus Hydro Power, Corp. | F164: H | G164: SED | I164: 0.1200833333
A165: 63-23 | B165: 2025-02-01 | C165: 2027-01-31 | D165: EDECHI | E165: Las Perlas Norte, S.A. | F165: H | G165: SED | I165: 0.11127
A166: 64-23 | B166: 2025-02-01 | C166: 2027-01-31 | D166: EDECHI | E166: Las Perlas Sur, S.A. | F166: H | G166: SED | I166: 0.1200833333
A167: 65-23 | B167: 2025-02-01 | C167: 2027-01-31 | D167: EDECHI | E167: Pedregal Power Company, S. de R.L. | F167: T | G167: SED | I167: 0.19323
A168: 66-23 | B168: 2025-02-01 | C168: 2027-01-31 | D168: EDECHI | E168: SPARKLEPW | F168: T | G168: SED | I168: 0.13
A169: 67-23 | B169: 2025-02-01 | C169: 2027-01-31 | D169: EDECHI | E169: TECNISOL4 | F169: F | G169: SEG | I169: 0.131
A170: 68-23 | B170: 2025-02-01 | C170: 2027-01-31 | D170: EDECHI | E170: UEP Penonomé II, S.A. | F170: E | G170: SEG | I170: 0.13485
A171: 69-23 | B171: 2025-02-01 | C171: 2027-01-31 | D171: EDECHI | E171: Celsia Centroamérica, S.A. | F171: T | G171: SP | I171: 7.196666667
A172: 70-23 | B172: 2025-02-01 | C172: 2027-01-31 | D172: EDECHI | E172: Generadora del Atlántico, S.A. | F172: T | G172: SED | I172: 6.2
A173: ENSA
A174: DME-016-11 | B174: 2016-09-01 | C174: 2036-03-31 | D174: ENSA | E174: Enel Fortuna, S.A. | F174: HE | G174: PE | H174: 6.56 | I174: 0.0942 | J174: - | L174: - | M174: 7.87298
A175: DME-027-11 | B175: 2015-01-01 | C175: 2036-03-31 | D175: ENSA | E175: Electrogeneradora del Istmo, S.A. | F175: H | G175: PE | H175: 25 | I175: 0.0633 | J175: - | K175: - | L175: - | M175: 0.33338
A176: DME-020-11 | B176: 2015-01-01 | C176: 2036-03-31 | D176: ENSA | E176: Energía y Servicios de Panamá, S.A. | F176: H | G176: PE | H176: 11.5 | I176: 0.091 | J176: - | K176: - | L176: - | M176: 1.4615
A177: DME-021-11 Enmienda 2 | B177: 2015-01-01 | C177: 2036-03-31 | D177: ENSA | E177: Generadora Pedregalito, S.A. | F177: H | G177: PE | H177: 0 | I177: 0.10976 | J177: - | K177: - | L177: - | M177: 1.05026
A178: DME-023-11 | B178: 2015-01-01 | C178: 2036-03-31 | D178: ENSA | E178: Generadora Río Chico, S.A. | F178: H | G178: PE | H178: 30 | I178: 0.0542 | J178: - | K178: - | L178: - | M178: 0.64408
A179: DME-024-11 | B179: 2015-01-01 | C179: 2036-03-31 | D179: ENSA | E179: Generadora Alto Valle, S.A. | F179: H | G179: PE | H179: 30 | I179: 0.0542 | J179: - | K179: - | L179: - | M179: 0.61288
A180: DME-018-11 | B180: 2015-07-01 | C180: 2036-03-31 | D180: ENSA | E180: Hidroecológica del Teribe, S.A. | F180: H | G180: PE | H180: 8.5 | I180: 0.1009 | J180: - | K180: - | L180: - | M180: 2.667
A181: DME-025-11 Enmienda 2 | B181: 2015-04-01 | C181: 2036-03-31 | D181: ENSA | E181: Desarrollos Hidroeléctricos Corp. | F181: H | G181: PE | H181: 10.35 | I181: 0.0965 | J181: - | K181: - | L181: - | M181: 0.507
A182: DME-026-11 | B182: 2015-11-15 | C182: 2036-03-31 | D182: ENSA | E182: Hidroeléctrica San Lorenzo, S.A. | F182: H | G182: PE | H182: 15 | I182: 0.0895 | J182: - | K182: - | L182: - | M182: 0.3555
A183: DME-022-11 | B183: 2016-08-06 | C183: 2036-03-31 | D183: ENSA | E183: Caldera Energy Corp. | F183: H | G183: PE | H183: 25 | I183: 0.0633 | J183: - | K183: - | L183: - | M183: 0.8001
A184: DME-63-12 | B184: 2016-01-01 | C184: 2036-03-31 | D184: ENSA | E184: Hidro Piedra, S.A. | F184: H | G184: PE | H184: 8.36 | I184: 0.09428 | J184: - | K184: - | L184: - | M184: 0.5001
A185: DME-006-14 | B185: 2016-01-01 | C185: 2039-12-31 | D185: ENSA | E185: Coal Power, S.A. | F185: T | G185: PE | H185: 10 | I185: 0.1004 | J185: CIF ARA 6000 kCal/Kg | K185: - | L185: 0.9 | M185: 0
A186: DME-66-12 | B186: 2016-01-01 | C186: 2036-03-31 | D186: ENSA | E186: Saltos del Francolí, S.A. | F186: H | G186: PE | H186: 11.6 | I186: 0.1035 | J186: - | K186: 86.22 | L186: 0 | M186: 0
A187: SIGSA-16-08 | B187: 2016-01-01 | C187: 2036-03-31 | D187: ENSA | E187: Sistemas de Generación, S.A. | F187: T | G187: PE | H187: 12 | I187: 0.11312 (fijo) 0.37844 (variable) | K187: 0 | M187: 29.1
A188: DME-012-14 Cesión Erryl y Enmienda 2 | B188: 2014-07-01 | C188: 2029-06-30 | D188: ENSA | E188: AES Panamá, S.R.L. | F188: T | G188: PE | H188: 45.27 | I188: 0.148 | J188: US Gulf Coast Waterbome No.2 Oil azufre de 1000 PPM Publicación Platss. | K188: 87.6414 | L188: 0.9 | M188: 32
A189: DME-13-14 Enmienda 1 | B189: 2014-07-01 | C189: 2029-06-30 | D189: ENSA | E189: Pan-Am Generating Limited | F189: T | G189: PE | H189: 30 | I189: 0.191 | J189: US Gulf Coast Posting, fuel oil #6 (3% azufre) Platts Latin American Wire | K189: 2.77 | L189: 0.9 | M189: 12.8
A190: DME-62-12 | B190: 2014-07-01 | C190: 2036-12-30 | D190: ENSA | E190: AES Panamá, S.R.L. | F190: H | G190: PE | H190: 10 | I190: 0.0901 | J190: - | K190: 87.65 | L190: - | M190: 0
A191: DME 004-15 Enmienda 2 | B191: 2018-09-01 | C191: 2028-08-31 | D191: ENSA | E191: Gas Natural Atlántico, S. de R.L. | F191: G | G191: PE | H191: 38.83 | I191: 0.0268 | J191: Henry Hub Spot Price (midpoint) Lousiana-Onshore South. Platts Gas Daily | K191: - | L191: 0.84 | M191: 126
A192: DME 005-15 Enmienta 3 | B192: 2024-03-01 | C192: 2039-03-01 | D192: ENSA | E192: Martano | F192: H | G192: PE | H192: 32.09 | I192: 0.0209 | J192: Henry Hub Spot Price (midpoint) Lousiana-Onshore South. Platts Gas Daily | K192: 2.8 | L192: 0 | M192: 126
A193: DME 10-13 Enmienda 2 | B193: 2024-10-01 | C193: 2044-09-30 | D193: ENSA | E193: Generadora Gatún, S. A. (Panama NGP) | F193: G | G193: PE | H193: 18.89 | I193: 0.088 | J193: Henry Hub Costa del Golf | K193: 2.39 | L193: 0
A194: DME-64-12 | B194: 2013-03-01 | C194: 2027-12-31 | D194: ENSA | E194: Corporación de Energía del Istmo | F194: T | G194: PE | H194: 8.9 | I194: 0.1 | J194: - | L194: - | M194: 2.4668
A195: DME-005-14 | B195: 2013-03-01 | C195: 2042-12-31 | D195: ENSA | E195: Empresa de Generación Eléctrica, S.A. | F195: H | G195: PE | H195: 32.06 | I195: 0.0727 | J195: - | K195: - | L195: -
A196: DME-047-11 Enmienda 2 | B196: 2013-03-01 | C196: 2027-12-31 | D196: ENSA | E196: Hidroecológica del Teribe, S.A. | F196: H | G196: E | I196: 0.1089 | K196: - | L196: - | M196: 0.6
A197: DME-048-11 | D197: ENSA | E197: Paso Ancho Hydro Power Corporation | F197: H | G197: E | I197: 0.0999 | K197: -
A198: DME-001-13 | B198: 2024-11-01 | C198: 2033-12-31 | D198: ENSA | E198: Hidroeléctrica Tizingal, S.A. | F198: H | G198: E | I198: 0.12 | L198: -
A199: DME-002-13 | B199: 2024-11-01 | C199: 2033-12-31 | D199: ENSA | E199: Caldera Energy Corp. | F199: H | G199: E | I199: 0.1209 | K199: - | L199: -
A200: DME-003-13 | B200: 2024-11-01 | C200: 2033-12-31 | D200: ENSA | E200: Electrogeneradora del Istmo, S.A. | F200: H | G200: E | I200: 0.1232 | K200: - | L200: -
A201: DME-004-13 | B201: 2024-11-01 | C201: 2033-12-31 | D201: ENSA | E201: Fountain Intertrade Corp. | F201: H | G201: E | I201: 0.1305 | K201: - | L201: -
... 62 more rows

Sheet Oferta (hidden)
A1: Tipo de Contrato | B1: (Varios elementos)
A2: Tecnología | B2: (Todas)
A3: 1 | B3: 2 | C3: 3 | D3: 4 | E3: 5 | F3: 6 | G3: 7 | H3: 8 | I3: 9 | J3: 10 | K3: 11 | L3: 12 | M3: 13 | N3: 14 | O3: 15 | P3: 16 | Q3: 17 | R3: 18 | S3: 19 | T3: 20 | U3: 21 | V3: 22 | W3: 23 | X3: 24 | Y3: 25 | Z3: 26 | AA3: 27 | AB3: 28 | AC3: 29 | AD3: 30 | AE3: 31 | AF3: 32 | AG3: 33 | AH3: 34 | AI3: 35 | AJ3: 36 | AK3: 37 | AL3: 38 | AM3: 39 | AN3: 40 | AO3: 41 | AP3: 42 | AQ3: 43 | AR3: 44 | AS3: 45 | AT3: 46 | AU3: 47 | AV3: 48 | AW3: 49 | AX3: 50 | AY3: 51 | AZ3: 52 | BA3: 53 | BB3: 54 | BC3: 55 | BD3: 56 | BE3: 57 | BF3: 58 | BG3: 59 | BH3: 60 | BI3: 61
A4: Etiquetas de fila | B4: Suma de ene-19 | C4: Suma de feb-19 | D4: Suma de mar-19 | E4: Suma de abr-19 | F4: Suma de may-19 | G4: Suma de jun-19 | H4: Suma de jul-19 | I4: Suma de ago-19 | J4: Suma de sep-19 | K4: Suma de oct-19 | L4: Suma de nov-19 | M4: Suma de dic-19 | N4: Suma de ene-20 | O4: Suma de feb-20 | P4: Suma de mar-20 | Q4: Suma de abr-20 | R4: Suma de may-20 | S4: Suma de jun-20 | T4: Suma de jul-20 | U4: Suma de ago-20 | V4: Suma de sep-20 | W4: Suma de oct-20 | X4: Suma de nov-20 | Y4: Suma de dic-20 | Z4: Suma de ene-21 | AA4: Suma de feb-21 | AB4: Suma de mar-21 | AC4: Suma de abr-21 | AD4: Suma de may-21 | AE4: Suma de jun-21 | AF4: Suma de jul-21 | AG4: Suma de ago-21 | AH4: Suma de sep-21 | AI4: Suma de oct-21 | AJ4: Suma de nov-21 | AK4: Suma de dic-21 | AL4: Suma de ene-22 | AM4: Suma de feb-22 | AN4: Suma de mar-22 | AO4: Suma de abr-22 | AP4: Suma de may-22 | AQ4: Suma de jun-22 | AR4: Suma de jul-22 | AS4: Suma de ago-22 | AT4: Suma de sep-22 | AU4: Suma de oct-22 | AV4: Suma de nov-22 | AW4: Suma de dic-22 | AX4: Suma de ene-23 | AY4: Suma de feb-23 | AZ4: Suma de mar-23 | BA4: Suma de abr-23 | BB4: Suma de may-23 | BC4: Suma de jun-23 | BD4: Suma de jul-23 | BE4: Suma de ago-23 | BF4: Suma de sep-23 | BG4: Suma de oct-23 | BH4: Suma de nov-23 | BI4: Suma de dic-23
A5: AES Panamá, S.R.L. | B5: 430 | C5: 430 | D5: 430 | E5: 430 | F5: 430 | G5: 430 | H5: 430 | I5: 430 | J5: 430 | K5: 430 | L5: 430 | M5: 430 | N5: 430 | O5: 430 | P5: 430 | Q5: 430 | R5: 430 | S5: 430 | T5: 350 | U5: 350 | V5: 350 | W5: 350 | X5: 350 | Y5: 350 | Z5: 350 | AA5: 350 | AB5: 350 | AC5: 350 | AD5: 350 | AE5: 350 | AF5: 350 | AG5: 350 | AH5: 350 | AI5: 350 | AJ5: 350 | AK5: 350 | AL5: 350 | AM5: 350 | AN5: 350 | AO5: 350 | AP5: 350 | AQ5: 350 | AR5: 350 | AS5: 350 | AT5: 350 | AU5: 350 | AV5: 350 | AW5: 350 | AX5: 350 | AY5: 350 | AZ5: 350 | BA5: 350 | BB5: 350 | BC5: 350 | BD5: 350 | BE5: 350 | BF5: 350 | BG5: 350 | BH5: 350 | BI5: 350
A6: Alternegy, S.A. | B6: 100.69 | C6: 100.69 | D6: 110.8 | E6: 110.8 | F6: 100.69 | G6: 101.17 | H6: 110.8 | I6: 106.85 | J6: 110.8 | K6: 110.8 | L6: 110.8 | M6: 110.8 | N6: 80 | O6: 80 | P6: 80 | Q6: 80 | R6: 80 | S6: 80 | T6: 80 | U6: 80 | V6: 80 | W6: 80 | X6: 80 | Y6: 80 | Z6: 80 | AA6: 80 | AB6: 80 | AC6: 80 | AD6: 80 | AE6: 80 | AF6: 80 | AG6: 80 | AH6: 80 | AI6: 80 | AJ6: 80 | AK6: 80 | AL6: 80 | AM6: 80 | AN6: 80 | AO6: 80 | AP6: 80 | AQ6: 80 | AR6: 80 | AS6: 80 | AT6: 80 | AU6: 80 | AV6: 80 | AW6: 80 | AX6: 0 | AY6: 0 | AZ6: 0 | BA6: 0 | BB6: 0 | BC6: 0 | BD6: 0 | BE6: 0 | BF6: 0 | BG6: 0 | BH6: 0 | BI6: 0
A7: Autoridad del Canal de Panamá | B7: 30 | C7: 30 | D7: 30 | E7: 30 | F7: 30 | G7: 30 | H7: 30 | I7: 30 | J7: 30 | K7: 30 | L7: 30 | M7: 30 | N7: 0 | O7: 0 | P7: 0 | Q7: 0 | R7: 0 | S7: 0 | T7: 0 | U7: 0 | V7: 0 | W7: 0 | X7: 0 | Y7: 0 | Z7: 0 | AA7: 0 | AB7: 0 | AC7: 0 | AD7: 0 | AE7: 0 | AF7: 0 | AG7: 0 | AH7: 0 | AI7: 0 | AJ7: 0 | AK7: 0 | AL7: 0 | AM7: 0 | AN7: 0 | AO7: 0 | AP7: 0 | AQ7: 0 | AR7: 0 | AS7: 0 | AT7: 0 | AU7: 0 | AV7: 0 | AW7: 0 | AX7: 0 | AY7: 0 | AZ7: 0 | BA7: 0 | BB7: 0 | BC7: 0 | BD7: 0 | BE7: 0 | BF7: 0 | BG7: 0 | BH7: 0 | BI7: 0
A8: Bahía Las Minas Corp.,
A9: Bontex, S.A. | B9: 20 | C9: 20 | D9: 20 | E9: 20 | F9: 20 | G9: 20 | H9: 20 | I9: 20 | J9: 20 | K9: 20 | L9: 20 | M9: 20 | N9: 20 | O9: 20 | P9: 20 | Q9: 20 | R9: 20 | S9: 20 | T9: 20 | U9: 20 | V9: 20 | W9: 20 | X9: 20 | Y9: 20 | Z9: 20 | AA9: 20 | AB9: 20 | AC9: 20 | AD9: 20 | AE9: 20 | AF9: 20 | AG9: 20 | AH9: 20 | AI9: 20 | AJ9: 20 | AK9: 20 | AL9: 20 | AM9: 20 | AN9: 20 | AO9: 20 | AP9: 20 | AQ9: 20 | AR9: 20 | AS9: 20 | AT9: 20 | AU9: 20 | AV9: 20 | AW9: 20 | AX9: 0 | AY9: 0 | AZ9: 0 | BA9: 0 | BB9: 0 | BC9: 0 | BD9: 0 | BE9: 0 | BF9: 0 | BG9: 0 | BH9: 0 | BI9: 0
A10: Caldera Energy Corp. | B10: 3 | C10: 3 | D10: 3 | E10: 3 | F10: 3 | G10: 3 | H10: 3 | I10: 3 | J10: 3 | K10: 3 | L10: 3 | M10: 3 | N10: 3 | O10: 3 | P10: 3 | Q10: 3 | R10: 3 | S10: 3 | T10: 3 | U10: 3 | V10: 3 | W10: 3 | X10: 3 | Y10: 3 | Z10: 3 | AA10: 3 | AB10: 3 | AC10: 3 | AD10: 3 | AE10: 3 | AF10: 3 | AG10: 3 | AH10: 3 | AI10: 3 | AJ10: 3 | AK10: 3 | AL10: 3 | AM10: 3 | AN10: 3 | AO10: 3 | AP10: 3 | AQ10: 3 | AR10: 3 | AS10: 3 | AT10: 3 | AU10: 3 | AV10: 3 | AW10: 3 | AX10: 3 | AY10: 3 | AZ10: 3 | BA10: 3 | BB10: 3 | BC10: 3 | BD10: 3 | BE10: 3 | BF10: 3 | BG10: 3 | BH10: 3 | BI10: 3
A11: Consorcio Energyst - International | B11: 20 | C11: 20 | D11: 20 | E11: 20 | F11: 20 | G11: 20 | H11: 20 | I11: 20 | J11: 20 | K11: 20 | L11: 20 | M11: 20 | N11: 0 | O11: 0 | P11: 0 | Q11: 0 | R11: 0 | S11: 0 | T11: 0 | U11: 0 | V11: 0 | W11: 0 | X11: 0 | Y11: 0 | Z11: 0 | AA11: 0 | AB11: 0 | AC11: 0 | AD11: 0 | AE11: 0 | AF11: 0 | AG11: 0 | AH11: 0 | AI11: 0 | AJ11: 0 | AK11: 0 | AL11: 0 | AM11: 0 | AN11: 0 | AO11: 0 | AP11: 0 | AQ11: 0 | AR11: 0 | AS11: 0 | AT11: 0 | AU11: 0 | AV11: 0 | AW11: 0 | AX11: 0 | AY11: 0 | AZ11: 0 | BA11: 0 | BB11: 0 | BC11: 0 | BD11: 0 | BE11: 0 | BF11: 0 | BG11: 0 | BH11: 0 | BI11: 0
A12: Corporación de Energía del Istmo LTD, S.A. | B12: 8.81 | C12: 8.81 | D12: 8.81 | E12: 8.81 | F12: 8.81 | G12: 8.81 | H12: 8.81 | I12: 8.81 | J12: 8.81 | K12: 8.81 | L12: 8.81 | M12: 8.81 | N12: 8.81 | O12: 8.81 | P12: 8.81 | Q12: 8.81 | R12: 8.81 | S12: 8.81 | T12: 8.81 | U12: 8.81 | V12: 8.81 | W12: 8.81 | X12: 8.81 | Y12: 8.81 | Z12: 8.81 | AA12: 8.81 | AB12: 8.81 | AC12: 8.81 | AD12: 8.81 | AE12: 8.81 | AF12: 8.81 | AG12: 8.81 | AH12: 8.81 | AI12: 8.81 | AJ12: 8.81 | AK12: 8.81 | AL12: 8.81 | AM12: 8.81 | AN12: 8.81 | AO12: 8.81 | AP12: 8.81 | AQ12: 8.81 | AR12: 8.81 | AS12: 8.81 | AT12: 8.81 | AU12: 8.81 | AV12: 8.81 | AW12: 8.81 | AX12: 8.81 | AY12: 8.81 | AZ12: 8.81 | BA12: 8.81 | BB12: 8.81 | BC12: 8.81 | BD12: 8.81 | BE12: 8.81 | BF12: 8.81 | BG12: 8.81 | BH12: 8.81 | BI12: 8.81
A13: Desarrollos Hidroeléctricos Corp. | B13: 1.90247 | C13: 1.90247 | D13: 1.90247 | E13: 1.90247 | F13: 1.90247 | G13: 1.90247 | H13: 1.90247 | I13: 1.90247 | J13: 1.90247 | K13: 1.90247 | L13: 1.90247 | M13: 1.90247 | N13: 1.90247 | O13: 1.90247 | P13: 1.90247 | Q13: 1.90247 | R13: 1.90247 | S13: 1.90247 | T13: 1.90247 | U13: 1.90247 | V13: 1.90247 | W13: 1.90247 | X13: 1.90247 | Y13: 1.90247 | Z13: 1.90247 | AA13: 1.90247 | AB13: 1.90247 | AC13: 1.90247 | AD13: 1.90247 | AE13: 1.90247 | AF13: 1.90247 | AG13: 1.90247 | AH13: 1.90247 | AI13: 1.90247 | AJ13: 1.90247 | AK13: 1.90247 | AL13: 1.90247 | AM13: 1.90247 | AN13: 1.90247 | AO13: 1.90247 | AP13: 1.90247 | AQ13: 1.90247 | AR13: 1.90247 | AS13: 1.90247 | AT13: 1.90247 | AU13: 1.90247 | AV13: 1.90247 | AW13: 1.90247 | AX13: 1.90247 | AY13: 1.90247 | AZ13: 1.90247 | BA13: 1.90247 | BB13: 1.90247 | BC13: 1.90247 | BD13: 1.90247 | BE13: 1.90247 | BF13: 1.90247 | BG13: 1.90247 | BH13: 1.90247 | BI13: 1.90247
A14: Electrogeneradora del Istmo, S.A. | B14: 1.25001 | C14: 1.25001 | D14: 1.25001 | E14: 1.25001 | F14: 1.25001 | G14: 1.25001 | H14: 1.25001 | I14: 1.25001 | J14: 1.25001 | K14: 1.25001 | L14: 1.25001 | M14: 1.25001 | N14: 1.25001 | O14: 1.25001 | P14: 1.25001 | Q14: 1.25001 | R14: 1.25001 | S14: 1.25001 | T14: 1.25001 | U14: 1.25001 | V14: 1.25001 | W14: 1.25001 | X14: 1.25001 | Y14: 1.25001 | Z14: 1.25001 | AA14: 1.25001 | AB14: 1.25001 | AC14: 1.25001 | AD14: 1.25001 | AE14: 1.25001 | AF14: 1.25001 | AG14: 1.25001 | AH14: 1.25001 | AI14: 1.25001 | AJ14: 1.25001 | AK14: 1.25001 | AL14: 1.25001 | AM14: 1.25001 | AN14: 1.25001 | AO14: 1.25001 | AP14: 1.25001 | AQ14: 1.25001 | AR14: 1.25001 | AS14: 1.25001 | AT14: 1.25001 | AU14: 1.25001 | AV14: 1.25001 | AW14: 1.25001 | AX14: 1.25001 | AY14: 1.25001 | AZ14: 1.25001 | BA14: 1.25001 | BB14: 1.25001 | BC14: 1.25001 | BD14: 1.25001 | BE14: 1.25001 | BF14: 1.25001 | BG14: 1.25001 | BH14: 1.25001 | BI14: 1.25001
A15: Electron Investment, S.A. | B15: 57 | C15: 57 | D15: 57 | E15: 57 | F15: 54 | G15: 54 | H15: 57 | I15: 57 | J15: 57 | K15: 57 | L15: 57 | M15: 57 | N15: 45 | O15: 45 | P15: 45 | Q15: 45 | R15: 45 | S15: 45 | T15: 45 | U15: 45 | V15: 45 | W15: 45 | X15: 45 | Y15: 45 | Z15: 45 | AA15: 45 | AB15: 45 | AC15: 45 | AD15: 45 | AE15: 45 | AF15: 45 | AG15: 45 | AH15: 45 | AI15: 45 | AJ15: 45 | AK15: 45 | AL15: 45 | AM15: 45 | AN15: 45 | AO15: 45 | AP15: 45 | AQ15: 45 | AR15: 45 | AS15: 45 | AT15: 45 | AU15: 45 | AV15: 45 | AW15: 45 | AX15: 45 | AY15: 45 | AZ15: 45 | BA15: 45 | BB15: 45 | BC15: 45 | BD15: 45 | BE15: 45 | BF15: 45 | BG15: 45 | BH15: 45 | BI15: 45
A16: Empresa Nacional de Energía, S.A. | B16: 8.693 | C16: 8.693 | D16: 8.693 | E16: 8.693 | F16: 8.693 | G16: 8.693 | H16: 8.693 | I16: 8.693 | J16: 8.693 | K16: 8.693 | L16: 8.693 | M16: 8.693 | N16: 7.333 | O16: 7.333 | P16: 7.333 | Q16: 7.333 | R16: 7.333 | S16: 7.333 | T16: 7.333 | U16: 7.333 | V16: 7.333 | W16: 7.333 | X16: 7.333 | Y16: 7.333 | Z16: 7.333 | AA16: 7.333 | AB16: 7.333 | AC16: 7.333 | AD16: 7.333 | AE16: 7.333 | AF16: 7.333 | AG16: 7.333 | AH16: 7.333 | AI16: 7.333 | AJ16: 7.333 | AK16: 7.333 | AL16: 7.333 | AM16: 7.333 | AN16: 7.333 | AO16: 7.333 | AP16: 7.333 | AQ16: 7.333 | AR16: 7.333 | AS16: 7.333 | AT16: 7.333 | AU16: 7.333 | AV16: 7.333 | AW16: 7.333 | AX16: 7.333 | AY16: 7.333 | AZ16: 7.333 | BA16: 7.333 | BB16: 7.333 | BC16: 7.333 | BD16: 7.333 | BE16: 7.333 | BF16: 7.333 | BG16: 7.333 | BH16: 7.333 | BI16: 7.333
A17: Enel Fortuna, S.A. | B17: 254.54999 | C17: 254.54999 | D17: 254.54999 | E17: 254.54999 | F17: 254.54999 | G17: 250.68999 | H17: 254.54999 | I17: 254.54999 | J17: 254.54999 | K17: 254.54999 | L17: 254.54999 | M17: 254.54999 | N17: 236.94039 | O17: 236.94039 | P17: 236.94039 | Q17: 236.94039 | R17: 236.94039 | S17: 236.94039 | T17: 146.72039 | U17: 146.72039 | V17: 146.72039 | W17: 146.72039 | X17: 146.72039 | Y17: 146.72039 | Z17: 64.51999 | AA17: 64.51999 | AB17: 64.51999 | AC17: 64.51999 | AD17: 64.51999 | AE17: 64.51999 | AF17: 64.51999 | AG17: 64.51999 | AH17: 64.51999 | AI17: 64.51999 | AJ17: 64.51999 | AK17: 64.51999 | AL17: 64.51999 | AM17: 64.51999 | AN17: 64.51999 | AO17: 64.51999 | AP17: 64.51999 | AQ17: 64.51999 | AR17: 64.51999 | AS17: 64.51999 | AT17: 64.51999 | AU17: 64.51999 | AV17: 64.51999 | AW17: 64.51999 | AX17: 29.51999 | AY17: 29.51999 | AZ17: 29.51999 | BA17: 29.51999 | BB17: 29.51999 | BC17: 29.51999 | BD17: 29.51999 | BE17: 29.51999 | BF17: 29.51999 | BG17: 29.51999 | BH17: 29.51999 | BI17: 29.51999
A18: Enel Green Power, S.A. | B18: 29.2523 | C18: 27.4972 | D18: 32.7626 | E18: 32.1775 | F18: 33.3476 | G18: 30.4224 | H18: 28.6673 | I18: 28.6673 | J18: 31.0074 | K18: 34.5177 | L18: 31.5925 | M18: 28.0822
A19: Energía y Servicios de Panamá, S.A. | B19: 5.47999 | C19: 5.47999 | D19: 5.47999 | E19: 5.47999 | F19: 5.47999 | G19: 5.47999 | H19: 5.47999 | I19: 5.47999 | J19: 5.47999 | K19: 5.47999 | L19: 5.47999 | M19: 5.47999 | N19: 5.47999 | O19: 5.47999 | P19: 5.47999 | Q19: 5.47999 | R19: 5.47999 | S19: 5.47999 | T19: 5.47999 | U19: 5.47999 | V19: 5.47999 | W19: 5.47999 | X19: 5.47999 | Y19: 5.47999 | Z19: 5.47999 | AA19: 5.47999 | AB19: 5.47999 | AC19: 5.47999 | AD19: 5.47999 | AE19: 5.47999 | AF19: 5.47999 | AG19: 5.47999 | AH19: 5.47999 | AI19: 5.47999 | AJ19: 5.47999 | AK19: 5.47999 | AL19: 5.47999 | AM19: 5.47999 | AN19: 5.47999 | AO19: 5.47999 | AP19: 5.47999 | AQ19: 5.47999 | AR19: 5.47999 | AS19: 5.47999 | AT19: 5.47999 | AU19: 5.47999 | AV19: 5.47999 | AW19: 5.47999 | AX19: 5.47999 | AY19: 5.47999 | AZ19: 5.47999 | BA19: 5.47999 | BB19: 5.47999 | BC19: 5.47999 | BD19: 5.47999 | BE19: 5.47999 | BF19: 5.47999 | BG19: 5.47999 | BH19: 5.47999 | BI19: 5.47999
A20: Fountain Intertrade Corp. | B20: 14.25 | C20: 14.25 | D20: 14.25 | E20: 14.25 | F20: 18.38 | G20: 18.39 | H20: 18.39 | I20: 18.38 | J20: 18.39 | K20: 18.39 | L20: 18.39 | M20: 18.39 | N20: 15.54 | O20: 15.54 | P20: 15.54 | Q20: 15.54 | R20: 15.54 | S20: 15.54 | T20: 0 | U20: 0 | V20: 0 | W20: 0 | X20: 0 | Y20: 0 | Z20: 0 | AA20: 0 | AB20: 0 | AC20: 0 | AD20: 0 | AE20: 0 | AF20: 0 | AG20: 0 | AH20: 0 | AI20: 0 | AJ20: 0 | AK20: 0 | AL20: 0 | AM20: 0 | AN20: 0 | AO20: 0 | AP20: 0 | AQ20: 0 | AR20: 0 | AS20: 0 | AT20: 0 | AU20: 0 | AV20: 0 | AW20: 0 | AX20: 0 | AY20: 0 | AZ20: 0 | BA20: 0 | BB20: 0 | BC20: 0 | BD20: 0 | BE20: 0 | BF20: 0 | BG20: 0 | BH20: 0 | BI20: 0 | BJ20: 279195.9138 | BK20: 261573.5565 | BL20: 294037.3724 | BM20: 294033.3062 | BN20: 302533.4008 | BO20: 277422.5378 | BP20: 291659.3047 | BQ20: 291935.8903 | BR20: 265420.3771 | BS20: 278427.1362 | BT20: 261754.4808 | BU20: 276207.5636 | BV20: 292015.4074 | BW20: 272299.1827 | BX20: 305525.6506 | BY20: 305552.7852 | BZ20: 314115.0343 | CA20: 287791.8933 | CB20: 302313.5171 | CC20: 302376.4334 | CD20: 274645.713 | CE20: 287876.2591 | CF20: 270497.6033 | CG20: 284533.9371 | CH20: 301029.7111 | CI20: 275397.832 | CJ20: 318917.3118 | CK20: 311492.8823 | CL20: 316110.906 | CM20: 298950.974 | CN20: 306739.1036 | CO20: 304399.4726 | CP20: 284577.4939 | CQ20: 296846.1531 | CR20: 283492.1499 | CS20: 307513.6556 | CT20: 309789.4688 | CU20: 283411.5864 | CV20: 328197.6612 | CW20: 320557.2534 | CX20: 325309.5896 | CY20: 307650.0037 | CZ20: 315664.7052 | DA20: 313257.3248 | DB20: 292858.6389 | DC20: 305484.1622 | DD20: 291741.9955 | DE20: 316461.9141 | DF20: 318499.3926 | DG20: 291379.7508 | DH20: 337425.2156 | DI20: 329570.0596 | DJ20: 334455.9434 | DK20: 316299.5455 | DL20: 324539.5299 | DM20: 322064.7851 | DN20: 301092.673 | DO20: 314073.0304 | DP20: 299944.9092 | DQ20: 325359.2678 | DR20: 327395.7015 | DS20: 299518.4264 | DT20: 346850.231 | DU20: 338775.7309 | DV20: 343798.0203 | DW20: 325134.1793 | DX20: 333604.2677 | DY20: 331060.7165 | DZ20: 309502.9081 | EA20: 322845.6926 | EB20: 308323.357 | EC20: 334447.0165 | ED20: 336398.4035 | EE20: 307754.4349 | EF20: 356387.9636 | EG20: 348091.4952 | EH20: 353251.8222 | EI20: 334074.4683 | EJ20: 342777.4135 | EK20: 340164.234 | EL20: 318013.7233 | EM20: 331723.2699 | EN20: 316802.0058 | EO20: 343643.4473 | EP20: 345502.1175 | EQ20: 316082.8536 | ER20: 366032.7112 | ES20: 357511.7856 | ET20: 362811.6972 | EU20: 343115.0703 | EV20: 352053.4834 | EW20: 349369.8935 | EX20: 326620.0315 | EY20: 340700.4552 | EZ20: 325375.7866 | FA20: 352943.0642 | FB20: 355419.1826 | FC20: 325155.3543 | FD20: 376539.1469 | FE20: 367773.7091 | FF20: 373225.6782 | FG20: 352963.3824 | FH20: 362158.3015 | FI20: 359398.0131 | FJ20: 335995.2519 | FK20: 350479.6867 | FL20: 334715.5745 | FM20: 363073.5332 | FN20: 365342.0567 | FO20: 334233.1711 | FP20: 387051.7377 | FQ20: 378041.6456 | FR20: 383645.7594 | FS20: 362817.4646 | FT20: 372269.0396 | FU20: 369432.0068 | FV20: 345375.9642 | FW20: 360264.6472 | FX20: 344060.8325 | FY20: 373209.9373 | FZ20: 375184.673 | GA20: 343237.564 | GB20: 397479.3005 | GC20: 388226.5332 | GD20: 393981.5626 | GE20: 372591.8449 | GF20: 382297.9998 | GG20: 379384.8435 | GH20: 354680.8037 | GI20: 369970.4648 | GJ20: 353330.5055 | GK20: 383264.3564 | GL20: 384927.1783 | GM20: 352150.3719 | GN20: 407800.8024 | GO20: 398307.8269 | GP20: 404212.2358 | GQ20: 382266.8082 | GR20: 392224.954 | GS20: 389236.4483 | GT20: 363891.0012 | GU20: 379577.5624 | GV20: 362505.8935 | GW20: 393216.5096 | GX20: 394549.4527 | GY20: 360953.188 | GZ20: 417994.9284 | HA20: 408264.7097 | HB20: 414316.6552 | HC20: 391822.3747 | HD20: 402029.4004 | HE20: 398966.4752 | HF20: 372987.5367 | HG20: 389066.1011 | HH20: 371568.0506 | HI20: 403045.8459 | HJ20: 404031.1871 | HK20: 369627.433 | HL20: 428040.1625 | HM20: 418076.1655 | HN20: 424273.4936 | HO20: 401238.3752 | HP20: 411690.6478 | HQ20: 408554.3892 | HR20: 381951.2124 | HS20: 398416.0529 | HT20: 380497.8478 | HU20: 412731.6173 | HV20: 413268.4667 | HW20: 378078.0422 | HX20: 437826.4126 | HY20: 427634.6644 | HZ20: 433973.6261 | IA20: 410411.6158 | IB20: 421102.8114 | IC20: 417895.1102 | ID20: 390683.7881 | IE20: 407524.9468 | IF20: 389197.419 | IG20: 422167.6738 | IH20: 422240.8303 | II20: 386286.2964 | IJ20: 447332.0038 | IK20: 436919.0364 | IL20: 443395.5697 | IM20: 419321.7774 | IN20: 430245.044 | IO20: 426967.9493 | IP20: 399165.9228 | IQ20: 416372.6078 | IR20: 397647.4953 | IS20: 431333.1133 | IT20: 430927.8619 | IU20: 394233.5177 | IV20: 456535.3051 | IW20: 445908.1534 | IX20: 452517.8833 | IY20: 427948.5862 | IZ20: 439096.5437 | JA20: 435752.2605 | JB20: 407378.3156 | JC20: 424938.9018 | JD20: 405828.8486 | JE20: 440207.0819 | JF20: 439392.7657 | JG20: 401977.5281 | JH20: 465503.2775 | JI20: 454667.4175 | JJ20: 461406.9391 | JK20: 436354.806 | JL20: 447721.7094 | JM20: 444311.9567 | JN20: 415380.7155 | JO20: 433286.1548 | JP20: 413801.003 | JQ20: 448854.1426 | JR20: 447615.4615 | JS20: 409499.9595 | JT20: 474214.6479 | JU20: 463176.0527 | JV20: 470041.6509 | JW20: 444520.4989 | JX20: 456100.0833 | JY20: 452626.733 | JZ20: 423154.1435 | KA20: 441394.568 | KB20: 421545.0504 | KC20: 457253.7834 | KD20: 455576.1684 | KE20: 416782.712 | KF20: 482648.4594 | KG20: 471413.5859 | KH20: 478401.2457 | KI20: 452426.0179 | KJ20: 464211.5073 | KK20: 460676.5854 | KL20: 430679.8945 | KM20: 449244.6312 | KN20: 429042.3569 | KO20: 465385.7973 | KP20: 463255.4824 | KQ20: 423808.0366 | KR20: 490784.154 | KS20: 479359.9422 | KT20: 486465.3477 | KU20: 460052.095 | KV20: 472036.2103 | KW20: 468441.8949 | KX20: 437939.6276 | KY20: 456817.2135 | KZ20: 436274.6505 | LA20: 473230.3632
A21: Gas Natural Atlántico, S. de R.L. | B21: 350 | C21: 350 | D21: 350 | E21: 350 | F21: 350 | G21: 350 | H21: 350 | I21: 350 | J21: 350 | K21: 350 | L21: 350 | M21: 350 | N21: 350 | O21: 350 | P21: 350 | Q21: 350 | R21: 350 | S21: 350 | T21: 350 | U21: 350 | V21: 350 | W21: 350 | X21: 350 | Y21: 350 | Z21: 350 | AA21: 350 | AB21: 350 | AC21: 350 | AD21: 350 | AE21: 350 | AF21: 350 | AG21: 350 | AH21: 350 | AI21: 350 | AJ21: 350 | AK21: 350 | AL21: 350 | AM21: 350 | AN21: 350 | AO21: 350 | AP21: 350 | AQ21: 350 | AR21: 350 | AS21: 350 | AT21: 350 | AU21: 350 | AV21: 350 | AW21: 350 | AX21: 350 | AY21: 350 | AZ21: 350 | BA21: 350 | BB21: 350 | BC21: 350 | BD21: 350 | BE21: 350 | BF21: 350 | BG21: 350 | BH21: 350 | BI21: 350 | BJ21: 78356.2226 | BK21: 74101.07532 | BL21: 83436.35754 | BM21: 78592.468 | BN21: 80648.5315 | BO21: 76996.02559 | BP21: 78086.05071 | BQ21: 77020.16466 | BR21: 74349.51124 | BS21: 75772.55056 | BT21: 71100.72497 | BU21: 78249.27939 | BV21: 79957.73604 | BW21: 75746.81258 | BX21: 84529.07472 | BY21: 79472.11476 | BZ21: 80867.36658 | CA21: 77391.53512 | CB21: 78762.56379 | CC21: 78797.62511 | CD21: 76130.15798 | CE21: 77684.08475 | CF21: 74069.73328 | CG21: 80530.02196 | CH21: 81977.83485 | CI21: 78074.03554 | CJ21: 86217.04285 | CK21: 81058.85744 | CL21: 82417.9063 | CM21: 78824.05642 | CN21: 80366.39747 | CO21: 79937.00219 | CP21: 77363.47563 | CQ21: 78967.66411 | CR21: 74827.59568 | CS21: 81443.45617 | CT21: 84098.05091 | CU21: 80157.10911 | CV21: 87893.34754 | CW21: 82261.20752 | CX21: 84205.48194 | CY21: 80131.84002 | CZ21: 81707.00592 | DA21: 81075.86254 | DB21: 78836.1741 | DC21: 80516.0335 | DD21: 75712.9479 | DE21: 82932.63978 | DF21: 84648.24315 | DG21: 80603.68064 | DH21: 89037.79669 | DI21: 84384.84778 | DJ21: 86310.76628 | DK21: 82261.30432 | DL21: 83690.38635 | DM21: 83086.42303 | DN21: 80331.91126 | DO21: 81922.65141 | DP21: 77098.84902 | DQ21: 84466.6784 | DR21: 86516.56663 | DS21: 82160.85862 | DT21: 91130.02438 | DU21: 85772.71132 | DV21: 87607.6322 | DW21: 83624.0609 | DX21: 85105.35638 | DY21: 84535.61055 | DZ21: 81807.5358 | EA21: 83467.26194 | EB21: 78805.60779 | EC21: 86164.315 | ED21: 88004.23397 | EE21: 83901.73581 | EF21: 92797.45256 | EG21: 87329.18756 | EH21: 89118.15538 | EI21: 85062.80559 | EJ21: 86627.50224 | EK21: 86162.42586 | EL21: 83420.99848 | EM21: 85131.5141 | EN21: 80469.94445 | EO21: 87876.35618 | EP21: 90040.19524 | EQ21: 85627.00221 | ER21: 94546.78397 | ES21: 88991.49275 | ET21: 90863.73739 | EU21: 86685.79933 | EV21: 88291.46518 | EW21: 87720.61679 | EX21: 84963.5263 | EY21: 86707.17086 | EZ21: 81824.0997 | FA21: 89430.65568 | FB21: 91728.96912 | FC21: 87259.36998 | FD21: 96347.07604 | FE21: 90705.53759 | FF21: 92687.10859 | FG21: 88383.91864 | FH21: 90003.62746 | FI21: 89402.6232 | FJ21: 86605.58848 | FK21: 88379.43808 | FL21: 83337.21095 | FM21: 91156.42092 | FN21: 93413.76672 | FO21: 88828.94866 | FP21: 98209.65124 | FQ21: 92561.86448 | FR21: 94552.8278 | FS21: 90197.78904 | FT21: 91828.15123 | FU21: 91233.07446 | FV21: 88315.9254 | FW21: 90111.01386 | FX21: 85014.3489 | FY21: 92966.39288 | FZ21: 95072.24826 | GA21: 90666.76103 | GB21: 100258.0686 | GC21: 94393.42054 | GD21: 96400.28765 | GE21: 91975.85026 | GF21: 93650.60753 | GG21: 93056.7813 | GH21: 90102.05878 | GI21: 91942.36781 | GJ21: 86782.44913 | GK21: 94866.77442 | GL21: 97296.50735 | GM21: 92517.50172 | GN21: 102245.7109 | GO21: 96270.43858 | GP21: 98314.8085 | GQ21: 93794.58857 | GR21: 95511.23906 | GS21: 94911.99859 | GT21: 91907.68204 | GU21: 93787.23903 | GV21: 88518.98479 | GW21: 96761.3736 | GX21: 99296.18565 | GY21: 94426.6329 | GZ21: 104339.9969 | HA21: 98251.91697 | HB21: 100352.2729 | HC21: 95729.4547 | HD21: 97479.84991 | HE21: 96851.61271 | HF21: 93788.88586 | HG21: 95705.95601 | HH21: 90304.3536 | HI21: 98731.34398 | HJ21: 101358.7419 | HK21: 96387.53253 | HL21: 106521.5805 | HM21: 100314.4154 | HN21: 102465.2669 | HO21: 97743.45846 | HP21: 99526.29607 | HQ21: 98885.2584 | HR21: 95754.634 | HS21: 97710.40442 | HT21: 92193.41057 | HU21: 100802.8607 | HV21: 103199.7938 | HW21: 98440.51258 | HX21: 108808.8314 | HY21: 102474.1822 | HZ21: 104663.5262 | IA21: 99847.2192 | IB21: 101666.8152 | IC21: 101016.5213 | ID21: 97811.32375 | IE21: 99808.04953 | IF21: 94183.6951 | IG21: 102971.1816 | IH21: 105790.0367 | II21: 100596.286 | IJ21: 111186.3978 | IK21: 104698.4691 | IL21: 106932.4825 | IM21: 102012.6158 | IN21: 103874.5235 | IO21: 103211.751 | IP21: 99941.66424 | IQ21: 101983.5393 | IR21: 96240.58579 | IS21: 105215.7095 | IT21: 108237.4854 | IU21: 102926.7351 | IV21: 113752.2568 | IW21: 107117.6797 | IX21: 109404.8627 | IY21: 104368.9283 | IZ21: 106274.6882 | JA21: 105595.8092 | JB21: 102251.5488 | JC21: 104340.7307 | JD21: 98461.28428 | JE21: 107645.3731 | JF21: 110759.5827 | JG21: 105326.1716 | JH21: 116404.5933 | JI21: 109617.8439 | JJ21: 111960.805 | JK21: 106806.1006 | JL21: 108755.5131 | JM21: 108058.4607 | JN21: 104635.8687 | JO21: 106773.3992 | JP21: 100753.3448 | JQ21: 110154.2891 | JR21: 113038.2847 | JS21: 107830.6723 | JT21: 119176.5093 | JU21: 112229.1621 | JV21: 114627.8667 | JW21: 109350.9211 | JX21: 111346.1065 | JY21: 110633.1897 | JZ21: 107127.9968 | KA21: 109316.1964 | KB21: 103153.9628 | KC21: 112778.6853 | KD21: 116020.6064 | KE21: 110330.3449 | KF21: 121940.8555 | KG21: 114831.8333 | KH21: 117284.7082 | KI21: 111886.4761 | KJ21: 113928.0447 | KK21: 113199.4103 | KL21: 109612.4067 | KM21: 111851.3779 | KN21: 105548.1592 | KO21: 115394.6867 | KP21: 118815.8505 | KQ21: 112988.1594 | KR21: 124876.4281 | KS21: 117594.3805 | KT21: 120106.1716 | KU21: 114577.8596 | KV21: 116669.0293 | KW21: 115922.8812 | KX21: 112250.4865 | KY21: 114543.5997 | KZ21: 108088.6262 | LA21: 118171.9073
A22: Generadora Alto Valle, S.A. | B22: 2.29801 | C22: 2.29801 | D22: 2.29801 | E22: 2.29801 | F22: 2.29801 | G22: 2.29801 | H22: 2.29801 | I22: 2.29801 | J22: 2.29801 | K22: 2.29801 | L22: 2.29801 | M22: 2.29801 | N22: 2.29801 | O22: 2.29801 | P22: 2.29801 | Q22: 2.29801 | R22: 2.29801 | S22: 2.29801 | T22: 2.29801 | U22: 2.29801 | V22: 2.29801 | W22: 2.29801 | X22: 2.29801 | Y22: 2.29801 | Z22: 2.29801 | AA22: 2.29801 | AB22: 2.29801 | AC22: 2.29801 | AD22: 2.29801 | AE22: 2.29801 | AF22: 2.29801 | AG22: 2.29801 | AH22: 2.29801 | AI22: 2.29801 | AJ22: 2.29801 | AK22: 2.29801 | AL22: 2.29801 | AM22: 2.29801 | AN22: 2.29801 | AO22: 2.29801 | AP22: 2.29801 | AQ22: 2.29801 | AR22: 2.29801 | AS22: 2.29801 | AT22: 2.29801 | AU22: 2.29801 | AV22: 2.29801 | AW22: 2.29801 | AX22: 2.29801 | AY22: 2.29801 | AZ22: 2.29801 | BA22: 2.29801 | BB22: 2.29801 | BC22: 2.29801 | BD22: 2.29801 | BE22: 2.29801 | BF22: 2.29801 | BG22: 2.29801 | BH22: 2.29801 | BI22: 2.29801 | BJ22: 279195.9138 | BK22: 261573.5565 | BL22: 294037.3724 | BM22: 294033.3062 | BN22: 302533.4008 | BO22: 277422.5378 | BP22: 291659.3047 | BQ22: 291935.8903 | BR22: 265420.3771 | BS22: 278427.1362 | BT22: 261754.4808 | BU22: 276207.5636 | BV22: 292015.4074 | BW22: 272299.1827 | BX22: 305525.6506 | BY22: 305552.7852 | BZ22: 314115.0343 | CA22: 287791.8933 | CB22: 302313.5171 | CC22: 302376.4334 | CD22: 274645.713 | CE22: 287876.2591 | CF22: 270497.6033 | CG22: 284533.9371 | CH22: 301029.7111 | CI22: 275397.832 | CJ22: 318917.3118 | CK22: 311492.8823 | CL22: 316110.906 | CM22: 298950.974 | CN22: 306739.1036 | CO22: 304399.4726 | CP22: 284577.4939 | CQ22: 296846.1531 | CR22: 283492.1499 | CS22: 307513.6556 | CT22: 309789.4688 | CU22: 283411.5864 | CV22: 328197.6612 | CW22: 320557.2534 | CX22: 325309.5896 | CY22: 307650.0037 | CZ22: 315664.7052 | DA22: 313257.3248 | DB22: 292858.6389 | DC22: 305484.1622 | DD22: 291741.9955 | DE22: 316461.9141 | DF22: 318499.3926 | DG22: 291379.7508 | DH22: 337425.2156 | DI22: 329570.0596 | DJ22: 334455.9434 | DK22: 316299.5455 | DL22: 324539.5299 | DM22: 322064.7851 | DN22: 301092.673 | DO22: 314073.0304 | DP22: 299944.9092 | DQ22: 325359.2678 | DR22: 327395.7015 | DS22: 299518.4264 | DT22: 346850.231 | DU22: 338775.7309 | DV22: 343798.0203 | DW22: 325134.1793 | DX22: 333604.2677 | DY22: 331060.7165 | DZ22: 309502.9081 | EA22: 322845.6926 | EB22: 308323.357 | EC22: 334447.0165 | ED22: 336398.4035 | EE22: 307754.4349 | EF22: 356387.9636 | EG22: 348091.4952 | EH22: 353251.8222 | EI22: 334074.4683 | EJ22: 342777.4135 | EK22: 340164.234 | EL22: 318013.7233 | EM22: 331723.2699 | EN22: 316802.0058 | EO22: 343643.4473 | EP22: 345502.1175 | EQ22: 316082.8536 | ER22: 366032.7112 | ES22: 357511.7856 | ET22: 362811.6972 | EU22: 343115.0703 | EV22: 352053.4834 | EW22: 349369.8935 | EX22: 326620.0315 | EY22: 340700.4552 | EZ22: 325375.7866 | FA22: 352943.0642 | FB22: 355419.1826 | FC22: 325155.3543 | FD22: 376539.1469 | FE22: 367773.7091 | FF22: 373225.6782 | FG22: 352963.3824 | FH22: 362158.3015 | FI22: 359398.0131 | FJ22: 335995.2519 | FK22: 350479.6867 | FL22: 334715.5745 | FM22: 363073.5332 | FN22: 365342.0567 | FO22: 334233.1711 | FP22: 387051.7377 | FQ22: 378041.6456 | FR22: 383645.7594 | FS22: 362817.4646 | FT22: 372269.0396 | FU22: 369432.0068 | FV22: 345375.9642 | FW22: 360264.6472 | FX22: 344060.8325 | FY22: 373209.9373 | FZ22: 375184.673 | GA22: 343237.564 | GB22: 397479.3005 | GC22: 388226.5332 | GD22: 393981.5626 | GE22: 372591.8449 | GF22: 382297.9998 | GG22: 379384.8435 | GH22: 354680.8037 | GI22: 369970.4648 | GJ22: 353330.5055 | GK22: 383264.3564 | GL22: 384927.1783 | GM22: 352150.3719 | GN22: 407800.8024 | GO22: 398307.8269 | GP22: 404212.2358 | GQ22: 382266.8082 | GR22: 392224.954 | GS22: 389236.4483 | GT22: 363891.0012 | GU22: 379577.5624 | GV22: 362505.8935 | GW22: 393216.5096 | GX22: 394549.4527 | GY22: 360953.188 | GZ22: 417994.9284 | HA22: 408264.7097 | HB22: 414316.6552 | HC22: 391822.3747 | HD22: 402029.4004 | HE22: 398966.4752 | HF22: 372987.5367 | HG22: 389066.1011 | HH22: 371568.0506 | HI22: 403045.8459 | HJ22: 404031.1871 | HK22: 369627.433 | HL22: 428040.1625 | HM22: 418076.1655 | HN22: 424273.4936 | HO22: 401238.3752 | HP22: 411690.6478 | HQ22: 408554.3892 | HR22: 381951.2124 | HS22: 398416.0529 | HT22: 380497.8478 | HU22: 412731.6173 | HV22: 413268.4667 | HW22: 378078.0422 | HX22: 437826.4126 | HY22: 427634.6644 | HZ22: 433973.6261 | IA22: 410411.6158 | IB22: 421102.8114 | IC22: 417895.1102 | ID22: 390683.7881 | IE22: 407524.9468 | IF22: 389197.419 | IG22: 422167.6738 | IH22: 422240.8303 | II22: 386286.2964 | IJ22: 447332.0038 | IK22: 436919.0364 | IL22: 443395.5697 | IM22: 419321.7774 | IN22: 430245.044 | IO22: 426967.9493 | IP22: 399165.9228 | IQ22: 416372.6078 | IR22: 397647.4953 | IS22: 431333.1133 | IT22: 430927.8619 | IU22: 394233.5177 | IV22: 456535.3051 | IW22: 445908.1534 | IX22: 452517.8833 | IY22: 427948.5862 | IZ22: 439096.5437 | JA22: 435752.2605 | JB22: 407378.3156 | JC22: 424938.9018 | JD22: 405828.8486 | JE22: 440207.0819 | JF22: 439392.7657 | JG22: 401977.5281 | JH22: 465503.2775 | JI22: 454667.4175 | JJ22: 461406.9391 | JK22: 436354.806 | JL22: 447721.7094 | JM22: 444311.9567 | JN22: 415380.7155 | JO22: 433286.1548 | JP22: 413801.003 | JQ22: 448854.1426 | JR22: 447615.4615 | JS22: 409499.9595 | JT22: 474214.6479 | JU22: 463176.0527 | JV22: 470041.6509 | JW22: 444520.4989 | JX22: 456100.0833 | JY22: 452626.733 | JZ22: 423154.1435 | KA22: 441394.568 | KB22: 421545.0504 | KC22: 457253.7834 | KD22: 455576.1684 | KE22: 416782.712 | KF22: 482648.4594 | KG22: 471413.5859 | KH22: 478401.2457 | KI22: 452426.0179 | KJ22: 464211.5073 | KK22: 460676.5854 | KL22: 430679.8945 | KM22: 449244.6312 | KN22: 429042.3569 | KO22: 465385.7973 | KP22: 463255.4824 | KQ22: 423808.0366 | KR22: 490784.154 | KS22: 479359.9422 | KT22: 486465.3477 | KU22: 460052.095 | KV22: 472036.2103 | KW22: 468441.8949 | KX22: 437939.6276 | KY22: 456817.2135 | KZ22: 436274.6505 | LA22: 473230.3632
A23: Generadora del Atlántico, S.A. | B23: 7 | C23: 7 | D23: 37.72 | E23: 26.72 | F23: 7 | G23: 7 | H23: 14.48 | I23: 7 | J23: 14.48 | K23: 14.48 | L23: 14.48 | M23: 14.47 | N23: 5.6 | O23: 5.6 | P23: 5.6 | Q23: 5.6 | R23: 5.6 | S23: 5.6 | T23: 5.6 | U23: 5.6 | V23: 5.6 | W23: 5.6 | X23: 5.6 | Y23: 5.6 | Z23: 0 | AA23: 0 | AB23: 0 | AC23: 0 | AD23: 0 | AE23: 0 | AF23: 0 | AG23: 0 | AH23: 0 | AI23: 0 | AJ23: 0 | AK23: 0 | AL23: 0 | AM23: 0 | AN23: 0 | AO23: 0 | AP23: 0 | AQ23: 0 | AR23: 0 | AS23: 0 | AT23: 0 | AU23: 0 | AV23: 0 | AW23: 0 | AX23: 0 | AY23: 0 | AZ23: 0 | BA23: 0 | BB23: 0 | BC23: 0 | BD23: 0 | BE23: 0 | BF23: 0 | BG23: 0 | BH23: 0 | BI23: 0
A24: Generadora Pedregalito, S.A. | B24: 1.53244 | C24: 1.53244 | D24: 1.53244 | E24: 1.53244 | F24: 3.93799 | G24: 3.93799 | H24: 3.93799 | I24: 3.93799 | J24: 3.93799 | K24: 3.93799 | L24: 3.93799 | M24: 3.93799 | N24: 1.53244 | O24: 1.53244 | P24: 1.53244 | Q24: 1.53244 | R24: 3.93799 | S24: 3.93799 | T24: 3.93799 | U24: 3.93799 | V24: 3.93799 | W24: 3.93799 | X24: 3.93799 | Y24: 3.93799 | Z24: 1.53244 | AA24: 1.53244 | AB24: 1.53244 | AC24: 1.53244 | AD24: 3.93799 | AE24: 3.93799 | AF24: 3.93799 | AG24: 3.93799 | AH24: 3.93799 | AI24: 3.93799 | AJ24: 3.93799 | AK24: 3.93799 | AL24: 1.53244 | AM24: 1.53244 | AN24: 1.53244 | AO24: 1.53244 | AP24: 3.93799 | AQ24: 3.93799 | AR24: 3.93799 | AS24: 3.93799 | AT24: 3.93799 | AU24: 3.93799 | AV24: 3.93799 | AW24: 3.93799 | AX24: 1.53244 | AY24: 1.53244 | AZ24: 1.53244 | BA24: 1.53244 | BB24: 3.93799 | BC24: 3.93799 | BD24: 3.93799 | BE24: 3.93799 | BF24: 3.93799 | BG24: 3.93799 | BH24: 3.93799 | BI24: 3.93799
A25: Generadora Río Chico, S.A. | B25: 0.282 | C25: 0.282 | D25: 0.282 | E25: 0.282 | F25: 2.415 | G25: 2.415 | H25: 2.415 | I25: 2.415 | J25: 2.415 | K25: 2.415 | L25: 2.415 | M25: 2.415 | N25: 0.282 | O25: 0.282 | P25: 0.282 | Q25: 0.282 | R25: 2.415 | S25: 2.415 | T25: 2.415 | U25: 2.415 | V25: 2.415 | W25: 2.415 | X25: 2.415 | Y25: 2.415 | Z25: 0.282 | AA25: 0.282 | AB25: 0.282 | AC25: 0.282 | AD25: 2.415 | AE25: 2.415 | AF25: 2.415 | AG25: 2.415 | AH25: 2.415 | AI25: 2.415 | AJ25: 2.415 | AK25: 2.415 | AL25: 0.282 | AM25: 0.282 | AN25: 0.282 | AO25: 0.282 | AP25: 2.415 | AQ25: 2.415 | AR25: 2.415 | AS25: 2.415 | AT25: 2.415 | AU25: 2.415 | AV25: 2.415 | AW25: 2.415 | AX25: 0.282 | AY25: 0.282 | AZ25: 0.282 | BA25: 0.282 | BB25: 2.415 | BC25: 2.415 | BD25: 2.415 | BE25: 2.415 | BF25: 2.415 | BG25: 2.415 | BH25: 2.415 | BI25: 2.415
A26: Hidro Panamá, S.A. | B26: 0.48 | C26: 0.48 | D26: 0 | E26: 0 | F26: 0.62 | G26: 0.74 | H26: 0.74 | I26: 0.74 | J26: 0.74 | K26: 0.74 | L26: 0.74 | M26: 0.74 | N26: 0 | O26: 0 | P26: 0 | Q26: 0 | R26: 0 | S26: 0 | T26: 0 | U26: 0 | V26: 0 | W26: 0 | X26: 0 | Y26: 0 | Z26: 0 | AA26: 0 | AB26: 0 | AC26: 0 | AD26: 0 | AE26: 0 | AF26: 0 | AG26: 0 | AH26: 0 | AI26: 0 | AJ26: 0 | AK26: 0 | AL26: 0 | AM26: 0 | AN26: 0 | AO26: 0 | AP26: 0 | AQ26: 0 | AR26: 0 | AS26: 0 | AT26: 0 | AU26: 0 | AV26: 0 | AW26: 0 | AX26: 0 | AY26: 0 | AZ26: 0 | BA26: 0 | BB26: 0 | BC26: 0 | BD26: 0 | BE26: 0 | BF26: 0 | BG26: 0 | BH26: 0 | BI26: 0
A27: Hidroecológica del Teribe, S.A. | B27: 11.5 | C27: 11.5 | D27: 11.5 | E27: 11.5 | F27: 11.5 | G27: 11.5 | H27: 11.5 | I27: 11.5 | J27: 11.5 | K27: 11.5 | L27: 11.5 | M27: 11.5 | N27: 11.2 | O27: 11.2 | P27: 11.2 | Q27: 11.2 | R27: 11.2 | S27: 11.2 | T27: 11.2 | U27: 11.2 | V27: 11.2 | W27: 11.2 | X27: 11.2 | Y27: 11.2 | Z27: 10 | AA27: 10 | AB27: 10 | AC27: 10 | AD27: 10 | AE27: 10 | AF27: 10 | AG27: 10 | AH27: 10 | AI27: 10 | AJ27: 10 | AK27: 10 | AL27: 10 | AM27: 10 | AN27: 10 | AO27: 10 | AP27: 10 | AQ27: 10 | AR27: 10 | AS27: 10 | AT27: 10 | AU27: 10 | AV27: 10 | AW27: 10 | AX27: 10 | AY27: 10 | AZ27: 10 | BA27: 10 | BB27: 10 | BC27: 10 | BD27: 10 | BE27: 10 | BF27: 10 | BG27: 10 | BH27: 10 | BI27: 10
A28: Hidroeléctrica Bajos del Totuma, S.A. | B28: 1.91 | C28: 1.46 | D28: 1.46 | E28: 1.46 | F28: 1.46 | G28: 1.46 | H28: 1.46 | I28: 1.46 | J28: 1.46 | K28: 1.46 | L28: 1.46 | M28: 1.46 | N28: 0 | O28: 0 | P28: 0 | Q28: 0 | R28: 0 | S28: 0 | T28: 0 | U28: 0 | V28: 0 | W28: 0 | X28: 0 | Y28: 0 | Z28: 0 | AA28: 0 | AB28: 0 | AC28: 0 | AD28: 0 | AE28: 0 | AF28: 0 | AG28: 0 | AH28: 0 | AI28: 0 | AJ28: 0 | AK28: 0 | AL28: 0 | AM28: 0 | AN28: 0 | AO28: 0 | AP28: 0 | AQ28: 0 | AR28: 0 | AS28: 0 | AT28: 0 | AU28: 0 | AV28: 0 | AW28: 0 | AX28: 0 | AY28: 0 | AZ28: 0 | BA28: 0 | BB28: 0 | BC28: 0 | BD28: 0 | BE28: 0 | BF28: 0 | BG28: 0 | BH28: 0 | BI28: 0
A29: Hidroeléctrica San Lorenzo, S.A. | B29: 1.33299 | C29: 1.33299 | D29: 1.33299 | E29: 1.33299 | F29: 1.33299 | G29: 1.33299 | H29: 1.33299 | I29: 1.33299 | J29: 1.33299 | K29: 1.33299 | L29: 1.33299 | M29: 1.33299 | N29: 1.33299 | O29: 1.33299 | P29: 1.33299 | Q29: 1.33299 | R29: 1.33299 | S29: 1.33299 | T29: 1.33299 | U29: 1.33299 | V29: 1.33299 | W29: 1.33299 | X29: 1.33299 | Y29: 1.33299 | Z29: 1.33299 | AA29: 1.33299 | AB29: 1.33299 | AC29: 1.33299 | AD29: 1.33299 | AE29: 1.33299 | AF29: 1.33299 | AG29: 1.33299 | AH29: 1.33299 | AI29: 1.33299 | AJ29: 1.33299 | AK29: 1.33299 | AL29: 1.33299 | AM29: 1.33299 | AN29: 1.33299 | AO29: 1.33299 | AP29: 1.33299 | AQ29: 1.33299 | AR29: 1.33299 | AS29: 1.33299 | AT29: 1.33299 | AU29: 1.33299 | AV29: 1.33299 | AW29: 1.33299 | AX29: 1.33299 | AY29: 1.33299 | AZ29: 1.33299 | BA29: 1.33299 | BB29: 1.33299 | BC29: 1.33299 | BD29: 1.33299 | BE29: 1.33299 | BF29: 1.33299 | BG29: 1.33299 | BH29: 1.33299 | BI29: 1.33299
A30: Hidroibérica, S.A. | B30: 1.49 | C30: 1.49 | D30: 1.49 | E30: 1.49 | F30: 1.25 | G30: 1.12 | H30: 1.49 | I30: 1.49 | J30: 1.49 | K30: 1.49 | L30: 1.49 | M30: 1.49 | N30: 1.19 | O30: 1.19 | P30: 1.19 | Q30: 1.19 | R30: 1.19 | S30: 1.19 | T30: 0 | U30: 0 | V30: 0 | W30: 0 | X30: 0 | Y30: 0 | Z30: 0 | AA30: 0 | AB30: 0 | AC30: 0 | AD30: 0 | AE30: 0 | AF30: 0 | AG30: 0 | AH30: 0 | AI30: 0 | AJ30: 0 | AK30: 0 | AL30: 0 | AM30: 0 | AN30: 0 | AO30: 0 | AP30: 0 | AQ30: 0 | AR30: 0 | AS30: 0 | AT30: 0 | AU30: 0 | AV30: 0 | AW30: 0 | AX30: 0 | AY30: 0 | AZ30: 0 | BA30: 0 | BB30: 0 | BC30: 0 | BD30: 0 | BE30: 0 | BF30: 0 | BG30: 0 | BH30: 0 | BI30: 0
A31: HidroPiedra, S.A. | B31: 3.096 | C31: 3.096 | D31: 3.096 | E31: 3.096 | F31: 3.096 | G31: 3.096 | H31: 3.096 | I31: 3.096 | J31: 3.096 | K31: 3.096 | L31: 3.096 | M31: 3.096 | N31: 1.786 | O31: 1.786 | P31: 1.786 | Q31: 1.786 | R31: 1.786 | S31: 1.786 | T31: 1.786 | U31: 1.786 | V31: 1.786 | W31: 1.786 | X31: 1.786 | Y31: 1.786 | Z31: 1.786 | AA31: 1.786 | AB31: 1.786 | AC31: 1.786 | AD31: 1.786 | AE31: 1.786 | AF31: 1.786 | AG31: 1.786 | AH31: 1.786 | AI31: 1.786 | AJ31: 1.786 | AK31: 1.786 | AL31: 1.786 | AM31: 1.786 | AN31: 1.786 | AO31: 1.786 | AP31: 1.786 | AQ31: 1.786 | AR31: 1.786 | AS31: 1.786 | AT31: 1.786 | AU31: 1.786 | AV31: 1.786 | AW31: 1.786 | AX31: 1.786 | AY31: 1.786 | AZ31: 1.786 | BA31: 1.786 | BB31: 1.786 | BC31: 1.786 | BD31: 1.786 | BE31: 1.786 | BF31: 1.786 | BG31: 1.786 | BH31: 1.786 | BI31: 1.786
A32: Hydro Caisán, S.A. | B32: 22.14 | C32: 22.14 | D32: 22.14 | E32: 22.14 | F32: 22.14 | G32: 22.14 | H32: 22.14 | I32: 22.14 | J32: 22.14 | K32: 22.14 | L32: 22.14 | M32: 22.14 | N32: 22.14 | O32: 22.14 | P32: 22.14 | Q32: 22.14 | R32: 22.14 | S32: 22.14 | T32: 22.14 | U32: 22.14 | V32: 22.14 | W32: 22.14 | X32: 22.14 | Y32: 22.14 | Z32: 22.14 | AA32: 22.14 | AB32: 22.14 | AC32: 22.14 | AD32: 22.14 | AE32: 22.14 | AF32: 22.14 | AG32: 22.14 | AH32: 22.14 | AI32: 22.14 | AJ32: 22.14 | AK32: 22.14 | AL32: 22.14 | AM32: 22.14 | AN32: 22.14 | AO32: 22.14 | AP32: 22.14 | AQ32: 22.14 | AR32: 22.14 | AS32: 22.14 | AT32: 22.14 | AU32: 22.14 | AV32: 22.14 | AW32: 22.14 | AX32: 22.14 | AY32: 22.14 | AZ32: 22.14 | BA32: 22.14 | BB32: 22.14 | BC32: 22.14 | BD32: 22.14 | BE32: 22.14 | BF32: 22.14 | BG32: 22.14 | BH32: 22.14 | BI32: 22.14
A33: Ideal Panamá, S.A. | B33: 20 | C33: 20 | D33: 20 | E33: 20 | F33: 20 | G33: 20 | H33: 20 | I33: 20 | J33: 20 | K33: 20 | L33: 20 | M33: 20 | N33: 0 | O33: 0 | P33: 0 | Q33: 0 | R33: 0 | S33: 0 | T33: 0 | U33: 0 | V33: 0 | W33: 0 | X33: 0 | Y33: 0 | Z33: 0 | AA33: 0 | AB33: 0 | AC33: 0 | AD33: 0 | AE33: 0 | AF33: 0 | AG33: 0 | AH33: 0 | AI33: 0 | AJ33: 0 | AK33: 0 | AL33: 0 | AM33: 0 | AN33: 0 | AO33: 0 | AP33: 0 | AQ33: 0 | AR33: 0 | AS33: 0 | AT33: 0 | AU33: 0 | AV33: 0 | AW33: 0 | AX33: 0 | AY33: 0 | AZ33: 0 | BA33: 0 | BB33: 0 | BC33: 0 | BD33: 0 | BE33: 0 | BF33: 0 | BG33: 0 | BH33: 0 | BI33: 0
A34: Istmus Hydro Power, Corp. | B34: 0.01 | C34: 0.01 | D34: 0.01 | E34: 0.01 | F34: 0.01 | G34: 0.01 | H34: 0.01 | I34: 0.01 | J34: 0.01 | K34: 0.01 | L34: 0.01 | M34: 0.01 | N34: 0 | O34: 0 | P34: 0 | Q34: 0 | R34: 0 | S34: 0 | T34: 0 | U34: 0 | V34: 0 | W34: 0 | X34: 0 | Y34: 0 | Z34: 0 | AA34: 0 | AB34: 0 | AC34: 0 | AD34: 0 | AE34: 0 | AF34: 0 | AG34: 0 | AH34: 0 | AI34: 0 | AJ34: 0 | AK34: 0 | AL34: 0 | AM34: 0 | AN34: 0 | AO34: 0 | AP34: 0 | AQ34: 0 | AR34: 0 | AS34: 0 | AT34: 0 | AU34: 0 | AV34: 0 | AW34: 0 | AX34: 0 | AY34: 0 | AZ34: 0 | BA34: 0 | BB34: 0 | BC34: 0 | BD34: 0 | BE34: 0 | BF34: 0 | BG34: 0 | BH34: 0 | BI34: 0
A35: Jinro Corp | B35: 50 | C35: 50 | D35: 50 | E35: 50 | F35: 50 | G35: 50 | H35: 50 | I35: 50 | J35: 50 | K35: 50 | L35: 50 | M35: 50 | N35: 50 | O35: 50 | P35: 50 | Q35: 50 | R35: 50 | S35: 50 | T35: 50 | U35: 50 | V35: 50 | W35: 50 | X35: 50 | Y35: 50 | Z35: 50 | AA35: 50 | AB35: 0 | AC35: 0 | AD35: 0 | AE35: 0 | AF35: 0 | AG35: 0 | AH35: 0 | AI35: 0 | AJ35: 0 | AK35: 0 | AL35: 0 | AM35: 0 | AN35: 0 | AO35: 0 | AP35: 0 | AQ35: 0 | AR35: 0 | AS35: 0 | AT35: 0 | AU35: 0 | AV35: 0 | AW35: 0 | AX35: 0 | AY35: 0 | AZ35: 0 | BA35: 0 | BB35: 0 | BC35: 0 | BD35: 0 | BE35: 0 | BF35: 0 | BG35: 0 | BH35: 0 | BI35: 0
A36: Kanan Overseas I, Inc | B36: 86 | C36: 86 | D36: 86 | E36: 86 | F36: 86 | G36: 86 | H36: 86 | I36: 86 | J36: 86 | K36: 86 | L36: 86 | M36: 86 | N36: 86 | O36: 86 | P36: 86 | Q36: 86 | R36: 86 | S36: 86 | T36: 86 | U36: 86 | V36: 86 | W36: 86 | X36: 86 | Y36: 86 | Z36: 0 | AA36: 0 | AB36: 0 | AC36: 0 | AD36: 0 | AE36: 0 | AF36: 0 | AG36: 0 | AH36: 0 | AI36: 0 | AJ36: 0 | AK36: 0 | AL36: 0 | AM36: 0 | AN36: 0 | AO36: 0 | AP36: 0 | AQ36: 0 | AR36: 0 | AS36: 0 | AT36: 0 | AU36: 0 | AV36: 0 | AW36: 0 | AX36: 0 | AY36: 0 | AZ36: 0 | BA36: 0 | BB36: 0 | BC36: 0 | BD36: 0 | BE36: 0 | BF36: 0 | BG36: 0 | BH36: 0 | BI36: 0
A37: Las Perlas Norte, S.A. | B37: 8.73627 | C37: 8.73627 | D37: 8.73627 | E37: 8.73627 | F37: 8.73627 | G37: 8.73627 | H37: 8.73627 | I37: 8.73627 | J37: 8.73627 | K37: 8.73627 | L37: 8.73627 | M37: 8.73627 | N37: 8.72627 | O37: 8.72627 | P37: 8.72627 | Q37: 8.72627 | R37: 8.72627 | S37: 8.72627 | T37: 8.72627 | U37: 8.72627 | V37: 8.72627 | W37: 8.72627 | X37: 8.72627 | Y37: 8.72627 | Z37: 8.72627 | AA37: 8.72627 | AB37: 8.72627 | AC37: 8.72627 | AD37: 8.72627 | AE37: 8.72627 | AF37: 8.72627 | AG37: 8.72627 | AH37: 8.72627 | AI37: 8.72627 | AJ37: 8.72627 | AK37: 8.72627 | AL37: 8.72627 | AM37: 8.72627 | AN37: 8.72627 | AO37: 8.72627 | AP37: 8.72627 | AQ37: 8.72627 | AR37: 8.72627 | AS37: 8.72627 | AT37: 8.72627 | AU37: 8.72627 | AV37: 8.72627 | AW37: 8.72627 | AX37: 8.72627 | AY37: 8.72627 | AZ37: 8.72627 | BA37: 8.72627 | BB37: 8.72627 | BC37: 8.72627 | BD37: 8.72627 | BE37: 8.72627 | BF37: 8.72627 | BG37: 8.72627 | BH37: 8.72627 | BI37: 8.72627
A38: Las Perlas Sur, S.A. | B38: 0.01 | C38: 0.01 | D38: 0.01 | E38: 0.01 | F38: 0.01 | G38: 0.01 | H38: 0.01 | I38: 0.01 | J38: 0.01 | K38: 0.01 | L38: 0.01 | M38: 0.01 | N38: 0 | O38: 0 | P38: 0 | Q38: 0 | R38: 0 | S38: 0 | T38: 0 | U38: 0 | V38: 0 | W38: 0 | X38: 0 | Y38: 0 | Z38: 0 | AA38: 0 | AB38: 0 | AC38: 0 | AD38: 0 | AE38: 0 | AF38: 0 | AG38: 0 | AH38: 0 | AI38: 0 | AJ38: 0 | AK38: 0 | AL38: 0 | AM38: 0 | AN38: 0 | AO38: 0 | AP38: 0 | AQ38: 0 | AR38: 0 | AS38: 0 | AT38: 0 | AU38: 0 | AV38: 0 | AW38: 0 | AX38: 0 | AY38: 0 | AZ38: 0 | BA38: 0 | BB38: 0 | BC38: 0 | BD38: 0 | BE38: 0 | BF38: 0 | BG38: 0 | BH38: 0 | BI38: 0
A39: Martano, Inc | B39: 0 | C39: 0 | D39: 0 | E39: 0 | F39: 0 | G39: 0 | H39: 0 | I39: 0 | J39: 0 | K39: 0 | L39: 0 | M39: 0 | N39: 0 | O39: 0 | P39: 0 | Q39: 0 | R39: 0 | S39: 0 | T39: 0 | U39: 0 | V39: 0 | W39: 0 | AZ39: 350 | BA39: 350 | BB39: 350 | BC39: 350 | BD39: 350 | BE39: 350 | BF39: 350 | BG39: 350 | BH39: 350 | BI39: 350
A40: Pan-Am Generating Limited | B40: 112 | C40: 112 | D40: 112 | E40: 112 | F40: 112 | G40: 112 | H40: 112 | I40: 112 | J40: 112 | K40: 112 | L40: 112 | M40: 112 | N40: 92 | O40: 92 | P40: 92 | Q40: 92 | R40: 92 | S40: 92 | T40: 92 | U40: 92 | V40: 92 | W40: 60 | X40: 60 | Y40: 60 | Z40: 0 | AA40: 0 | AB40: 0 | AC40: 0 | AD40: 0 | AE40: 0 | AF40: 0 | AG40: 0 | AH40: 0 | AI40: 0 | AJ40: 0 | AK40: 0 | AL40: 0 | AM40: 0 | AN40: 0 | AO40: 0 | AP40: 0 | AQ40: 0 | AR40: 0 | AS40: 0 | AT40: 0 | AU40: 0 | AV40: 0 | AW40: 0 | AX40: 0 | AY40: 0 | AZ40: 0 | BA40: 0 | BB40: 0 | BC40: 0 | BD40: 0 | BE40: 0 | BF40: 0 | BG40: 0 | BH40: 0 | BI40: 0
A41: Panama NG Power, S.A.
A42: Paso Ancho Hydro Power Corporation | B42: 1.13 | C42: 1.13 | D42: 0 | E42: 0 | F42: 0 | G42: 0 | H42: 1.13 | I42: 1.13 | J42: 1.13 | K42: 1.13 | L42: 1.13 | M42: 1.13 | N42: 0 | O42: 0 | P42: 0 | Q42: 0 | R42: 0 | S42: 0 | T42: 0 | U42: 0 | V42: 0 | W42: 0 | X42: 0 | Y42: 0 | Z42: 0 | AA42: 0 | AB42: 0 | AC42: 0 | AD42: 0 | AE42: 0 | AF42: 0 | AG42: 0 | AH42: 0 | AI42: 0 | AJ42: 0 | AK42: 0 | AL42: 0 | AM42: 0 | AN42: 0 | AO42: 0 | AP42: 0 | AQ42: 0 | AR42: 0 | AS42: 0 | AT42: 0 | AU42: 0 | AV42: 0 | AW42: 0 | AX42: 0 | AY42: 0 | AZ42: 0 | BA42: 0 | BB42: 0 | BC42: 0 | BD42: 0 | BE42: 0 | BF42: 0 | BG42: 0 | BH42: 0 | BI42: 0
A43: Pedregal Power Company, S. de R.L. | B43: 44.74 | C43: 41.74 | D43: 49.11 | E43: 49.11 | F43: 47.83 | G43: 48.23 | H43: 49.11 | I43: 49.11 | J43: 49.11 | K43: 49.11 | L43: 49.11 | M43: 49.11 | N43: 39.81 | O43: 39.81 | P43: 39.81 | Q43: 39.81 | R43: 39.81 | S43: 39.81 | T43: 0 | U43: 0 | V43: 0 | W43: 0 | X43: 0 | Y43: 0 | Z43: 0 | AA43: 0 | AB43: 0 | AC43: 0 | AD43: 0 | AE43: 0 | AF43: 0 | AG43: 0 | AH43: 0 | AI43: 0 | AJ43: 0 | AK43: 0 | AL43: 0 | AM43: 0 | AN43: 0 | AO43: 0 | AP43: 0 | AQ43: 0 | AR43: 0 | AS43: 0 | AT43: 0 | AU43: 0 | AV43: 0 | AW43: 0 | AX43: 0 | AY43: 0 | AZ43: 0 | BA43: 0 | BB43: 0 | BC43: 0 | BD43: 0 | BE43: 0 | BF43: 0 | BG43: 0 | BH43: 0 | BI43: 0
A44: Saltos del Francolí, S.A. | B44: 0.995 | C44: 0.995 | D44: 0.995 | E44: 0.995 | F44: 0.995 | G44: 0.995 | H44: 0.995 | I44: 0.2825 | J44: 0.2825 | K44: 0.2825 | L44: 0.2825 | M44: 0.2825 | N44: 0.9217 | O44: 0.9217 | P44: 0.9217 | Q44: 0.9217 | R44: 0.9217 | S44: 0.9217 | T44: 0.9217 | U44: 0.9217 | V44: 0.9217 | W44: 0.9217 | X44: 0.9217 | Y44: 0.9217 | Z44: 0.9217 | AA44: 0.9217 | AB44: 0.9217 | AC44: 0.9217 | AD44: 0.9217 | AE44: 0.9217 | AF44: 0.9217 | AG44: 0.9217 | AH44: 0.9217 | AI44: 0.9217 | AJ44: 0.9217 | AK44: 0.9217 | AL44: 0.9217 | AM44: 0.9217 | AN44: 0.9217 | AO44: 0.9217 | AP44: 0.9217 | AQ44: 0.9217 | AR44: 0.9217 | AS44: 0.9217 | AT44: 0.9217 | AU44: 0.9217 | AV44: 0.9217 | AW44: 0.9217 | AX44: 0.9217 | AY44: 0.9217 | AZ44: 0.9217 | BA44: 0.9217 | BB44: 0.9217 | BC44: 0.9217 | BD44: 0.9217 | BE44: 0.9217 | BF44: 0.9217 | BG44: 0.9217 | BH44: 0.9217 | BI44: 0.9217
A45: Valley Rise Investment Corp. | B45: 12.5 | C45: 12.5 | D45: 12.5 | E45: 12.5 | F45: 12.5 | G45: 12.5 | H45: 12.5 | I45: 12.5 | J45: 12.5 | K45: 12.5 | L45: 12.5 | M45: 12.5 | N45: 0 | O45: 0 | P45: 0 | Q45: 0 | R45: 0 | S45: 0 | T45: 0 | U45: 0 | V45: 0 | W45: 0 | X45: 0 | Y45: 0 | Z45: 0 | AA45: 0 | AB45: 0 | AC45: 0 | AD45: 0 | AE45: 0 | AF45: 0 | AG45: 0 | AH45: 0 | AI45: 0 | AJ45: 0 | AK45: 0 | AL45: 0 | AM45: 0 | AN45: 0 | AO45: 0 | AP45: 0 | AQ45: 0 | AR45: 0 | AS45: 0 | AT45: 0 | AU45: 0 | AV45: 0 | AW45: 0 | AX45: 0 | AY45: 0 | AZ45: 0 | BA45: 0 | BB45: 0 | BC45: 0 | BD45: 0 | BE45: 0 | BF45: 0 | BG45: 0 | BH45: 0 | BI45: 0
A46: Celsia Centroamérica, S.A. | B46: 27.43 | C46: 27.43 | D46: 33.36 | E46: 33.36 | F46: 27.43 | G46: 26.95 | H46: 33.36 | I46: 24.79 | J46: 33.36 | K46: 33.36 | L46: 33.36 | M46: 33.36 | N46: 0 | O46: 0 | P46: 0 | Q46: 0 | R46: 0 | S46: 0 | T46: 0 | U46: 0 | V46: 0 | W46: 0 | X46: 0 | Y46: 0 | Z46: 0 | AA46: 0 | AB46: 0 | AC46: 0 | AD46: 0 | AE46: 0 | AF46: 0 | AG46: 0 | AH46: 0 | AI46: 0 | AJ46: 0 | AK46: 0 | AL46: 0 | AM46: 0 | AN46: 0 | AO46: 0 | AP46: 0 | AQ46: 0 | AR46: 0 | AS46: 0 | AT46: 0 | AU46: 0 | AV46: 0 | AW46: 0 | AX46: 0 | AY46: 0 | AZ46: 0 | BA46: 0 | BB46: 0 | BC46: 0 | BD46: 0 | BE46: 0 | BF46: 0 | BG46: 0 | BH46: 0 | BI46: 0
A47: Generadora Fotovoltaica Chiriquí, S.A. | B47: 29.2524 | C47: 31.0075 | D47: 25.7421 | E47: 26.3272 | F47: 25.1571 | G47: 28.0823 | H47: 29.8374 | I47: 29.8374 | J47: 27.4973 | K47: 23.987 | L47: 26.9122 | M47: 30.4225
A48: Total general | B48: 1780.74287 | C48: 1777.29287 | D48: 1829.81287 | E48: 1818.81287 | F48: 1787.82142 | G48: 1784.36142 | H48: 1817.12142 | I48: 1796.39892 | J48: 1816.40892 | K48: 1816.40892 | L48: 1816.40892 | M48: 1816.39892 | N48: 1530.07527 | O48: 1530.07527 | P48: 1530.07527 | Q48: 1530.07527 | R48: 1534.61382 | S48: 1534.61382 | T48: 1307.85382 | U48: 1307.85382 | V48: 1307.85382 | W48: 1275.85382 | X48: 1275.85382 | Y48: 1275.85382 | Z48: 1036.31487 | AA48: 1036.31487 | AB48: 986.31487 | AC48: 986.31487 | AD48: 990.85342 | AE48: 990.85342 | AF48: 990.85342 | AG48: 990.85342 | AH48: 990.85342 | AI48: 990.85342 | AJ48: 990.85342 | AK48: 990.85342 | AL48: 986.31487 | AM48: 986.31487 | AN48: 986.31487 | AO48: 986.31487 | AP48: 990.85342 | AQ48: 990.85342 | AR48: 990.85342 | AS48: 990.85342 | AT48: 990.85342 | AU48: 990.85342 | AV48: 990.85342 | AW48: 990.85342 | AX48: 851.31487 | AY48: 851.31487 | AZ48: 1201.31487 | BA48: 1201.31487 | BB48: 1205.85342 | BC48: 1205.85342 | BD48: 1205.85342 | BE48: 1205.85342 | BF48: 1205.85342 | BG48: 1205.85342 | BH48: 1205.85342 | BI48: 1205.85342
A52: Hidro Boquerón, S.A. | B52: 0 | C52: 0 | D52: 0 | E52: 0 | F52: 0 | G52: 0 | H52: 0 | I52: 0 | J52: 0 | K52: 0 | L52: 0 | M52: 0 | N52: 0 | O52: 0 | P52: 0 | Q52: 0 | R52: 0 | S52: 0 | T52: 0 | U52: 0 | V52: 0 | W52: 0 | X52: 0 | Y52: 0 | Z52: 0 | AA52: 0 | AB52: 0 | AC52: 0 | AD52: 0 | AE52: 0 | AF52: 0 | AG52: 0 | AH52: 0 | AI52: 0 | AJ52: 0 | AK52: 0 | AL52: 0 | AM52: 0 | AN52: 0 | AO52: 0 | AP52: 0 | AQ52: 0 | AR52: 0 | AS52: 0 | AT52: 0 | AU52: 0 | AV52: 0 | AW52: 0 | AX52: 0 | AY52: 0 | AZ52: 0 | BA52: 0 | BB52: 0 | BC52: 0 | BD52: 0 | BE52: 0 | BF52: 0 | BG52: 0 | BH52: 0 | BI52: 0
A53: Generadora del Istmo S.A., | B53: 0 | C53: 0 | D53: 0 | E53: 0 | F53: 0 | G53: 0 | H53: 0 | I53: 0 | J53: 0 | K53: 0 | L53: 0 | M53: 0 | N53: 0 | O53: 0 | P53: 0 | Q53: 0 | R53: 0 | S53: 0 | T53: 0 | U53: 0 | V53: 0 | W53: 0 | X53: 0 | Y53: 0 | Z53: 0 | AA53: 0 | AB53: 0 | AC53: 0 | AD53: 0 | AE53: 0 | AF53: 0 | AG53: 0 | AH53: 0 | AI53: 0 | AJ53: 0 | AK53: 0 | AL53: 0 | AM53: 0 | AN53: 0 | AO53: 0 | AP53: 0 | AQ53: 0 | AR53: 0 | AS53: 0 | AT53: 0 | AU53: 0 | AV53: 0 | AW53: 0 | AX53: 0 | AY53: 0 | AZ53: 0 | BA53: 0 | BB53: 0 | BC53: 0 | BD53: 0 | BE53: 0 | BF53: 0 | BG53: 0 | BH53: 0 | BI53: 0
A54: HIDRO CANDELA | B54: 0 | C54: 0 | D54: 0 | E54: 0 | F54: 0 | G54: 0 | H54: 0 | I54: 0 | J54: 0 | K54: 0 | L54: 0 | M54: 0 | N54: 0 | O54: 0 | P54: 0 | Q54: 0 | R54: 0 | S54: 0 | T54: 0 | U54: 0 | V54: 0 | W54: 0 | X54: 0 | Y54: 0 | Z54: 0 | AA54: 0 | AB54: 0 | AC54: 0 | AD54: 0 | AE54: 0 | AF54: 0 | AG54: 0 | AH54: 0 | AI54: 0 | AJ54: 0 | AK54: 0 | AL54: 0 | AM54: 0 | AN54: 0 | AO54: 0 | AP54: 0 | AQ54: 0 | AR54: 0 | AS54: 0 | AT54: 0 | AU54: 0 | AV54: 0 | AW54: 0 | AX54: 0 | AY54: 0 | AZ54: 0 | BA54: 0 | BB54: 0 | BC54: 0 | BD54: 0 | BE54: 0 | BF54: 0 | BG54: 0 | BH54: 0 | BI54: 0
A55: TROPITERMICA | B55: 0 | C55: 0 | D55: 0 | E55: 0 | F55: 0 | G55: 0 | H55: 0 | I55: 0 | J55: 0 | K55: 0 | L55: 0 | M55: 0 | N55: 0 | O55: 0 | P55: 0 | Q55: 0 | R55: 0 | S55: 0 | T55: 0 | U55: 0 | V55: 0 | W55: 0 | X55: 0 | Y55: 0 | Z55: 0 | AA55: 0 | AB55: 0 | AC55: 0 | AD55: 0 | AE55: 0 | AF55: 0 | AG55: 0 | AH55: 0 | AI55: 0 | AJ55: 0 | AK55: 0 | AL55: 0 | AM55: 0 | AN55: 0 | AO55: 0 | AP55: 0 | AQ55: 0 | AR55: 0 | AS55: 0 | AT55: 0 | AU55: 0 | AV55: 0 | AW55: 0 | AX55: 0 | AY55: 0 | AZ55: 0 | BA55: 0 | BB55: 0 | BC55: 0 | BD55: 0 | BE55: 0 | BF55: 0 | BG55: 0 | BH55: 0 | BI55: 0
A85: Oferta Disponible | M85: tecnología | N85: 2020-01-01 | O85: 2020-02-01 | P85: 2020-03-01 | Q85: 2020-04-01 | R85: 2020-05-01 | S85: 2020-06-01 | T85: 2020-07-01 | U85: 2020-08-01 | V85: 2020-09-01 | W85: 2020-10-01 | X85: 2020-11-01 | Y85: 2020-12-01 | Z85: 2021-01-01 | AA85: 2021-02-01 | AB85: 2021-03-01 | AC85: 2021-04-01 | AD85: 2021-05-01 | AE85: 2021-06-01 | AF85: 2021-07-01 | AG85: 2021-08-01 | AH85: 2021-09-01 | AI85: 2021-10-01 | AJ85: 2021-11-01 | AK85: 2021-12-01 | AL85: 2022-01-01 | AM85: 2022-02-01 | AN85: 2022-03-01 | AO85: 2022-04-01 | AP85: 2022-05-01 | AQ85: 2022-06-01 | AR85: 2022-07-01 | AS85: 2022-08-01 | AT85: 2022-09-01 | AU85: 2022-10-01 | AV85: 2022-11-01 | AW85: 2022-12-01 | AX85: 2023-01-01 | AY85: 2023-02-01 | AZ85: 2023-03-01 | BA85: 2023-04-01 | BB85: 2023-05-01 | BC85: 2023-06-01 | BD85: 2023-07-01 | BE85: 2023-08-01 | BF85: 2023-09-01 | BG85: 2023-10-01 | BH85: 2023-11-01 | BI85: 2023-12-01
A86: AES Panamá, S.R.L. | M86: =VLOOKUP($A86,#REF!,3,0) ->  | N86: =VLOOKUP($A86,#REF!,2,0)-VLOOKUP($A86,$A$4:$BI$82,N$3,0) ->  | O86: =VLOOKUP($A86,#REF!,2,0)-VLOOKUP($A86,$A$4:$BI$82,O$3,0) ->  | P86: =VLOOKUP($A86,#REF!,2,0)-VLOOKUP($A86,$A$4:$BI$82,P$3,0) ->  | Q86: =VLOOKUP($A86,#REF!,2,0)-VLOOKUP($A86,$A$4:$BI$82,Q$3,0) ->  | R86: =VLOOKUP($A86,#REF!,2,0)-VLOOKUP($A86,$A$4:$BI$82,R$3,0) ->  | S86: =VLOOKUP($A86,#REF!,2,0)-VLOOKUP($A86,$A$4:$BI$82,S$3,0) ->  | T86: =VLOOKUP($A86,#REF!,2,0)-VLOOKUP($A86,$A$4:$BI$82,T$3,0) ->  | U86: =VLOOKUP($A86,#REF!,2,0)-VLOOKUP($A86,$A$4:$BI$82,U$3,0) ->  | V86: =VLOOKUP($A86,#REF!,2,0)-VLOOKUP($A86,$A$4:$BI$82,V$3,0) ->  | W86: =VLOOKUP($A86,#REF!,2,0)-VLOOKUP($A86,$A$4:$BI$82,W$3,0) ->  | X86: =VLOOKUP($A86,#REF!,2,0)-VLOOKUP($A86,$A$4:$BI$82,X$3,0) ->  | Y86: =VLOOKUP($A86,#REF!,2,0)-VLOOKUP($A86,$A$4:$BI$82,Y$3,0) ->  | Z86: =VLOOKUP($A86,#REF!,2,0)-VLOOKUP($A86,$A$4:$BI$82,Z$3,0) ->  | AA86: =VLOOKUP($A86,#REF!,2,0)-VLOOKUP($A86,$A$4:$BI$82,AA$3,0) ->  | AB86: =VLOOKUP($A86,#REF!,2,0)-VLOOKUP($A86,$A$4:$BI$82,AB$3,0) ->  | AC86: =VLOOKUP($A86,#REF!,2,0)-VLOOKUP($A86,$A$4:$BI$82,AC$3,0) ->  | AD86: =VLOOKUP($A86,#REF!,2,0)-VLOOKUP($A86,$A$4:$BI$82,AD$3,0) ->  | AE86: =VLOOKUP($A86,#REF!,2,0)-VLOOKUP($A86,$A$4:$BI$82,AE$3,0) ->  | AF86: =VLOOKUP($A86,#REF!,2,0)-VLOOKUP($A86,$A$4:$BI$82,AF$3,0) ->  | AG86: =VLOOKUP($A86,#REF!,2,0)-VLOOKUP($A86,$A$4:$BI$82,AG$3,0) ->  | AH86: =VLOOKUP($A86,#REF!,2,0)-VLOOKUP($A86,$A$4:$BI$82,AH$3,0) ->  | AI86: =VLOOKUP($A86,#REF!,2,0)-VLOOKUP($A86,$A$4:$BI$82,AI$3,0) ->  | AJ86: =VLOOKUP($A86,#REF!,2,0)-VLOOKUP($A86,$A$4:$BI$82,AJ$3,0) ->  | AK86: =VLOOKUP($A86,#REF!,2,0)-VLOOKUP($A86,$A$4:$BI$82,AK$3,0) ->  | AL86: =VLOOKUP($A86,#REF!,2,0)-VLOOKUP($A86,$A$4:$BI$82,AL$3,0) ->  | AM86: =VLOOKUP($A86,#REF!,2,0)-VLOOKUP($A86,$A$4:$BI$82,AM$3,0) ->  | AN86: =VLOOKUP($A86,#REF!,2,0)-VLOOKUP($A86,$A$4:$BI$82,AN$3,0) ->  | AO86: =VLOOKUP($A86,#REF!,2,0)-VLOOKUP($A86,$A$4:$BI$82,AO$3,0) ->  | AP86: =VLOOKUP($A86,#REF!,2,0)-VLOOKUP($A86,$A$4:$BI$82,AP$3,0) ->  | AQ86: =VLOOKUP($A86,#REF!,2,0)-VLOOKUP($A86,$A$4:$BI$82,AQ$3,0) ->  | AR86: =VLOOKUP($A86,#REF!,2,0)-VLOOKUP($A86,$A$4:$BI$82,AR$3,0) ->  | AS86: =VLOOKUP($A86,#REF!,2,0)-VLOOKUP($A86,$A$4:$BI$82,AS$3,0) ->  | AT86: =VLOOKUP($A86,#REF!,2,0)-VLOOKUP($A86,$A$4:$BI$82,AT$3,0) ->  | AU86: =VLOOKUP($A86,#REF!,2,0)-VLOOKUP($A86,$A$4:$BI$82,AU$3,0) ->  | AV86: =VLOOKUP($A86,#REF!,2,0)-VLOOKUP($A86,$A$4:$BI$82,AV$3,0) ->  | AW86: =VLOOKUP($A86,#REF!,2,0)-VLOOKUP($A86,$A$4:$BI$82,AW$3,0) ->  | AX86: =VLOOKUP($A86,#REF!,2,0)-VLOOKUP($A86,$A$4:$BI$82,AX$3,0) ->  | AY86: =VLOOKUP($A86,#REF!,2,0)-VLOOKUP($A86,$A$4:$BI$82,AY$3,0) ->  | AZ86: =VLOOKUP($A86,#REF!,2,0)-VLOOKUP($A86,$A$4:$BI$82,AZ$3,0) ->  | BA86: =VLOOKUP($A86,#REF!,2,0)-VLOOKUP($A86,$A$4:$BI$82,BA$3,0) ->  | BB86: =VLOOKUP($A86,#REF!,2,0)-VLOOKUP($A86,$A$4:$BI$82,BB$3,0) ->  | BC86: =VLOOKUP($A86,#REF!,2,0)-VLOOKUP($A86,$A$4:$BI$82,BC$3,0) ->  | BD86: =VLOOKUP($A86,#REF!,2,0)-VLOOKUP($A86,$A$4:$BI$82,BD$3,0) ->  | BE86: =VLOOKUP($A86,#REF!,2,0)-VLOOKUP($A86,$A$4:$BI$82,BE$3,0) ->  | BF86: =VLOOKUP($A86,#REF!,2,0)-VLOOKUP($A86,$A$4:$BI$82,BF$3,0) ->  | BG86: =VLOOKUP($A86,#REF!,2,0)-VLOOKUP($A86,$A$4:$BI$82,BG$3,0) ->  | BH86: =VLOOKUP($A86,#REF!,2,0)-VLOOKUP($A86,$A$4:$BI$82,BH$3,0) ->  | BI86: =VLOOKUP($A86,#REF!,2,0)-VLOOKUP($A86,$A$4:$BI$82,BI$3,0) -> 
A87: Alternegy, S.A. | M87: =VLOOKUP($A87,#REF!,3,0) ->  | N87: =VLOOKUP($A87,#REF!,2,0)-VLOOKUP($A87,$A$4:$BI$82,N$3,0) ->  | O87: =VLOOKUP($A87,#REF!,2,0)-VLOOKUP($A87,$A$4:$BI$82,O$3,0) ->  | P87: =VLOOKUP($A87,#REF!,2,0)-VLOOKUP($A87,$A$4:$BI$82,P$3,0) ->  | Q87: =VLOOKUP($A87,#REF!,2,0)-VLOOKUP($A87,$A$4:$BI$82,Q$3,0) ->  | R87: =VLOOKUP($A87,#REF!,2,0)-VLOOKUP($A87,$A$4:$BI$82,R$3,0) ->  | S87: =VLOOKUP($A87,#REF!,2,0)-VLOOKUP($A87,$A$4:$BI$82,S$3,0) ->  | T87: =VLOOKUP($A87,#REF!,2,0)-VLOOKUP($A87,$A$4:$BI$82,T$3,0) ->  | U87: =VLOOKUP($A87,#REF!,2,0)-VLOOKUP($A87,$A$4:$BI$82,U$3,0) ->  | V87: =VLOOKUP($A87,#REF!,2,0)-VLOOKUP($A87,$A$4:$BI$82,V$3,0) ->  | W87: =VLOOKUP($A87,#REF!,2,0)-VLOOKUP($A87,$A$4:$BI$82,W$3,0) ->  | X87: =VLOOKUP($A87,#REF!,2,0)-VLOOKUP($A87,$A$4:$BI$82,X$3,0) ->  | Y87: =VLOOKUP($A87,#REF!,2,0)-VLOOKUP($A87,$A$4:$BI$82,Y$3,0) ->  | Z87: =VLOOKUP($A87,#REF!,2,0)-VLOOKUP($A87,$A$4:$BI$82,Z$3,0) ->  | AA87: =VLOOKUP($A87,#REF!,2,0)-VLOOKUP($A87,$A$4:$BI$82,AA$3,0) ->  | AB87: =VLOOKUP($A87,#REF!,2,0)-VLOOKUP($A87,$A$4:$BI$82,AB$3,0) ->  | AC87: =VLOOKUP($A87,#REF!,2,0)-VLOOKUP($A87,$A$4:$BI$82,AC$3,0) ->  | AD87: =VLOOKUP($A87,#REF!,2,0)-VLOOKUP($A87,$A$4:$BI$82,AD$3,0) ->  | AE87: =VLOOKUP($A87,#REF!,2,0)-VLOOKUP($A87,$A$4:$BI$82,AE$3,0) ->  | AF87: =VLOOKUP($A87,#REF!,2,0)-VLOOKUP($A87,$A$4:$BI$82,AF$3,0) ->  | AG87: =VLOOKUP($A87,#REF!,2,0)-VLOOKUP($A87,$A$4:$BI$82,AG$3,0) ->  | AH87: =VLOOKUP($A87,#REF!,2,0)-VLOOKUP($A87,$A$4:$BI$82,AH$3,0) ->  | AI87: =VLOOKUP($A87,#REF!,2,0)-VLOOKUP($A87,$A$4:$BI$82,AI$3,0) ->  | AJ87: =VLOOKUP($A87,#REF!,2,0)-VLOOKUP($A87,$A$4:$BI$82,AJ$3,0) ->  | AK87: =VLOOKUP($A87,#REF!,2,0)-VLOOKUP($A87,$A$4:$BI$82,AK$3,0) ->  | AL87: =VLOOKUP($A87,#REF!,2,0)-VLOOKUP($A87,$A$4:$BI$82,AL$3,0) ->  | AM87: =VLOOKUP($A87,#REF!,2,0)-VLOOKUP($A87,$A$4:$BI$82,AM$3,0) ->  | AN87: =VLOOKUP($A87,#REF!,2,0)-VLOOKUP($A87,$A$4:$BI$82,AN$3,0) ->  | AO87: =VLOOKUP($A87,#REF!,2,0)-VLOOKUP($A87,$A$4:$BI$82,AO$3,0) ->  | AP87: =VLOOKUP($A87,#REF!,2,0)-VLOOKUP($A87,$A$4:$BI$82,AP$3,0) ->  | AQ87: =VLOOKUP($A87,#REF!,2,0)-VLOOKUP($A87,$A$4:$BI$82,AQ$3,0) ->  | AR87: =VLOOKUP($A87,#REF!,2,0)-VLOOKUP($A87,$A$4:$BI$82,AR$3,0) ->  | AS87: =VLOOKUP($A87,#REF!,2,0)-VLOOKUP($A87,$A$4:$BI$82,AS$3,0) ->  | AT87: =VLOOKUP($A87,#REF!,2,0)-VLOOKUP($A87,$A$4:$BI$82,AT$3,0) ->  | AU87: =VLOOKUP($A87,#REF!,2,0)-VLOOKUP($A87,$A$4:$BI$82,AU$3,0) ->  | AV87: =VLOOKUP($A87,#REF!,2,0)-VLOOKUP($A87,$A$4:$BI$82,AV$3,0) ->  | AW87: =VLOOKUP($A87,#REF!,2,0)-VLOOKUP($A87,$A$4:$BI$82,AW$3,0) ->  | AX87: =VLOOKUP($A87,#REF!,2,0)-VLOOKUP($A87,$A$4:$BI$82,AX$3,0) ->  | AY87: =VLOOKUP($A87,#REF!,2,0)-VLOOKUP($A87,$A$4:$BI$82,AY$3,0) ->  | AZ87: =VLOOKUP($A87,#REF!,2,0)-VLOOKUP($A87,$A$4:$BI$82,AZ$3,0) ->  | BA87: =VLOOKUP($A87,#REF!,2,0)-VLOOKUP($A87,$A$4:$BI$82,BA$3,0) ->  | BB87: =VLOOKUP($A87,#REF!,2,0)-VLOOKUP($A87,$A$4:$BI$82,BB$3,0) ->  | BC87: =VLOOKUP($A87,#REF!,2,0)-VLOOKUP($A87,$A$4:$BI$82,BC$3,0) ->  | BD87: =VLOOKUP($A87,#REF!,2,0)-VLOOKUP($A87,$A$4:$BI$82,BD$3,0) ->  | BE87: =VLOOKUP($A87,#REF!,2,0)-VLOOKUP($A87,$A$4:$BI$82,BE$3,0) ->  | BF87: =VLOOKUP($A87,#REF!,2,0)-VLOOKUP($A87,$A$4:$BI$82,BF$3,0) ->  | BG87: =VLOOKUP($A87,#REF!,2,0)-VLOOKUP($A87,$A$4:$BI$82,BG$3,0) ->  | BH87: =VLOOKUP($A87,#REF!,2,0)-VLOOKUP($A87,$A$4:$BI$82,BH$3,0) ->  | BI87: =VLOOKUP($A87,#REF!,2,0)-VLOOKUP($A87,$A$4:$BI$82,BI$3,0) -> 
A88: Autoridad del Canal de Panamá | M88: =VLOOKUP($A88,#REF!,3,0) ->  | N88: =VLOOKUP($A88,#REF!,2,0)-VLOOKUP($A88,$A$4:$BI$82,N$3,0) ->  | O88: =VLOOKUP($A88,#REF!,2,0)-VLOOKUP($A88,$A$4:$BI$82,O$3,0) ->  | P88: =VLOOKUP($A88,#REF!,2,0)-VLOOKUP($A88,$A$4:$BI$82,P$3,0) ->  | Q88: =VLOOKUP($A88,#REF!,2,0)-VLOOKUP($A88,$A$4:$BI$82,Q$3,0) ->  | R88: =VLOOKUP($A88,#REF!,2,0)-VLOOKUP($A88,$A$4:$BI$82,R$3,0) ->  | S88: =VLOOKUP($A88,#REF!,2,0)-VLOOKUP($A88,$A$4:$BI$82,S$3,0) ->  | T88: =VLOOKUP($A88,#REF!,2,0)-VLOOKUP($A88,$A$4:$BI$82,T$3,0) ->  | U88: =VLOOKUP($A88,#REF!,2,0)-VLOOKUP($A88,$A$4:$BI$82,U$3,0) ->  | V88: =VLOOKUP($A88,#REF!,2,0)-VLOOKUP($A88,$A$4:$BI$82,V$3,0) ->  | W88: =VLOOKUP($A88,#REF!,2,0)-VLOOKUP($A88,$A$4:$BI$82,W$3,0) ->  | X88: =VLOOKUP($A88,#REF!,2,0)-VLOOKUP($A88,$A$4:$BI$82,X$3,0) ->  | Y88: =VLOOKUP($A88,#REF!,2,0)-VLOOKUP($A88,$A$4:$BI$82,Y$3,0) ->  | Z88: =VLOOKUP($A88,#REF!,2,0)-VLOOKUP($A88,$A$4:$BI$82,Z$3,0) ->  | AA88: =VLOOKUP($A88,#REF!,2,0)-VLOOKUP($A88,$A$4:$BI$82,AA$3,0) ->  | AB88: =VLOOKUP($A88,#REF!,2,0)-VLOOKUP($A88,$A$4:$BI$82,AB$3,0) ->  | AC88: =VLOOKUP($A88,#REF!,2,0)-VLOOKUP($A88,$A$4:$BI$82,AC$3,0) ->  | AD88: =VLOOKUP($A88,#REF!,2,0)-VLOOKUP($A88,$A$4:$BI$82,AD$3,0) ->  | AE88: =VLOOKUP($A88,#REF!,2,0)-VLOOKUP($A88,$A$4:$BI$82,AE$3,0) ->  | AF88: =VLOOKUP($A88,#REF!,2,0)-VLOOKUP($A88,$A$4:$BI$82,AF$3,0) ->  | AG88: =VLOOKUP($A88,#REF!,2,0)-VLOOKUP($A88,$A$4:$BI$82,AG$3,0) ->  | AH88: =VLOOKUP($A88,#REF!,2,0)-VLOOKUP($A88,$A$4:$BI$82,AH$3,0) ->  | AI88: =VLOOKUP($A88,#REF!,2,0)-VLOOKUP($A88,$A$4:$BI$82,AI$3,0) ->  | AJ88: =VLOOKUP($A88,#REF!,2,0)-VLOOKUP($A88,$A$4:$BI$82,AJ$3,0) ->  | AK88: =VLOOKUP($A88,#REF!,2,0)-VLOOKUP($A88,$A$4:$BI$82,AK$3,0) ->  | AL88: =VLOOKUP($A88,#REF!,2,0)-VLOOKUP($A88,$A$4:$BI$82,AL$3,0) ->  | AM88: =VLOOKUP($A88,#REF!,2,0)-VLOOKUP($A88,$A$4:$BI$82,AM$3,0) ->  | AN88: =VLOOKUP($A88,#REF!,2,0)-VLOOKUP($A88,$A$4:$BI$82,AN$3,0) ->  | AO88: =VLOOKUP($A88,#REF!,2,0)-VLOOKUP($A88,$A$4:$BI$82,AO$3,0) ->  | AP88: =VLOOKUP($A88,#REF!,2,0)-VLOOKUP($A88,$A$4:$BI$82,AP$3,0) ->  | AQ88: =VLOOKUP($A88,#REF!,2,0)-VLOOKUP($A88,$A$4:$BI$82,AQ$3,0) ->  | AR88: =VLOOKUP($A88,#REF!,2,0)-VLOOKUP($A88,$A$4:$BI$82,AR$3,0) ->  | AS88: =VLOOKUP($A88,#REF!,2,0)-VLOOKUP($A88,$A$4:$BI$82,AS$3,0) ->  | AT88: =VLOOKUP($A88,#REF!,2,0)-VLOOKUP($A88,$A$4:$BI$82,AT$3,0) ->  | AU88: =VLOOKUP($A88,#REF!,2,0)-VLOOKUP($A88,$A$4:$BI$82,AU$3,0) ->  | AV88: =VLOOKUP($A88,#REF!,2,0)-VLOOKUP($A88,$A$4:$BI$82,AV$3,0) ->  | AW88: =VLOOKUP($A88,#REF!,2,0)-VLOOKUP($A88,$A$4:$BI$82,AW$3,0) ->  | AX88: =VLOOKUP($A88,#REF!,2,0)-VLOOKUP($A88,$A$4:$BI$82,AX$3,0) ->  | AY88: =VLOOKUP($A88,#REF!,2,0)-VLOOKUP($A88,$A$4:$BI$82,AY$3,0) ->  | AZ88: =VLOOKUP($A88,#REF!,2,0)-VLOOKUP($A88,$A$4:$BI$82,AZ$3,0) ->  | BA88: =VLOOKUP($A88,#REF!,2,0)-VLOOKUP($A88,$A$4:$BI$82,BA$3,0) ->  | BB88: =VLOOKUP($A88,#REF!,2,0)-VLOOKUP($A88,$A$4:$BI$82,BB$3,0) ->  | BC88: =VLOOKUP($A88,#REF!,2,0)-VLOOKUP($A88,$A$4:$BI$82,BC$3,0) ->  | BD88: =VLOOKUP($A88,#REF!,2,0)-VLOOKUP($A88,$A$4:$BI$82,BD$3,0) ->  | BE88: =VLOOKUP($A88,#REF!,2,0)-VLOOKUP($A88,$A$4:$BI$82,BE$3,0) ->  | BF88: =VLOOKUP($A88,#REF!,2,0)-VLOOKUP($A88,$A$4:$BI$82,BF$3,0) ->  | BG88: =VLOOKUP($A88,#REF!,2,0)-VLOOKUP($A88,$A$4:$BI$82,BG$3,0) ->  | BH88: =VLOOKUP($A88,#REF!,2,0)-VLOOKUP($A88,$A$4:$BI$82,BH$3,0) ->  | BI88: =VLOOKUP($A88,#REF!,2,0)-VLOOKUP($A88,$A$4:$BI$82,BI$3,0) -> 
A89: Bahía Las Minas Corp., | M89: =VLOOKUP($A89,#REF!,3,0) ->  | N89: =VLOOKUP($A89,#REF!,2,0)-VLOOKUP($A89,$A$4:$BI$82,N$3,0) ->  | O89: =VLOOKUP($A89,#REF!,2,0)-VLOOKUP($A89,$A$4:$BI$82,O$3,0) ->  | P89: =VLOOKUP($A89,#REF!,2,0)-VLOOKUP($A89,$A$4:$BI$82,P$3,0) ->  | Q89: =VLOOKUP($A89,#REF!,2,0)-VLOOKUP($A89,$A$4:$BI$82,Q$3,0) ->  | R89: =VLOOKUP($A89,#REF!,2,0)-VLOOKUP($A89,$A$4:$BI$82,R$3,0) ->  | S89: =VLOOKUP($A89,#REF!,2,0)-VLOOKUP($A89,$A$4:$BI$82,S$3,0) ->  | T89: =VLOOKUP($A89,#REF!,2,0)-VLOOKUP($A89,$A$4:$BI$82,T$3,0) ->  | U89: =VLOOKUP($A89,#REF!,2,0)-VLOOKUP($A89,$A$4:$BI$82,U$3,0) ->  | V89: =VLOOKUP($A89,#REF!,2,0)-VLOOKUP($A89,$A$4:$BI$82,V$3,0) ->  | W89: =VLOOKUP($A89,#REF!,2,0)-VLOOKUP($A89,$A$4:$BI$82,W$3,0) ->  | X89: =VLOOKUP($A89,#REF!,2,0)-VLOOKUP($A89,$A$4:$BI$82,X$3,0) ->  | Y89: =VLOOKUP($A89,#REF!,2,0)-VLOOKUP($A89,$A$4:$BI$82,Y$3,0) ->  | Z89: =VLOOKUP($A89,#REF!,2,0)-VLOOKUP($A89,$A$4:$BI$82,Z$3,0) ->  | AA89: =VLOOKUP($A89,#REF!,2,0)-VLOOKUP($A89,$A$4:$BI$82,AA$3,0) ->  | AB89: =VLOOKUP($A89,#REF!,2,0)-VLOOKUP($A89,$A$4:$BI$82,AB$3,0) ->  | AC89: =VLOOKUP($A89,#REF!,2,0)-VLOOKUP($A89,$A$4:$BI$82,AC$3,0) ->  | AD89: =VLOOKUP($A89,#REF!,2,0)-VLOOKUP($A89,$A$4:$BI$82,AD$3,0) ->  | AE89: =VLOOKUP($A89,#REF!,2,0)-VLOOKUP($A89,$A$4:$BI$82,AE$3,0) ->  | AF89: =VLOOKUP($A89,#REF!,2,0)-VLOOKUP($A89,$A$4:$BI$82,AF$3,0) ->  | AG89: =VLOOKUP($A89,#REF!,2,0)-VLOOKUP($A89,$A$4:$BI$82,AG$3,0) ->  | AH89: =VLOOKUP($A89,#REF!,2,0)-VLOOKUP($A89,$A$4:$BI$82,AH$3,0) ->  | AI89: =VLOOKUP($A89,#REF!,2,0)-VLOOKUP($A89,$A$4:$BI$82,AI$3,0) ->  | AJ89: =VLOOKUP($A89,#REF!,2,0)-VLOOKUP($A89,$A$4:$BI$82,AJ$3,0) ->  | AK89: =VLOOKUP($A89,#REF!,2,0)-VLOOKUP($A89,$A$4:$BI$82,AK$3,0) ->  | AL89: =VLOOKUP($A89,#REF!,2,0)-VLOOKUP($A89,$A$4:$BI$82,AL$3,0) ->  | AM89: =VLOOKUP($A89,#REF!,2,0)-VLOOKUP($A89,$A$4:$BI$82,AM$3,0) ->  | AN89: =VLOOKUP($A89,#REF!,2,0)-VLOOKUP($A89,$A$4:$BI$82,AN$3,0) ->  | AO89: =VLOOKUP($A89,#REF!,2,0)-VLOOKUP($A89,$A$4:$BI$82,AO$3,0) ->  | AP89: =VLOOKUP($A89,#REF!,2,0)-VLOOKUP($A89,$A$4:$BI$82,AP$3,0) ->  | AQ89: =VLOOKUP($A89,#REF!,2,0)-VLOOKUP($A89,$A$4:$BI$82,AQ$3,0) ->  | AR89: =VLOOKUP($A89,#REF!,2,0)-VLOOKUP($A89,$A$4:$BI$82,AR$3,0) ->  | AS89: =VLOOKUP($A89,#REF!,2,0)-VLOOKUP($A89,$A$4:$BI$82,AS$3,0) ->  | AT89: =VLOOKUP($A89,#REF!,2,0)-VLOOKUP($A89,$A$4:$BI$82,AT$3,0) ->  | AU89: =VLOOKUP($A89,#REF!,2,0)-VLOOKUP($A89,$A$4:$BI$82,AU$3,0) ->  | AV89: =VLOOKUP($A89,#REF!,2,0)-VLOOKUP($A89,$A$4:$BI$82,AV$3,0) ->  | AW89: =VLOOKUP($A89,#REF!,2,0)-VLOOKUP($A89,$A$4:$BI$82,AW$3,0) ->  | AX89: =VLOOKUP($A89,#REF!,2,0)-VLOOKUP($A89,$A$4:$BI$82,AX$3,0) ->  | AY89: =VLOOKUP($A89,#REF!,2,0)-VLOOKUP($A89,$A$4:$BI$82,AY$3,0) ->  | AZ89: =VLOOKUP($A89,#REF!,2,0)-VLOOKUP($A89,$A$4:$BI$82,AZ$3,0) ->  | BA89: =VLOOKUP($A89,#REF!,2,0)-VLOOKUP($A89,$A$4:$BI$82,BA$3,0) ->  | BB89: =VLOOKUP($A89,#REF!,2,0)-VLOOKUP($A89,$A$4:$BI$82,BB$3,0) ->  | BC89: =VLOOKUP($A89,#REF!,2,0)-VLOOKUP($A89,$A$4:$BI$82,BC$3,0) ->  | BD89: =VLOOKUP($A89,#REF!,2,0)-VLOOKUP($A89,$A$4:$BI$82,BD$3,0) ->  | BE89: =VLOOKUP($A89,#REF!,2,0)-VLOOKUP($A89,$A$4:$BI$82,BE$3,0) ->  | BF89: =VLOOKUP($A89,#REF!,2,0)-VLOOKUP($A89,$A$4:$BI$82,BF$3,0) ->  | BG89: =VLOOKUP($A89,#REF!,2,0)-VLOOKUP($A89,$A$4:$BI$82,BG$3,0) ->  | BH89: =VLOOKUP($A89,#REF!,2,0)-VLOOKUP($A89,$A$4:$BI$82,BH$3,0) ->  | BI89: =VLOOKUP($A89,#REF!,2,0)-VLOOKUP($A89,$A$4:$BI$82,BI$3,0) -> 
A90: Bontex, S.A. | M90: =VLOOKUP($A90,#REF!,3,0) ->  | N90: =VLOOKUP($A90,#REF!,2,0)-VLOOKUP($A90,$A$4:$BI$82,N$3,0) ->  | O90: =VLOOKUP($A90,#REF!,2,0)-VLOOKUP($A90,$A$4:$BI$82,O$3,0) ->  | P90: =VLOOKUP($A90,#REF!,2,0)-VLOOKUP($A90,$A$4:$BI$82,P$3,0) ->  | Q90: =VLOOKUP($A90,#REF!,2,0)-VLOOKUP($A90,$A$4:$BI$82,Q$3,0) ->  | R90: =VLOOKUP($A90,#REF!,2,0)-VLOOKUP($A90,$A$4:$BI$82,R$3,0) ->  | S90: =VLOOKUP($A90,#REF!,2,0)-VLOOKUP($A90,$A$4:$BI$82,S$3,0) ->  | T90: =VLOOKUP($A90,#REF!,2,0)-VLOOKUP($A90,$A$4:$BI$82,T$3,0) ->  | U90: =VLOOKUP($A90,#REF!,2,0)-VLOOKUP($A90,$A$4:$BI$82,U$3,0) ->  | V90: =VLOOKUP($A90,#REF!,2,0)-VLOOKUP($A90,$A$4:$BI$82,V$3,0) ->  | W90: =VLOOKUP($A90,#REF!,2,0)-VLOOKUP($A90,$A$4:$BI$82,W$3,0) ->  | X90: =VLOOKUP($A90,#REF!,2,0)-VLOOKUP($A90,$A$4:$BI$82,X$3,0) ->  | Y90: =VLOOKUP($A90,#REF!,2,0)-VLOOKUP($A90,$A$4:$BI$82,Y$3,0) ->  | Z90: =VLOOKUP($A90,#REF!,2,0)-VLOOKUP($A90,$A$4:$BI$82,Z$3,0) ->  | AA90: =VLOOKUP($A90,#REF!,2,0)-VLOOKUP($A90,$A$4:$BI$82,AA$3,0) ->  | AB90: =VLOOKUP($A90,#REF!,2,0)-VLOOKUP($A90,$A$4:$BI$82,AB$3,0) ->  | AC90: =VLOOKUP($A90,#REF!,2,0)-VLOOKUP($A90,$A$4:$BI$82,AC$3,0) ->  | AD90: =VLOOKUP($A90,#REF!,2,0)-VLOOKUP($A90,$A$4:$BI$82,AD$3,0) ->  | AE90: =VLOOKUP($A90,#REF!,2,0)-VLOOKUP($A90,$A$4:$BI$82,AE$3,0) ->  | AF90: =VLOOKUP($A90,#REF!,2,0)-VLOOKUP($A90,$A$4:$BI$82,AF$3,0) ->  | AG90: =VLOOKUP($A90,#REF!,2,0)-VLOOKUP($A90,$A$4:$BI$82,AG$3,0) ->  | AH90: =VLOOKUP($A90,#REF!,2,0)-VLOOKUP($A90,$A$4:$BI$82,AH$3,0) ->  | AI90: =VLOOKUP($A90,#REF!,2,0)-VLOOKUP($A90,$A$4:$BI$82,AI$3,0) ->  | AJ90: =VLOOKUP($A90,#REF!,2,0)-VLOOKUP($A90,$A$4:$BI$82,AJ$3,0) ->  | AK90: =VLOOKUP($A90,#REF!,2,0)-VLOOKUP($A90,$A$4:$BI$82,AK$3,0) ->  | AL90: =VLOOKUP($A90,#REF!,2,0)-VLOOKUP($A90,$A$4:$BI$82,AL$3,0) ->  | AM90: =VLOOKUP($A90,#REF!,2,0)-VLOOKUP($A90,$A$4:$BI$82,AM$3,0) ->  | AN90: =VLOOKUP($A90,#REF!,2,0)-VLOOKUP($A90,$A$4:$BI$82,AN$3,0) ->  | AO90: =VLOOKUP($A90,#REF!,2,0)-VLOOKUP($A90,$A$4:$BI$82,AO$3,0) ->  | AP90: =VLOOKUP($A90,#REF!,2,0)-VLOOKUP($A90,$A$4:$BI$82,AP$3,0) ->  | AQ90: =VLOOKUP($A90,#REF!,2,0)-VLOOKUP($A90,$A$4:$BI$82,AQ$3,0) ->  | AR90: =VLOOKUP($A90,#REF!,2,0)-VLOOKUP($A90,$A$4:$BI$82,AR$3,0) ->  | AS90: =VLOOKUP($A90,#REF!,2,0)-VLOOKUP($A90,$A$4:$BI$82,AS$3,0) ->  | AT90: =VLOOKUP($A90,#REF!,2,0)-VLOOKUP($A90,$A$4:$BI$82,AT$3,0) ->  | AU90: =VLOOKUP($A90,#REF!,2,0)-VLOOKUP($A90,$A$4:$BI$82,AU$3,0) ->  | AV90: =VLOOKUP($A90,#REF!,2,0)-VLOOKUP($A90,$A$4:$BI$82,AV$3,0) ->  | AW90: =VLOOKUP($A90,#REF!,2,0)-VLOOKUP($A90,$A$4:$BI$82,AW$3,0) ->  | AX90: =VLOOKUP($A90,#REF!,2,0)-VLOOKUP($A90,$A$4:$BI$82,AX$3,0) ->  | AY90: =VLOOKUP($A90,#REF!,2,0)-VLOOKUP($A90,$A$4:$BI$82,AY$3,0) ->  | AZ90: =VLOOKUP($A90,#REF!,2,0)-VLOOKUP($A90,$A$4:$BI$82,AZ$3,0) ->  | BA90: =VLOOKUP($A90,#REF!,2,0)-VLOOKUP($A90,$A$4:$BI$82,BA$3,0) ->  | BB90: =VLOOKUP($A90,#REF!,2,0)-VLOOKUP($A90,$A$4:$BI$82,BB$3,0) ->  | BC90: =VLOOKUP($A90,#REF!,2,0)-VLOOKUP($A90,$A$4:$BI$82,BC$3,0) ->  | BD90: =VLOOKUP($A90,#REF!,2,0)-VLOOKUP($A90,$A$4:$BI$82,BD$3,0) ->  | BE90: =VLOOKUP($A90,#REF!,2,0)-VLOOKUP($A90,$A$4:$BI$82,BE$3,0) ->  | BF90: =VLOOKUP($A90,#REF!,2,0)-VLOOKUP($A90,$A$4:$BI$82,BF$3,0) ->  | BG90: =VLOOKUP($A90,#REF!,2,0)-VLOOKUP($A90,$A$4:$BI$82,BG$3,0) ->  | BH90: =VLOOKUP($A90,#REF!,2,0)-VLOOKUP($A90,$A$4:$BI$82,BH$3,0) ->  | BI90: =VLOOKUP($A90,#REF!,2,0)-VLOOKUP($A90,$A$4:$BI$82,BI$3,0) -> 
A91: Caldera Energy Corp. | M91: =VLOOKUP($A91,#REF!,3,0) ->  | N91: =VLOOKUP($A91,#REF!,2,0)-VLOOKUP($A91,$A$4:$BI$82,N$3,0) ->  | O91: =VLOOKUP($A91,#REF!,2,0)-VLOOKUP($A91,$A$4:$BI$82,O$3,0) ->  | P91: =VLOOKUP($A91,#REF!,2,0)-VLOOKUP($A91,$A$4:$BI$82,P$3,0) ->  | Q91: =VLOOKUP($A91,#REF!,2,0)-VLOOKUP($A91,$A$4:$BI$82,Q$3,0) ->  | R91: =VLOOKUP($A91,#REF!,2,0)-VLOOKUP($A91,$A$4:$BI$82,R$3,0) ->  | S91: =VLOOKUP($A91,#REF!,2,0)-VLOOKUP($A91,$A$4:$BI$82,S$3,0) ->  | T91: =VLOOKUP($A91,#REF!,2,0)-VLOOKUP($A91,$A$4:$BI$82,T$3,0) ->  | U91: =VLOOKUP($A91,#REF!,2,0)-VLOOKUP($A91,$A$4:$BI$82,U$3,0) ->  | V91: =VLOOKUP($A91,#REF!,2,0)-VLOOKUP($A91,$A$4:$BI$82,V$3,0) ->  | W91: =VLOOKUP($A91,#REF!,2,0)-VLOOKUP($A91,$A$4:$BI$82,W$3,0) ->  | X91: =VLOOKUP($A91,#REF!,2,0)-VLOOKUP($A91,$A$4:$BI$82,X$3,0) ->  | Y91: =VLOOKUP($A91,#REF!,2,0)-VLOOKUP($A91,$A$4:$BI$82,Y$3,0) ->  | Z91: =VLOOKUP($A91,#REF!,2,0)-VLOOKUP($A91,$A$4:$BI$82,Z$3,0) ->  | AA91: =VLOOKUP($A91,#REF!,2,0)-VLOOKUP($A91,$A$4:$BI$82,AA$3,0) ->  | AB91: =VLOOKUP($A91,#REF!,2,0)-VLOOKUP($A91,$A$4:$BI$82,AB$3,0) ->  | AC91: =VLOOKUP($A91,#REF!,2,0)-VLOOKUP($A91,$A$4:$BI$82,AC$3,0) ->  | AD91: =VLOOKUP($A91,#REF!,2,0)-VLOOKUP($A91,$A$4:$BI$82,AD$3,0) ->  | AE91: =VLOOKUP($A91,#REF!,2,0)-VLOOKUP($A91,$A$4:$BI$82,AE$3,0) ->  | AF91: =VLOOKUP($A91,#REF!,2,0)-VLOOKUP($A91,$A$4:$BI$82,AF$3,0) ->  | AG91: =VLOOKUP($A91,#REF!,2,0)-VLOOKUP($A91,$A$4:$BI$82,AG$3,0) ->  | AH91: =VLOOKUP($A91,#REF!,2,0)-VLOOKUP($A91,$A$4:$BI$82,AH$3,0) ->  | AI91: =VLOOKUP($A91,#REF!,2,0)-VLOOKUP($A91,$A$4:$BI$82,AI$3,0) ->  | AJ91: =VLOOKUP($A91,#REF!,2,0)-VLOOKUP($A91,$A$4:$BI$82,AJ$3,0) ->  | AK91: =VLOOKUP($A91,#REF!,2,0)-VLOOKUP($A91,$A$4:$BI$82,AK$3,0) ->  | AL91: =VLOOKUP($A91,#REF!,2,0)-VLOOKUP($A91,$A$4:$BI$82,AL$3,0) ->  | AM91: =VLOOKUP($A91,#REF!,2,0)-VLOOKUP($A91,$A$4:$BI$82,AM$3,0) ->  | AN91: =VLOOKUP($A91,#REF!,2,0)-VLOOKUP($A91,$A$4:$BI$82,AN$3,0) ->  | AO91: =VLOOKUP($A91,#REF!,2,0)-VLOOKUP($A91,$A$4:$BI$82,AO$3,0) ->  | AP91: =VLOOKUP($A91,#REF!,2,0)-VLOOKUP($A91,$A$4:$BI$82,AP$3,0) ->  | AQ91: =VLOOKUP($A91,#REF!,2,0)-VLOOKUP($A91,$A$4:$BI$82,AQ$3,0) ->  | AR91: =VLOOKUP($A91,#REF!,2,0)-VLOOKUP($A91,$A$4:$BI$82,AR$3,0) ->  | AS91: =VLOOKUP($A91,#REF!,2,0)-VLOOKUP($A91,$A$4:$BI$82,AS$3,0) ->  | AT91: =VLOOKUP($A91,#REF!,2,0)-VLOOKUP($A91,$A$4:$BI$82,AT$3,0) ->  | AU91: =VLOOKUP($A91,#REF!,2,0)-VLOOKUP($A91,$A$4:$BI$82,AU$3,0) ->  | AV91: =VLOOKUP($A91,#REF!,2,0)-VLOOKUP($A91,$A$4:$BI$82,AV$3,0) ->  | AW91: =VLOOKUP($A91,#REF!,2,0)-VLOOKUP($A91,$A$4:$BI$82,AW$3,0) ->  | AX91: =VLOOKUP($A91,#REF!,2,0)-VLOOKUP($A91,$A$4:$BI$82,AX$3,0) ->  | AY91: =VLOOKUP($A91,#REF!,2,0)-VLOOKUP($A91,$A$4:$BI$82,AY$3,0) ->  | AZ91: =VLOOKUP($A91,#REF!,2,0)-VLOOKUP($A91,$A$4:$BI$82,AZ$3,0) ->  | BA91: =VLOOKUP($A91,#REF!,2,0)-VLOOKUP($A91,$A$4:$BI$82,BA$3,0) ->  | BB91: =VLOOKUP($A91,#REF!,2,0)-VLOOKUP($A91,$A$4:$BI$82,BB$3,0) ->  | BC91: =VLOOKUP($A91,#REF!,2,0)-VLOOKUP($A91,$A$4:$BI$82,BC$3,0) ->  | BD91: =VLOOKUP($A91,#REF!,2,0)-VLOOKUP($A91,$A$4:$BI$82,BD$3,0) ->  | BE91: =VLOOKUP($A91,#REF!,2,0)-VLOOKUP($A91,$A$4:$BI$82,BE$3,0) ->  | BF91: =VLOOKUP($A91,#REF!,2,0)-VLOOKUP($A91,$A$4:$BI$82,BF$3,0) ->  | BG91: =VLOOKUP($A91,#REF!,2,0)-VLOOKUP($A91,$A$4:$BI$82,BG$3,0) ->  | BH91: =VLOOKUP($A91,#REF!,2,0)-VLOOKUP($A91,$A$4:$BI$82,BH$3,0) ->  | BI91: =VLOOKUP($A91,#REF!,2,0)-VLOOKUP($A91,$A$4:$BI$82,BI$3,0) -> 
A92: Consorcio Energyst - International | M92: =VLOOKUP($A92,#REF!,3,0) ->  | N92: =VLOOKUP($A92,#REF!,2,0)-VLOOKUP($A92,$A$4:$BI$82,N$3,0) ->  | O92: =VLOOKUP($A92,#REF!,2,0)-VLOOKUP($A92,$A$4:$BI$82,O$3,0) ->  | P92: =VLOOKUP($A92,#REF!,2,0)-VLOOKUP($A92,$A$4:$BI$82,P$3,0) ->  | Q92: =VLOOKUP($A92,#REF!,2,0)-VLOOKUP($A92,$A$4:$BI$82,Q$3,0) ->  | R92: =VLOOKUP($A92,#REF!,2,0)-VLOOKUP($A92,$A$4:$BI$82,R$3,0) ->  | S92: =VLOOKUP($A92,#REF!,2,0)-VLOOKUP($A92,$A$4:$BI$82,S$3,0) ->  | T92: =VLOOKUP($A92,#REF!,2,0)-VLOOKUP($A92,$A$4:$BI$82,T$3,0) ->  | U92: =VLOOKUP($A92,#REF!,2,0)-VLOOKUP($A92,$A$4:$BI$82,U$3,0) ->  | V92: =VLOOKUP($A92,#REF!,2,0)-VLOOKUP($A92,$A$4:$BI$82,V$3,0) ->  | W92: =VLOOKUP($A92,#REF!,2,0)-VLOOKUP($A92,$A$4:$BI$82,W$3,0) ->  | X92: =VLOOKUP($A92,#REF!,2,0)-VLOOKUP($A92,$A$4:$BI$82,X$3,0) ->  | Y92: =VLOOKUP($A92,#REF!,2,0)-VLOOKUP($A92,$A$4:$BI$82,Y$3,0) ->  | Z92: =VLOOKUP($A92,#REF!,2,0)-VLOOKUP($A92,$A$4:$BI$82,Z$3,0) ->  | AA92: =VLOOKUP($A92,#REF!,2,0)-VLOOKUP($A92,$A$4:$BI$82,AA$3,0) ->  | AB92: =VLOOKUP($A92,#REF!,2,0)-VLOOKUP($A92,$A$4:$BI$82,AB$3,0) ->  | AC92: =VLOOKUP($A92,#REF!,2,0)-VLOOKUP($A92,$A$4:$BI$82,AC$3,0) ->  | AD92: =VLOOKUP($A92,#REF!,2,0)-VLOOKUP($A92,$A$4:$BI$82,AD$3,0) ->  | AE92: =VLOOKUP($A92,#REF!,2,0)-VLOOKUP($A92,$A$4:$BI$82,AE$3,0) ->  | AF92: =VLOOKUP($A92,#REF!,2,0)-VLOOKUP($A92,$A$4:$BI$82,AF$3,0) ->  | AG92: =VLOOKUP($A92,#REF!,2,0)-VLOOKUP($A92,$A$4:$BI$82,AG$3,0) ->  | AH92: =VLOOKUP($A92,#REF!,2,0)-VLOOKUP($A92,$A$4:$BI$82,AH$3,0) ->  | AI92: =VLOOKUP($A92,#REF!,2,0)-VLOOKUP($A92,$A$4:$BI$82,AI$3,0) ->  | AJ92: =VLOOKUP($A92,#REF!,2,0)-VLOOKUP($A92,$A$4:$BI$82,AJ$3,0) ->  | AK92: =VLOOKUP($A92,#REF!,2,0)-VLOOKUP($A92,$A$4:$BI$82,AK$3,0) ->  | AL92: =VLOOKUP($A92,#REF!,2,0)-VLOOKUP($A92,$A$4:$BI$82,AL$3,0) ->  | AM92: =VLOOKUP($A92,#REF!,2,0)-VLOOKUP($A92,$A$4:$BI$82,AM$3,0) ->  | AN92: =VLOOKUP($A92,#REF!,2,0)-VLOOKUP($A92,$A$4:$BI$82,AN$3,0) ->  | AO92: =VLOOKUP($A92,#REF!,2,0)-VLOOKUP($A92,$A$4:$BI$82,AO$3,0) ->  | AP92: =VLOOKUP($A92,#REF!,2,0)-VLOOKUP($A92,$A$4:$BI$82,AP$3,0) ->  | AQ92: =VLOOKUP($A92,#REF!,2,0)-VLOOKUP($A92,$A$4:$BI$82,AQ$3,0) ->  | AR92: =VLOOKUP($A92,#REF!,2,0)-VLOOKUP($A92,$A$4:$BI$82,AR$3,0) ->  | AS92: =VLOOKUP($A92,#REF!,2,0)-VLOOKUP($A92,$A$4:$BI$82,AS$3,0) ->  | AT92: =VLOOKUP($A92,#REF!,2,0)-VLOOKUP($A92,$A$4:$BI$82,AT$3,0) ->  | AU92: =VLOOKUP($A92,#REF!,2,0)-VLOOKUP($A92,$A$4:$BI$82,AU$3,0) ->  | AV92: =VLOOKUP($A92,#REF!,2,0)-VLOOKUP($A92,$A$4:$BI$82,AV$3,0) ->  | AW92: =VLOOKUP($A92,#REF!,2,0)-VLOOKUP($A92,$A$4:$BI$82,AW$3,0) ->  | AX92: =VLOOKUP($A92,#REF!,2,0)-VLOOKUP($A92,$A$4:$BI$82,AX$3,0) ->  | AY92: =VLOOKUP($A92,#REF!,2,0)-VLOOKUP($A92,$A$4:$BI$82,AY$3,0) ->  | AZ92: =VLOOKUP($A92,#REF!,2,0)-VLOOKUP($A92,$A$4:$BI$82,AZ$3,0) ->  | BA92: =VLOOKUP($A92,#REF!,2,0)-VLOOKUP($A92,$A$4:$BI$82,BA$3,0) ->  | BB92: =VLOOKUP($A92,#REF!,2,0)-VLOOKUP($A92,$A$4:$BI$82,BB$3,0) ->  | BC92: =VLOOKUP($A92,#REF!,2,0)-VLOOKUP($A92,$A$4:$BI$82,BC$3,0) ->  | BD92: =VLOOKUP($A92,#REF!,2,0)-VLOOKUP($A92,$A$4:$BI$82,BD$3,0) ->  | BE92: =VLOOKUP($A92,#REF!,2,0)-VLOOKUP($A92,$A$4:$BI$82,BE$3,0) ->  | BF92: =VLOOKUP($A92,#REF!,2,0)-VLOOKUP($A92,$A$4:$BI$82,BF$3,0) ->  | BG92: =VLOOKUP($A92,#REF!,2,0)-VLOOKUP($A92,$A$4:$BI$82,BG$3,0) ->  | BH92: =VLOOKUP($A92,#REF!,2,0)-VLOOKUP($A92,$A$4:$BI$82,BH$3,0) ->  | BI92: =VLOOKUP($A92,#REF!,2,0)-VLOOKUP($A92,$A$4:$BI$82,BI$3,0) -> 
A93: Corporación de Energía del Istmo LTD, S.A. | M93: =VLOOKUP($A93,#REF!,3,0) ->  | N93: =VLOOKUP($A93,#REF!,2,0)-VLOOKUP($A93,$A$4:$BI$82,N$3,0) ->  | O93: =VLOOKUP($A93,#REF!,2,0)-VLOOKUP($A93,$A$4:$BI$82,O$3,0) ->  | P93: =VLOOKUP($A93,#REF!,2,0)-VLOOKUP($A93,$A$4:$BI$82,P$3,0) ->  | Q93: =VLOOKUP($A93,#REF!,2,0)-VLOOKUP($A93,$A$4:$BI$82,Q$3,0) ->  | R93: =VLOOKUP($A93,#REF!,2,0)-VLOOKUP($A93,$A$4:$BI$82,R$3,0) ->  | S93: =VLOOKUP($A93,#REF!,2,0)-VLOOKUP($A93,$A$4:$BI$82,S$3,0) ->  | T93: =VLOOKUP($A93,#REF!,2,0)-VLOOKUP($A93,$A$4:$BI$82,T$3,0) ->  | U93: =VLOOKUP($A93,#REF!,2,0)-VLOOKUP($A93,$A$4:$BI$82,U$3,0) ->  | V93: =VLOOKUP($A93,#REF!,2,0)-VLOOKUP($A93,$A$4:$BI$82,V$3,0) ->  | W93: =VLOOKUP($A93,#REF!,2,0)-VLOOKUP($A93,$A$4:$BI$82,W$3,0) ->  | X93: =VLOOKUP($A93,#REF!,2,0)-VLOOKUP($A93,$A$4:$BI$82,X$3,0) ->  | Y93: =VLOOKUP($A93,#REF!,2,0)-VLOOKUP($A93,$A$4:$BI$82,Y$3,0) ->  | Z93: =VLOOKUP($A93,#REF!,2,0)-VLOOKUP($A93,$A$4:$BI$82,Z$3,0) ->  | AA93: =VLOOKUP($A93,#REF!,2,0)-VLOOKUP($A93,$A$4:$BI$82,AA$3,0) ->  | AB93: =VLOOKUP($A93,#REF!,2,0)-VLOOKUP($A93,$A$4:$BI$82,AB$3,0) ->  | AC93: =VLOOKUP($A93,#REF!,2,0)-VLOOKUP($A93,$A$4:$BI$82,AC$3,0) ->  | AD93: =VLOOKUP($A93,#REF!,2,0)-VLOOKUP($A93,$A$4:$BI$82,AD$3,0) ->  | AE93: =VLOOKUP($A93,#REF!,2,0)-VLOOKUP($A93,$A$4:$BI$82,AE$3,0) ->  | AF93: =VLOOKUP($A93,#REF!,2,0)-VLOOKUP($A93,$A$4:$BI$82,AF$3,0) ->  | AG93: =VLOOKUP($A93,#REF!,2,0)-VLOOKUP($A93,$A$4:$BI$82,AG$3,0) ->  | AH93: =VLOOKUP($A93,#REF!,2,0)-VLOOKUP($A93,$A$4:$BI$82,AH$3,0) ->  | AI93: =VLOOKUP($A93,#REF!,2,0)-VLOOKUP($A93,$A$4:$BI$82,AI$3,0) ->  | AJ93: =VLOOKUP($A93,#REF!,2,0)-VLOOKUP($A93,$A$4:$BI$82,AJ$3,0) ->  | AK93: =VLOOKUP($A93,#REF!,2,0)-VLOOKUP($A93,$A$4:$BI$82,AK$3,0) ->  | AL93: =VLOOKUP($A93,#REF!,2,0)-VLOOKUP($A93,$A$4:$BI$82,AL$3,0) ->  | AM93: =VLOOKUP($A93,#REF!,2,0)-VLOOKUP($A93,$A$4:$BI$82,AM$3,0) ->  | AN93: =VLOOKUP($A93,#REF!,2,0)-VLOOKUP($A93,$A$4:$BI$82,AN$3,0) ->  | AO93: =VLOOKUP($A93,#REF!,2,0)-VLOOKUP($A93,$A$4:$BI$82,AO$3,0) ->  | AP93: =VLOOKUP($A93,#REF!,2,0)-VLOOKUP($A93,$A$4:$BI$82,AP$3,0) ->  | AQ93: =VLOOKUP($A93,#REF!,2,0)-VLOOKUP($A93,$A$4:$BI$82,AQ$3,0) ->  | AR93: =VLOOKUP($A93,#REF!,2,0)-VLOOKUP($A93,$A$4:$BI$82,AR$3,0) ->  | AS93: =VLOOKUP($A93,#REF!,2,0)-VLOOKUP($A93,$A$4:$BI$82,AS$3,0) ->  | AT93: =VLOOKUP($A93,#REF!,2,0)-VLOOKUP($A93,$A$4:$BI$82,AT$3,0) ->  | AU93: =VLOOKUP($A93,#REF!,2,0)-VLOOKUP($A93,$A$4:$BI$82,AU$3,0) ->  | AV93: =VLOOKUP($A93,#REF!,2,0)-VLOOKUP($A93,$A$4:$BI$82,AV$3,0) ->  | AW93: =VLOOKUP($A93,#REF!,2,0)-VLOOKUP($A93,$A$4:$BI$82,AW$3,0) ->  | AX93: =VLOOKUP($A93,#REF!,2,0)-VLOOKUP($A93,$A$4:$BI$82,AX$3,0) ->  | AY93: =VLOOKUP($A93,#REF!,2,0)-VLOOKUP($A93,$A$4:$BI$82,AY$3,0) ->  | AZ93: =VLOOKUP($A93,#REF!,2,0)-VLOOKUP($A93,$A$4:$BI$82,AZ$3,0) ->  | BA93: =VLOOKUP($A93,#REF!,2,0)-VLOOKUP($A93,$A$4:$BI$82,BA$3,0) ->  | BB93: =VLOOKUP($A93,#REF!,2,0)-VLOOKUP($A93,$A$4:$BI$82,BB$3,0) ->  | BC93: =VLOOKUP($A93,#REF!,2,0)-VLOOKUP($A93,$A$4:$BI$82,BC$3,0) ->  | BD93: =VLOOKUP($A93,#REF!,2,0)-VLOOKUP($A93,$A$4:$BI$82,BD$3,0) ->  | BE93: =VLOOKUP($A93,#REF!,2,0)-VLOOKUP($A93,$A$4:$BI$82,BE$3,0) ->  | BF93: =VLOOKUP($A93,#REF!,2,0)-VLOOKUP($A93,$A$4:$BI$82,BF$3,0) ->  | BG93: =VLOOKUP($A93,#REF!,2,0)-VLOOKUP($A93,$A$4:$BI$82,BG$3,0) ->  | BH93: =VLOOKUP($A93,#REF!,2,0)-VLOOKUP($A93,$A$4:$BI$82,BH$3,0) ->  | BI93: =VLOOKUP($A93,#REF!,2,0)-VLOOKUP($A93,$A$4:$BI$82,BI$3,0) -> 
A94: Desarrollos Hidroeléctricos Corp. | M94: =VLOOKUP($A94,#REF!,3,0) ->  | N94: =VLOOKUP($A94,#REF!,2,0)-VLOOKUP($A94,$A$4:$BI$82,N$3,0) ->  | O94: =VLOOKUP($A94,#REF!,2,0)-VLOOKUP($A94,$A$4:$BI$82,O$3,0) ->  | P94: =VLOOKUP($A94,#REF!,2,0)-VLOOKUP($A94,$A$4:$BI$82,P$3,0) ->  | Q94: =VLOOKUP($A94,#REF!,2,0)-VLOOKUP($A94,$A$4:$BI$82,Q$3,0) ->  | R94: =VLOOKUP($A94,#REF!,2,0)-VLOOKUP($A94,$A$4:$BI$82,R$3,0) ->  | S94: =VLOOKUP($A94,#REF!,2,0)-VLOOKUP($A94,$A$4:$BI$82,S$3,0) ->  | T94: =VLOOKUP($A94,#REF!,2,0)-VLOOKUP($A94,$A$4:$BI$82,T$3,0) ->  | U94: =VLOOKUP($A94,#REF!,2,0)-VLOOKUP($A94,$A$4:$BI$82,U$3,0) ->  | V94: =VLOOKUP($A94,#REF!,2,0)-VLOOKUP($A94,$A$4:$BI$82,V$3,0) ->  | W94: =VLOOKUP($A94,#REF!,2,0)-VLOOKUP($A94,$A$4:$BI$82,W$3,0) ->  | X94: =VLOOKUP($A94,#REF!,2,0)-VLOOKUP($A94,$A$4:$BI$82,X$3,0) ->  | Y94: =VLOOKUP($A94,#REF!,2,0)-VLOOKUP($A94,$A$4:$BI$82,Y$3,0) ->  | Z94: =VLOOKUP($A94,#REF!,2,0)-VLOOKUP($A94,$A$4:$BI$82,Z$3,0) ->  | AA94: =VLOOKUP($A94,#REF!,2,0)-VLOOKUP($A94,$A$4:$BI$82,AA$3,0) ->  | AB94: =VLOOKUP($A94,#REF!,2,0)-VLOOKUP($A94,$A$4:$BI$82,AB$3,0) ->  | AC94: =VLOOKUP($A94,#REF!,2,0)-VLOOKUP($A94,$A$4:$BI$82,AC$3,0) ->  | AD94: =VLOOKUP($A94,#REF!,2,0)-VLOOKUP($A94,$A$4:$BI$82,AD$3,0) ->  | AE94: =VLOOKUP($A94,#REF!,2,0)-VLOOKUP($A94,$A$4:$BI$82,AE$3,0) ->  | AF94: =VLOOKUP($A94,#REF!,2,0)-VLOOKUP($A94,$A$4:$BI$82,AF$3,0) ->  | AG94: =VLOOKUP($A94,#REF!,2,0)-VLOOKUP($A94,$A$4:$BI$82,AG$3,0) ->  | AH94: =VLOOKUP($A94,#REF!,2,0)-VLOOKUP($A94,$A$4:$BI$82,AH$3,0) ->  | AI94: =VLOOKUP($A94,#REF!,2,0)-VLOOKUP($A94,$A$4:$BI$82,AI$3,0) ->  | AJ94: =VLOOKUP($A94,#REF!,2,0)-VLOOKUP($A94,$A$4:$BI$82,AJ$3,0) ->  | AK94: =VLOOKUP($A94,#REF!,2,0)-VLOOKUP($A94,$A$4:$BI$82,AK$3,0) ->  | AL94: =VLOOKUP($A94,#REF!,2,0)-VLOOKUP($A94,$A$4:$BI$82,AL$3,0) ->  | AM94: =VLOOKUP($A94,#REF!,2,0)-VLOOKUP($A94,$A$4:$BI$82,AM$3,0) ->  | AN94: =VLOOKUP($A94,#REF!,2,0)-VLOOKUP($A94,$A$4:$BI$82,AN$3,0) ->  | AO94: =VLOOKUP($A94,#REF!,2,0)-VLOOKUP($A94,$A$4:$BI$82,AO$3,0) ->  | AP94: =VLOOKUP($A94,#REF!,2,0)-VLOOKUP($A94,$A$4:$BI$82,AP$3,0) ->  | AQ94: =VLOOKUP($A94,#REF!,2,0)-VLOOKUP($A94,$A$4:$BI$82,AQ$3,0) ->  | AR94: =VLOOKUP($A94,#REF!,2,0)-VLOOKUP($A94,$A$4:$BI$82,AR$3,0) ->  | AS94: =VLOOKUP($A94,#REF!,2,0)-VLOOKUP($A94,$A$4:$BI$82,AS$3,0) ->  | AT94: =VLOOKUP($A94,#REF!,2,0)-VLOOKUP($A94,$A$4:$BI$82,AT$3,0) ->  | AU94: =VLOOKUP($A94,#REF!,2,0)-VLOOKUP($A94,$A$4:$BI$82,AU$3,0) ->  | AV94: =VLOOKUP($A94,#REF!,2,0)-VLOOKUP($A94,$A$4:$BI$82,AV$3,0) ->  | AW94: =VLOOKUP($A94,#REF!,2,0)-VLOOKUP($A94,$A$4:$BI$82,AW$3,0) ->  | AX94: =VLOOKUP($A94,#REF!,2,0)-VLOOKUP($A94,$A$4:$BI$82,AX$3,0) ->  | AY94: =VLOOKUP($A94,#REF!,2,0)-VLOOKUP($A94,$A$4:$BI$82,AY$3,0) ->  | AZ94: =VLOOKUP($A94,#REF!,2,0)-VLOOKUP($A94,$A$4:$BI$82,AZ$3,0) ->  | BA94: =VLOOKUP($A94,#REF!,2,0)-VLOOKUP($A94,$A$4:$BI$82,BA$3,0) ->  | BB94: =VLOOKUP($A94,#REF!,2,0)-VLOOKUP($A94,$A$4:$BI$82,BB$3,0) ->  | BC94: =VLOOKUP($A94,#REF!,2,0)-VLOOKUP($A94,$A$4:$BI$82,BC$3,0) ->  | BD94: =VLOOKUP($A94,#REF!,2,0)-VLOOKUP($A94,$A$4:$BI$82,BD$3,0) ->  | BE94: =VLOOKUP($A94,#REF!,2,0)-VLOOKUP($A94,$A$4:$BI$82,BE$3,0) ->  | BF94: =VLOOKUP($A94,#REF!,2,0)-VLOOKUP($A94,$A$4:$BI$82,BF$3,0) ->  | BG94: =VLOOKUP($A94,#REF!,2,0)-VLOOKUP($A94,$A$4:$BI$82,BG$3,0) ->  | BH94: =VLOOKUP($A94,#REF!,2,0)-VLOOKUP($A94,$A$4:$BI$82,BH$3,0) ->  | BI94: =VLOOKUP($A94,#REF!,2,0)-VLOOKUP($A94,$A$4:$BI$82,BI$3,0) -> 
A95: Electrogeneradora del Istmo, S.A. | M95: =VLOOKUP($A95,#REF!,3,0) ->  | N95: =VLOOKUP($A95,#REF!,2,0)-VLOOKUP($A95,$A$4:$BI$82,N$3,0) ->  | O95: =VLOOKUP($A95,#REF!,2,0)-VLOOKUP($A95,$A$4:$BI$82,O$3,0) ->  | P95: =VLOOKUP($A95,#REF!,2,0)-VLOOKUP($A95,$A$4:$BI$82,P$3,0) ->  | Q95: =VLOOKUP($A95,#REF!,2,0)-VLOOKUP($A95,$A$4:$BI$82,Q$3,0) ->  | R95: =VLOOKUP($A95,#REF!,2,0)-VLOOKUP($A95,$A$4:$BI$82,R$3,0) ->  | S95: =VLOOKUP($A95,#REF!,2,0)-VLOOKUP($A95,$A$4:$BI$82,S$3,0) ->  | T95: =VLOOKUP($A95,#REF!,2,0)-VLOOKUP($A95,$A$4:$BI$82,T$3,0) ->  | U95: =VLOOKUP($A95,#REF!,2,0)-VLOOKUP($A95,$A$4:$BI$82,U$3,0) ->  | V95: =VLOOKUP($A95,#REF!,2,0)-VLOOKUP($A95,$A$4:$BI$82,V$3,0) ->  | W95: =VLOOKUP($A95,#REF!,2,0)-VLOOKUP($A95,$A$4:$BI$82,W$3,0) ->  | X95: =VLOOKUP($A95,#REF!,2,0)-VLOOKUP($A95,$A$4:$BI$82,X$3,0) ->  | Y95: =VLOOKUP($A95,#REF!,2,0)-VLOOKUP($A95,$A$4:$BI$82,Y$3,0) ->  | Z95: =VLOOKUP($A95,#REF!,2,0)-VLOOKUP($A95,$A$4:$BI$82,Z$3,0) ->  | AA95: =VLOOKUP($A95,#REF!,2,0)-VLOOKUP($A95,$A$4:$BI$82,AA$3,0) ->  | AB95: =VLOOKUP($A95,#REF!,2,0)-VLOOKUP($A95,$A$4:$BI$82,AB$3,0) ->  | AC95: =VLOOKUP($A95,#REF!,2,0)-VLOOKUP($A95,$A$4:$BI$82,AC$3,0) ->  | AD95: =VLOOKUP($A95,#REF!,2,0)-VLOOKUP($A95,$A$4:$BI$82,AD$3,0) ->  | AE95: =VLOOKUP($A95,#REF!,2,0)-VLOOKUP($A95,$A$4:$BI$82,AE$3,0) ->  | AF95: =VLOOKUP($A95,#REF!,2,0)-VLOOKUP($A95,$A$4:$BI$82,AF$3,0) ->  | AG95: =VLOOKUP($A95,#REF!,2,0)-VLOOKUP($A95,$A$4:$BI$82,AG$3,0) ->  | AH95: =VLOOKUP($A95,#REF!,2,0)-VLOOKUP($A95,$A$4:$BI$82,AH$3,0) ->  | AI95: =VLOOKUP($A95,#REF!,2,0)-VLOOKUP($A95,$A$4:$BI$82,AI$3,0) ->  | AJ95: =VLOOKUP($A95,#REF!,2,0)-VLOOKUP($A95,$A$4:$BI$82,AJ$3,0) ->  | AK95: =VLOOKUP($A95,#REF!,2,0)-VLOOKUP($A95,$A$4:$BI$82,AK$3,0) ->  | AL95: =VLOOKUP($A95,#REF!,2,0)-VLOOKUP($A95,$A$4:$BI$82,AL$3,0) ->  | AM95: =VLOOKUP($A95,#REF!,2,0)-VLOOKUP($A95,$A$4:$BI$82,AM$3,0) ->  | AN95: =VLOOKUP($A95,#REF!,2,0)-VLOOKUP($A95,$A$4:$BI$82,AN$3,0) ->  | AO95: =VLOOKUP($A95,#REF!,2,0)-VLOOKUP($A95,$A$4:$BI$82,AO$3,0) ->  | AP95: =VLOOKUP($A95,#REF!,2,0)-VLOOKUP($A95,$A$4:$BI$82,AP$3,0) ->  | AQ95: =VLOOKUP($A95,#REF!,2,0)-VLOOKUP($A95,$A$4:$BI$82,AQ$3,0) ->  | AR95: =VLOOKUP($A95,#REF!,2,0)-VLOOKUP($A95,$A$4:$BI$82,AR$3,0) ->  | AS95: =VLOOKUP($A95,#REF!,2,0)-VLOOKUP($A95,$A$4:$BI$82,AS$3,0) ->  | AT95: =VLOOKUP($A95,#REF!,2,0)-VLOOKUP($A95,$A$4:$BI$82,AT$3,0) ->  | AU95: =VLOOKUP($A95,#REF!,2,0)-VLOOKUP($A95,$A$4:$BI$82,AU$3,0) ->  | AV95: =VLOOKUP($A95,#REF!,2,0)-VLOOKUP($A95,$A$4:$BI$82,AV$3,0) ->  | AW95: =VLOOKUP($A95,#REF!,2,0)-VLOOKUP($A95,$A$4:$BI$82,AW$3,0) ->  | AX95: =VLOOKUP($A95,#REF!,2,0)-VLOOKUP($A95,$A$4:$BI$82,AX$3,0) ->  | AY95: =VLOOKUP($A95,#REF!,2,0)-VLOOKUP($A95,$A$4:$BI$82,AY$3,0) ->  | AZ95: =VLOOKUP($A95,#REF!,2,0)-VLOOKUP($A95,$A$4:$BI$82,AZ$3,0) ->  | BA95: =VLOOKUP($A95,#REF!,2,0)-VLOOKUP($A95,$A$4:$BI$82,BA$3,0) ->  | BB95: =VLOOKUP($A95,#REF!,2,0)-VLOOKUP($A95,$A$4:$BI$82,BB$3,0) ->  | BC95: =VLOOKUP($A95,#REF!,2,0)-VLOOKUP($A95,$A$4:$BI$82,BC$3,0) ->  | BD95: =VLOOKUP($A95,#REF!,2,0)-VLOOKUP($A95,$A$4:$BI$82,BD$3,0) ->  | BE95: =VLOOKUP($A95,#REF!,2,0)-VLOOKUP($A95,$A$4:$BI$82,BE$3,0) ->  | BF95: =VLOOKUP($A95,#REF!,2,0)-VLOOKUP($A95,$A$4:$BI$82,BF$3,0) ->  | BG95: =VLOOKUP($A95,#REF!,2,0)-VLOOKUP($A95,$A$4:$BI$82,BG$3,0) ->  | BH95: =VLOOKUP($A95,#REF!,2,0)-VLOOKUP($A95,$A$4:$BI$82,BH$3,0) ->  | BI95: =VLOOKUP($A95,#REF!,2,0)-VLOOKUP($A95,$A$4:$BI$82,BI$3,0) -> 
A96: Electron Investment, S.A. | M96: =VLOOKUP($A96,#REF!,3,0) ->  | N96: =VLOOKUP($A96,#REF!,2,0)-VLOOKUP($A96,$A$4:$BI$82,N$3,0) ->  | O96: =VLOOKUP($A96,#REF!,2,0)-VLOOKUP($A96,$A$4:$BI$82,O$3,0) ->  | P96: =VLOOKUP($A96,#REF!,2,0)-VLOOKUP($A96,$A$4:$BI$82,P$3,0) ->  | Q96: =VLOOKUP($A96,#REF!,2,0)-VLOOKUP($A96,$A$4:$BI$82,Q$3,0) ->  | R96: =VLOOKUP($A96,#REF!,2,0)-VLOOKUP($A96,$A$4:$BI$82,R$3,0) ->  | S96: =VLOOKUP($A96,#REF!,2,0)-VLOOKUP($A96,$A$4:$BI$82,S$3,0) ->  | T96: =VLOOKUP($A96,#REF!,2,0)-VLOOKUP($A96,$A$4:$BI$82,T$3,0) ->  | U96: =VLOOKUP($A96,#REF!,2,0)-VLOOKUP($A96,$A$4:$BI$82,U$3,0) ->  | V96: =VLOOKUP($A96,#REF!,2,0)-VLOOKUP($A96,$A$4:$BI$82,V$3,0) ->  | W96: =VLOOKUP($A96,#REF!,2,0)-VLOOKUP($A96,$A$4:$BI$82,W$3,0) ->  | X96: =VLOOKUP($A96,#REF!,2,0)-VLOOKUP($A96,$A$4:$BI$82,X$3,0) ->  | Y96: =VLOOKUP($A96,#REF!,2,0)-VLOOKUP($A96,$A$4:$BI$82,Y$3,0) ->  | Z96: =VLOOKUP($A96,#REF!,2,0)-VLOOKUP($A96,$A$4:$BI$82,Z$3,0) ->  | AA96: =VLOOKUP($A96,#REF!,2,0)-VLOOKUP($A96,$A$4:$BI$82,AA$3,0) ->  | AB96: =VLOOKUP($A96,#REF!,2,0)-VLOOKUP($A96,$A$4:$BI$82,AB$3,0) ->  | AC96: =VLOOKUP($A96,#REF!,2,0)-VLOOKUP($A96,$A$4:$BI$82,AC$3,0) ->  | AD96: =VLOOKUP($A96,#REF!,2,0)-VLOOKUP($A96,$A$4:$BI$82,AD$3,0) ->  | AE96: =VLOOKUP($A96,#REF!,2,0)-VLOOKUP($A96,$A$4:$BI$82,AE$3,0) ->  | AF96: =VLOOKUP($A96,#REF!,2,0)-VLOOKUP($A96,$A$4:$BI$82,AF$3,0) ->  | AG96: =VLOOKUP($A96,#REF!,2,0)-VLOOKUP($A96,$A$4:$BI$82,AG$3,0) ->  | AH96: =VLOOKUP($A96,#REF!,2,0)-VLOOKUP($A96,$A$4:$BI$82,AH$3,0) ->  | AI96: =VLOOKUP($A96,#REF!,2,0)-VLOOKUP($A96,$A$4:$BI$82,AI$3,0) ->  | AJ96: =VLOOKUP($A96,#REF!,2,0)-VLOOKUP($A96,$A$4:$BI$82,AJ$3,0) ->  | AK96: =VLOOKUP($A96,#REF!,2,0)-VLOOKUP($A96,$A$4:$BI$82,AK$3,0) ->  | AL96: =VLOOKUP($A96,#REF!,2,0)-VLOOKUP($A96,$A$4:$BI$82,AL$3,0) ->  | AM96: =VLOOKUP($A96,#REF!,2,0)-VLOOKUP($A96,$A$4:$BI$82,AM$3,0) ->  | AN96: =VLOOKUP($A96,#REF!,2,0)-VLOOKUP($A96,$A$4:$BI$82,AN$3,0) ->  | AO96: =VLOOKUP($A96,#REF!,2,0)-VLOOKUP($A96,$A$4:$BI$82,AO$3,0) ->  | AP96: =VLOOKUP($A96,#REF!,2,0)-VLOOKUP($A96,$A$4:$BI$82,AP$3,0) ->  | AQ96: =VLOOKUP($A96,#REF!,2,0)-VLOOKUP($A96,$A$4:$BI$82,AQ$3,0) ->  | AR96: =VLOOKUP($A96,#REF!,2,0)-VLOOKUP($A96,$A$4:$BI$82,AR$3,0) ->  | AS96: =VLOOKUP($A96,#REF!,2,0)-VLOOKUP($A96,$A$4:$BI$82,AS$3,0) ->  | AT96: =VLOOKUP($A96,#REF!,2,0)-VLOOKUP($A96,$A$4:$BI$82,AT$3,0) ->  | AU96: =VLOOKUP($A96,#REF!,2,0)-VLOOKUP($A96,$A$4:$BI$82,AU$3,0) ->  | AV96: =VLOOKUP($A96,#REF!,2,0)-VLOOKUP($A96,$A$4:$BI$82,AV$3,0) ->  | AW96: =VLOOKUP($A96,#REF!,2,0)-VLOOKUP($A96,$A$4:$BI$82,AW$3,0) ->  | AX96: =VLOOKUP($A96,#REF!,2,0)-VLOOKUP($A96,$A$4:$BI$82,AX$3,0) ->  | AY96: =VLOOKUP($A96,#REF!,2,0)-VLOOKUP($A96,$A$4:$BI$82,AY$3,0) ->  | AZ96: =VLOOKUP($A96,#REF!,2,0)-VLOOKUP($A96,$A$4:$BI$82,AZ$3,0) ->  | BA96: =VLOOKUP($A96,#REF!,2,0)-VLOOKUP($A96,$A$4:$BI$82,BA$3,0) ->  | BB96: =VLOOKUP($A96,#REF!,2,0)-VLOOKUP($A96,$A$4:$BI$82,BB$3,0) ->  | BC96: =VLOOKUP($A96,#REF!,2,0)-VLOOKUP($A96,$A$4:$BI$82,BC$3,0) ->  | BD96: =VLOOKUP($A96,#REF!,2,0)-VLOOKUP($A96,$A$4:$BI$82,BD$3,0) ->  | BE96: =VLOOKUP($A96,#REF!,2,0)-VLOOKUP($A96,$A$4:$BI$82,BE$3,0) ->  | BF96: =VLOOKUP($A96,#REF!,2,0)-VLOOKUP($A96,$A$4:$BI$82,BF$3,0) ->  | BG96: =VLOOKUP($A96,#REF!,2,0)-VLOOKUP($A96,$A$4:$BI$82,BG$3,0) ->  | BH96: =VLOOKUP($A96,#REF!,2,0)-VLOOKUP($A96,$A$4:$BI$82,BH$3,0) ->  | BI96: =VLOOKUP($A96,#REF!,2,0)-VLOOKUP($A96,$A$4:$BI$82,BI$3,0) -> 
A97: Empresa Nacional de Energía, S.A. | M97: =VLOOKUP($A97,#REF!,3,0) ->  | N97: =VLOOKUP($A97,#REF!,2,0)-VLOOKUP($A97,$A$4:$BI$82,N$3,0) ->  | O97: =VLOOKUP($A97,#REF!,2,0)-VLOOKUP($A97,$A$4:$BI$82,O$3,0) ->  | P97: =VLOOKUP($A97,#REF!,2,0)-VLOOKUP($A97,$A$4:$BI$82,P$3,0) ->  | Q97: =VLOOKUP($A97,#REF!,2,0)-VLOOKUP($A97,$A$4:$BI$82,Q$3,0) ->  | R97: =VLOOKUP($A97,#REF!,2,0)-VLOOKUP($A97,$A$4:$BI$82,R$3,0) ->  | S97: =VLOOKUP($A97,#REF!,2,0)-VLOOKUP($A97,$A$4:$BI$82,S$3,0) ->  | T97: =VLOOKUP($A97,#REF!,2,0)-VLOOKUP($A97,$A$4:$BI$82,T$3,0) ->  | U97: =VLOOKUP($A97,#REF!,2,0)-VLOOKUP($A97,$A$4:$BI$82,U$3,0) ->  | V97: =VLOOKUP($A97,#REF!,2,0)-VLOOKUP($A97,$A$4:$BI$82,V$3,0) ->  | W97: =VLOOKUP($A97,#REF!,2,0)-VLOOKUP($A97,$A$4:$BI$82,W$3,0) ->  | X97: =VLOOKUP($A97,#REF!,2,0)-VLOOKUP($A97,$A$4:$BI$82,X$3,0) ->  | Y97: =VLOOKUP($A97,#REF!,2,0)-VLOOKUP($A97,$A$4:$BI$82,Y$3,0) ->  | Z97: =VLOOKUP($A97,#REF!,2,0)-VLOOKUP($A97,$A$4:$BI$82,Z$3,0) ->  | AA97: =VLOOKUP($A97,#REF!,2,0)-VLOOKUP($A97,$A$4:$BI$82,AA$3,0) ->  | AB97: =VLOOKUP($A97,#REF!,2,0)-VLOOKUP($A97,$A$4:$BI$82,AB$3,0) ->  | AC97: =VLOOKUP($A97,#REF!,2,0)-VLOOKUP($A97,$A$4:$BI$82,AC$3,0) ->  | AD97: =VLOOKUP($A97,#REF!,2,0)-VLOOKUP($A97,$A$4:$BI$82,AD$3,0) ->  | AE97: =VLOOKUP($A97,#REF!,2,0)-VLOOKUP($A97,$A$4:$BI$82,AE$3,0) ->  | AF97: =VLOOKUP($A97,#REF!,2,0)-VLOOKUP($A97,$A$4:$BI$82,AF$3,0) ->  | AG97: =VLOOKUP($A97,#REF!,2,0)-VLOOKUP($A97,$A$4:$BI$82,AG$3,0) ->  | AH97: =VLOOKUP($A97,#REF!,2,0)-VLOOKUP($A97,$A$4:$BI$82,AH$3,0) ->  | AI97: =VLOOKUP($A97,#REF!,2,0)-VLOOKUP($A97,$A$4:$BI$82,AI$3,0) ->  | AJ97: =VLOOKUP($A97,#REF!,2,0)-VLOOKUP($A97,$A$4:$BI$82,AJ$3,0) ->  | AK97: =VLOOKUP($A97,#REF!,2,0)-VLOOKUP($A97,$A$4:$BI$82,AK$3,0) ->  | AL97: =VLOOKUP($A97,#REF!,2,0)-VLOOKUP($A97,$A$4:$BI$82,AL$3,0) ->  | AM97: =VLOOKUP($A97,#REF!,2,0)-VLOOKUP($A97,$A$4:$BI$82,AM$3,0) ->  | AN97: =VLOOKUP($A97,#REF!,2,0)-VLOOKUP($A97,$A$4:$BI$82,AN$3,0) ->  | AO97: =VLOOKUP($A97,#REF!,2,0)-VLOOKUP($A97,$A$4:$BI$82,AO$3,0) ->  | AP97: =VLOOKUP($A97,#REF!,2,0)-VLOOKUP($A97,$A$4:$BI$82,AP$3,0) ->  | AQ97: =VLOOKUP($A97,#REF!,2,0)-VLOOKUP($A97,$A$4:$BI$82,AQ$3,0) ->  | AR97: =VLOOKUP($A97,#REF!,2,0)-VLOOKUP($A97,$A$4:$BI$82,AR$3,0) ->  | AS97: =VLOOKUP($A97,#REF!,2,0)-VLOOKUP($A97,$A$4:$BI$82,AS$3,0) ->  | AT97: =VLOOKUP($A97,#REF!,2,0)-VLOOKUP($A97,$A$4:$BI$82,AT$3,0) ->  | AU97: =VLOOKUP($A97,#REF!,2,0)-VLOOKUP($A97,$A$4:$BI$82,AU$3,0) ->  | AV97: =VLOOKUP($A97,#REF!,2,0)-VLOOKUP($A97,$A$4:$BI$82,AV$3,0) ->  | AW97: =VLOOKUP($A97,#REF!,2,0)-VLOOKUP($A97,$A$4:$BI$82,AW$3,0) ->  | AX97: =VLOOKUP($A97,#REF!,2,0)-VLOOKUP($A97,$A$4:$BI$82,AX$3,0) ->  | AY97: =VLOOKUP($A97,#REF!,2,0)-VLOOKUP($A97,$A$4:$BI$82,AY$3,0) ->  | AZ97: =VLOOKUP($A97,#REF!,2,0)-VLOOKUP($A97,$A$4:$BI$82,AZ$3,0) ->  | BA97: =VLOOKUP($A97,#REF!,2,0)-VLOOKUP($A97,$A$4:$BI$82,BA$3,0) ->  | BB97: =VLOOKUP($A97,#REF!,2,0)-VLOOKUP($A97,$A$4:$BI$82,BB$3,0) ->  | BC97: =VLOOKUP($A97,#REF!,2,0)-VLOOKUP($A97,$A$4:$BI$82,BC$3,0) ->  | BD97: =VLOOKUP($A97,#REF!,2,0)-VLOOKUP($A97,$A$4:$BI$82,BD$3,0) ->  | BE97: =VLOOKUP($A97,#REF!,2,0)-VLOOKUP($A97,$A$4:$BI$82,BE$3,0) ->  | BF97: =VLOOKUP($A97,#REF!,2,0)-VLOOKUP($A97,$A$4:$BI$82,BF$3,0) ->  | BG97: =VLOOKUP($A97,#REF!,2,0)-VLOOKUP($A97,$A$4:$BI$82,BG$3,0) ->  | BH97: =VLOOKUP($A97,#REF!,2,0)-VLOOKUP($A97,$A$4:$BI$82,BH$3,0) ->  | BI97: =VLOOKUP($A97,#REF!,2,0)-VLOOKUP($A97,$A$4:$BI$82,BI$3,0) -> 
A98: Enel Fortuna, S.A. | M98: =VLOOKUP($A98,#REF!,3,0) ->  | N98: =VLOOKUP($A98,#REF!,2,0)-VLOOKUP($A98,$A$4:$BI$82,N$3,0) ->  | O98: =VLOOKUP($A98,#REF!,2,0)-VLOOKUP($A98,$A$4:$BI$82,O$3,0) ->  | P98: =VLOOKUP($A98,#REF!,2,0)-VLOOKUP($A98,$A$4:$BI$82,P$3,0) ->  | Q98: =VLOOKUP($A98,#REF!,2,0)-VLOOKUP($A98,$A$4:$BI$82,Q$3,0) ->  | R98: =VLOOKUP($A98,#REF!,2,0)-VLOOKUP($A98,$A$4:$BI$82,R$3,0) ->  | S98: =VLOOKUP($A98,#REF!,2,0)-VLOOKUP($A98,$A$4:$BI$82,S$3,0) ->  | T98: =VLOOKUP($A98,#REF!,2,0)-VLOOKUP($A98,$A$4:$BI$82,T$3,0) ->  | U98: =VLOOKUP($A98,#REF!,2,0)-VLOOKUP($A98,$A$4:$BI$82,U$3,0) ->  | V98: =VLOOKUP($A98,#REF!,2,0)-VLOOKUP($A98,$A$4:$BI$82,V$3,0) ->  | W98: =VLOOKUP($A98,#REF!,2,0)-VLOOKUP($A98,$A$4:$BI$82,W$3,0) ->  | X98: =VLOOKUP($A98,#REF!,2,0)-VLOOKUP($A98,$A$4:$BI$82,X$3,0) ->  | Y98: =VLOOKUP($A98,#REF!,2,0)-VLOOKUP($A98,$A$4:$BI$82,Y$3,0) ->  | Z98: =VLOOKUP($A98,#REF!,2,0)-VLOOKUP($A98,$A$4:$BI$82,Z$3,0) ->  | AA98: =VLOOKUP($A98,#REF!,2,0)-VLOOKUP($A98,$A$4:$BI$82,AA$3,0) ->  | AB98: =VLOOKUP($A98,#REF!,2,0)-VLOOKUP($A98,$A$4:$BI$82,AB$3,0) ->  | AC98: =VLOOKUP($A98,#REF!,2,0)-VLOOKUP($A98,$A$4:$BI$82,AC$3,0) ->  | AD98: =VLOOKUP($A98,#REF!,2,0)-VLOOKUP($A98,$A$4:$BI$82,AD$3,0) ->  | AE98: =VLOOKUP($A98,#REF!,2,0)-VLOOKUP($A98,$A$4:$BI$82,AE$3,0) ->  | AF98: =VLOOKUP($A98,#REF!,2,0)-VLOOKUP($A98,$A$4:$BI$82,AF$3,0) ->  | AG98: =VLOOKUP($A98,#REF!,2,0)-VLOOKUP($A98,$A$4:$BI$82,AG$3,0) ->  | AH98: =VLOOKUP($A98,#REF!,2,0)-VLOOKUP($A98,$A$4:$BI$82,AH$3,0) ->  | AI98: =VLOOKUP($A98,#REF!,2,0)-VLOOKUP($A98,$A$4:$BI$82,AI$3,0) ->  | AJ98: =VLOOKUP($A98,#REF!,2,0)-VLOOKUP($A98,$A$4:$BI$82,AJ$3,0) ->  | AK98: =VLOOKUP($A98,#REF!,2,0)-VLOOKUP($A98,$A$4:$BI$82,AK$3,0) ->  | AL98: =VLOOKUP($A98,#REF!,2,0)-VLOOKUP($A98,$A$4:$BI$82,AL$3,0) ->  | AM98: =VLOOKUP($A98,#REF!,2,0)-VLOOKUP($A98,$A$4:$BI$82,AM$3,0) ->  | AN98: =VLOOKUP($A98,#REF!,2,0)-VLOOKUP($A98,$A$4:$BI$82,AN$3,0) ->  | AO98: =VLOOKUP($A98,#REF!,2,0)-VLOOKUP($A98,$A$4:$BI$82,AO$3,0) ->  | AP98: =VLOOKUP($A98,#REF!,2,0)-VLOOKUP($A98,$A$4:$BI$82,AP$3,0) ->  | AQ98: =VLOOKUP($A98,#REF!,2,0)-VLOOKUP($A98,$A$4:$BI$82,AQ$3,0) ->  | AR98: =VLOOKUP($A98,#REF!,2,0)-VLOOKUP($A98,$A$4:$BI$82,AR$3,0) ->  | AS98: =VLOOKUP($A98,#REF!,2,0)-VLOOKUP($A98,$A$4:$BI$82,AS$3,0) ->  | AT98: =VLOOKUP($A98,#REF!,2,0)-VLOOKUP($A98,$A$4:$BI$82,AT$3,0) ->  | AU98: =VLOOKUP($A98,#REF!,2,0)-VLOOKUP($A98,$A$4:$BI$82,AU$3,0) ->  | AV98: =VLOOKUP($A98,#REF!,2,0)-VLOOKUP($A98,$A$4:$BI$82,AV$3,0) ->  | AW98: =VLOOKUP($A98,#REF!,2,0)-VLOOKUP($A98,$A$4:$BI$82,AW$3,0) ->  | AX98: =VLOOKUP($A98,#REF!,2,0)-VLOOKUP($A98,$A$4:$BI$82,AX$3,0) ->  | AY98: =VLOOKUP($A98,#REF!,2,0)-VLOOKUP($A98,$A$4:$BI$82,AY$3,0) ->  | AZ98: =VLOOKUP($A98,#REF!,2,0)-VLOOKUP($A98,$A$4:$BI$82,AZ$3,0) ->  | BA98: =VLOOKUP($A98,#REF!,2,0)-VLOOKUP($A98,$A$4:$BI$82,BA$3,0) ->  | BB98: =VLOOKUP($A98,#REF!,2,0)-VLOOKUP($A98,$A$4:$BI$82,BB$3,0) ->  | BC98: =VLOOKUP($A98,#REF!,2,0)-VLOOKUP($A98,$A$4:$BI$82,BC$3,0) ->  | BD98: =VLOOKUP($A98,#REF!,2,0)-VLOOKUP($A98,$A$4:$BI$82,BD$3,0) ->  | BE98: =VLOOKUP($A98,#REF!,2,0)-VLOOKUP($A98,$A$4:$BI$82,BE$3,0) ->  | BF98: =VLOOKUP($A98,#REF!,2,0)-VLOOKUP($A98,$A$4:$BI$82,BF$3,0) ->  | BG98: =VLOOKUP($A98,#REF!,2,0)-VLOOKUP($A98,$A$4:$BI$82,BG$3,0) ->  | BH98: =VLOOKUP($A98,#REF!,2,0)-VLOOKUP($A98,$A$4:$BI$82,BH$3,0) ->  | BI98: =VLOOKUP($A98,#REF!,2,0)-VLOOKUP($A98,$A$4:$BI$82,BI$3,0) -> 
A99: Enel Green Power, S.A. | M99: =VLOOKUP($A99,#REF!,3,0) ->  | N99: =VLOOKUP($A99,#REF!,2,0)-VLOOKUP($A99,$A$4:$BI$82,N$3,0) ->  | O99: =VLOOKUP($A99,#REF!,2,0)-VLOOKUP($A99,$A$4:$BI$82,O$3,0) ->  | P99: =VLOOKUP($A99,#REF!,2,0)-VLOOKUP($A99,$A$4:$BI$82,P$3,0) ->  | Q99: =VLOOKUP($A99,#REF!,2,0)-VLOOKUP($A99,$A$4:$BI$82,Q$3,0) ->  | R99: =VLOOKUP($A99,#REF!,2,0)-VLOOKUP($A99,$A$4:$BI$82,R$3,0) ->  | S99: =VLOOKUP($A99,#REF!,2,0)-VLOOKUP($A99,$A$4:$BI$82,S$3,0) ->  | T99: =VLOOKUP($A99,#REF!,2,0)-VLOOKUP($A99,$A$4:$BI$82,T$3,0) ->  | U99: =VLOOKUP($A99,#REF!,2,0)-VLOOKUP($A99,$A$4:$BI$82,U$3,0) ->  | V99: =VLOOKUP($A99,#REF!,2,0)-VLOOKUP($A99,$A$4:$BI$82,V$3,0) ->  | W99: =VLOOKUP($A99,#REF!,2,0)-VLOOKUP($A99,$A$4:$BI$82,W$3,0) ->  | X99: =VLOOKUP($A99,#REF!,2,0)-VLOOKUP($A99,$A$4:$BI$82,X$3,0) ->  | Y99: =VLOOKUP($A99,#REF!,2,0)-VLOOKUP($A99,$A$4:$BI$82,Y$3,0) ->  | Z99: =VLOOKUP($A99,#REF!,2,0)-VLOOKUP($A99,$A$4:$BI$82,Z$3,0) ->  | AA99: =VLOOKUP($A99,#REF!,2,0)-VLOOKUP($A99,$A$4:$BI$82,AA$3,0) ->  | AB99: =VLOOKUP($A99,#REF!,2,0)-VLOOKUP($A99,$A$4:$BI$82,AB$3,0) ->  | AC99: =VLOOKUP($A99,#REF!,2,0)-VLOOKUP($A99,$A$4:$BI$82,AC$3,0) ->  | AD99: =VLOOKUP($A99,#REF!,2,0)-VLOOKUP($A99,$A$4:$BI$82,AD$3,0) ->  | AE99: =VLOOKUP($A99,#REF!,2,0)-VLOOKUP($A99,$A$4:$BI$82,AE$3,0) ->  | AF99: =VLOOKUP($A99,#REF!,2,0)-VLOOKUP($A99,$A$4:$BI$82,AF$3,0) ->  | AG99: =VLOOKUP($A99,#REF!,2,0)-VLOOKUP($A99,$A$4:$BI$82,AG$3,0) ->  | AH99: =VLOOKUP($A99,#REF!,2,0)-VLOOKUP($A99,$A$4:$BI$82,AH$3,0) ->  | AI99: =VLOOKUP($A99,#REF!,2,0)-VLOOKUP($A99,$A$4:$BI$82,AI$3,0) ->  | AJ99: =VLOOKUP($A99,#REF!,2,0)-VLOOKUP($A99,$A$4:$BI$82,AJ$3,0) ->  | AK99: =VLOOKUP($A99,#REF!,2,0)-VLOOKUP($A99,$A$4:$BI$82,AK$3,0) ->  | AL99: =VLOOKUP($A99,#REF!,2,0)-VLOOKUP($A99,$A$4:$BI$82,AL$3,0) ->  | AM99: =VLOOKUP($A99,#REF!,2,0)-VLOOKUP($A99,$A$4:$BI$82,AM$3,0) ->  | AN99: =VLOOKUP($A99,#REF!,2,0)-VLOOKUP($A99,$A$4:$BI$82,AN$3,0) ->  | AO99: =VLOOKUP($A99,#REF!,2,0)-VLOOKUP($A99,$A$4:$BI$82,AO$3,0) ->  | AP99: =VLOOKUP($A99,#REF!,2,0)-VLOOKUP($A99,$A$4:$BI$82,AP$3,0) ->  | AQ99: =VLOOKUP($A99,#REF!,2,0)-VLOOKUP($A99,$A$4:$BI$82,AQ$3,0) ->  | AR99: =VLOOKUP($A99,#REF!,2,0)-VLOOKUP($A99,$A$4:$BI$82,AR$3,0) ->  | AS99: =VLOOKUP($A99,#REF!,2,0)-VLOOKUP($A99,$A$4:$BI$82,AS$3,0) ->  | AT99: =VLOOKUP($A99,#REF!,2,0)-VLOOKUP($A99,$A$4:$BI$82,AT$3,0) ->  | AU99: =VLOOKUP($A99,#REF!,2,0)-VLOOKUP($A99,$A$4:$BI$82,AU$3,0) ->  | AV99: =VLOOKUP($A99,#REF!,2,0)-VLOOKUP($A99,$A$4:$BI$82,AV$3,0) ->  | AW99: =VLOOKUP($A99,#REF!,2,0)-VLOOKUP($A99,$A$4:$BI$82,AW$3,0) ->  | AX99: =VLOOKUP($A99,#REF!,2,0)-VLOOKUP($A99,$A$4:$BI$82,AX$3,0) ->  | AY99: =VLOOKUP($A99,#REF!,2,0)-VLOOKUP($A99,$A$4:$BI$82,AY$3,0) ->  | AZ99: =VLOOKUP($A99,#REF!,2,0)-VLOOKUP($A99,$A$4:$BI$82,AZ$3,0) ->  | BA99: =VLOOKUP($A99,#REF!,2,0)-VLOOKUP($A99,$A$4:$BI$82,BA$3,0) ->  | BB99: =VLOOKUP($A99,#REF!,2,0)-VLOOKUP($A99,$A$4:$BI$82,BB$3,0) ->  | BC99: =VLOOKUP($A99,#REF!,2,0)-VLOOKUP($A99,$A$4:$BI$82,BC$3,0) ->  | BD99: =VLOOKUP($A99,#REF!,2,0)-VLOOKUP($A99,$A$4:$BI$82,BD$3,0) ->  | BE99: =VLOOKUP($A99,#REF!,2,0)-VLOOKUP($A99,$A$4:$BI$82,BE$3,0) ->  | BF99: =VLOOKUP($A99,#REF!,2,0)-VLOOKUP($A99,$A$4:$BI$82,BF$3,0) ->  | BG99: =VLOOKUP($A99,#REF!,2,0)-VLOOKUP($A99,$A$4:$BI$82,BG$3,0) ->  | BH99: =VLOOKUP($A99,#REF!,2,0)-VLOOKUP($A99,$A$4:$BI$82,BH$3,0) ->  | BI99: =VLOOKUP($A99,#REF!,2,0)-VLOOKUP($A99,$A$4:$BI$82,BI$3,0) -> 
A100: Energía y Servicios de Panamá, S.A. | M100: =VLOOKUP($A100,#REF!,3,0) ->  | N100: =VLOOKUP($A100,#REF!,2,0)-VLOOKUP($A100,$A$4:$BI$82,N$3,0) ->  | O100: =VLOOKUP($A100,#REF!,2,0)-VLOOKUP($A100,$A$4:$BI$82,O$3,0) ->  | P100: =VLOOKUP($A100,#REF!,2,0)-VLOOKUP($A100,$A$4:$BI$82,P$3,0) ->  | Q100: =VLOOKUP($A100,#REF!,2,0)-VLOOKUP($A100,$A$4:$BI$82,Q$3,0) ->  | R100: =VLOOKUP($A100,#REF!,2,0)-VLOOKUP($A100,$A$4:$BI$82,R$3,0) ->  | S100: =VLOOKUP($A100,#REF!,2,0)-VLOOKUP($A100,$A$4:$BI$82,S$3,0) ->  | T100: =VLOOKUP($A100,#REF!,2,0)-VLOOKUP($A100,$A$4:$BI$82,T$3,0) ->  | U100: =VLOOKUP($A100,#REF!,2,0)-VLOOKUP($A100,$A$4:$BI$82,U$3,0) ->  | V100: =VLOOKUP($A100,#REF!,2,0)-VLOOKUP($A100,$A$4:$BI$82,V$3,0) ->  | W100: =VLOOKUP($A100,#REF!,2,0)-VLOOKUP($A100,$A$4:$BI$82,W$3,0) ->  | X100: =VLOOKUP($A100,#REF!,2,0)-VLOOKUP($A100,$A$4:$BI$82,X$3,0) ->  | Y100: =VLOOKUP($A100,#REF!,2,0)-VLOOKUP($A100,$A$4:$BI$82,Y$3,0) ->  | Z100: =VLOOKUP($A100,#REF!,2,0)-VLOOKUP($A100,$A$4:$BI$82,Z$3,0) ->  | AA100: =VLOOKUP($A100,#REF!,2,0)-VLOOKUP($A100,$A$4:$BI$82,AA$3,0) ->  | AB100: =VLOOKUP($A100,#REF!,2,0)-VLOOKUP($A100,$A$4:$BI$82,AB$3,0) ->  | AC100: =VLOOKUP($A100,#REF!,2,0)-VLOOKUP($A100,$A$4:$BI$82,AC$3,0) ->  | AD100: =VLOOKUP($A100,#REF!,2,0)-VLOOKUP($A100,$A$4:$BI$82,AD$3,0) ->  | AE100: =VLOOKUP($A100,#REF!,2,0)-VLOOKUP($A100,$A$4:$BI$82,AE$3,0) ->  | AF100: =VLOOKUP($A100,#REF!,2,0)-VLOOKUP($A100,$A$4:$BI$82,AF$3,0) ->  | AG100: =VLOOKUP($A100,#REF!,2,0)-VLOOKUP($A100,$A$4:$BI$82,AG$3,0) ->  | AH100: =VLOOKUP($A100,#REF!,2,0)-VLOOKUP($A100,$A$4:$BI$82,AH$3,0) ->  | AI100: =VLOOKUP($A100,#REF!,2,0)-VLOOKUP($A100,$A$4:$BI$82,AI$3,0) ->  | AJ100: =VLOOKUP($A100,#REF!,2,0)-VLOOKUP($A100,$A$4:$BI$82,AJ$3,0) ->  | AK100: =VLOOKUP($A100,#REF!,2,0)-VLOOKUP($A100,$A$4:$BI$82,AK$3,0) ->  | AL100: =VLOOKUP($A100,#REF!,2,0)-VLOOKUP($A100,$A$4:$BI$82,AL$3,0) ->  | AM100: =VLOOKUP($A100,#REF!,2,0)-VLOOKUP($A100,$A$4:$BI$82,AM$3,0) ->  | AN100: =VLOOKUP($A100,#REF!,2,0)-VLOOKUP($A100,$A$4:$BI$82,AN$3,0) ->  | AO100: =VLOOKUP($A100,#REF!,2,0)-VLOOKUP($A100,$A$4:$BI$82,AO$3,0) ->  | AP100: =VLOOKUP($A100,#REF!,2,0)-VLOOKUP($A100,$A$4:$BI$82,AP$3,0) ->  | AQ100: =VLOOKUP($A100,#REF!,2,0)-VLOOKUP($A100,$A$4:$BI$82,AQ$3,0) ->  | AR100: =VLOOKUP($A100,#REF!,2,0)-VLOOKUP($A100,$A$4:$BI$82,AR$3,0) ->  | AS100: =VLOOKUP($A100,#REF!,2,0)-VLOOKUP($A100,$A$4:$BI$82,AS$3,0) ->  | AT100: =VLOOKUP($A100,#REF!,2,0)-VLOOKUP($A100,$A$4:$BI$82,AT$3,0) ->  | AU100: =VLOOKUP($A100,#REF!,2,0)-VLOOKUP($A100,$A$4:$BI$82,AU$3,0) ->  | AV100: =VLOOKUP($A100,#REF!,2,0)-VLOOKUP($A100,$A$4:$BI$82,AV$3,0) ->  | AW100: =VLOOKUP($A100,#REF!,2,0)-VLOOKUP($A100,$A$4:$BI$82,AW$3,0) ->  | AX100: =VLOOKUP($A100,#REF!,2,0)-VLOOKUP($A100,$A$4:$BI$82,AX$3,0) ->  | AY100: =VLOOKUP($A100,#REF!,2,0)-VLOOKUP($A100,$A$4:$BI$82,AY$3,0) ->  | AZ100: =VLOOKUP($A100,#REF!,2,0)-VLOOKUP($A100,$A$4:$BI$82,AZ$3,0) ->  | BA100: =VLOOKUP($A100,#REF!,2,0)-VLOOKUP($A100,$A$4:$BI$82,BA$3,0) ->  | BB100: =VLOOKUP($A100,#REF!,2,0)-VLOOKUP($A100,$A$4:$BI$82,BB$3,0) ->  | BC100: =VLOOKUP($A100,#REF!,2,0)-VLOOKUP($A100,$A$4:$BI$82,BC$3,0) ->  | BD100: =VLOOKUP($A100,#REF!,2,0)-VLOOKUP($A100,$A$4:$BI$82,BD$3,0) ->  | BE100: =VLOOKUP($A100,#REF!,2,0)-VLOOKUP($A100,$A$4:$BI$82,BE$3,0) ->  | BF100: =VLOOKUP($A100,#REF!,2,0)-VLOOKUP($A100,$A$4:$BI$82,BF$3,0) ->  | BG100: =VLOOKUP($A100,#REF!,2,0)-VLOOKUP($A100,$A$4:$BI$82,BG$3,0) ->  | BH100: =VLOOKUP($A100,#REF!,2,0)-VLOOKUP($A100,$A$4:$BI$82,BH$3,0) ->  | BI100: =VLOOKUP($A100,#REF!,2,0)-VLOOKUP($A100,$A$4:$BI$82,BI$3,0) -> 
A101: Fountain Intertrade Corp. | M101: =VLOOKUP($A101,#REF!,3,0) ->  | N101: =VLOOKUP($A101,#REF!,2,0)-VLOOKUP($A101,$A$4:$BI$82,N$3,0) ->  | O101: =VLOOKUP($A101,#REF!,2,0)-VLOOKUP($A101,$A$4:$BI$82,O$3,0) ->  | P101: =VLOOKUP($A101,#REF!,2,0)-VLOOKUP($A101,$A$4:$BI$82,P$3,0) ->  | Q101: =VLOOKUP($A101,#REF!,2,0)-VLOOKUP($A101,$A$4:$BI$82,Q$3,0) ->  | R101: =VLOOKUP($A101,#REF!,2,0)-VLOOKUP($A101,$A$4:$BI$82,R$3,0) ->  | S101: =VLOOKUP($A101,#REF!,2,0)-VLOOKUP($A101,$A$4:$BI$82,S$3,0) ->  | T101: =VLOOKUP($A101,#REF!,2,0)-VLOOKUP($A101,$A$4:$BI$82,T$3,0) ->  | U101: =VLOOKUP($A101,#REF!,2,0)-VLOOKUP($A101,$A$4:$BI$82,U$3,0) ->  | V101: =VLOOKUP($A101,#REF!,2,0)-VLOOKUP($A101,$A$4:$BI$82,V$3,0) ->  | W101: =VLOOKUP($A101,#REF!,2,0)-VLOOKUP($A101,$A$4:$BI$82,W$3,0) ->  | X101: =VLOOKUP($A101,#REF!,2,0)-VLOOKUP($A101,$A$4:$BI$82,X$3,0) ->  | Y101: =VLOOKUP($A101,#REF!,2,0)-VLOOKUP($A101,$A$4:$BI$82,Y$3,0) ->  | Z101: =VLOOKUP($A101,#REF!,2,0)-VLOOKUP($A101,$A$4:$BI$82,Z$3,0) ->  | AA101: =VLOOKUP($A101,#REF!,2,0)-VLOOKUP($A101,$A$4:$BI$82,AA$3,0) ->  | AB101: =VLOOKUP($A101,#REF!,2,0)-VLOOKUP($A101,$A$4:$BI$82,AB$3,0) ->  | AC101: =VLOOKUP($A101,#REF!,2,0)-VLOOKUP($A101,$A$4:$BI$82,AC$3,0) ->  | AD101: =VLOOKUP($A101,#REF!,2,0)-VLOOKUP($A101,$A$4:$BI$82,AD$3,0) ->  | AE101: =VLOOKUP($A101,#REF!,2,0)-VLOOKUP($A101,$A$4:$BI$82,AE$3,0) ->  | AF101: =VLOOKUP($A101,#REF!,2,0)-VLOOKUP($A101,$A$4:$BI$82,AF$3,0) ->  | AG101: =VLOOKUP($A101,#REF!,2,0)-VLOOKUP($A101,$A$4:$BI$82,AG$3,0) ->  | AH101: =VLOOKUP($A101,#REF!,2,0)-VLOOKUP($A101,$A$4:$BI$82,AH$3,0) ->  | AI101: =VLOOKUP($A101,#REF!,2,0)-VLOOKUP($A101,$A$4:$BI$82,AI$3,0) ->  | AJ101: =VLOOKUP($A101,#REF!,2,0)-VLOOKUP($A101,$A$4:$BI$82,AJ$3,0) ->  | AK101: =VLOOKUP($A101,#REF!,2,0)-VLOOKUP($A101,$A$4:$BI$82,AK$3,0) ->  | AL101: =VLOOKUP($A101,#REF!,2,0)-VLOOKUP($A101,$A$4:$BI$82,AL$3,0) ->  | AM101: =VLOOKUP($A101,#REF!,2,0)-VLOOKUP($A101,$A$4:$BI$82,AM$3,0) ->  | AN101: =VLOOKUP($A101,#REF!,2,0)-VLOOKUP($A101,$A$4:$BI$82,AN$3,0) ->  | AO101: =VLOOKUP($A101,#REF!,2,0)-VLOOKUP($A101,$A$4:$BI$82,AO$3,0) ->  | AP101: =VLOOKUP($A101,#REF!,2,0)-VLOOKUP($A101,$A$4:$BI$82,AP$3,0) ->  | AQ101: =VLOOKUP($A101,#REF!,2,0)-VLOOKUP($A101,$A$4:$BI$82,AQ$3,0) ->  | AR101: =VLOOKUP($A101,#REF!,2,0)-VLOOKUP($A101,$A$4:$BI$82,AR$3,0) ->  | AS101: =VLOOKUP($A101,#REF!,2,0)-VLOOKUP($A101,$A$4:$BI$82,AS$3,0) ->  | AT101: =VLOOKUP($A101,#REF!,2,0)-VLOOKUP($A101,$A$4:$BI$82,AT$3,0) ->  | AU101: =VLOOKUP($A101,#REF!,2,0)-VLOOKUP($A101,$A$4:$BI$82,AU$3,0) ->  | AV101: =VLOOKUP($A101,#REF!,2,0)-VLOOKUP($A101,$A$4:$BI$82,AV$3,0) ->  | AW101: =VLOOKUP($A101,#REF!,2,0)-VLOOKUP($A101,$A$4:$BI$82,AW$3,0) ->  | AX101: =VLOOKUP($A101,#REF!,2,0)-VLOOKUP($A101,$A$4:$BI$82,AX$3,0) ->  | AY101: =VLOOKUP($A101,#REF!,2,0)-VLOOKUP($A101,$A$4:$BI$82,AY$3,0) ->  | AZ101: =VLOOKUP($A101,#REF!,2,0)-VLOOKUP($A101,$A$4:$BI$82,AZ$3,0) ->  | BA101: =VLOOKUP($A101,#REF!,2,0)-VLOOKUP($A101,$A$4:$BI$82,BA$3,0) ->  | BB101: =VLOOKUP($A101,#REF!,2,0)-VLOOKUP($A101,$A$4:$BI$82,BB$3,0) ->  | BC101: =VLOOKUP($A101,#REF!,2,0)-VLOOKUP($A101,$A$4:$BI$82,BC$3,0) ->  | BD101: =VLOOKUP($A101,#REF!,2,0)-VLOOKUP($A101,$A$4:$BI$82,BD$3,0) ->  | BE101: =VLOOKUP($A101,#REF!,2,0)-VLOOKUP($A101,$A$4:$BI$82,BE$3,0) ->  | BF101: =VLOOKUP($A101,#REF!,2,0)-VLOOKUP($A101,$A$4:$BI$82,BF$3,0) ->  | BG101: =VLOOKUP($A101,#REF!,2,0)-VLOOKUP($A101,$A$4:$BI$82,BG$3,0) ->  | BH101: =VLOOKUP($A101,#REF!,2,0)-VLOOKUP($A101,$A$4:$BI$82,BH$3,0) ->  | BI101: =VLOOKUP($A101,#REF!,2,0)-VLOOKUP($A101,$A$4:$BI$82,BI$3,0) -> 
A102: Gas Natural Atlántico, S. de R.L. | M102: =VLOOKUP($A102,#REF!,3,0) ->  | N102: =VLOOKUP($A102,#REF!,2,0)-VLOOKUP($A102,$A$4:$BI$82,N$3,0) ->  | O102: =VLOOKUP($A102,#REF!,2,0)-VLOOKUP($A102,$A$4:$BI$82,O$3,0) ->  | P102: =VLOOKUP($A102,#REF!,2,0)-VLOOKUP($A102,$A$4:$BI$82,P$3,0) ->  | Q102: =VLOOKUP($A102,#REF!,2,0)-VLOOKUP($A102,$A$4:$BI$82,Q$3,0) ->  | R102: =VLOOKUP($A102,#REF!,2,0)-VLOOKUP($A102,$A$4:$BI$82,R$3,0) ->  | S102: =VLOOKUP($A102,#REF!,2,0)-VLOOKUP($A102,$A$4:$BI$82,S$3,0) ->  | T102: =VLOOKUP($A102,#REF!,2,0)-VLOOKUP($A102,$A$4:$BI$82,T$3,0) ->  | U102: =VLOOKUP($A102,#REF!,2,0)-VLOOKUP($A102,$A$4:$BI$82,U$3,0) ->  | V102: =VLOOKUP($A102,#REF!,2,0)-VLOOKUP($A102,$A$4:$BI$82,V$3,0) ->  | W102: =VLOOKUP($A102,#REF!,2,0)-VLOOKUP($A102,$A$4:$BI$82,W$3,0) ->  | X102: =VLOOKUP($A102,#REF!,2,0)-VLOOKUP($A102,$A$4:$BI$82,X$3,0) ->  | Y102: =VLOOKUP($A102,#REF!,2,0)-VLOOKUP($A102,$A$4:$BI$82,Y$3,0) ->  | Z102: =VLOOKUP($A102,#REF!,2,0)-VLOOKUP($A102,$A$4:$BI$82,Z$3,0) ->  | AA102: =VLOOKUP($A102,#REF!,2,0)-VLOOKUP($A102,$A$4:$BI$82,AA$3,0) ->  | AB102: =VLOOKUP($A102,#REF!,2,0)-VLOOKUP($A102,$A$4:$BI$82,AB$3,0) ->  | AC102: =VLOOKUP($A102,#REF!,2,0)-VLOOKUP($A102,$A$4:$BI$82,AC$3,0) ->  | AD102: =VLOOKUP($A102,#REF!,2,0)-VLOOKUP($A102,$A$4:$BI$82,AD$3,0) ->  | AE102: =VLOOKUP($A102,#REF!,2,0)-VLOOKUP($A102,$A$4:$BI$82,AE$3,0) ->  | AF102: =VLOOKUP($A102,#REF!,2,0)-VLOOKUP($A102,$A$4:$BI$82,AF$3,0) ->  | AG102: =VLOOKUP($A102,#REF!,2,0)-VLOOKUP($A102,$A$4:$BI$82,AG$3,0) ->  | AH102: =VLOOKUP($A102,#REF!,2,0)-VLOOKUP($A102,$A$4:$BI$82,AH$3,0) ->  | AI102: =VLOOKUP($A102,#REF!,2,0)-VLOOKUP($A102,$A$4:$BI$82,AI$3,0) ->  | AJ102: =VLOOKUP($A102,#REF!,2,0)-VLOOKUP($A102,$A$4:$BI$82,AJ$3,0) ->  | AK102: =VLOOKUP($A102,#REF!,2,0)-VLOOKUP($A102,$A$4:$BI$82,AK$3,0) ->  | AL102: =VLOOKUP($A102,#REF!,2,0)-VLOOKUP($A102,$A$4:$BI$82,AL$3,0) ->  | AM102: =VLOOKUP($A102,#REF!,2,0)-VLOOKUP($A102,$A$4:$BI$82,AM$3,0) ->  | AN102: =VLOOKUP($A102,#REF!,2,0)-VLOOKUP($A102,$A$4:$BI$82,AN$3,0) ->  | AO102: =VLOOKUP($A102,#REF!,2,0)-VLOOKUP($A102,$A$4:$BI$82,AO$3,0) ->  | AP102: =VLOOKUP($A102,#REF!,2,0)-VLOOKUP($A102,$A$4:$BI$82,AP$3,0) ->  | AQ102: =VLOOKUP($A102,#REF!,2,0)-VLOOKUP($A102,$A$4:$BI$82,AQ$3,0) ->  | AR102: =VLOOKUP($A102,#REF!,2,0)-VLOOKUP($A102,$A$4:$BI$82,AR$3,0) ->  | AS102: =VLOOKUP($A102,#REF!,2,0)-VLOOKUP($A102,$A$4:$BI$82,AS$3,0) ->  | AT102: =VLOOKUP($A102,#REF!,2,0)-VLOOKUP($A102,$A$4:$BI$82,AT$3,0) ->  | AU102: =VLOOKUP($A102,#REF!,2,0)-VLOOKUP($A102,$A$4:$BI$82,AU$3,0) ->  | AV102: =VLOOKUP($A102,#REF!,2,0)-VLOOKUP($A102,$A$4:$BI$82,AV$3,0) ->  | AW102: =VLOOKUP($A102,#REF!,2,0)-VLOOKUP($A102,$A$4:$BI$82,AW$3,0) ->  | AX102: =VLOOKUP($A102,#REF!,2,0)-VLOOKUP($A102,$A$4:$BI$82,AX$3,0) ->  | AY102: =VLOOKUP($A102,#REF!,2,0)-VLOOKUP($A102,$A$4:$BI$82,AY$3,0) ->  | AZ102: =VLOOKUP($A102,#REF!,2,0)-VLOOKUP($A102,$A$4:$BI$82,AZ$3,0) ->  | BA102: =VLOOKUP($A102,#REF!,2,0)-VLOOKUP($A102,$A$4:$BI$82,BA$3,0) ->  | BB102: =VLOOKUP($A102,#REF!,2,0)-VLOOKUP($A102,$A$4:$BI$82,BB$3,0) ->  | BC102: =VLOOKUP($A102,#REF!,2,0)-VLOOKUP($A102,$A$4:$BI$82,BC$3,0) ->  | BD102: =VLOOKUP($A102,#REF!,2,0)-VLOOKUP($A102,$A$4:$BI$82,BD$3,0) ->  | BE102: =VLOOKUP($A102,#REF!,2,0)-VLOOKUP($A102,$A$4:$BI$82,BE$3,0) ->  | BF102: =VLOOKUP($A102,#REF!,2,0)-VLOOKUP($A102,$A$4:$BI$82,BF$3,0) ->  | BG102: =VLOOKUP($A102,#REF!,2,0)-VLOOKUP($A102,$A$4:$BI$82,BG$3,0) ->  | BH102: =VLOOKUP($A102,#REF!,2,0)-VLOOKUP($A102,$A$4:$BI$82,BH$3,0) ->  | BI102: =VLOOKUP($A102,#REF!,2,0)-VLOOKUP($A102,$A$4:$BI$82,BI$3,0) -> 
A103: Generadora Alto Valle, S.A. | M103: =VLOOKUP($A103,#REF!,3,0) ->  | N103: =VLOOKUP($A103,#REF!,2,0)-VLOOKUP($A103,$A$4:$BI$82,N$3,0) ->  | O103: =VLOOKUP($A103,#REF!,2,0)-VLOOKUP($A103,$A$4:$BI$82,O$3,0) ->  | P103: =VLOOKUP($A103,#REF!,2,0)-VLOOKUP($A103,$A$4:$BI$82,P$3,0) ->  | Q103: =VLOOKUP($A103,#REF!,2,0)-VLOOKUP($A103,$A$4:$BI$82,Q$3,0) ->  | R103: =VLOOKUP($A103,#REF!,2,0)-VLOOKUP($A103,$A$4:$BI$82,R$3,0) ->  | S103: =VLOOKUP($A103,#REF!,2,0)-VLOOKUP($A103,$A$4:$BI$82,S$3,0) ->  | T103: =VLOOKUP($A103,#REF!,2,0)-VLOOKUP($A103,$A$4:$BI$82,T$3,0) ->  | U103: =VLOOKUP($A103,#REF!,2,0)-VLOOKUP($A103,$A$4:$BI$82,U$3,0) ->  | V103: =VLOOKUP($A103,#REF!,2,0)-VLOOKUP($A103,$A$4:$BI$82,V$3,0) ->  | W103: =VLOOKUP($A103,#REF!,2,0)-VLOOKUP($A103,$A$4:$BI$82,W$3,0) ->  | X103: =VLOOKUP($A103,#REF!,2,0)-VLOOKUP($A103,$A$4:$BI$82,X$3,0) ->  | Y103: =VLOOKUP($A103,#REF!,2,0)-VLOOKUP($A103,$A$4:$BI$82,Y$3,0) ->  | Z103: =VLOOKUP($A103,#REF!,2,0)-VLOOKUP($A103,$A$4:$BI$82,Z$3,0) ->  | AA103: =VLOOKUP($A103,#REF!,2,0)-VLOOKUP($A103,$A$4:$BI$82,AA$3,0) ->  | AB103: =VLOOKUP($A103,#REF!,2,0)-VLOOKUP($A103,$A$4:$BI$82,AB$3,0) ->  | AC103: =VLOOKUP($A103,#REF!,2,0)-VLOOKUP($A103,$A$4:$BI$82,AC$3,0) ->  | AD103: =VLOOKUP($A103,#REF!,2,0)-VLOOKUP($A103,$A$4:$BI$82,AD$3,0) ->  | AE103: =VLOOKUP($A103,#REF!,2,0)-VLOOKUP($A103,$A$4:$BI$82,AE$3,0) ->  | AF103: =VLOOKUP($A103,#REF!,2,0)-VLOOKUP($A103,$A$4:$BI$82,AF$3,0) ->  | AG103: =VLOOKUP($A103,#REF!,2,0)-VLOOKUP($A103,$A$4:$BI$82,AG$3,0) ->  | AH103: =VLOOKUP($A103,#REF!,2,0)-VLOOKUP($A103,$A$4:$BI$82,AH$3,0) ->  | AI103: =VLOOKUP($A103,#REF!,2,0)-VLOOKUP($A103,$A$4:$BI$82,AI$3,0) ->  | AJ103: =VLOOKUP($A103,#REF!,2,0)-VLOOKUP($A103,$A$4:$BI$82,AJ$3,0) ->  | AK103: =VLOOKUP($A103,#REF!,2,0)-VLOOKUP($A103,$A$4:$BI$82,AK$3,0) ->  | AL103: =VLOOKUP($A103,#REF!,2,0)-VLOOKUP($A103,$A$4:$BI$82,AL$3,0) ->  | AM103: =VLOOKUP($A103,#REF!,2,0)-VLOOKUP($A103,$A$4:$BI$82,AM$3,0) ->  | AN103: =VLOOKUP($A103,#REF!,2,0)-VLOOKUP($A103,$A$4:$BI$82,AN$3,0) ->  | AO103: =VLOOKUP($A103,#REF!,2,0)-VLOOKUP($A103,$A$4:$BI$82,AO$3,0) ->  | AP103: =VLOOKUP($A103,#REF!,2,0)-VLOOKUP($A103,$A$4:$BI$82,AP$3,0) ->  | AQ103: =VLOOKUP($A103,#REF!,2,0)-VLOOKUP($A103,$A$4:$BI$82,AQ$3,0) ->  | AR103: =VLOOKUP($A103,#REF!,2,0)-VLOOKUP($A103,$A$4:$BI$82,AR$3,0) ->  | AS103: =VLOOKUP($A103,#REF!,2,0)-VLOOKUP($A103,$A$4:$BI$82,AS$3,0) ->  | AT103: =VLOOKUP($A103,#REF!,2,0)-VLOOKUP($A103,$A$4:$BI$82,AT$3,0) ->  | AU103: =VLOOKUP($A103,#REF!,2,0)-VLOOKUP($A103,$A$4:$BI$82,AU$3,0) ->  | AV103: =VLOOKUP($A103,#REF!,2,0)-VLOOKUP($A103,$A$4:$BI$82,AV$3,0) ->  | AW103: =VLOOKUP($A103,#REF!,2,0)-VLOOKUP($A103,$A$4:$BI$82,AW$3,0) ->  | AX103: =VLOOKUP($A103,#REF!,2,0)-VLOOKUP($A103,$A$4:$BI$82,AX$3,0) ->  | AY103: =VLOOKUP($A103,#REF!,2,0)-VLOOKUP($A103,$A$4:$BI$82,AY$3,0) ->  | AZ103: =VLOOKUP($A103,#REF!,2,0)-VLOOKUP($A103,$A$4:$BI$82,AZ$3,0) ->  | BA103: =VLOOKUP($A103,#REF!,2,0)-VLOOKUP($A103,$A$4:$BI$82,BA$3,0) ->  | BB103: =VLOOKUP($A103,#REF!,2,0)-VLOOKUP($A103,$A$4:$BI$82,BB$3,0) ->  | BC103: =VLOOKUP($A103,#REF!,2,0)-VLOOKUP($A103,$A$4:$BI$82,BC$3,0) ->  | BD103: =VLOOKUP($A103,#REF!,2,0)-VLOOKUP($A103,$A$4:$BI$82,BD$3,0) ->  | BE103: =VLOOKUP($A103,#REF!,2,0)-VLOOKUP($A103,$A$4:$BI$82,BE$3,0) ->  | BF103: =VLOOKUP($A103,#REF!,2,0)-VLOOKUP($A103,$A$4:$BI$82,BF$3,0) ->  | BG103: =VLOOKUP($A103,#REF!,2,0)-VLOOKUP($A103,$A$4:$BI$82,BG$3,0) ->  | BH103: =VLOOKUP($A103,#REF!,2,0)-VLOOKUP($A103,$A$4:$BI$82,BH$3,0) ->  | BI103: =VLOOKUP($A103,#REF!,2,0)-VLOOKUP($A103,$A$4:$BI$82,BI$3,0) -> 
A104: Generadora del Atlántico, S.A. | M104: =VLOOKUP($A104,#REF!,3,0) ->  | N104: =VLOOKUP($A104,#REF!,2,0)-VLOOKUP($A104,$A$4:$BI$82,N$3,0) ->  | O104: =VLOOKUP($A104,#REF!,2,0)-VLOOKUP($A104,$A$4:$BI$82,O$3,0) ->  | P104: =VLOOKUP($A104,#REF!,2,0)-VLOOKUP($A104,$A$4:$BI$82,P$3,0) ->  | Q104: =VLOOKUP($A104,#REF!,2,0)-VLOOKUP($A104,$A$4:$BI$82,Q$3,0) ->  | R104: =VLOOKUP($A104,#REF!,2,0)-VLOOKUP($A104,$A$4:$BI$82,R$3,0) ->  | S104: =VLOOKUP($A104,#REF!,2,0)-VLOOKUP($A104,$A$4:$BI$82,S$3,0) ->  | T104: =VLOOKUP($A104,#REF!,2,0)-VLOOKUP($A104,$A$4:$BI$82,T$3,0) ->  | U104: =VLOOKUP($A104,#REF!,2,0)-VLOOKUP($A104,$A$4:$BI$82,U$3,0) ->  | V104: =VLOOKUP($A104,#REF!,2,0)-VLOOKUP($A104,$A$4:$BI$82,V$3,0) ->  | W104: =VLOOKUP($A104,#REF!,2,0)-VLOOKUP($A104,$A$4:$BI$82,W$3,0) ->  | X104: =VLOOKUP($A104,#REF!,2,0)-VLOOKUP($A104,$A$4:$BI$82,X$3,0) ->  | Y104: =VLOOKUP($A104,#REF!,2,0)-VLOOKUP($A104,$A$4:$BI$82,Y$3,0) ->  | Z104: =VLOOKUP($A104,#REF!,2,0)-VLOOKUP($A104,$A$4:$BI$82,Z$3,0) ->  | AA104: =VLOOKUP($A104,#REF!,2,0)-VLOOKUP($A104,$A$4:$BI$82,AA$3,0) ->  | AB104: =VLOOKUP($A104,#REF!,2,0)-VLOOKUP($A104,$A$4:$BI$82,AB$3,0) ->  | AC104: =VLOOKUP($A104,#REF!,2,0)-VLOOKUP($A104,$A$4:$BI$82,AC$3,0) ->  | AD104: =VLOOKUP($A104,#REF!,2,0)-VLOOKUP($A104,$A$4:$BI$82,AD$3,0) ->  | AE104: =VLOOKUP($A104,#REF!,2,0)-VLOOKUP($A104,$A$4:$BI$82,AE$3,0) ->  | AF104: =VLOOKUP($A104,#REF!,2,0)-VLOOKUP($A104,$A$4:$BI$82,AF$3,0) ->  | AG104: =VLOOKUP($A104,#REF!,2,0)-VLOOKUP($A104,$A$4:$BI$82,AG$3,0) ->  | AH104: =VLOOKUP($A104,#REF!,2,0)-VLOOKUP($A104,$A$4:$BI$82,AH$3,0) ->  | AI104: =VLOOKUP($A104,#REF!,2,0)-VLOOKUP($A104,$A$4:$BI$82,AI$3,0) ->  | AJ104: =VLOOKUP($A104,#REF!,2,0)-VLOOKUP($A104,$A$4:$BI$82,AJ$3,0) ->  | AK104: =VLOOKUP($A104,#REF!,2,0)-VLOOKUP($A104,$A$4:$BI$82,AK$3,0) ->  | AL104: =VLOOKUP($A104,#REF!,2,0)-VLOOKUP($A104,$A$4:$BI$82,AL$3,0) ->  | AM104: =VLOOKUP($A104,#REF!,2,0)-VLOOKUP($A104,$A$4:$BI$82,AM$3,0) ->  | AN104: =VLOOKUP($A104,#REF!,2,0)-VLOOKUP($A104,$A$4:$BI$82,AN$3,0) ->  | AO104: =VLOOKUP($A104,#REF!,2,0)-VLOOKUP($A104,$A$4:$BI$82,AO$3,0) ->  | AP104: =VLOOKUP($A104,#REF!,2,0)-VLOOKUP($A104,$A$4:$BI$82,AP$3,0) ->  | AQ104: =VLOOKUP($A104,#REF!,2,0)-VLOOKUP($A104,$A$4:$BI$82,AQ$3,0) ->  | AR104: =VLOOKUP($A104,#REF!,2,0)-VLOOKUP($A104,$A$4:$BI$82,AR$3,0) ->  | AS104: =VLOOKUP($A104,#REF!,2,0)-VLOOKUP($A104,$A$4:$BI$82,AS$3,0) ->  | AT104: =VLOOKUP($A104,#REF!,2,0)-VLOOKUP($A104,$A$4:$BI$82,AT$3,0) ->  | AU104: =VLOOKUP($A104,#REF!,2,0)-VLOOKUP($A104,$A$4:$BI$82,AU$3,0) ->  | AV104: =VLOOKUP($A104,#REF!,2,0)-VLOOKUP($A104,$A$4:$BI$82,AV$3,0) ->  | AW104: =VLOOKUP($A104,#REF!,2,0)-VLOOKUP($A104,$A$4:$BI$82,AW$3,0) ->  | AX104: =VLOOKUP($A104,#REF!,2,0)-VLOOKUP($A104,$A$4:$BI$82,AX$3,0) ->  | AY104: =VLOOKUP($A104,#REF!,2,0)-VLOOKUP($A104,$A$4:$BI$82,AY$3,0) ->  | AZ104: =VLOOKUP($A104,#REF!,2,0)-VLOOKUP($A104,$A$4:$BI$82,AZ$3,0) ->  | BA104: =VLOOKUP($A104,#REF!,2,0)-VLOOKUP($A104,$A$4:$BI$82,BA$3,0) ->  | BB104: =VLOOKUP($A104,#REF!,2,0)-VLOOKUP($A104,$A$4:$BI$82,BB$3,0) ->  | BC104: =VLOOKUP($A104,#REF!,2,0)-VLOOKUP($A104,$A$4:$BI$82,BC$3,0) ->  | BD104: =VLOOKUP($A104,#REF!,2,0)-VLOOKUP($A104,$A$4:$BI$82,BD$3,0) ->  | BE104: =VLOOKUP($A104,#REF!,2,0)-VLOOKUP($A104,$A$4:$BI$82,BE$3,0) ->  | BF104: =VLOOKUP($A104,#REF!,2,0)-VLOOKUP($A104,$A$4:$BI$82,BF$3,0) ->  | BG104: =VLOOKUP($A104,#REF!,2,0)-VLOOKUP($A104,$A$4:$BI$82,BG$3,0) ->  | BH104: =VLOOKUP($A104,#REF!,2,0)-VLOOKUP($A104,$A$4:$BI$82,BH$3,0) ->  | BI104: =VLOOKUP($A104,#REF!,2,0)-VLOOKUP($A104,$A$4:$BI$82,BI$3,0) -> 
A105: Generadora Pedregalito, S.A. | M105: =VLOOKUP($A105,#REF!,3,0) ->  | N105: =VLOOKUP($A105,#REF!,2,0)-VLOOKUP($A105,$A$4:$BI$82,N$3,0) ->  | O105: =VLOOKUP($A105,#REF!,2,0)-VLOOKUP($A105,$A$4:$BI$82,O$3,0) ->  | P105: =VLOOKUP($A105,#REF!,2,0)-VLOOKUP($A105,$A$4:$BI$82,P$3,0) ->  | Q105: =VLOOKUP($A105,#REF!,2,0)-VLOOKUP($A105,$A$4:$BI$82,Q$3,0) ->  | R105: =VLOOKUP($A105,#REF!,2,0)-VLOOKUP($A105,$A$4:$BI$82,R$3,0) ->  | S105: =VLOOKUP($A105,#REF!,2,0)-VLOOKUP($A105,$A$4:$BI$82,S$3,0) ->  | T105: =VLOOKUP($A105,#REF!,2,0)-VLOOKUP($A105,$A$4:$BI$82,T$3,0) ->  | U105: =VLOOKUP($A105,#REF!,2,0)-VLOOKUP($A105,$A$4:$BI$82,U$3,0) ->  | V105: =VLOOKUP($A105,#REF!,2,0)-VLOOKUP($A105,$A$4:$BI$82,V$3,0) ->  | W105: =VLOOKUP($A105,#REF!,2,0)-VLOOKUP($A105,$A$4:$BI$82,W$3,0) ->  | X105: =VLOOKUP($A105,#REF!,2,0)-VLOOKUP($A105,$A$4:$BI$82,X$3,0) ->  | Y105: =VLOOKUP($A105,#REF!,2,0)-VLOOKUP($A105,$A$4:$BI$82,Y$3,0) ->  | Z105: =VLOOKUP($A105,#REF!,2,0)-VLOOKUP($A105,$A$4:$BI$82,Z$3,0) ->  | AA105: =VLOOKUP($A105,#REF!,2,0)-VLOOKUP($A105,$A$4:$BI$82,AA$3,0) ->  | AB105: =VLOOKUP($A105,#REF!,2,0)-VLOOKUP($A105,$A$4:$BI$82,AB$3,0) ->  | AC105: =VLOOKUP($A105,#REF!,2,0)-VLOOKUP($A105,$A$4:$BI$82,AC$3,0) ->  | AD105: =VLOOKUP($A105,#REF!,2,0)-VLOOKUP($A105,$A$4:$BI$82,AD$3,0) ->  | AE105: =VLOOKUP($A105,#REF!,2,0)-VLOOKUP($A105,$A$4:$BI$82,AE$3,0) ->  | AF105: =VLOOKUP($A105,#REF!,2,0)-VLOOKUP($A105,$A$4:$BI$82,AF$3,0) ->  | AG105: =VLOOKUP($A105,#REF!,2,0)-VLOOKUP($A105,$A$4:$BI$82,AG$3,0) ->  | AH105: =VLOOKUP($A105,#REF!,2,0)-VLOOKUP($A105,$A$4:$BI$82,AH$3,0) ->  | AI105: =VLOOKUP($A105,#REF!,2,0)-VLOOKUP($A105,$A$4:$BI$82,AI$3,0) ->  | AJ105: =VLOOKUP($A105,#REF!,2,0)-VLOOKUP($A105,$A$4:$BI$82,AJ$3,0) ->  | AK105: =VLOOKUP($A105,#REF!,2,0)-VLOOKUP($A105,$A$4:$BI$82,AK$3,0) ->  | AL105: =VLOOKUP($A105,#REF!,2,0)-VLOOKUP($A105,$A$4:$BI$82,AL$3,0) ->  | AM105: =VLOOKUP($A105,#REF!,2,0)-VLOOKUP($A105,$A$4:$BI$82,AM$3,0) ->  | AN105: =VLOOKUP($A105,#REF!,2,0)-VLOOKUP($A105,$A$4:$BI$82,AN$3,0) ->  | AO105: =VLOOKUP($A105,#REF!,2,0)-VLOOKUP($A105,$A$4:$BI$82,AO$3,0) ->  | AP105: =VLOOKUP($A105,#REF!,2,0)-VLOOKUP($A105,$A$4:$BI$82,AP$3,0) ->  | AQ105: =VLOOKUP($A105,#REF!,2,0)-VLOOKUP($A105,$A$4:$BI$82,AQ$3,0) ->  | AR105: =VLOOKUP($A105,#REF!,2,0)-VLOOKUP($A105,$A$4:$BI$82,AR$3,0) ->  | AS105: =VLOOKUP($A105,#REF!,2,0)-VLOOKUP($A105,$A$4:$BI$82,AS$3,0) ->  | AT105: =VLOOKUP($A105,#REF!,2,0)-VLOOKUP($A105,$A$4:$BI$82,AT$3,0) ->  | AU105: =VLOOKUP($A105,#REF!,2,0)-VLOOKUP($A105,$A$4:$BI$82,AU$3,0) ->  | AV105: =VLOOKUP($A105,#REF!,2,0)-VLOOKUP($A105,$A$4:$BI$82,AV$3,0) ->  | AW105: =VLOOKUP($A105,#REF!,2,0)-VLOOKUP($A105,$A$4:$BI$82,AW$3,0) ->  | AX105: =VLOOKUP($A105,#REF!,2,0)-VLOOKUP($A105,$A$4:$BI$82,AX$3,0) ->  | AY105: =VLOOKUP($A105,#REF!,2,0)-VLOOKUP($A105,$A$4:$BI$82,AY$3,0) ->  | AZ105: =VLOOKUP($A105,#REF!,2,0)-VLOOKUP($A105,$A$4:$BI$82,AZ$3,0) ->  | BA105: =VLOOKUP($A105,#REF!,2,0)-VLOOKUP($A105,$A$4:$BI$82,BA$3,0) ->  | BB105: =VLOOKUP($A105,#REF!,2,0)-VLOOKUP($A105,$A$4:$BI$82,BB$3,0) ->  | BC105: =VLOOKUP($A105,#REF!,2,0)-VLOOKUP($A105,$A$4:$BI$82,BC$3,0) ->  | BD105: =VLOOKUP($A105,#REF!,2,0)-VLOOKUP($A105,$A$4:$BI$82,BD$3,0) ->  | BE105: =VLOOKUP($A105,#REF!,2,0)-VLOOKUP($A105,$A$4:$BI$82,BE$3,0) ->  | BF105: =VLOOKUP($A105,#REF!,2,0)-VLOOKUP($A105,$A$4:$BI$82,BF$3,0) ->  | BG105: =VLOOKUP($A105,#REF!,2,0)-VLOOKUP($A105,$A$4:$BI$82,BG$3,0) ->  | BH105: =VLOOKUP($A105,#REF!,2,0)-VLOOKUP($A105,$A$4:$BI$82,BH$3,0) ->  | BI105: =VLOOKUP($A105,#REF!,2,0)-VLOOKUP($A105,$A$4:$BI$82,BI$3,0) -> 
A106: Generadora Río Chico, S.A. | M106: =VLOOKUP($A106,#REF!,3,0) ->  | N106: =VLOOKUP($A106,#REF!,2,0)-VLOOKUP($A106,$A$4:$BI$82,N$3,0) ->  | O106: =VLOOKUP($A106,#REF!,2,0)-VLOOKUP($A106,$A$4:$BI$82,O$3,0) ->  | P106: =VLOOKUP($A106,#REF!,2,0)-VLOOKUP($A106,$A$4:$BI$82,P$3,0) ->  | Q106: =VLOOKUP($A106,#REF!,2,0)-VLOOKUP($A106,$A$4:$BI$82,Q$3,0) ->  | R106: =VLOOKUP($A106,#REF!,2,0)-VLOOKUP($A106,$A$4:$BI$82,R$3,0) ->  | S106: =VLOOKUP($A106,#REF!,2,0)-VLOOKUP($A106,$A$4:$BI$82,S$3,0) ->  | T106: =VLOOKUP($A106,#REF!,2,0)-VLOOKUP($A106,$A$4:$BI$82,T$3,0) ->  | U106: =VLOOKUP($A106,#REF!,2,0)-VLOOKUP($A106,$A$4:$BI$82,U$3,0) ->  | V106: =VLOOKUP($A106,#REF!,2,0)-VLOOKUP($A106,$A$4:$BI$82,V$3,0) ->  | W106: =VLOOKUP($A106,#REF!,2,0)-VLOOKUP($A106,$A$4:$BI$82,W$3,0) ->  | X106: =VLOOKUP($A106,#REF!,2,0)-VLOOKUP($A106,$A$4:$BI$82,X$3,0) ->  | Y106: =VLOOKUP($A106,#REF!,2,0)-VLOOKUP($A106,$A$4:$BI$82,Y$3,0) ->  | Z106: =VLOOKUP($A106,#REF!,2,0)-VLOOKUP($A106,$A$4:$BI$82,Z$3,0) ->  | AA106: =VLOOKUP($A106,#REF!,2,0)-VLOOKUP($A106,$A$4:$BI$82,AA$3,0) ->  | AB106: =VLOOKUP($A106,#REF!,2,0)-VLOOKUP($A106,$A$4:$BI$82,AB$3,0) ->  | AC106: =VLOOKUP($A106,#REF!,2,0)-VLOOKUP($A106,$A$4:$BI$82,AC$3,0) ->  | AD106: =VLOOKUP($A106,#REF!,2,0)-VLOOKUP($A106,$A$4:$BI$82,AD$3,0) ->  | AE106: =VLOOKUP($A106,#REF!,2,0)-VLOOKUP($A106,$A$4:$BI$82,AE$3,0) ->  | AF106: =VLOOKUP($A106,#REF!,2,0)-VLOOKUP($A106,$A$4:$BI$82,AF$3,0) ->  | AG106: =VLOOKUP($A106,#REF!,2,0)-VLOOKUP($A106,$A$4:$BI$82,AG$3,0) ->  | AH106: =VLOOKUP($A106,#REF!,2,0)-VLOOKUP($A106,$A$4:$BI$82,AH$3,0) ->  | AI106: =VLOOKUP($A106,#REF!,2,0)-VLOOKUP($A106,$A$4:$BI$82,AI$3,0) ->  | AJ106: =VLOOKUP($A106,#REF!,2,0)-VLOOKUP($A106,$A$4:$BI$82,AJ$3,0) ->  | AK106: =VLOOKUP($A106,#REF!,2,0)-VLOOKUP($A106,$A$4:$BI$82,AK$3,0) ->  | AL106: =VLOOKUP($A106,#REF!,2,0)-VLOOKUP($A106,$A$4:$BI$82,AL$3,0) ->  | AM106: =VLOOKUP($A106,#REF!,2,0)-VLOOKUP($A106,$A$4:$BI$82,AM$3,0) ->  | AN106: =VLOOKUP($A106,#REF!,2,0)-VLOOKUP($A106,$A$4:$BI$82,AN$3,0) ->  | AO106: =VLOOKUP($A106,#REF!,2,0)-VLOOKUP($A106,$A$4:$BI$82,AO$3,0) ->  | AP106: =VLOOKUP($A106,#REF!,2,0)-VLOOKUP($A106,$A$4:$BI$82,AP$3,0) ->  | AQ106: =VLOOKUP($A106,#REF!,2,0)-VLOOKUP($A106,$A$4:$BI$82,AQ$3,0) ->  | AR106: =VLOOKUP($A106,#REF!,2,0)-VLOOKUP($A106,$A$4:$BI$82,AR$3,0) ->  | AS106: =VLOOKUP($A106,#REF!,2,0)-VLOOKUP($A106,$A$4:$BI$82,AS$3,0) ->  | AT106: =VLOOKUP($A106,#REF!,2,0)-VLOOKUP($A106,$A$4:$BI$82,AT$3,0) ->  | AU106: =VLOOKUP($A106,#REF!,2,0)-VLOOKUP($A106,$A$4:$BI$82,AU$3,0) ->  | AV106: =VLOOKUP($A106,#REF!,2,0)-VLOOKUP($A106,$A$4:$BI$82,AV$3,0) ->  | AW106: =VLOOKUP($A106,#REF!,2,0)-VLOOKUP($A106,$A$4:$BI$82,AW$3,0) ->  | AX106: =VLOOKUP($A106,#REF!,2,0)-VLOOKUP($A106,$A$4:$BI$82,AX$3,0) ->  | AY106: =VLOOKUP($A106,#REF!,2,0)-VLOOKUP($A106,$A$4:$BI$82,AY$3,0) ->  | AZ106: =VLOOKUP($A106,#REF!,2,0)-VLOOKUP($A106,$A$4:$BI$82,AZ$3,0) ->  | BA106: =VLOOKUP($A106,#REF!,2,0)-VLOOKUP($A106,$A$4:$BI$82,BA$3,0) ->  | BB106: =VLOOKUP($A106,#REF!,2,0)-VLOOKUP($A106,$A$4:$BI$82,BB$3,0) ->  | BC106: =VLOOKUP($A106,#REF!,2,0)-VLOOKUP($A106,$A$4:$BI$82,BC$3,0) ->  | BD106: =VLOOKUP($A106,#REF!,2,0)-VLOOKUP($A106,$A$4:$BI$82,BD$3,0) ->  | BE106: =VLOOKUP($A106,#REF!,2,0)-VLOOKUP($A106,$A$4:$BI$82,BE$3,0) ->  | BF106: =VLOOKUP($A106,#REF!,2,0)-VLOOKUP($A106,$A$4:$BI$82,BF$3,0) ->  | BG106: =VLOOKUP($A106,#REF!,2,0)-VLOOKUP($A106,$A$4:$BI$82,BG$3,0) ->  | BH106: =VLOOKUP($A106,#REF!,2,0)-VLOOKUP($A106,$A$4:$BI$82,BH$3,0) ->  | BI106: =VLOOKUP($A106,#REF!,2,0)-VLOOKUP($A106,$A$4:$BI$82,BI$3,0) -> 
A107: Hidro Panamá, S.A. | M107: =VLOOKUP($A107,#REF!,3,0) ->  | N107: =VLOOKUP($A107,#REF!,2,0)-VLOOKUP($A107,$A$4:$BI$82,N$3,0) ->  | O107: =VLOOKUP($A107,#REF!,2,0)-VLOOKUP($A107,$A$4:$BI$82,O$3,0) ->  | P107: =VLOOKUP($A107,#REF!,2,0)-VLOOKUP($A107,$A$4:$BI$82,P$3,0) ->  | Q107: =VLOOKUP($A107,#REF!,2,0)-VLOOKUP($A107,$A$4:$BI$82,Q$3,0) ->  | R107: =VLOOKUP($A107,#REF!,2,0)-VLOOKUP($A107,$A$4:$BI$82,R$3,0) ->  | S107: =VLOOKUP($A107,#REF!,2,0)-VLOOKUP($A107,$A$4:$BI$82,S$3,0) ->  | T107: =VLOOKUP($A107,#REF!,2,0)-VLOOKUP($A107,$A$4:$BI$82,T$3,0) ->  | U107: =VLOOKUP($A107,#REF!,2,0)-VLOOKUP($A107,$A$4:$BI$82,U$3,0) ->  | V107: =VLOOKUP($A107,#REF!,2,0)-VLOOKUP($A107,$A$4:$BI$82,V$3,0) ->  | W107: =VLOOKUP($A107,#REF!,2,0)-VLOOKUP($A107,$A$4:$BI$82,W$3,0) ->  | X107: =VLOOKUP($A107,#REF!,2,0)-VLOOKUP($A107,$A$4:$BI$82,X$3,0) ->  | Y107: =VLOOKUP($A107,#REF!,2,0)-VLOOKUP($A107,$A$4:$BI$82,Y$3,0) ->  | Z107: =VLOOKUP($A107,#REF!,2,0)-VLOOKUP($A107,$A$4:$BI$82,Z$3,0) ->  | AA107: =VLOOKUP($A107,#REF!,2,0)-VLOOKUP($A107,$A$4:$BI$82,AA$3,0) ->  | AB107: =VLOOKUP($A107,#REF!,2,0)-VLOOKUP($A107,$A$4:$BI$82,AB$3,0) ->  | AC107: =VLOOKUP($A107,#REF!,2,0)-VLOOKUP($A107,$A$4:$BI$82,AC$3,0) ->  | AD107: =VLOOKUP($A107,#REF!,2,0)-VLOOKUP($A107,$A$4:$BI$82,AD$3,0) ->  | AE107: =VLOOKUP($A107,#REF!,2,0)-VLOOKUP($A107,$A$4:$BI$82,AE$3,0) ->  | AF107: =VLOOKUP($A107,#REF!,2,0)-VLOOKUP($A107,$A$4:$BI$82,AF$3,0) ->  | AG107: =VLOOKUP($A107,#REF!,2,0)-VLOOKUP($A107,$A$4:$BI$82,AG$3,0) ->  | AH107: =VLOOKUP($A107,#REF!,2,0)-VLOOKUP($A107,$A$4:$BI$82,AH$3,0) ->  | AI107: =VLOOKUP($A107,#REF!,2,0)-VLOOKUP($A107,$A$4:$BI$82,AI$3,0) ->  | AJ107: =VLOOKUP($A107,#REF!,2,0)-VLOOKUP($A107,$A$4:$BI$82,AJ$3,0) ->  | AK107: =VLOOKUP($A107,#REF!,2,0)-VLOOKUP($A107,$A$4:$BI$82,AK$3,0) ->  | AL107: =VLOOKUP($A107,#REF!,2,0)-VLOOKUP($A107,$A$4:$BI$82,AL$3,0) ->  | AM107: =VLOOKUP($A107,#REF!,2,0)-VLOOKUP($A107,$A$4:$BI$82,AM$3,0) ->  | AN107: =VLOOKUP($A107,#REF!,2,0)-VLOOKUP($A107,$A$4:$BI$82,AN$3,0) ->  | AO107: =VLOOKUP($A107,#REF!,2,0)-VLOOKUP($A107,$A$4:$BI$82,AO$3,0) ->  | AP107: =VLOOKUP($A107,#REF!,2,0)-VLOOKUP($A107,$A$4:$BI$82,AP$3,0) ->  | AQ107: =VLOOKUP($A107,#REF!,2,0)-VLOOKUP($A107,$A$4:$BI$82,AQ$3,0) ->  | AR107: =VLOOKUP($A107,#REF!,2,0)-VLOOKUP($A107,$A$4:$BI$82,AR$3,0) ->  | AS107: =VLOOKUP($A107,#REF!,2,0)-VLOOKUP($A107,$A$4:$BI$82,AS$3,0) ->  | AT107: =VLOOKUP($A107,#REF!,2,0)-VLOOKUP($A107,$A$4:$BI$82,AT$3,0) ->  | AU107: =VLOOKUP($A107,#REF!,2,0)-VLOOKUP($A107,$A$4:$BI$82,AU$3,0) ->  | AV107: =VLOOKUP($A107,#REF!,2,0)-VLOOKUP($A107,$A$4:$BI$82,AV$3,0) ->  | AW107: =VLOOKUP($A107,#REF!,2,0)-VLOOKUP($A107,$A$4:$BI$82,AW$3,0) ->  | AX107: =VLOOKUP($A107,#REF!,2,0)-VLOOKUP($A107,$A$4:$BI$82,AX$3,0) ->  | AY107: =VLOOKUP($A107,#REF!,2,0)-VLOOKUP($A107,$A$4:$BI$82,AY$3,0) ->  | AZ107: =VLOOKUP($A107,#REF!,2,0)-VLOOKUP($A107,$A$4:$BI$82,AZ$3,0) ->  | BA107: =VLOOKUP($A107,#REF!,2,0)-VLOOKUP($A107,$A$4:$BI$82,BA$3,0) ->  | BB107: =VLOOKUP($A107,#REF!,2,0)-VLOOKUP($A107,$A$4:$BI$82,BB$3,0) ->  | BC107: =VLOOKUP($A107,#REF!,2,0)-VLOOKUP($A107,$A$4:$BI$82,BC$3,0) ->  | BD107: =VLOOKUP($A107,#REF!,2,0)-VLOOKUP($A107,$A$4:$BI$82,BD$3,0) ->  | BE107: =VLOOKUP($A107,#REF!,2,0)-VLOOKUP($A107,$A$4:$BI$82,BE$3,0) ->  | BF107: =VLOOKUP($A107,#REF!,2,0)-VLOOKUP($A107,$A$4:$BI$82,BF$3,0) ->  | BG107: =VLOOKUP($A107,#REF!,2,0)-VLOOKUP($A107,$A$4:$BI$82,BG$3,0) ->  | BH107: =VLOOKUP($A107,#REF!,2,0)-VLOOKUP($A107,$A$4:$BI$82,BH$3,0) ->  | BI107: =VLOOKUP($A107,#REF!,2,0)-VLOOKUP($A107,$A$4:$BI$82,BI$3,0) -> 
A108: Hidroecológica del Teribe, S.A. | M108: =VLOOKUP($A108,#REF!,3,0) ->  | N108: =VLOOKUP($A108,#REF!,2,0)-VLOOKUP($A108,$A$4:$BI$82,N$3,0) ->  | O108: =VLOOKUP($A108,#REF!,2,0)-VLOOKUP($A108,$A$4:$BI$82,O$3,0) ->  | P108: =VLOOKUP($A108,#REF!,2,0)-VLOOKUP($A108,$A$4:$BI$82,P$3,0) ->  | Q108: =VLOOKUP($A108,#REF!,2,0)-VLOOKUP($A108,$A$4:$BI$82,Q$3,0) ->  | R108: =VLOOKUP($A108,#REF!,2,0)-VLOOKUP($A108,$A$4:$BI$82,R$3,0) ->  | S108: =VLOOKUP($A108,#REF!,2,0)-VLOOKUP($A108,$A$4:$BI$82,S$3,0) ->  | T108: =VLOOKUP($A108,#REF!,2,0)-VLOOKUP($A108,$A$4:$BI$82,T$3,0) ->  | U108: =VLOOKUP($A108,#REF!,2,0)-VLOOKUP($A108,$A$4:$BI$82,U$3,0) ->  | V108: =VLOOKUP($A108,#REF!,2,0)-VLOOKUP($A108,$A$4:$BI$82,V$3,0) ->  | W108: =VLOOKUP($A108,#REF!,2,0)-VLOOKUP($A108,$A$4:$BI$82,W$3,0) ->  | X108: =VLOOKUP($A108,#REF!,2,0)-VLOOKUP($A108,$A$4:$BI$82,X$3,0) ->  | Y108: =VLOOKUP($A108,#REF!,2,0)-VLOOKUP($A108,$A$4:$BI$82,Y$3,0) ->  | Z108: =VLOOKUP($A108,#REF!,2,0)-VLOOKUP($A108,$A$4:$BI$82,Z$3,0) ->  | AA108: =VLOOKUP($A108,#REF!,2,0)-VLOOKUP($A108,$A$4:$BI$82,AA$3,0) ->  | AB108: =VLOOKUP($A108,#REF!,2,0)-VLOOKUP($A108,$A$4:$BI$82,AB$3,0) ->  | AC108: =VLOOKUP($A108,#REF!,2,0)-VLOOKUP($A108,$A$4:$BI$82,AC$3,0) ->  | AD108: =VLOOKUP($A108,#REF!,2,0)-VLOOKUP($A108,$A$4:$BI$82,AD$3,0) ->  | AE108: =VLOOKUP($A108,#REF!,2,0)-VLOOKUP($A108,$A$4:$BI$82,AE$3,0) ->  | AF108: =VLOOKUP($A108,#REF!,2,0)-VLOOKUP($A108,$A$4:$BI$82,AF$3,0) ->  | AG108: =VLOOKUP($A108,#REF!,2,0)-VLOOKUP($A108,$A$4:$BI$82,AG$3,0) ->  | AH108: =VLOOKUP($A108,#REF!,2,0)-VLOOKUP($A108,$A$4:$BI$82,AH$3,0) ->  | AI108: =VLOOKUP($A108,#REF!,2,0)-VLOOKUP($A108,$A$4:$BI$82,AI$3,0) ->  | AJ108: =VLOOKUP($A108,#REF!,2,0)-VLOOKUP($A108,$A$4:$BI$82,AJ$3,0) ->  | AK108: =VLOOKUP($A108,#REF!,2,0)-VLOOKUP($A108,$A$4:$BI$82,AK$3,0) ->  | AL108: =VLOOKUP($A108,#REF!,2,0)-VLOOKUP($A108,$A$4:$BI$82,AL$3,0) ->  | AM108: =VLOOKUP($A108,#REF!,2,0)-VLOOKUP($A108,$A$4:$BI$82,AM$3,0) ->  | AN108: =VLOOKUP($A108,#REF!,2,0)-VLOOKUP($A108,$A$4:$BI$82,AN$3,0) ->  | AO108: =VLOOKUP($A108,#REF!,2,0)-VLOOKUP($A108,$A$4:$BI$82,AO$3,0) ->  | AP108: =VLOOKUP($A108,#REF!,2,0)-VLOOKUP($A108,$A$4:$BI$82,AP$3,0) ->  | AQ108: =VLOOKUP($A108,#REF!,2,0)-VLOOKUP($A108,$A$4:$BI$82,AQ$3,0) ->  | AR108: =VLOOKUP($A108,#REF!,2,0)-VLOOKUP($A108,$A$4:$BI$82,AR$3,0) ->  | AS108: =VLOOKUP($A108,#REF!,2,0)-VLOOKUP($A108,$A$4:$BI$82,AS$3,0) ->  | AT108: =VLOOKUP($A108,#REF!,2,0)-VLOOKUP($A108,$A$4:$BI$82,AT$3,0) ->  | AU108: =VLOOKUP($A108,#REF!,2,0)-VLOOKUP($A108,$A$4:$BI$82,AU$3,0) ->  | AV108: =VLOOKUP($A108,#REF!,2,0)-VLOOKUP($A108,$A$4:$BI$82,AV$3,0) ->  | AW108: =VLOOKUP($A108,#REF!,2,0)-VLOOKUP($A108,$A$4:$BI$82,AW$3,0) ->  | AX108: =VLOOKUP($A108,#REF!,2,0)-VLOOKUP($A108,$A$4:$BI$82,AX$3,0) ->  | AY108: =VLOOKUP($A108,#REF!,2,0)-VLOOKUP($A108,$A$4:$BI$82,AY$3,0) ->  | AZ108: =VLOOKUP($A108,#REF!,2,0)-VLOOKUP($A108,$A$4:$BI$82,AZ$3,0) ->  | BA108: =VLOOKUP($A108,#REF!,2,0)-VLOOKUP($A108,$A$4:$BI$82,BA$3,0) ->  | BB108: =VLOOKUP($A108,#REF!,2,0)-VLOOKUP($A108,$A$4:$BI$82,BB$3,0) ->  | BC108: =VLOOKUP($A108,#REF!,2,0)-VLOOKUP($A108,$A$4:$BI$82,BC$3,0) ->  | BD108: =VLOOKUP($A108,#REF!,2,0)-VLOOKUP($A108,$A$4:$BI$82,BD$3,0) ->  | BE108: =VLOOKUP($A108,#REF!,2,0)-VLOOKUP($A108,$A$4:$BI$82,BE$3,0) ->  | BF108: =VLOOKUP($A108,#REF!,2,0)-VLOOKUP($A108,$A$4:$BI$82,BF$3,0) ->  | BG108: =VLOOKUP($A108,#REF!,2,0)-VLOOKUP($A108,$A$4:$BI$82,BG$3,0) ->  | BH108: =VLOOKUP($A108,#REF!,2,0)-VLOOKUP($A108,$A$4:$BI$82,BH$3,0) ->  | BI108: =VLOOKUP($A108,#REF!,2,0)-VLOOKUP($A108,$A$4:$BI$82,BI$3,0) -> 
A109: Hidroeléctrica Bajos del Totuma, S.A. | M109: =VLOOKUP($A109,#REF!,3,0) ->  | N109: =VLOOKUP($A109,#REF!,2,0)-VLOOKUP($A109,$A$4:$BI$82,N$3,0) ->  | O109: =VLOOKUP($A109,#REF!,2,0)-VLOOKUP($A109,$A$4:$BI$82,O$3,0) ->  | P109: =VLOOKUP($A109,#REF!,2,0)-VLOOKUP($A109,$A$4:$BI$82,P$3,0) ->  | Q109: =VLOOKUP($A109,#REF!,2,0)-VLOOKUP($A109,$A$4:$BI$82,Q$3,0) ->  | R109: =VLOOKUP($A109,#REF!,2,0)-VLOOKUP($A109,$A$4:$BI$82,R$3,0) ->  | S109: =VLOOKUP($A109,#REF!,2,0)-VLOOKUP($A109,$A$4:$BI$82,S$3,0) ->  | T109: =VLOOKUP($A109,#REF!,2,0)-VLOOKUP($A109,$A$4:$BI$82,T$3,0) ->  | U109: =VLOOKUP($A109,#REF!,2,0)-VLOOKUP($A109,$A$4:$BI$82,U$3,0) ->  | V109: =VLOOKUP($A109,#REF!,2,0)-VLOOKUP($A109,$A$4:$BI$82,V$3,0) ->  | W109: =VLOOKUP($A109,#REF!,2,0)-VLOOKUP($A109,$A$4:$BI$82,W$3,0) ->  | X109: =VLOOKUP($A109,#REF!,2,0)-VLOOKUP($A109,$A$4:$BI$82,X$3,0) ->  | Y109: =VLOOKUP($A109,#REF!,2,0)-VLOOKUP($A109,$A$4:$BI$82,Y$3,0) ->  | Z109: =VLOOKUP($A109,#REF!,2,0)-VLOOKUP($A109,$A$4:$BI$82,Z$3,0) ->  | AA109: =VLOOKUP($A109,#REF!,2,0)-VLOOKUP($A109,$A$4:$BI$82,AA$3,0) ->  | AB109: =VLOOKUP($A109,#REF!,2,0)-VLOOKUP($A109,$A$4:$BI$82,AB$3,0) ->  | AC109: =VLOOKUP($A109,#REF!,2,0)-VLOOKUP($A109,$A$4:$BI$82,AC$3,0) ->  | AD109: =VLOOKUP($A109,#REF!,2,0)-VLOOKUP($A109,$A$4:$BI$82,AD$3,0) ->  | AE109: =VLOOKUP($A109,#REF!,2,0)-VLOOKUP($A109,$A$4:$BI$82,AE$3,0) ->  | AF109: =VLOOKUP($A109,#REF!,2,0)-VLOOKUP($A109,$A$4:$BI$82,AF$3,0) ->  | AG109: =VLOOKUP($A109,#REF!,2,0)-VLOOKUP($A109,$A$4:$BI$82,AG$3,0) ->  | AH109: =VLOOKUP($A109,#REF!,2,0)-VLOOKUP($A109,$A$4:$BI$82,AH$3,0) ->  | AI109: =VLOOKUP($A109,#REF!,2,0)-VLOOKUP($A109,$A$4:$BI$82,AI$3,0) ->  | AJ109: =VLOOKUP($A109,#REF!,2,0)-VLOOKUP($A109,$A$4:$BI$82,AJ$3,0) ->  | AK109: =VLOOKUP($A109,#REF!,2,0)-VLOOKUP($A109,$A$4:$BI$82,AK$3,0) ->  | AL109: =VLOOKUP($A109,#REF!,2,0)-VLOOKUP($A109,$A$4:$BI$82,AL$3,0) ->  | AM109: =VLOOKUP($A109,#REF!,2,0)-VLOOKUP($A109,$A$4:$BI$82,AM$3,0) ->  | AN109: =VLOOKUP($A109,#REF!,2,0)-VLOOKUP($A109,$A$4:$BI$82,AN$3,0) ->  | AO109: =VLOOKUP($A109,#REF!,2,0)-VLOOKUP($A109,$A$4:$BI$82,AO$3,0) ->  | AP109: =VLOOKUP($A109,#REF!,2,0)-VLOOKUP($A109,$A$4:$BI$82,AP$3,0) ->  | AQ109: =VLOOKUP($A109,#REF!,2,0)-VLOOKUP($A109,$A$4:$BI$82,AQ$3,0) ->  | AR109: =VLOOKUP($A109,#REF!,2,0)-VLOOKUP($A109,$A$4:$BI$82,AR$3,0) ->  | AS109: =VLOOKUP($A109,#REF!,2,0)-VLOOKUP($A109,$A$4:$BI$82,AS$3,0) ->  | AT109: =VLOOKUP($A109,#REF!,2,0)-VLOOKUP($A109,$A$4:$BI$82,AT$3,0) ->  | AU109: =VLOOKUP($A109,#REF!,2,0)-VLOOKUP($A109,$A$4:$BI$82,AU$3,0) ->  | AV109: =VLOOKUP($A109,#REF!,2,0)-VLOOKUP($A109,$A$4:$BI$82,AV$3,0) ->  | AW109: =VLOOKUP($A109,#REF!,2,0)-VLOOKUP($A109,$A$4:$BI$82,AW$3,0) ->  | AX109: =VLOOKUP($A109,#REF!,2,0)-VLOOKUP($A109,$A$4:$BI$82,AX$3,0) ->  | AY109: =VLOOKUP($A109,#REF!,2,0)-VLOOKUP($A109,$A$4:$BI$82,AY$3,0) ->  | AZ109: =VLOOKUP($A109,#REF!,2,0)-VLOOKUP($A109,$A$4:$BI$82,AZ$3,0) ->  | BA109: =VLOOKUP($A109,#REF!,2,0)-VLOOKUP($A109,$A$4:$BI$82,BA$3,0) ->  | BB109: =VLOOKUP($A109,#REF!,2,0)-VLOOKUP($A109,$A$4:$BI$82,BB$3,0) ->  | BC109: =VLOOKUP($A109,#REF!,2,0)-VLOOKUP($A109,$A$4:$BI$82,BC$3,0) ->  | BD109: =VLOOKUP($A109,#REF!,2,0)-VLOOKUP($A109,$A$4:$BI$82,BD$3,0) ->  | BE109: =VLOOKUP($A109,#REF!,2,0)-VLOOKUP($A109,$A$4:$BI$82,BE$3,0) ->  | BF109: =VLOOKUP($A109,#REF!,2,0)-VLOOKUP($A109,$A$4:$BI$82,BF$3,0) ->  | BG109: =VLOOKUP($A109,#REF!,2,0)-VLOOKUP($A109,$A$4:$BI$82,BG$3,0) ->  | BH109: =VLOOKUP($A109,#REF!,2,0)-VLOOKUP($A109,$A$4:$BI$82,BH$3,0) ->  | BI109: =VLOOKUP($A109,#REF!,2,0)-VLOOKUP($A109,$A$4:$BI$82,BI$3,0) -> 
A110: Hidroeléctrica San Lorenzo, S.A. | M110: =VLOOKUP($A110,#REF!,3,0) ->  | N110: =VLOOKUP($A110,#REF!,2,0)-VLOOKUP($A110,$A$4:$BI$82,N$3,0) ->  | O110: =VLOOKUP($A110,#REF!,2,0)-VLOOKUP($A110,$A$4:$BI$82,O$3,0) ->  | P110: =VLOOKUP($A110,#REF!,2,0)-VLOOKUP($A110,$A$4:$BI$82,P$3,0) ->  | Q110: =VLOOKUP($A110,#REF!,2,0)-VLOOKUP($A110,$A$4:$BI$82,Q$3,0) ->  | R110: =VLOOKUP($A110,#REF!,2,0)-VLOOKUP($A110,$A$4:$BI$82,R$3,0) ->  | S110: =VLOOKUP($A110,#REF!,2,0)-VLOOKUP($A110,$A$4:$BI$82,S$3,0) ->  | T110: =VLOOKUP($A110,#REF!,2,0)-VLOOKUP($A110,$A$4:$BI$82,T$3,0) ->  | U110: =VLOOKUP($A110,#REF!,2,0)-VLOOKUP($A110,$A$4:$BI$82,U$3,0) ->  | V110: =VLOOKUP($A110,#REF!,2,0)-VLOOKUP($A110,$A$4:$BI$82,V$3,0) ->  | W110: =VLOOKUP($A110,#REF!,2,0)-VLOOKUP($A110,$A$4:$BI$82,W$3,0) ->  | X110: =VLOOKUP($A110,#REF!,2,0)-VLOOKUP($A110,$A$4:$BI$82,X$3,0) ->  | Y110: =VLOOKUP($A110,#REF!,2,0)-VLOOKUP($A110,$A$4:$BI$82,Y$3,0) ->  | Z110: =VLOOKUP($A110,#REF!,2,0)-VLOOKUP($A110,$A$4:$BI$82,Z$3,0) ->  | AA110: =VLOOKUP($A110,#REF!,2,0)-VLOOKUP($A110,$A$4:$BI$82,AA$3,0) ->  | AB110: =VLOOKUP($A110,#REF!,2,0)-VLOOKUP($A110,$A$4:$BI$82,AB$3,0) ->  | AC110: =VLOOKUP($A110,#REF!,2,0)-VLOOKUP($A110,$A$4:$BI$82,AC$3,0) ->  | AD110: =VLOOKUP($A110,#REF!,2,0)-VLOOKUP($A110,$A$4:$BI$82,AD$3,0) ->  | AE110: =VLOOKUP($A110,#REF!,2,0)-VLOOKUP($A110,$A$4:$BI$82,AE$3,0) ->  | AF110: =VLOOKUP($A110,#REF!,2,0)-VLOOKUP($A110,$A$4:$BI$82,AF$3,0) ->  | AG110: =VLOOKUP($A110,#REF!,2,0)-VLOOKUP($A110,$A$4:$BI$82,AG$3,0) ->  | AH110: =VLOOKUP($A110,#REF!,2,0)-VLOOKUP($A110,$A$4:$BI$82,AH$3,0) ->  | AI110: =VLOOKUP($A110,#REF!,2,0)-VLOOKUP($A110,$A$4:$BI$82,AI$3,0) ->  | AJ110: =VLOOKUP($A110,#REF!,2,0)-VLOOKUP($A110,$A$4:$BI$82,AJ$3,0) ->  | AK110: =VLOOKUP($A110,#REF!,2,0)-VLOOKUP($A110,$A$4:$BI$82,AK$3,0) ->  | AL110: =VLOOKUP($A110,#REF!,2,0)-VLOOKUP($A110,$A$4:$BI$82,AL$3,0) ->  | AM110: =VLOOKUP($A110,#REF!,2,0)-VLOOKUP($A110,$A$4:$BI$82,AM$3,0) ->  | AN110: =VLOOKUP($A110,#REF!,2,0)-VLOOKUP($A110,$A$4:$BI$82,AN$3,0) ->  | AO110: =VLOOKUP($A110,#REF!,2,0)-VLOOKUP($A110,$A$4:$BI$82,AO$3,0) ->  | AP110: =VLOOKUP($A110,#REF!,2,0)-VLOOKUP($A110,$A$4:$BI$82,AP$3,0) ->  | AQ110: =VLOOKUP($A110,#REF!,2,0)-VLOOKUP($A110,$A$4:$BI$82,AQ$3,0) ->  | AR110: =VLOOKUP($A110,#REF!,2,0)-VLOOKUP($A110,$A$4:$BI$82,AR$3,0) ->  | AS110: =VLOOKUP($A110,#REF!,2,0)-VLOOKUP($A110,$A$4:$BI$82,AS$3,0) ->  | AT110: =VLOOKUP($A110,#REF!,2,0)-VLOOKUP($A110,$A$4:$BI$82,AT$3,0) ->  | AU110: =VLOOKUP($A110,#REF!,2,0)-VLOOKUP($A110,$A$4:$BI$82,AU$3,0) ->  | AV110: =VLOOKUP($A110,#REF!,2,0)-VLOOKUP($A110,$A$4:$BI$82,AV$3,0) ->  | AW110: =VLOOKUP($A110,#REF!,2,0)-VLOOKUP($A110,$A$4:$BI$82,AW$3,0) ->  | AX110: =VLOOKUP($A110,#REF!,2,0)-VLOOKUP($A110,$A$4:$BI$82,AX$3,0) ->  | AY110: =VLOOKUP($A110,#REF!,2,0)-VLOOKUP($A110,$A$4:$BI$82,AY$3,0) ->  | AZ110: =VLOOKUP($A110,#REF!,2,0)-VLOOKUP($A110,$A$4:$BI$82,AZ$3,0) ->  | BA110: =VLOOKUP($A110,#REF!,2,0)-VLOOKUP($A110,$A$4:$BI$82,BA$3,0) ->  | BB110: =VLOOKUP($A110,#REF!,2,0)-VLOOKUP($A110,$A$4:$BI$82,BB$3,0) ->  | BC110: =VLOOKUP($A110,#REF!,2,0)-VLOOKUP($A110,$A$4:$BI$82,BC$3,0) ->  | BD110: =VLOOKUP($A110,#REF!,2,0)-VLOOKUP($A110,$A$4:$BI$82,BD$3,0) ->  | BE110: =VLOOKUP($A110,#REF!,2,0)-VLOOKUP($A110,$A$4:$BI$82,BE$3,0) ->  | BF110: =VLOOKUP($A110,#REF!,2,0)-VLOOKUP($A110,$A$4:$BI$82,BF$3,0) ->  | BG110: =VLOOKUP($A110,#REF!,2,0)-VLOOKUP($A110,$A$4:$BI$82,BG$3,0) ->  | BH110: =VLOOKUP($A110,#REF!,2,0)-VLOOKUP($A110,$A$4:$BI$82,BH$3,0) ->  | BI110: =VLOOKUP($A110,#REF!,2,0)-VLOOKUP($A110,$A$4:$BI$82,BI$3,0) -> 
A111: Hidroibérica, S.A. | M111: =VLOOKUP($A111,#REF!,3,0) ->  | N111: =VLOOKUP($A111,#REF!,2,0)-VLOOKUP($A111,$A$4:$BI$82,N$3,0) ->  | O111: =VLOOKUP($A111,#REF!,2,0)-VLOOKUP($A111,$A$4:$BI$82,O$3,0) ->  | P111: =VLOOKUP($A111,#REF!,2,0)-VLOOKUP($A111,$A$4:$BI$82,P$3,0) ->  | Q111: =VLOOKUP($A111,#REF!,2,0)-VLOOKUP($A111,$A$4:$BI$82,Q$3,0) ->  | R111: =VLOOKUP($A111,#REF!,2,0)-VLOOKUP($A111,$A$4:$BI$82,R$3,0) ->  | S111: =VLOOKUP($A111,#REF!,2,0)-VLOOKUP($A111,$A$4:$BI$82,S$3,0) ->  | T111: =VLOOKUP($A111,#REF!,2,0)-VLOOKUP($A111,$A$4:$BI$82,T$3,0) ->  | U111: =VLOOKUP($A111,#REF!,2,0)-VLOOKUP($A111,$A$4:$BI$82,U$3,0) ->  | V111: =VLOOKUP($A111,#REF!,2,0)-VLOOKUP($A111,$A$4:$BI$82,V$3,0) ->  | W111: =VLOOKUP($A111,#REF!,2,0)-VLOOKUP($A111,$A$4:$BI$82,W$3,0) ->  | X111: =VLOOKUP($A111,#REF!,2,0)-VLOOKUP($A111,$A$4:$BI$82,X$3,0) ->  | Y111: =VLOOKUP($A111,#REF!,2,0)-VLOOKUP($A111,$A$4:$BI$82,Y$3,0) ->  | Z111: =VLOOKUP($A111,#REF!,2,0)-VLOOKUP($A111,$A$4:$BI$82,Z$3,0) ->  | AA111: =VLOOKUP($A111,#REF!,2,0)-VLOOKUP($A111,$A$4:$BI$82,AA$3,0) ->  | AB111: =VLOOKUP($A111,#REF!,2,0)-VLOOKUP($A111,$A$4:$BI$82,AB$3,0) ->  | AC111: =VLOOKUP($A111,#REF!,2,0)-VLOOKUP($A111,$A$4:$BI$82,AC$3,0) ->  | AD111: =VLOOKUP($A111,#REF!,2,0)-VLOOKUP($A111,$A$4:$BI$82,AD$3,0) ->  | AE111: =VLOOKUP($A111,#REF!,2,0)-VLOOKUP($A111,$A$4:$BI$82,AE$3,0) ->  | AF111: =VLOOKUP($A111,#REF!,2,0)-VLOOKUP($A111,$A$4:$BI$82,AF$3,0) ->  | AG111: =VLOOKUP($A111,#REF!,2,0)-VLOOKUP($A111,$A$4:$BI$82,AG$3,0) ->  | AH111: =VLOOKUP($A111,#REF!,2,0)-VLOOKUP($A111,$A$4:$BI$82,AH$3,0) ->  | AI111: =VLOOKUP($A111,#REF!,2,0)-VLOOKUP($A111,$A$4:$BI$82,AI$3,0) ->  | AJ111: =VLOOKUP($A111,#REF!,2,0)-VLOOKUP($A111,$A$4:$BI$82,AJ$3,0) ->  | AK111: =VLOOKUP($A111,#REF!,2,0)-VLOOKUP($A111,$A$4:$BI$82,AK$3,0) ->  | AL111: =VLOOKUP($A111,#REF!,2,0)-VLOOKUP($A111,$A$4:$BI$82,AL$3,0) ->  | AM111: =VLOOKUP($A111,#REF!,2,0)-VLOOKUP($A111,$A$4:$BI$82,AM$3,0) ->  | AN111: =VLOOKUP($A111,#REF!,2,0)-VLOOKUP($A111,$A$4:$BI$82,AN$3,0) ->  | AO111: =VLOOKUP($A111,#REF!,2,0)-VLOOKUP($A111,$A$4:$BI$82,AO$3,0) ->  | AP111: =VLOOKUP($A111,#REF!,2,0)-VLOOKUP($A111,$A$4:$BI$82,AP$3,0) ->  | AQ111: =VLOOKUP($A111,#REF!,2,0)-VLOOKUP($A111,$A$4:$BI$82,AQ$3,0) ->  | AR111: =VLOOKUP($A111,#REF!,2,0)-VLOOKUP($A111,$A$4:$BI$82,AR$3,0) ->  | AS111: =VLOOKUP($A111,#REF!,2,0)-VLOOKUP($A111,$A$4:$BI$82,AS$3,0) ->  | AT111: =VLOOKUP($A111,#REF!,2,0)-VLOOKUP($A111,$A$4:$BI$82,AT$3,0) ->  | AU111: =VLOOKUP($A111,#REF!,2,0)-VLOOKUP($A111,$A$4:$BI$82,AU$3,0) ->  | AV111: =VLOOKUP($A111,#REF!,2,0)-VLOOKUP($A111,$A$4:$BI$82,AV$3,0) ->  | AW111: =VLOOKUP($A111,#REF!,2,0)-VLOOKUP($A111,$A$4:$BI$82,AW$3,0) ->  | AX111: =VLOOKUP($A111,#REF!,2,0)-VLOOKUP($A111,$A$4:$BI$82,AX$3,0) ->  | AY111: =VLOOKUP($A111,#REF!,2,0)-VLOOKUP($A111,$A$4:$BI$82,AY$3,0) ->  | AZ111: =VLOOKUP($A111,#REF!,2,0)-VLOOKUP($A111,$A$4:$BI$82,AZ$3,0) ->  | BA111: =VLOOKUP($A111,#REF!,2,0)-VLOOKUP($A111,$A$4:$BI$82,BA$3,0) ->  | BB111: =VLOOKUP($A111,#REF!,2,0)-VLOOKUP($A111,$A$4:$BI$82,BB$3,0) ->  | BC111: =VLOOKUP($A111,#REF!,2,0)-VLOOKUP($A111,$A$4:$BI$82,BC$3,0) ->  | BD111: =VLOOKUP($A111,#REF!,2,0)-VLOOKUP($A111,$A$4:$BI$82,BD$3,0) ->  | BE111: =VLOOKUP($A111,#REF!,2,0)-VLOOKUP($A111,$A$4:$BI$82,BE$3,0) ->  | BF111: =VLOOKUP($A111,#REF!,2,0)-VLOOKUP($A111,$A$4:$BI$82,BF$3,0) ->  | BG111: =VLOOKUP($A111,#REF!,2,0)-VLOOKUP($A111,$A$4:$BI$82,BG$3,0) ->  | BH111: =VLOOKUP($A111,#REF!,2,0)-VLOOKUP($A111,$A$4:$BI$82,BH$3,0) ->  | BI111: =VLOOKUP($A111,#REF!,2,0)-VLOOKUP($A111,$A$4:$BI$82,BI$3,0) -> 
A112: HidroPiedra, S.A. | M112: =VLOOKUP($A112,#REF!,3,0) ->  | N112: =VLOOKUP($A112,#REF!,2,0)-VLOOKUP($A112,$A$4:$BI$82,N$3,0) ->  | O112: =VLOOKUP($A112,#REF!,2,0)-VLOOKUP($A112,$A$4:$BI$82,O$3,0) ->  | P112: =VLOOKUP($A112,#REF!,2,0)-VLOOKUP($A112,$A$4:$BI$82,P$3,0) ->  | Q112: =VLOOKUP($A112,#REF!,2,0)-VLOOKUP($A112,$A$4:$BI$82,Q$3,0) ->  | R112: =VLOOKUP($A112,#REF!,2,0)-VLOOKUP($A112,$A$4:$BI$82,R$3,0) ->  | S112: =VLOOKUP($A112,#REF!,2,0)-VLOOKUP($A112,$A$4:$BI$82,S$3,0) ->  | T112: =VLOOKUP($A112,#REF!,2,0)-VLOOKUP($A112,$A$4:$BI$82,T$3,0) ->  | U112: =VLOOKUP($A112,#REF!,2,0)-VLOOKUP($A112,$A$4:$BI$82,U$3,0) ->  | V112: =VLOOKUP($A112,#REF!,2,0)-VLOOKUP($A112,$A$4:$BI$82,V$3,0) ->  | W112: =VLOOKUP($A112,#REF!,2,0)-VLOOKUP($A112,$A$4:$BI$82,W$3,0) ->  | X112: =VLOOKUP($A112,#REF!,2,0)-VLOOKUP($A112,$A$4:$BI$82,X$3,0) ->  | Y112: =VLOOKUP($A112,#REF!,2,0)-VLOOKUP($A112,$A$4:$BI$82,Y$3,0) ->  | Z112: =VLOOKUP($A112,#REF!,2,0)-VLOOKUP($A112,$A$4:$BI$82,Z$3,0) ->  | AA112: =VLOOKUP($A112,#REF!,2,0)-VLOOKUP($A112,$A$4:$BI$82,AA$3,0) ->  | AB112: =VLOOKUP($A112,#REF!,2,0)-VLOOKUP($A112,$A$4:$BI$82,AB$3,0) ->  | AC112: =VLOOKUP($A112,#REF!,2,0)-VLOOKUP($A112,$A$4:$BI$82,AC$3,0) ->  | AD112: =VLOOKUP($A112,#REF!,2,0)-VLOOKUP($A112,$A$4:$BI$82,AD$3,0) ->  | AE112: =VLOOKUP($A112,#REF!,2,0)-VLOOKUP($A112,$A$4:$BI$82,AE$3,0) ->  | AF112: =VLOOKUP($A112,#REF!,2,0)-VLOOKUP($A112,$A$4:$BI$82,AF$3,0) ->  | AG112: =VLOOKUP($A112,#REF!,2,0)-VLOOKUP($A112,$A$4:$BI$82,AG$3,0) ->  | AH112: =VLOOKUP($A112,#REF!,2,0)-VLOOKUP($A112,$A$4:$BI$82,AH$3,0) ->  | AI112: =VLOOKUP($A112,#REF!,2,0)-VLOOKUP($A112,$A$4:$BI$82,AI$3,0) ->  | AJ112: =VLOOKUP($A112,#REF!,2,0)-VLOOKUP($A112,$A$4:$BI$82,AJ$3,0) ->  | AK112: =VLOOKUP($A112,#REF!,2,0)-VLOOKUP($A112,$A$4:$BI$82,AK$3,0) ->  | AL112: =VLOOKUP($A112,#REF!,2,0)-VLOOKUP($A112,$A$4:$BI$82,AL$3,0) ->  | AM112: =VLOOKUP($A112,#REF!,2,0)-VLOOKUP($A112,$A$4:$BI$82,AM$3,0) ->  | AN112: =VLOOKUP($A112,#REF!,2,0)-VLOOKUP($A112,$A$4:$BI$82,AN$3,0) ->  | AO112: =VLOOKUP($A112,#REF!,2,0)-VLOOKUP($A112,$A$4:$BI$82,AO$3,0) ->  | AP112: =VLOOKUP($A112,#REF!,2,0)-VLOOKUP($A112,$A$4:$BI$82,AP$3,0) ->  | AQ112: =VLOOKUP($A112,#REF!,2,0)-VLOOKUP($A112,$A$4:$BI$82,AQ$3,0) ->  | AR112: =VLOOKUP($A112,#REF!,2,0)-VLOOKUP($A112,$A$4:$BI$82,AR$3,0) ->  | AS112: =VLOOKUP($A112,#REF!,2,0)-VLOOKUP($A112,$A$4:$BI$82,AS$3,0) ->  | AT112: =VLOOKUP($A112,#REF!,2,0)-VLOOKUP($A112,$A$4:$BI$82,AT$3,0) ->  | AU112: =VLOOKUP($A112,#REF!,2,0)-VLOOKUP($A112,$A$4:$BI$82,AU$3,0) ->  | AV112: =VLOOKUP($A112,#REF!,2,0)-VLOOKUP($A112,$A$4:$BI$82,AV$3,0) ->  | AW112: =VLOOKUP($A112,#REF!,2,0)-VLOOKUP($A112,$A$4:$BI$82,AW$3,0) ->  | AX112: =VLOOKUP($A112,#REF!,2,0)-VLOOKUP($A112,$A$4:$BI$82,AX$3,0) ->  | AY112: =VLOOKUP($A112,#REF!,2,0)-VLOOKUP($A112,$A$4:$BI$82,AY$3,0) ->  | AZ112: =VLOOKUP($A112,#REF!,2,0)-VLOOKUP($A112,$A$4:$BI$82,AZ$3,0) ->  | BA112: =VLOOKUP($A112,#REF!,2,0)-VLOOKUP($A112,$A$4:$BI$82,BA$3,0) ->  | BB112: =VLOOKUP($A112,#REF!,2,0)-VLOOKUP($A112,$A$4:$BI$82,BB$3,0) ->  | BC112: =VLOOKUP($A112,#REF!,2,0)-VLOOKUP($A112,$A$4:$BI$82,BC$3,0) ->  | BD112: =VLOOKUP($A112,#REF!,2,0)-VLOOKUP($A112,$A$4:$BI$82,BD$3,0) ->  | BE112: =VLOOKUP($A112,#REF!,2,0)-VLOOKUP($A112,$A$4:$BI$82,BE$3,0) ->  | BF112: =VLOOKUP($A112,#REF!,2,0)-VLOOKUP($A112,$A$4:$BI$82,BF$3,0) ->  | BG112: =VLOOKUP($A112,#REF!,2,0)-VLOOKUP($A112,$A$4:$BI$82,BG$3,0) ->  | BH112: =VLOOKUP($A112,#REF!,2,0)-VLOOKUP($A112,$A$4:$BI$82,BH$3,0) ->  | BI112: =VLOOKUP($A112,#REF!,2,0)-VLOOKUP($A112,$A$4:$BI$82,BI$3,0) -> 
A113: Hydro Caisán, S.A. | M113: =VLOOKUP($A113,#REF!,3,0) ->  | N113: =VLOOKUP($A113,#REF!,2,0)-VLOOKUP($A113,$A$4:$BI$82,N$3,0) ->  | O113: =VLOOKUP($A113,#REF!,2,0)-VLOOKUP($A113,$A$4:$BI$82,O$3,0) ->  | P113: =VLOOKUP($A113,#REF!,2,0)-VLOOKUP($A113,$A$4:$BI$82,P$3,0) ->  | Q113: =VLOOKUP($A113,#REF!,2,0)-VLOOKUP($A113,$A$4:$BI$82,Q$3,0) ->  | R113: =VLOOKUP($A113,#REF!,2,0)-VLOOKUP($A113,$A$4:$BI$82,R$3,0) ->  | S113: =VLOOKUP($A113,#REF!,2,0)-VLOOKUP($A113,$A$4:$BI$82,S$3,0) ->  | T113: =VLOOKUP($A113,#REF!,2,0)-VLOOKUP($A113,$A$4:$BI$82,T$3,0) ->  | U113: =VLOOKUP($A113,#REF!,2,0)-VLOOKUP($A113,$A$4:$BI$82,U$3,0) ->  | V113: =VLOOKUP($A113,#REF!,2,0)-VLOOKUP($A113,$A$4:$BI$82,V$3,0) ->  | W113: =VLOOKUP($A113,#REF!,2,0)-VLOOKUP($A113,$A$4:$BI$82,W$3,0) ->  | X113: =VLOOKUP($A113,#REF!,2,0)-VLOOKUP($A113,$A$4:$BI$82,X$3,0) ->  | Y113: =VLOOKUP($A113,#REF!,2,0)-VLOOKUP($A113,$A$4:$BI$82,Y$3,0) ->  | Z113: =VLOOKUP($A113,#REF!,2,0)-VLOOKUP($A113,$A$4:$BI$82,Z$3,0) ->  | AA113: =VLOOKUP($A113,#REF!,2,0)-VLOOKUP($A113,$A$4:$BI$82,AA$3,0) ->  | AB113: =VLOOKUP($A113,#REF!,2,0)-VLOOKUP($A113,$A$4:$BI$82,AB$3,0) ->  | AC113: =VLOOKUP($A113,#REF!,2,0)-VLOOKUP($A113,$A$4:$BI$82,AC$3,0) ->  | AD113: =VLOOKUP($A113,#REF!,2,0)-VLOOKUP($A113,$A$4:$BI$82,AD$3,0) ->  | AE113: =VLOOKUP($A113,#REF!,2,0)-VLOOKUP($A113,$A$4:$BI$82,AE$3,0) ->  | AF113: =VLOOKUP($A113,#REF!,2,0)-VLOOKUP($A113,$A$4:$BI$82,AF$3,0) ->  | AG113: =VLOOKUP($A113,#REF!,2,0)-VLOOKUP($A113,$A$4:$BI$82,AG$3,0) ->  | AH113: =VLOOKUP($A113,#REF!,2,0)-VLOOKUP($A113,$A$4:$BI$82,AH$3,0) ->  | AI113: =VLOOKUP($A113,#REF!,2,0)-VLOOKUP($A113,$A$4:$BI$82,AI$3,0) ->  | AJ113: =VLOOKUP($A113,#REF!,2,0)-VLOOKUP($A113,$A$4:$BI$82,AJ$3,0) ->  | AK113: =VLOOKUP($A113,#REF!,2,0)-VLOOKUP($A113,$A$4:$BI$82,AK$3,0) ->  | AL113: =VLOOKUP($A113,#REF!,2,0)-VLOOKUP($A113,$A$4:$BI$82,AL$3,0) ->  | AM113: =VLOOKUP($A113,#REF!,2,0)-VLOOKUP($A113,$A$4:$BI$82,AM$3,0) ->  | AN113: =VLOOKUP($A113,#REF!,2,0)-VLOOKUP($A113,$A$4:$BI$82,AN$3,0) ->  | AO113: =VLOOKUP($A113,#REF!,2,0)-VLOOKUP($A113,$A$4:$BI$82,AO$3,0) ->  | AP113: =VLOOKUP($A113,#REF!,2,0)-VLOOKUP($A113,$A$4:$BI$82,AP$3,0) ->  | AQ113: =VLOOKUP($A113,#REF!,2,0)-VLOOKUP($A113,$A$4:$BI$82,AQ$3,0) ->  | AR113: =VLOOKUP($A113,#REF!,2,0)-VLOOKUP($A113,$A$4:$BI$82,AR$3,0) ->  | AS113: =VLOOKUP($A113,#REF!,2,0)-VLOOKUP($A113,$A$4:$BI$82,AS$3,0) ->  | AT113: =VLOOKUP($A113,#REF!,2,0)-VLOOKUP($A113,$A$4:$BI$82,AT$3,0) ->  | AU113: =VLOOKUP($A113,#REF!,2,0)-VLOOKUP($A113,$A$4:$BI$82,AU$3,0) ->  | AV113: =VLOOKUP($A113,#REF!,2,0)-VLOOKUP($A113,$A$4:$BI$82,AV$3,0) ->  | AW113: =VLOOKUP($A113,#REF!,2,0)-VLOOKUP($A113,$A$4:$BI$82,AW$3,0) ->  | AX113: =VLOOKUP($A113,#REF!,2,0)-VLOOKUP($A113,$A$4:$BI$82,AX$3,0) ->  | AY113: =VLOOKUP($A113,#REF!,2,0)-VLOOKUP($A113,$A$4:$BI$82,AY$3,0) ->  | AZ113: =VLOOKUP($A113,#REF!,2,0)-VLOOKUP($A113,$A$4:$BI$82,AZ$3,0) ->  | BA113: =VLOOKUP($A113,#REF!,2,0)-VLOOKUP($A113,$A$4:$BI$82,BA$3,0) ->  | BB113: =VLOOKUP($A113,#REF!,2,0)-VLOOKUP($A113,$A$4:$BI$82,BB$3,0) ->  | BC113: =VLOOKUP($A113,#REF!,2,0)-VLOOKUP($A113,$A$4:$BI$82,BC$3,0) ->  | BD113: =VLOOKUP($A113,#REF!,2,0)-VLOOKUP($A113,$A$4:$BI$82,BD$3,0) ->  | BE113: =VLOOKUP($A113,#REF!,2,0)-VLOOKUP($A113,$A$4:$BI$82,BE$3,0) ->  | BF113: =VLOOKUP($A113,#REF!,2,0)-VLOOKUP($A113,$A$4:$BI$82,BF$3,0) ->  | BG113: =VLOOKUP($A113,#REF!,2,0)-VLOOKUP($A113,$A$4:$BI$82,BG$3,0) ->  | BH113: =VLOOKUP($A113,#REF!,2,0)-VLOOKUP($A113,$A$4:$BI$82,BH$3,0) ->  | BI113: =VLOOKUP($A113,#REF!,2,0)-VLOOKUP($A113,$A$4:$BI$82,BI$3,0) -> 
A114: Ideal Panamá, S.A. | M114: =VLOOKUP($A114,#REF!,3,0) ->  | N114: =VLOOKUP($A114,#REF!,2,0)-VLOOKUP($A114,$A$4:$BI$82,N$3,0) ->  | O114: =VLOOKUP($A114,#REF!,2,0)-VLOOKUP($A114,$A$4:$BI$82,O$3,0) ->  | P114: =VLOOKUP($A114,#REF!,2,0)-VLOOKUP($A114,$A$4:$BI$82,P$3,0) ->  | Q114: =VLOOKUP($A114,#REF!,2,0)-VLOOKUP($A114,$A$4:$BI$82,Q$3,0) ->  | R114: =VLOOKUP($A114,#REF!,2,0)-VLOOKUP($A114,$A$4:$BI$82,R$3,0) ->  | S114: =VLOOKUP($A114,#REF!,2,0)-VLOOKUP($A114,$A$4:$BI$82,S$3,0) ->  | T114: =VLOOKUP($A114,#REF!,2,0)-VLOOKUP($A114,$A$4:$BI$82,T$3,0) ->  | U114: =VLOOKUP($A114,#REF!,2,0)-VLOOKUP($A114,$A$4:$BI$82,U$3,0) ->  | V114: =VLOOKUP($A114,#REF!,2,0)-VLOOKUP($A114,$A$4:$BI$82,V$3,0) ->  | W114: =VLOOKUP($A114,#REF!,2,0)-VLOOKUP($A114,$A$4:$BI$82,W$3,0) ->  | X114: =VLOOKUP($A114,#REF!,2,0)-VLOOKUP($A114,$A$4:$BI$82,X$3,0) ->  | Y114: =VLOOKUP($A114,#REF!,2,0)-VLOOKUP($A114,$A$4:$BI$82,Y$3,0) ->  | Z114: =VLOOKUP($A114,#REF!,2,0)-VLOOKUP($A114,$A$4:$BI$82,Z$3,0) ->  | AA114: =VLOOKUP($A114,#REF!,2,0)-VLOOKUP($A114,$A$4:$BI$82,AA$3,0) ->  | AB114: =VLOOKUP($A114,#REF!,2,0)-VLOOKUP($A114,$A$4:$BI$82,AB$3,0) ->  | AC114: =VLOOKUP($A114,#REF!,2,0)-VLOOKUP($A114,$A$4:$BI$82,AC$3,0) ->  | AD114: =VLOOKUP($A114,#REF!,2,0)-VLOOKUP($A114,$A$4:$BI$82,AD$3,0) ->  | AE114: =VLOOKUP($A114,#REF!,2,0)-VLOOKUP($A114,$A$4:$BI$82,AE$3,0) ->  | AF114: =VLOOKUP($A114,#REF!,2,0)-VLOOKUP($A114,$A$4:$BI$82,AF$3,0) ->  | AG114: =VLOOKUP($A114,#REF!,2,0)-VLOOKUP($A114,$A$4:$BI$82,AG$3,0) ->  | AH114: =VLOOKUP($A114,#REF!,2,0)-VLOOKUP($A114,$A$4:$BI$82,AH$3,0) ->  | AI114: =VLOOKUP($A114,#REF!,2,0)-VLOOKUP($A114,$A$4:$BI$82,AI$3,0) ->  | AJ114: =VLOOKUP($A114,#REF!,2,0)-VLOOKUP($A114,$A$4:$BI$82,AJ$3,0) ->  | AK114: =VLOOKUP($A114,#REF!,2,0)-VLOOKUP($A114,$A$4:$BI$82,AK$3,0) ->  | AL114: =VLOOKUP($A114,#REF!,2,0)-VLOOKUP($A114,$A$4:$BI$82,AL$3,0) ->  | AM114: =VLOOKUP($A114,#REF!,2,0)-VLOOKUP($A114,$A$4:$BI$82,AM$3,0) ->  | AN114: =VLOOKUP($A114,#REF!,2,0)-VLOOKUP($A114,$A$4:$BI$82,AN$3,0) ->  | AO114: =VLOOKUP($A114,#REF!,2,0)-VLOOKUP($A114,$A$4:$BI$82,AO$3,0) ->  | AP114: =VLOOKUP($A114,#REF!,2,0)-VLOOKUP($A114,$A$4:$BI$82,AP$3,0) ->  | AQ114: =VLOOKUP($A114,#REF!,2,0)-VLOOKUP($A114,$A$4:$BI$82,AQ$3,0) ->  | AR114: =VLOOKUP($A114,#REF!,2,0)-VLOOKUP($A114,$A$4:$BI$82,AR$3,0) ->  | AS114: =VLOOKUP($A114,#REF!,2,0)-VLOOKUP($A114,$A$4:$BI$82,AS$3,0) ->  | AT114: =VLOOKUP($A114,#REF!,2,0)-VLOOKUP($A114,$A$4:$BI$82,AT$3,0) ->  | AU114: =VLOOKUP($A114,#REF!,2,0)-VLOOKUP($A114,$A$4:$BI$82,AU$3,0) ->  | AV114: =VLOOKUP($A114,#REF!,2,0)-VLOOKUP($A114,$A$4:$BI$82,AV$3,0) ->  | AW114: =VLOOKUP($A114,#REF!,2,0)-VLOOKUP($A114,$A$4:$BI$82,AW$3,0) ->  | AX114: =VLOOKUP($A114,#REF!,2,0)-VLOOKUP($A114,$A$4:$BI$82,AX$3,0) ->  | AY114: =VLOOKUP($A114,#REF!,2,0)-VLOOKUP($A114,$A$4:$BI$82,AY$3,0) ->  | AZ114: =VLOOKUP($A114,#REF!,2,0)-VLOOKUP($A114,$A$4:$BI$82,AZ$3,0) ->  | BA114: =VLOOKUP($A114,#REF!,2,0)-VLOOKUP($A114,$A$4:$BI$82,BA$3,0) ->  | BB114: =VLOOKUP($A114,#REF!,2,0)-VLOOKUP($A114,$A$4:$BI$82,BB$3,0) ->  | BC114: =VLOOKUP($A114,#REF!,2,0)-VLOOKUP($A114,$A$4:$BI$82,BC$3,0) ->  | BD114: =VLOOKUP($A114,#REF!,2,0)-VLOOKUP($A114,$A$4:$BI$82,BD$3,0) ->  | BE114: =VLOOKUP($A114,#REF!,2,0)-VLOOKUP($A114,$A$4:$BI$82,BE$3,0) ->  | BF114: =VLOOKUP($A114,#REF!,2,0)-VLOOKUP($A114,$A$4:$BI$82,BF$3,0) ->  | BG114: =VLOOKUP($A114,#REF!,2,0)-VLOOKUP($A114,$A$4:$BI$82,BG$3,0) ->  | BH114: =VLOOKUP($A114,#REF!,2,0)-VLOOKUP($A114,$A$4:$BI$82,BH$3,0) ->  | BI114: =VLOOKUP($A114,#REF!,2,0)-VLOOKUP($A114,$A$4:$BI$82,BI$3,0) -> 
A115: Istmus Hydro Power, Corp. | M115: =VLOOKUP($A115,#REF!,3,0) ->  | N115: =VLOOKUP($A115,#REF!,2,0)-VLOOKUP($A115,$A$4:$BI$82,N$3,0) ->  | O115: =VLOOKUP($A115,#REF!,2,0)-VLOOKUP($A115,$A$4:$BI$82,O$3,0) ->  | P115: =VLOOKUP($A115,#REF!,2,0)-VLOOKUP($A115,$A$4:$BI$82,P$3,0) ->  | Q115: =VLOOKUP($A115,#REF!,2,0)-VLOOKUP($A115,$A$4:$BI$82,Q$3,0) ->  | R115: =VLOOKUP($A115,#REF!,2,0)-VLOOKUP($A115,$A$4:$BI$82,R$3,0) ->  | S115: =VLOOKUP($A115,#REF!,2,0)-VLOOKUP($A115,$A$4:$BI$82,S$3,0) ->  | T115: =VLOOKUP($A115,#REF!,2,0)-VLOOKUP($A115,$A$4:$BI$82,T$3,0) ->  | U115: =VLOOKUP($A115,#REF!,2,0)-VLOOKUP($A115,$A$4:$BI$82,U$3,0) ->  | V115: =VLOOKUP($A115,#REF!,2,0)-VLOOKUP($A115,$A$4:$BI$82,V$3,0) ->  | W115: =VLOOKUP($A115,#REF!,2,0)-VLOOKUP($A115,$A$4:$BI$82,W$3,0) ->  | X115: =VLOOKUP($A115,#REF!,2,0)-VLOOKUP($A115,$A$4:$BI$82,X$3,0) ->  | Y115: =VLOOKUP($A115,#REF!,2,0)-VLOOKUP($A115,$A$4:$BI$82,Y$3,0) ->  | Z115: =VLOOKUP($A115,#REF!,2,0)-VLOOKUP($A115,$A$4:$BI$82,Z$3,0) ->  | AA115: =VLOOKUP($A115,#REF!,2,0)-VLOOKUP($A115,$A$4:$BI$82,AA$3,0) ->  | AB115: =VLOOKUP($A115,#REF!,2,0)-VLOOKUP($A115,$A$4:$BI$82,AB$3,0) ->  | AC115: =VLOOKUP($A115,#REF!,2,0)-VLOOKUP($A115,$A$4:$BI$82,AC$3,0) ->  | AD115: =VLOOKUP($A115,#REF!,2,0)-VLOOKUP($A115,$A$4:$BI$82,AD$3,0) ->  | AE115: =VLOOKUP($A115,#REF!,2,0)-VLOOKUP($A115,$A$4:$BI$82,AE$3,0) ->  | AF115: =VLOOKUP($A115,#REF!,2,0)-VLOOKUP($A115,$A$4:$BI$82,AF$3,0) ->  | AG115: =VLOOKUP($A115,#REF!,2,0)-VLOOKUP($A115,$A$4:$BI$82,AG$3,0) ->  | AH115: =VLOOKUP($A115,#REF!,2,0)-VLOOKUP($A115,$A$4:$BI$82,AH$3,0) ->  | AI115: =VLOOKUP($A115,#REF!,2,0)-VLOOKUP($A115,$A$4:$BI$82,AI$3,0) ->  | AJ115: =VLOOKUP($A115,#REF!,2,0)-VLOOKUP($A115,$A$4:$BI$82,AJ$3,0) ->  | AK115: =VLOOKUP($A115,#REF!,2,0)-VLOOKUP($A115,$A$4:$BI$82,AK$3,0) ->  | AL115: =VLOOKUP($A115,#REF!,2,0)-VLOOKUP($A115,$A$4:$BI$82,AL$3,0) ->  | AM115: =VLOOKUP($A115,#REF!,2,0)-VLOOKUP($A115,$A$4:$BI$82,AM$3,0) ->  | AN115: =VLOOKUP($A115,#REF!,2,0)-VLOOKUP($A115,$A$4:$BI$82,AN$3,0) ->  | AO115: =VLOOKUP($A115,#REF!,2,0)-VLOOKUP($A115,$A$4:$BI$82,AO$3,0) ->  | AP115: =VLOOKUP($A115,#REF!,2,0)-VLOOKUP($A115,$A$4:$BI$82,AP$3,0) ->  | AQ115: =VLOOKUP($A115,#REF!,2,0)-VLOOKUP($A115,$A$4:$BI$82,AQ$3,0) ->  | AR115: =VLOOKUP($A115,#REF!,2,0)-VLOOKUP($A115,$A$4:$BI$82,AR$3,0) ->  | AS115: =VLOOKUP($A115,#REF!,2,0)-VLOOKUP($A115,$A$4:$BI$82,AS$3,0) ->  | AT115: =VLOOKUP($A115,#REF!,2,0)-VLOOKUP($A115,$A$4:$BI$82,AT$3,0) ->  | AU115: =VLOOKUP($A115,#REF!,2,0)-VLOOKUP($A115,$A$4:$BI$82,AU$3,0) ->  | AV115: =VLOOKUP($A115,#REF!,2,0)-VLOOKUP($A115,$A$4:$BI$82,AV$3,0) ->  | AW115: =VLOOKUP($A115,#REF!,2,0)-VLOOKUP($A115,$A$4:$BI$82,AW$3,0) ->  | AX115: =VLOOKUP($A115,#REF!,2,0)-VLOOKUP($A115,$A$4:$BI$82,AX$3,0) ->  | AY115: =VLOOKUP($A115,#REF!,2,0)-VLOOKUP($A115,$A$4:$BI$82,AY$3,0) ->  | AZ115: =VLOOKUP($A115,#REF!,2,0)-VLOOKUP($A115,$A$4:$BI$82,AZ$3,0) ->  | BA115: =VLOOKUP($A115,#REF!,2,0)-VLOOKUP($A115,$A$4:$BI$82,BA$3,0) ->  | BB115: =VLOOKUP($A115,#REF!,2,0)-VLOOKUP($A115,$A$4:$BI$82,BB$3,0) ->  | BC115: =VLOOKUP($A115,#REF!,2,0)-VLOOKUP($A115,$A$4:$BI$82,BC$3,0) ->  | BD115: =VLOOKUP($A115,#REF!,2,0)-VLOOKUP($A115,$A$4:$BI$82,BD$3,0) ->  | BE115: =VLOOKUP($A115,#REF!,2,0)-VLOOKUP($A115,$A$4:$BI$82,BE$3,0) ->  | BF115: =VLOOKUP($A115,#REF!,2,0)-VLOOKUP($A115,$A$4:$BI$82,BF$3,0) ->  | BG115: =VLOOKUP($A115,#REF!,2,0)-VLOOKUP($A115,$A$4:$BI$82,BG$3,0) ->  | BH115: =VLOOKUP($A115,#REF!,2,0)-VLOOKUP($A115,$A$4:$BI$82,BH$3,0) ->  | BI115: =VLOOKUP($A115,#REF!,2,0)-VLOOKUP($A115,$A$4:$BI$82,BI$3,0) -> 
A116: Jinro Corp | M116: =VLOOKUP($A116,#REF!,3,0) ->  | N116: =VLOOKUP($A116,#REF!,2,0)-VLOOKUP($A116,$A$4:$BI$82,N$3,0) ->  | O116: =VLOOKUP($A116,#REF!,2,0)-VLOOKUP($A116,$A$4:$BI$82,O$3,0) ->  | P116: =VLOOKUP($A116,#REF!,2,0)-VLOOKUP($A116,$A$4:$BI$82,P$3,0) ->  | Q116: =VLOOKUP($A116,#REF!,2,0)-VLOOKUP($A116,$A$4:$BI$82,Q$3,0) ->  | R116: =VLOOKUP($A116,#REF!,2,0)-VLOOKUP($A116,$A$4:$BI$82,R$3,0) ->  | S116: =VLOOKUP($A116,#REF!,2,0)-VLOOKUP($A116,$A$4:$BI$82,S$3,0) ->  | T116: =VLOOKUP($A116,#REF!,2,0)-VLOOKUP($A116,$A$4:$BI$82,T$3,0) ->  | U116: =VLOOKUP($A116,#REF!,2,0)-VLOOKUP($A116,$A$4:$BI$82,U$3,0) ->  | V116: =VLOOKUP($A116,#REF!,2,0)-VLOOKUP($A116,$A$4:$BI$82,V$3,0) ->  | W116: =VLOOKUP($A116,#REF!,2,0)-VLOOKUP($A116,$A$4:$BI$82,W$3,0) ->  | X116: =VLOOKUP($A116,#REF!,2,0)-VLOOKUP($A116,$A$4:$BI$82,X$3,0) ->  | Y116: =VLOOKUP($A116,#REF!,2,0)-VLOOKUP($A116,$A$4:$BI$82,Y$3,0) ->  | Z116: =VLOOKUP($A116,#REF!,2,0)-VLOOKUP($A116,$A$4:$BI$82,Z$3,0) ->  | AA116: =VLOOKUP($A116,#REF!,2,0)-VLOOKUP($A116,$A$4:$BI$82,AA$3,0) ->  | AB116: =VLOOKUP($A116,#REF!,2,0)-VLOOKUP($A116,$A$4:$BI$82,AB$3,0) ->  | AC116: =VLOOKUP($A116,#REF!,2,0)-VLOOKUP($A116,$A$4:$BI$82,AC$3,0) ->  | AD116: =VLOOKUP($A116,#REF!,2,0)-VLOOKUP($A116,$A$4:$BI$82,AD$3,0) ->  | AE116: =VLOOKUP($A116,#REF!,2,0)-VLOOKUP($A116,$A$4:$BI$82,AE$3,0) ->  | AF116: =VLOOKUP($A116,#REF!,2,0)-VLOOKUP($A116,$A$4:$BI$82,AF$3,0) ->  | AG116: =VLOOKUP($A116,#REF!,2,0)-VLOOKUP($A116,$A$4:$BI$82,AG$3,0) ->  | AH116: =VLOOKUP($A116,#REF!,2,0)-VLOOKUP($A116,$A$4:$BI$82,AH$3,0) ->  | AI116: =VLOOKUP($A116,#REF!,2,0)-VLOOKUP($A116,$A$4:$BI$82,AI$3,0) ->  | AJ116: =VLOOKUP($A116,#REF!,2,0)-VLOOKUP($A116,$A$4:$BI$82,AJ$3,0) ->  | AK116: =VLOOKUP($A116,#REF!,2,0)-VLOOKUP($A116,$A$4:$BI$82,AK$3,0) ->  | AL116: =VLOOKUP($A116,#REF!,2,0)-VLOOKUP($A116,$A$4:$BI$82,AL$3,0) ->  | AM116: =VLOOKUP($A116,#REF!,2,0)-VLOOKUP($A116,$A$4:$BI$82,AM$3,0) ->  | AN116: =VLOOKUP($A116,#REF!,2,0)-VLOOKUP($A116,$A$4:$BI$82,AN$3,0) ->  | AO116: =VLOOKUP($A116,#REF!,2,0)-VLOOKUP($A116,$A$4:$BI$82,AO$3,0) ->  | AP116: =VLOOKUP($A116,#REF!,2,0)-VLOOKUP($A116,$A$4:$BI$82,AP$3,0) ->  | AQ116: =VLOOKUP($A116,#REF!,2,0)-VLOOKUP($A116,$A$4:$BI$82,AQ$3,0) ->  | AR116: =VLOOKUP($A116,#REF!,2,0)-VLOOKUP($A116,$A$4:$BI$82,AR$3,0) ->  | AS116: =VLOOKUP($A116,#REF!,2,0)-VLOOKUP($A116,$A$4:$BI$82,AS$3,0) ->  | AT116: =VLOOKUP($A116,#REF!,2,0)-VLOOKUP($A116,$A$4:$BI$82,AT$3,0) ->  | AU116: =VLOOKUP($A116,#REF!,2,0)-VLOOKUP($A116,$A$4:$BI$82,AU$3,0) ->  | AV116: =VLOOKUP($A116,#REF!,2,0)-VLOOKUP($A116,$A$4:$BI$82,AV$3,0) ->  | AW116: =VLOOKUP($A116,#REF!,2,0)-VLOOKUP($A116,$A$4:$BI$82,AW$3,0) ->  | AX116: =VLOOKUP($A116,#REF!,2,0)-VLOOKUP($A116,$A$4:$BI$82,AX$3,0) ->  | AY116: =VLOOKUP($A116,#REF!,2,0)-VLOOKUP($A116,$A$4:$BI$82,AY$3,0) ->  | AZ116: =VLOOKUP($A116,#REF!,2,0)-VLOOKUP($A116,$A$4:$BI$82,AZ$3,0) ->  | BA116: =VLOOKUP($A116,#REF!,2,0)-VLOOKUP($A116,$A$4:$BI$82,BA$3,0) ->  | BB116: =VLOOKUP($A116,#REF!,2,0)-VLOOKUP($A116,$A$4:$BI$82,BB$3,0) ->  | BC116: =VLOOKUP($A116,#REF!,2,0)-VLOOKUP($A116,$A$4:$BI$82,BC$3,0) ->  | BD116: =VLOOKUP($A116,#REF!,2,0)-VLOOKUP($A116,$A$4:$BI$82,BD$3,0) ->  | BE116: =VLOOKUP($A116,#REF!,2,0)-VLOOKUP($A116,$A$4:$BI$82,BE$3,0) ->  | BF116: =VLOOKUP($A116,#REF!,2,0)-VLOOKUP($A116,$A$4:$BI$82,BF$3,0) ->  | BG116: =VLOOKUP($A116,#REF!,2,0)-VLOOKUP($A116,$A$4:$BI$82,BG$3,0) ->  | BH116: =VLOOKUP($A116,#REF!,2,0)-VLOOKUP($A116,$A$4:$BI$82,BH$3,0) ->  | BI116: =VLOOKUP($A116,#REF!,2,0)-VLOOKUP($A116,$A$4:$BI$82,BI$3,0) -> 
A117: Kanan Overseas I, Inc | M117: =VLOOKUP($A117,#REF!,3,0) ->  | N117: =VLOOKUP($A117,#REF!,2,0)-VLOOKUP($A117,$A$4:$BI$82,N$3,0) ->  | O117: =VLOOKUP($A117,#REF!,2,0)-VLOOKUP($A117,$A$4:$BI$82,O$3,0) ->  | P117: =VLOOKUP($A117,#REF!,2,0)-VLOOKUP($A117,$A$4:$BI$82,P$3,0) ->  | Q117: =VLOOKUP($A117,#REF!,2,0)-VLOOKUP($A117,$A$4:$BI$82,Q$3,0) ->  | R117: =VLOOKUP($A117,#REF!,2,0)-VLOOKUP($A117,$A$4:$BI$82,R$3,0) ->  | S117: =VLOOKUP($A117,#REF!,2,0)-VLOOKUP($A117,$A$4:$BI$82,S$3,0) ->  | T117: =VLOOKUP($A117,#REF!,2,0)-VLOOKUP($A117,$A$4:$BI$82,T$3,0) ->  | U117: =VLOOKUP($A117,#REF!,2,0)-VLOOKUP($A117,$A$4:$BI$82,U$3,0) ->  | V117: =VLOOKUP($A117,#REF!,2,0)-VLOOKUP($A117,$A$4:$BI$82,V$3,0) ->  | W117: =VLOOKUP($A117,#REF!,2,0)-VLOOKUP($A117,$A$4:$BI$82,W$3,0) ->  | X117: =VLOOKUP($A117,#REF!,2,0)-VLOOKUP($A117,$A$4:$BI$82,X$3,0) ->  | Y117: =VLOOKUP($A117,#REF!,2,0)-VLOOKUP($A117,$A$4:$BI$82,Y$3,0) ->  | Z117: =VLOOKUP($A117,#REF!,2,0)-VLOOKUP($A117,$A$4:$BI$82,Z$3,0) ->  | AA117: =VLOOKUP($A117,#REF!,2,0)-VLOOKUP($A117,$A$4:$BI$82,AA$3,0) ->  | AB117: =VLOOKUP($A117,#REF!,2,0)-VLOOKUP($A117,$A$4:$BI$82,AB$3,0) ->  | AC117: =VLOOKUP($A117,#REF!,2,0)-VLOOKUP($A117,$A$4:$BI$82,AC$3,0) ->  | AD117: =VLOOKUP($A117,#REF!,2,0)-VLOOKUP($A117,$A$4:$BI$82,AD$3,0) ->  | AE117: =VLOOKUP($A117,#REF!,2,0)-VLOOKUP($A117,$A$4:$BI$82,AE$3,0) ->  | AF117: =VLOOKUP($A117,#REF!,2,0)-VLOOKUP($A117,$A$4:$BI$82,AF$3,0) ->  | AG117: =VLOOKUP($A117,#REF!,2,0)-VLOOKUP($A117,$A$4:$BI$82,AG$3,0) ->  | AH117: =VLOOKUP($A117,#REF!,2,0)-VLOOKUP($A117,$A$4:$BI$82,AH$3,0) ->  | AI117: =VLOOKUP($A117,#REF!,2,0)-VLOOKUP($A117,$A$4:$BI$82,AI$3,0) ->  | AJ117: =VLOOKUP($A117,#REF!,2,0)-VLOOKUP($A117,$A$4:$BI$82,AJ$3,0) ->  | AK117: =VLOOKUP($A117,#REF!,2,0)-VLOOKUP($A117,$A$4:$BI$82,AK$3,0) ->  | AL117: =VLOOKUP($A117,#REF!,2,0)-VLOOKUP($A117,$A$4:$BI$82,AL$3,0) ->  | AM117: =VLOOKUP($A117,#REF!,2,0)-VLOOKUP($A117,$A$4:$BI$82,AM$3,0) ->  | AN117: =VLOOKUP($A117,#REF!,2,0)-VLOOKUP($A117,$A$4:$BI$82,AN$3,0) ->  | AO117: =VLOOKUP($A117,#REF!,2,0)-VLOOKUP($A117,$A$4:$BI$82,AO$3,0) ->  | AP117: =VLOOKUP($A117,#REF!,2,0)-VLOOKUP($A117,$A$4:$BI$82,AP$3,0) ->  | AQ117: =VLOOKUP($A117,#REF!,2,0)-VLOOKUP($A117,$A$4:$BI$82,AQ$3,0) ->  | AR117: =VLOOKUP($A117,#REF!,2,0)-VLOOKUP($A117,$A$4:$BI$82,AR$3,0) ->  | AS117: =VLOOKUP($A117,#REF!,2,0)-VLOOKUP($A117,$A$4:$BI$82,AS$3,0) ->  | AT117: =VLOOKUP($A117,#REF!,2,0)-VLOOKUP($A117,$A$4:$BI$82,AT$3,0) ->  | AU117: =VLOOKUP($A117,#REF!,2,0)-VLOOKUP($A117,$A$4:$BI$82,AU$3,0) ->  | AV117: =VLOOKUP($A117,#REF!,2,0)-VLOOKUP($A117,$A$4:$BI$82,AV$3,0) ->  | AW117: =VLOOKUP($A117,#REF!,2,0)-VLOOKUP($A117,$A$4:$BI$82,AW$3,0) ->  | AX117: =VLOOKUP($A117,#REF!,2,0)-VLOOKUP($A117,$A$4:$BI$82,AX$3,0) ->  | AY117: =VLOOKUP($A117,#REF!,2,0)-VLOOKUP($A117,$A$4:$BI$82,AY$3,0) ->  | AZ117: =VLOOKUP($A117,#REF!,2,0)-VLOOKUP($A117,$A$4:$BI$82,AZ$3,0) ->  | BA117: =VLOOKUP($A117,#REF!,2,0)-VLOOKUP($A117,$A$4:$BI$82,BA$3,0) ->  | BB117: =VLOOKUP($A117,#REF!,2,0)-VLOOKUP($A117,$A$4:$BI$82,BB$3,0) ->  | BC117: =VLOOKUP($A117,#REF!,2,0)-VLOOKUP($A117,$A$4:$BI$82,BC$3,0) ->  | BD117: =VLOOKUP($A117,#REF!,2,0)-VLOOKUP($A117,$A$4:$BI$82,BD$3,0) ->  | BE117: =VLOOKUP($A117,#REF!,2,0)-VLOOKUP($A117,$A$4:$BI$82,BE$3,0) ->  | BF117: =VLOOKUP($A117,#REF!,2,0)-VLOOKUP($A117,$A$4:$BI$82,BF$3,0) ->  | BG117: =VLOOKUP($A117,#REF!,2,0)-VLOOKUP($A117,$A$4:$BI$82,BG$3,0) ->  | BH117: =VLOOKUP($A117,#REF!,2,0)-VLOOKUP($A117,$A$4:$BI$82,BH$3,0) ->  | BI117: =VLOOKUP($A117,#REF!,2,0)-VLOOKUP($A117,$A$4:$BI$82,BI$3,0) -> 
A118: Las Perlas Norte, S.A. | M118: =VLOOKUP($A118,#REF!,3,0) ->  | N118: =VLOOKUP($A118,#REF!,2,0)-VLOOKUP($A118,$A$4:$BI$82,N$3,0) ->  | O118: =VLOOKUP($A118,#REF!,2,0)-VLOOKUP($A118,$A$4:$BI$82,O$3,0) ->  | P118: =VLOOKUP($A118,#REF!,2,0)-VLOOKUP($A118,$A$4:$BI$82,P$3,0) ->  | Q118: =VLOOKUP($A118,#REF!,2,0)-VLOOKUP($A118,$A$4:$BI$82,Q$3,0) ->  | R118: =VLOOKUP($A118,#REF!,2,0)-VLOOKUP($A118,$A$4:$BI$82,R$3,0) ->  | S118: =VLOOKUP($A118,#REF!,2,0)-VLOOKUP($A118,$A$4:$BI$82,S$3,0) ->  | T118: =VLOOKUP($A118,#REF!,2,0)-VLOOKUP($A118,$A$4:$BI$82,T$3,0) ->  | U118: =VLOOKUP($A118,#REF!,2,0)-VLOOKUP($A118,$A$4:$BI$82,U$3,0) ->  | V118: =VLOOKUP($A118,#REF!,2,0)-VLOOKUP($A118,$A$4:$BI$82,V$3,0) ->  | W118: =VLOOKUP($A118,#REF!,2,0)-VLOOKUP($A118,$A$4:$BI$82,W$3,0) ->  | X118: =VLOOKUP($A118,#REF!,2,0)-VLOOKUP($A118,$A$4:$BI$82,X$3,0) ->  | Y118: =VLOOKUP($A118,#REF!,2,0)-VLOOKUP($A118,$A$4:$BI$82,Y$3,0) ->  | Z118: =VLOOKUP($A118,#REF!,2,0)-VLOOKUP($A118,$A$4:$BI$82,Z$3,0) ->  | AA118: =VLOOKUP($A118,#REF!,2,0)-VLOOKUP($A118,$A$4:$BI$82,AA$3,0) ->  | AB118: =VLOOKUP($A118,#REF!,2,0)-VLOOKUP($A118,$A$4:$BI$82,AB$3,0) ->  | AC118: =VLOOKUP($A118,#REF!,2,0)-VLOOKUP($A118,$A$4:$BI$82,AC$3,0) ->  | AD118: =VLOOKUP($A118,#REF!,2,0)-VLOOKUP($A118,$A$4:$BI$82,AD$3,0) ->  | AE118: =VLOOKUP($A118,#REF!,2,0)-VLOOKUP($A118,$A$4:$BI$82,AE$3,0) ->  | AF118: =VLOOKUP($A118,#REF!,2,0)-VLOOKUP($A118,$A$4:$BI$82,AF$3,0) ->  | AG118: =VLOOKUP($A118,#REF!,2,0)-VLOOKUP($A118,$A$4:$BI$82,AG$3,0) ->  | AH118: =VLOOKUP($A118,#REF!,2,0)-VLOOKUP($A118,$A$4:$BI$82,AH$3,0) ->  | AI118: =VLOOKUP($A118,#REF!,2,0)-VLOOKUP($A118,$A$4:$BI$82,AI$3,0) ->  | AJ118: =VLOOKUP($A118,#REF!,2,0)-VLOOKUP($A118,$A$4:$BI$82,AJ$3,0) ->  | AK118: =VLOOKUP($A118,#REF!,2,0)-VLOOKUP($A118,$A$4:$BI$82,AK$3,0) ->  | AL118: =VLOOKUP($A118,#REF!,2,0)-VLOOKUP($A118,$A$4:$BI$82,AL$3,0) ->  | AM118: =VLOOKUP($A118,#REF!,2,0)-VLOOKUP($A118,$A$4:$BI$82,AM$3,0) ->  | AN118: =VLOOKUP($A118,#REF!,2,0)-VLOOKUP($A118,$A$4:$BI$82,AN$3,0) ->  | AO118: =VLOOKUP($A118,#REF!,2,0)-VLOOKUP($A118,$A$4:$BI$82,AO$3,0) ->  | AP118: =VLOOKUP($A118,#REF!,2,0)-VLOOKUP($A118,$A$4:$BI$82,AP$3,0) ->  | AQ118: =VLOOKUP($A118,#REF!,2,0)-VLOOKUP($A118,$A$4:$BI$82,AQ$3,0) ->  | AR118: =VLOOKUP($A118,#REF!,2,0)-VLOOKUP($A118,$A$4:$BI$82,AR$3,0) ->  | AS118: =VLOOKUP($A118,#REF!,2,0)-VLOOKUP($A118,$A$4:$BI$82,AS$3,0) ->  | AT118: =VLOOKUP($A118,#REF!,2,0)-VLOOKUP($A118,$A$4:$BI$82,AT$3,0) ->  | AU118: =VLOOKUP($A118,#REF!,2,0)-VLOOKUP($A118,$A$4:$BI$82,AU$3,0) ->  | AV118: =VLOOKUP($A118,#REF!,2,0)-VLOOKUP($A118,$A$4:$BI$82,AV$3,0) ->  | AW118: =VLOOKUP($A118,#REF!,2,0)-VLOOKUP($A118,$A$4:$BI$82,AW$3,0) ->  | AX118: =VLOOKUP($A118,#REF!,2,0)-VLOOKUP($A118,$A$4:$BI$82,AX$3,0) ->  | AY118: =VLOOKUP($A118,#REF!,2,0)-VLOOKUP($A118,$A$4:$BI$82,AY$3,0) ->  | AZ118: =VLOOKUP($A118,#REF!,2,0)-VLOOKUP($A118,$A$4:$BI$82,AZ$3,0) ->  | BA118: =VLOOKUP($A118,#REF!,2,0)-VLOOKUP($A118,$A$4:$BI$82,BA$3,0) ->  | BB118: =VLOOKUP($A118,#REF!,2,0)-VLOOKUP($A118,$A$4:$BI$82,BB$3,0) ->  | BC118: =VLOOKUP($A118,#REF!,2,0)-VLOOKUP($A118,$A$4:$BI$82,BC$3,0) ->  | BD118: =VLOOKUP($A118,#REF!,2,0)-VLOOKUP($A118,$A$4:$BI$82,BD$3,0) ->  | BE118: =VLOOKUP($A118,#REF!,2,0)-VLOOKUP($A118,$A$4:$BI$82,BE$3,0) ->  | BF118: =VLOOKUP($A118,#REF!,2,0)-VLOOKUP($A118,$A$4:$BI$82,BF$3,0) ->  | BG118: =VLOOKUP($A118,#REF!,2,0)-VLOOKUP($A118,$A$4:$BI$82,BG$3,0) ->  | BH118: =VLOOKUP($A118,#REF!,2,0)-VLOOKUP($A118,$A$4:$BI$82,BH$3,0) ->  | BI118: =VLOOKUP($A118,#REF!,2,0)-VLOOKUP($A118,$A$4:$BI$82,BI$3,0) -> 
A119: Las Perlas Sur, S.A. | M119: =VLOOKUP($A119,#REF!,3,0) ->  | N119: =VLOOKUP($A119,#REF!,2,0)-VLOOKUP($A119,$A$4:$BI$82,N$3,0) ->  | O119: =VLOOKUP($A119,#REF!,2,0)-VLOOKUP($A119,$A$4:$BI$82,O$3,0) ->  | P119: =VLOOKUP($A119,#REF!,2,0)-VLOOKUP($A119,$A$4:$BI$82,P$3,0) ->  | Q119: =VLOOKUP($A119,#REF!,2,0)-VLOOKUP($A119,$A$4:$BI$82,Q$3,0) ->  | R119: =VLOOKUP($A119,#REF!,2,0)-VLOOKUP($A119,$A$4:$BI$82,R$3,0) ->  | S119: =VLOOKUP($A119,#REF!,2,0)-VLOOKUP($A119,$A$4:$BI$82,S$3,0) ->  | T119: =VLOOKUP($A119,#REF!,2,0)-VLOOKUP($A119,$A$4:$BI$82,T$3,0) ->  | U119: =VLOOKUP($A119,#REF!,2,0)-VLOOKUP($A119,$A$4:$BI$82,U$3,0) ->  | V119: =VLOOKUP($A119,#REF!,2,0)-VLOOKUP($A119,$A$4:$BI$82,V$3,0) ->  | W119: =VLOOKUP($A119,#REF!,2,0)-VLOOKUP($A119,$A$4:$BI$82,W$3,0) ->  | X119: =VLOOKUP($A119,#REF!,2,0)-VLOOKUP($A119,$A$4:$BI$82,X$3,0) ->  | Y119: =VLOOKUP($A119,#REF!,2,0)-VLOOKUP($A119,$A$4:$BI$82,Y$3,0) ->  | Z119: =VLOOKUP($A119,#REF!,2,0)-VLOOKUP($A119,$A$4:$BI$82,Z$3,0) ->  | AA119: =VLOOKUP($A119,#REF!,2,0)-VLOOKUP($A119,$A$4:$BI$82,AA$3,0) ->  | AB119: =VLOOKUP($A119,#REF!,2,0)-VLOOKUP($A119,$A$4:$BI$82,AB$3,0) ->  | AC119: =VLOOKUP($A119,#REF!,2,0)-VLOOKUP($A119,$A$4:$BI$82,AC$3,0) ->  | AD119: =VLOOKUP($A119,#REF!,2,0)-VLOOKUP($A119,$A$4:$BI$82,AD$3,0) ->  | AE119: =VLOOKUP($A119,#REF!,2,0)-VLOOKUP($A119,$A$4:$BI$82,AE$3,0) ->  | AF119: =VLOOKUP($A119,#REF!,2,0)-VLOOKUP($A119,$A$4:$BI$82,AF$3,0) ->  | AG119: =VLOOKUP($A119,#REF!,2,0)-VLOOKUP($A119,$A$4:$BI$82,AG$3,0) ->  | AH119: =VLOOKUP($A119,#REF!,2,0)-VLOOKUP($A119,$A$4:$BI$82,AH$3,0) ->  | AI119: =VLOOKUP($A119,#REF!,2,0)-VLOOKUP($A119,$A$4:$BI$82,AI$3,0) ->  | AJ119: =VLOOKUP($A119,#REF!,2,0)-VLOOKUP($A119,$A$4:$BI$82,AJ$3,0) ->  | AK119: =VLOOKUP($A119,#REF!,2,0)-VLOOKUP($A119,$A$4:$BI$82,AK$3,0) ->  | AL119: =VLOOKUP($A119,#REF!,2,0)-VLOOKUP($A119,$A$4:$BI$82,AL$3,0) ->  | AM119: =VLOOKUP($A119,#REF!,2,0)-VLOOKUP($A119,$A$4:$BI$82,AM$3,0) ->  | AN119: =VLOOKUP($A119,#REF!,2,0)-VLOOKUP($A119,$A$4:$BI$82,AN$3,0) ->  | AO119: =VLOOKUP($A119,#REF!,2,0)-VLOOKUP($A119,$A$4:$BI$82,AO$3,0) ->  | AP119: =VLOOKUP($A119,#REF!,2,0)-VLOOKUP($A119,$A$4:$BI$82,AP$3,0) ->  | AQ119: =VLOOKUP($A119,#REF!,2,0)-VLOOKUP($A119,$A$4:$BI$82,AQ$3,0) ->  | AR119: =VLOOKUP($A119,#REF!,2,0)-VLOOKUP($A119,$A$4:$BI$82,AR$3,0) ->  | AS119: =VLOOKUP($A119,#REF!,2,0)-VLOOKUP($A119,$A$4:$BI$82,AS$3,0) ->  | AT119: =VLOOKUP($A119,#REF!,2,0)-VLOOKUP($A119,$A$4:$BI$82,AT$3,0) ->  | AU119: =VLOOKUP($A119,#REF!,2,0)-VLOOKUP($A119,$A$4:$BI$82,AU$3,0) ->  | AV119: =VLOOKUP($A119,#REF!,2,0)-VLOOKUP($A119,$A$4:$BI$82,AV$3,0) ->  | AW119: =VLOOKUP($A119,#REF!,2,0)-VLOOKUP($A119,$A$4:$BI$82,AW$3,0) ->  | AX119: =VLOOKUP($A119,#REF!,2,0)-VLOOKUP($A119,$A$4:$BI$82,AX$3,0) ->  | AY119: =VLOOKUP($A119,#REF!,2,0)-VLOOKUP($A119,$A$4:$BI$82,AY$3,0) ->  | AZ119: =VLOOKUP($A119,#REF!,2,0)-VLOOKUP($A119,$A$4:$BI$82,AZ$3,0) ->  | BA119: =VLOOKUP($A119,#REF!,2,0)-VLOOKUP($A119,$A$4:$BI$82,BA$3,0) ->  | BB119: =VLOOKUP($A119,#REF!,2,0)-VLOOKUP($A119,$A$4:$BI$82,BB$3,0) ->  | BC119: =VLOOKUP($A119,#REF!,2,0)-VLOOKUP($A119,$A$4:$BI$82,BC$3,0) ->  | BD119: =VLOOKUP($A119,#REF!,2,0)-VLOOKUP($A119,$A$4:$BI$82,BD$3,0) ->  | BE119: =VLOOKUP($A119,#REF!,2,0)-VLOOKUP($A119,$A$4:$BI$82,BE$3,0) ->  | BF119: =VLOOKUP($A119,#REF!,2,0)-VLOOKUP($A119,$A$4:$BI$82,BF$3,0) ->  | BG119: =VLOOKUP($A119,#REF!,2,0)-VLOOKUP($A119,$A$4:$BI$82,BG$3,0) ->  | BH119: =VLOOKUP($A119,#REF!,2,0)-VLOOKUP($A119,$A$4:$BI$82,BH$3,0) ->  | BI119: =VLOOKUP($A119,#REF!,2,0)-VLOOKUP($A119,$A$4:$BI$82,BI$3,0) -> 
A120: Martano, Inc | M120: =VLOOKUP($A120,#REF!,3,0) ->  | N120: =VLOOKUP($A120,#REF!,2,0)-VLOOKUP($A120,$A$4:$BI$82,N$3,0) ->  | O120: =VLOOKUP($A120,#REF!,2,0)-VLOOKUP($A120,$A$4:$BI$82,O$3,0) ->  | P120: =VLOOKUP($A120,#REF!,2,0)-VLOOKUP($A120,$A$4:$BI$82,P$3,0) ->  | Q120: =VLOOKUP($A120,#REF!,2,0)-VLOOKUP($A120,$A$4:$BI$82,Q$3,0) ->  | R120: =VLOOKUP($A120,#REF!,2,0)-VLOOKUP($A120,$A$4:$BI$82,R$3,0) ->  | S120: =VLOOKUP($A120,#REF!,2,0)-VLOOKUP($A120,$A$4:$BI$82,S$3,0) ->  | T120: =VLOOKUP($A120,#REF!,2,0)-VLOOKUP($A120,$A$4:$BI$82,T$3,0) ->  | U120: =VLOOKUP($A120,#REF!,2,0)-VLOOKUP($A120,$A$4:$BI$82,U$3,0) ->  | V120: =VLOOKUP($A120,#REF!,2,0)-VLOOKUP($A120,$A$4:$BI$82,V$3,0) ->  | W120: =VLOOKUP($A120,#REF!,2,0)-VLOOKUP($A120,$A$4:$BI$82,W$3,0) ->  | X120: =VLOOKUP($A120,#REF!,2,0)-VLOOKUP($A120,$A$4:$BI$82,X$3,0) ->  | Y120: =VLOOKUP($A120,#REF!,2,0)-VLOOKUP($A120,$A$4:$BI$82,Y$3,0) ->  | Z120: =VLOOKUP($A120,#REF!,2,0)-VLOOKUP($A120,$A$4:$BI$82,Z$3,0) ->  | AA120: =VLOOKUP($A120,#REF!,2,0)-VLOOKUP($A120,$A$4:$BI$82,AA$3,0) ->  | AB120: =VLOOKUP($A120,#REF!,2,0)-VLOOKUP($A120,$A$4:$BI$82,AB$3,0) ->  | AC120: =VLOOKUP($A120,#REF!,2,0)-VLOOKUP($A120,$A$4:$BI$82,AC$3,0) ->  | AD120: =VLOOKUP($A120,#REF!,2,0)-VLOOKUP($A120,$A$4:$BI$82,AD$3,0) ->  | AE120: =VLOOKUP($A120,#REF!,2,0)-VLOOKUP($A120,$A$4:$BI$82,AE$3,0) ->  | AF120: =VLOOKUP($A120,#REF!,2,0)-VLOOKUP($A120,$A$4:$BI$82,AF$3,0) ->  | AG120: =VLOOKUP($A120,#REF!,2,0)-VLOOKUP($A120,$A$4:$BI$82,AG$3,0) ->  | AH120: =VLOOKUP($A120,#REF!,2,0)-VLOOKUP($A120,$A$4:$BI$82,AH$3,0) ->  | AI120: =VLOOKUP($A120,#REF!,2,0)-VLOOKUP($A120,$A$4:$BI$82,AI$3,0) ->  | AJ120: =VLOOKUP($A120,#REF!,2,0)-VLOOKUP($A120,$A$4:$BI$82,AJ$3,0) ->  | AK120: =VLOOKUP($A120,#REF!,2,0)-VLOOKUP($A120,$A$4:$BI$82,AK$3,0) ->  | AL120: =VLOOKUP($A120,#REF!,2,0)-VLOOKUP($A120,$A$4:$BI$82,AL$3,0) ->  | AM120: =VLOOKUP($A120,#REF!,2,0)-VLOOKUP($A120,$A$4:$BI$82,AM$3,0) ->  | AN120: =VLOOKUP($A120,#REF!,2,0)-VLOOKUP($A120,$A$4:$BI$82,AN$3,0) ->  | AO120: =VLOOKUP($A120,#REF!,2,0)-VLOOKUP($A120,$A$4:$BI$82,AO$3,0) ->  | AP120: =VLOOKUP($A120,#REF!,2,0)-VLOOKUP($A120,$A$4:$BI$82,AP$3,0) ->  | AQ120: =VLOOKUP($A120,#REF!,2,0)-VLOOKUP($A120,$A$4:$BI$82,AQ$3,0) ->  | AR120: =VLOOKUP($A120,#REF!,2,0)-VLOOKUP($A120,$A$4:$BI$82,AR$3,0) ->  | AS120: =VLOOKUP($A120,#REF!,2,0)-VLOOKUP($A120,$A$4:$BI$82,AS$3,0) ->  | AT120: =VLOOKUP($A120,#REF!,2,0)-VLOOKUP($A120,$A$4:$BI$82,AT$3,0) ->  | AU120: =VLOOKUP($A120,#REF!,2,0)-VLOOKUP($A120,$A$4:$BI$82,AU$3,0) ->  | AV120: =VLOOKUP($A120,#REF!,2,0)-VLOOKUP($A120,$A$4:$BI$82,AV$3,0) ->  | AW120: =VLOOKUP($A120,#REF!,2,0)-VLOOKUP($A120,$A$4:$BI$82,AW$3,0) ->  | AX120: =VLOOKUP($A120,#REF!,2,0)-VLOOKUP($A120,$A$4:$BI$82,AX$3,0) ->  | AY120: =VLOOKUP($A120,#REF!,2,0)-VLOOKUP($A120,$A$4:$BI$82,AY$3,0) ->  | AZ120: =VLOOKUP($A120,#REF!,2,0)-VLOOKUP($A120,$A$4:$BI$82,AZ$3,0) ->  | BA120: =VLOOKUP($A120,#REF!,2,0)-VLOOKUP($A120,$A$4:$BI$82,BA$3,0) ->  | BB120: =VLOOKUP($A120,#REF!,2,0)-VLOOKUP($A120,$A$4:$BI$82,BB$3,0) ->  | BC120: =VLOOKUP($A120,#REF!,2,0)-VLOOKUP($A120,$A$4:$BI$82,BC$3,0) ->  | BD120: =VLOOKUP($A120,#REF!,2,0)-VLOOKUP($A120,$A$4:$BI$82,BD$3,0) ->  | BE120: =VLOOKUP($A120,#REF!,2,0)-VLOOKUP($A120,$A$4:$BI$82,BE$3,0) ->  | BF120: =VLOOKUP($A120,#REF!,2,0)-VLOOKUP($A120,$A$4:$BI$82,BF$3,0) ->  | BG120: =VLOOKUP($A120,#REF!,2,0)-VLOOKUP($A120,$A$4:$BI$82,BG$3,0) ->  | BH120: =VLOOKUP($A120,#REF!,2,0)-VLOOKUP($A120,$A$4:$BI$82,BH$3,0) ->  | BI120: =VLOOKUP($A120,#REF!,2,0)-VLOOKUP($A120,$A$4:$BI$82,BI$3,0) -> 
A121: Pan-Am Generating Limited | M121: =VLOOKUP($A121,#REF!,3,0) ->  | N121: =VLOOKUP($A121,#REF!,2,0)-VLOOKUP($A121,$A$4:$BI$82,N$3,0) ->  | O121: =VLOOKUP($A121,#REF!,2,0)-VLOOKUP($A121,$A$4:$BI$82,O$3,0) ->  | P121: =VLOOKUP($A121,#REF!,2,0)-VLOOKUP($A121,$A$4:$BI$82,P$3,0) ->  | Q121: =VLOOKUP($A121,#REF!,2,0)-VLOOKUP($A121,$A$4:$BI$82,Q$3,0) ->  | R121: =VLOOKUP($A121,#REF!,2,0)-VLOOKUP($A121,$A$4:$BI$82,R$3,0) ->  | S121: =VLOOKUP($A121,#REF!,2,0)-VLOOKUP($A121,$A$4:$BI$82,S$3,0) ->  | T121: =VLOOKUP($A121,#REF!,2,0)-VLOOKUP($A121,$A$4:$BI$82,T$3,0) ->  | U121: =VLOOKUP($A121,#REF!,2,0)-VLOOKUP($A121,$A$4:$BI$82,U$3,0) ->  | V121: =VLOOKUP($A121,#REF!,2,0)-VLOOKUP($A121,$A$4:$BI$82,V$3,0) ->  | W121: =VLOOKUP($A121,#REF!,2,0)-VLOOKUP($A121,$A$4:$BI$82,W$3,0) ->  | X121: =VLOOKUP($A121,#REF!,2,0)-VLOOKUP($A121,$A$4:$BI$82,X$3,0) ->  | Y121: =VLOOKUP($A121,#REF!,2,0)-VLOOKUP($A121,$A$4:$BI$82,Y$3,0) ->  | Z121: =VLOOKUP($A121,#REF!,2,0)-VLOOKUP($A121,$A$4:$BI$82,Z$3,0) ->  | AA121: =VLOOKUP($A121,#REF!,2,0)-VLOOKUP($A121,$A$4:$BI$82,AA$3,0) ->  | AB121: =VLOOKUP($A121,#REF!,2,0)-VLOOKUP($A121,$A$4:$BI$82,AB$3,0) ->  | AC121: =VLOOKUP($A121,#REF!,2,0)-VLOOKUP($A121,$A$4:$BI$82,AC$3,0) ->  | AD121: =VLOOKUP($A121,#REF!,2,0)-VLOOKUP($A121,$A$4:$BI$82,AD$3,0) ->  | AE121: =VLOOKUP($A121,#REF!,2,0)-VLOOKUP($A121,$A$4:$BI$82,AE$3,0) ->  | AF121: =VLOOKUP($A121,#REF!,2,0)-VLOOKUP($A121,$A$4:$BI$82,AF$3,0) ->  | AG121: =VLOOKUP($A121,#REF!,2,0)-VLOOKUP($A121,$A$4:$BI$82,AG$3,0) ->  | AH121: =VLOOKUP($A121,#REF!,2,0)-VLOOKUP($A121,$A$4:$BI$82,AH$3,0) ->  | AI121: =VLOOKUP($A121,#REF!,2,0)-VLOOKUP($A121,$A$4:$BI$82,AI$3,0) ->  | AJ121: =VLOOKUP($A121,#REF!,2,0)-VLOOKUP($A121,$A$4:$BI$82,AJ$3,0) ->  | AK121: =VLOOKUP($A121,#REF!,2,0)-VLOOKUP($A121,$A$4:$BI$82,AK$3,0) ->  | AL121: =VLOOKUP($A121,#REF!,2,0)-VLOOKUP($A121,$A$4:$BI$82,AL$3,0) ->  | AM121: =VLOOKUP($A121,#REF!,2,0)-VLOOKUP($A121,$A$4:$BI$82,AM$3,0) ->  | AN121: =VLOOKUP($A121,#REF!,2,0)-VLOOKUP($A121,$A$4:$BI$82,AN$3,0) ->  | AO121: =VLOOKUP($A121,#REF!,2,0)-VLOOKUP($A121,$A$4:$BI$82,AO$3,0) ->  | AP121: =VLOOKUP($A121,#REF!,2,0)-VLOOKUP($A121,$A$4:$BI$82,AP$3,0) ->  | AQ121: =VLOOKUP($A121,#REF!,2,0)-VLOOKUP($A121,$A$4:$BI$82,AQ$3,0) ->  | AR121: =VLOOKUP($A121,#REF!,2,0)-VLOOKUP($A121,$A$4:$BI$82,AR$3,0) ->  | AS121: =VLOOKUP($A121,#REF!,2,0)-VLOOKUP($A121,$A$4:$BI$82,AS$3,0) ->  | AT121: =VLOOKUP($A121,#REF!,2,0)-VLOOKUP($A121,$A$4:$BI$82,AT$3,0) ->  | AU121: =VLOOKUP($A121,#REF!,2,0)-VLOOKUP($A121,$A$4:$BI$82,AU$3,0) ->  | AV121: =VLOOKUP($A121,#REF!,2,0)-VLOOKUP($A121,$A$4:$BI$82,AV$3,0) ->  | AW121: =VLOOKUP($A121,#REF!,2,0)-VLOOKUP($A121,$A$4:$BI$82,AW$3,0) ->  | AX121: =VLOOKUP($A121,#REF!,2,0)-VLOOKUP($A121,$A$4:$BI$82,AX$3,0) ->  | AY121: =VLOOKUP($A121,#REF!,2,0)-VLOOKUP($A121,$A$4:$BI$82,AY$3,0) ->  | AZ121: =VLOOKUP($A121,#REF!,2,0)-VLOOKUP($A121,$A$4:$BI$82,AZ$3,0) ->  | BA121: =VLOOKUP($A121,#REF!,2,0)-VLOOKUP($A121,$A$4:$BI$82,BA$3,0) ->  | BB121: =VLOOKUP($A121,#REF!,2,0)-VLOOKUP($A121,$A$4:$BI$82,BB$3,0) ->  | BC121: =VLOOKUP($A121,#REF!,2,0)-VLOOKUP($A121,$A$4:$BI$82,BC$3,0) ->  | BD121: =VLOOKUP($A121,#REF!,2,0)-VLOOKUP($A121,$A$4:$BI$82,BD$3,0) ->  | BE121: =VLOOKUP($A121,#REF!,2,0)-VLOOKUP($A121,$A$4:$BI$82,BE$3,0) ->  | BF121: =VLOOKUP($A121,#REF!,2,0)-VLOOKUP($A121,$A$4:$BI$82,BF$3,0) ->  | BG121: =VLOOKUP($A121,#REF!,2,0)-VLOOKUP($A121,$A$4:$BI$82,BG$3,0) ->  | BH121: =VLOOKUP($A121,#REF!,2,0)-VLOOKUP($A121,$A$4:$BI$82,BH$3,0) ->  | BI121: =VLOOKUP($A121,#REF!,2,0)-VLOOKUP($A121,$A$4:$BI$82,BI$3,0) -> 
A122: Panama NG Power, S.A. | M122: =VLOOKUP($A122,#REF!,3,0) ->  | N122: =VLOOKUP($A122,#REF!,2,0)-VLOOKUP($A122,$A$4:$BI$82,N$3,0) ->  | O122: =VLOOKUP($A122,#REF!,2,0)-VLOOKUP($A122,$A$4:$BI$82,O$3,0) ->  | P122: =VLOOKUP($A122,#REF!,2,0)-VLOOKUP($A122,$A$4:$BI$82,P$3,0) ->  | Q122: =VLOOKUP($A122,#REF!,2,0)-VLOOKUP($A122,$A$4:$BI$82,Q$3,0) ->  | R122: =VLOOKUP($A122,#REF!,2,0)-VLOOKUP($A122,$A$4:$BI$82,R$3,0) ->  | S122: =VLOOKUP($A122,#REF!,2,0)-VLOOKUP($A122,$A$4:$BI$82,S$3,0) ->  | T122: =VLOOKUP($A122,#REF!,2,0)-VLOOKUP($A122,$A$4:$BI$82,T$3,0) ->  | U122: =VLOOKUP($A122,#REF!,2,0)-VLOOKUP($A122,$A$4:$BI$82,U$3,0) ->  | V122: =VLOOKUP($A122,#REF!,2,0)-VLOOKUP($A122,$A$4:$BI$82,V$3,0) ->  | W122: =VLOOKUP($A122,#REF!,2,0)-VLOOKUP($A122,$A$4:$BI$82,W$3,0) ->  | X122: =VLOOKUP($A122,#REF!,2,0)-VLOOKUP($A122,$A$4:$BI$82,X$3,0) ->  | Y122: =VLOOKUP($A122,#REF!,2,0)-VLOOKUP($A122,$A$4:$BI$82,Y$3,0) ->  | Z122: =VLOOKUP($A122,#REF!,2,0)-VLOOKUP($A122,$A$4:$BI$82,Z$3,0) ->  | AA122: =VLOOKUP($A122,#REF!,2,0)-VLOOKUP($A122,$A$4:$BI$82,AA$3,0) ->  | AB122: =VLOOKUP($A122,#REF!,2,0)-VLOOKUP($A122,$A$4:$BI$82,AB$3,0) ->  | AC122: =VLOOKUP($A122,#REF!,2,0)-VLOOKUP($A122,$A$4:$BI$82,AC$3,0) ->  | AD122: =VLOOKUP($A122,#REF!,2,0)-VLOOKUP($A122,$A$4:$BI$82,AD$3,0) ->  | AE122: =VLOOKUP($A122,#REF!,2,0)-VLOOKUP($A122,$A$4:$BI$82,AE$3,0) ->  | AF122: =VLOOKUP($A122,#REF!,2,0)-VLOOKUP($A122,$A$4:$BI$82,AF$3,0) ->  | AG122: =VLOOKUP($A122,#REF!,2,0)-VLOOKUP($A122,$A$4:$BI$82,AG$3,0) ->  | AH122: =VLOOKUP($A122,#REF!,2,0)-VLOOKUP($A122,$A$4:$BI$82,AH$3,0) ->  | AI122: =VLOOKUP($A122,#REF!,2,0)-VLOOKUP($A122,$A$4:$BI$82,AI$3,0) ->  | AJ122: =VLOOKUP($A122,#REF!,2,0)-VLOOKUP($A122,$A$4:$BI$82,AJ$3,0) ->  | AK122: =VLOOKUP($A122,#REF!,2,0)-VLOOKUP($A122,$A$4:$BI$82,AK$3,0) ->  | AL122: =VLOOKUP($A122,#REF!,2,0)-VLOOKUP($A122,$A$4:$BI$82,AL$3,0) ->  | AM122: =VLOOKUP($A122,#REF!,2,0)-VLOOKUP($A122,$A$4:$BI$82,AM$3,0) ->  | AN122: =VLOOKUP($A122,#REF!,2,0)-VLOOKUP($A122,$A$4:$BI$82,AN$3,0) ->  | AO122: =VLOOKUP($A122,#REF!,2,0)-VLOOKUP($A122,$A$4:$BI$82,AO$3,0) ->  | AP122: =VLOOKUP($A122,#REF!,2,0)-VLOOKUP($A122,$A$4:$BI$82,AP$3,0) ->  | AQ122: =VLOOKUP($A122,#REF!,2,0)-VLOOKUP($A122,$A$4:$BI$82,AQ$3,0) ->  | AR122: =VLOOKUP($A122,#REF!,2,0)-VLOOKUP($A122,$A$4:$BI$82,AR$3,0) ->  | AS122: =VLOOKUP($A122,#REF!,2,0)-VLOOKUP($A122,$A$4:$BI$82,AS$3,0) ->  | AT122: =VLOOKUP($A122,#REF!,2,0)-VLOOKUP($A122,$A$4:$BI$82,AT$3,0) ->  | AU122: =VLOOKUP($A122,#REF!,2,0)-VLOOKUP($A122,$A$4:$BI$82,AU$3,0) ->  | AV122: =VLOOKUP($A122,#REF!,2,0)-VLOOKUP($A122,$A$4:$BI$82,AV$3,0) ->  | AW122: =VLOOKUP($A122,#REF!,2,0)-VLOOKUP($A122,$A$4:$BI$82,AW$3,0) ->  | AX122: =VLOOKUP($A122,#REF!,2,0)-VLOOKUP($A122,$A$4:$BI$82,AX$3,0) ->  | AY122: =VLOOKUP($A122,#REF!,2,0)-VLOOKUP($A122,$A$4:$BI$82,AY$3,0) ->  | AZ122: =VLOOKUP($A122,#REF!,2,0)-VLOOKUP($A122,$A$4:$BI$82,AZ$3,0) ->  | BA122: =VLOOKUP($A122,#REF!,2,0)-VLOOKUP($A122,$A$4:$BI$82,BA$3,0) ->  | BB122: =VLOOKUP($A122,#REF!,2,0)-VLOOKUP($A122,$A$4:$BI$82,BB$3,0) ->  | BC122: =VLOOKUP($A122,#REF!,2,0)-VLOOKUP($A122,$A$4:$BI$82,BC$3,0) ->  | BD122: =VLOOKUP($A122,#REF!,2,0)-VLOOKUP($A122,$A$4:$BI$82,BD$3,0) ->  | BE122: =VLOOKUP($A122,#REF!,2,0)-VLOOKUP($A122,$A$4:$BI$82,BE$3,0) ->  | BF122: =VLOOKUP($A122,#REF!,2,0)-VLOOKUP($A122,$A$4:$BI$82,BF$3,0) ->  | BG122: =VLOOKUP($A122,#REF!,2,0)-VLOOKUP($A122,$A$4:$BI$82,BG$3,0) ->  | BH122: =VLOOKUP($A122,#REF!,2,0)-VLOOKUP($A122,$A$4:$BI$82,BH$3,0) ->  | BI122: =VLOOKUP($A122,#REF!,2,0)-VLOOKUP($A122,$A$4:$BI$82,BI$3,0) -> 
A123: Paso Ancho Hydro Power Corporation | M123: =VLOOKUP($A123,#REF!,3,0) ->  | N123: =VLOOKUP($A123,#REF!,2,0)-VLOOKUP($A123,$A$4:$BI$82,N$3,0) ->  | O123: =VLOOKUP($A123,#REF!,2,0)-VLOOKUP($A123,$A$4:$BI$82,O$3,0) ->  | P123: =VLOOKUP($A123,#REF!,2,0)-VLOOKUP($A123,$A$4:$BI$82,P$3,0) ->  | Q123: =VLOOKUP($A123,#REF!,2,0)-VLOOKUP($A123,$A$4:$BI$82,Q$3,0) ->  | R123: =VLOOKUP($A123,#REF!,2,0)-VLOOKUP($A123,$A$4:$BI$82,R$3,0) ->  | S123: =VLOOKUP($A123,#REF!,2,0)-VLOOKUP($A123,$A$4:$BI$82,S$3,0) ->  | T123: =VLOOKUP($A123,#REF!,2,0)-VLOOKUP($A123,$A$4:$BI$82,T$3,0) ->  | U123: =VLOOKUP($A123,#REF!,2,0)-VLOOKUP($A123,$A$4:$BI$82,U$3,0) ->  | V123: =VLOOKUP($A123,#REF!,2,0)-VLOOKUP($A123,$A$4:$BI$82,V$3,0) ->  | W123: =VLOOKUP($A123,#REF!,2,0)-VLOOKUP($A123,$A$4:$BI$82,W$3,0) ->  | X123: =VLOOKUP($A123,#REF!,2,0)-VLOOKUP($A123,$A$4:$BI$82,X$3,0) ->  | Y123: =VLOOKUP($A123,#REF!,2,0)-VLOOKUP($A123,$A$4:$BI$82,Y$3,0) ->  | Z123: =VLOOKUP($A123,#REF!,2,0)-VLOOKUP($A123,$A$4:$BI$82,Z$3,0) ->  | AA123: =VLOOKUP($A123,#REF!,2,0)-VLOOKUP($A123,$A$4:$BI$82,AA$3,0) ->  | AB123: =VLOOKUP($A123,#REF!,2,0)-VLOOKUP($A123,$A$4:$BI$82,AB$3,0) ->  | AC123: =VLOOKUP($A123,#REF!,2,0)-VLOOKUP($A123,$A$4:$BI$82,AC$3,0) ->  | AD123: =VLOOKUP($A123,#REF!,2,0)-VLOOKUP($A123,$A$4:$BI$82,AD$3,0) ->  | AE123: =VLOOKUP($A123,#REF!,2,0)-VLOOKUP($A123,$A$4:$BI$82,AE$3,0) ->  | AF123: =VLOOKUP($A123,#REF!,2,0)-VLOOKUP($A123,$A$4:$BI$82,AF$3,0) ->  | AG123: =VLOOKUP($A123,#REF!,2,0)-VLOOKUP($A123,$A$4:$BI$82,AG$3,0) ->  | AH123: =VLOOKUP($A123,#REF!,2,0)-VLOOKUP($A123,$A$4:$BI$82,AH$3,0) ->  | AI123: =VLOOKUP($A123,#REF!,2,0)-VLOOKUP($A123,$A$4:$BI$82,AI$3,0) ->  | AJ123: =VLOOKUP($A123,#REF!,2,0)-VLOOKUP($A123,$A$4:$BI$82,AJ$3,0) ->  | AK123: =VLOOKUP($A123,#REF!,2,0)-VLOOKUP($A123,$A$4:$BI$82,AK$3,0) ->  | AL123: =VLOOKUP($A123,#REF!,2,0)-VLOOKUP($A123,$A$4:$BI$82,AL$3,0) ->  | AM123: =VLOOKUP($A123,#REF!,2,0)-VLOOKUP($A123,$A$4:$BI$82,AM$3,0) ->  | AN123: =VLOOKUP($A123,#REF!,2,0)-VLOOKUP($A123,$A$4:$BI$82,AN$3,0) ->  | AO123: =VLOOKUP($A123,#REF!,2,0)-VLOOKUP($A123,$A$4:$BI$82,AO$3,0) ->  | AP123: =VLOOKUP($A123,#REF!,2,0)-VLOOKUP($A123,$A$4:$BI$82,AP$3,0) ->  | AQ123: =VLOOKUP($A123,#REF!,2,0)-VLOOKUP($A123,$A$4:$BI$82,AQ$3,0) ->  | AR123: =VLOOKUP($A123,#REF!,2,0)-VLOOKUP($A123,$A$4:$BI$82,AR$3,0) ->  | AS123: =VLOOKUP($A123,#REF!,2,0)-VLOOKUP($A123,$A$4:$BI$82,AS$3,0) ->  | AT123: =VLOOKUP($A123,#REF!,2,0)-VLOOKUP($A123,$A$4:$BI$82,AT$3,0) ->  | AU123: =VLOOKUP($A123,#REF!,2,0)-VLOOKUP($A123,$A$4:$BI$82,AU$3,0) ->  | AV123: =VLOOKUP($A123,#REF!,2,0)-VLOOKUP($A123,$A$4:$BI$82,AV$3,0) ->  | AW123: =VLOOKUP($A123,#REF!,2,0)-VLOOKUP($A123,$A$4:$BI$82,AW$3,0) ->  | AX123: =VLOOKUP($A123,#REF!,2,0)-VLOOKUP($A123,$A$4:$BI$82,AX$3,0) ->  | AY123: =VLOOKUP($A123,#REF!,2,0)-VLOOKUP($A123,$A$4:$BI$82,AY$3,0) ->  | AZ123: =VLOOKUP($A123,#REF!,2,0)-VLOOKUP($A123,$A$4:$BI$82,AZ$3,0) ->  | BA123: =VLOOKUP($A123,#REF!,2,0)-VLOOKUP($A123,$A$4:$BI$82,BA$3,0) ->  | BB123: =VLOOKUP($A123,#REF!,2,0)-VLOOKUP($A123,$A$4:$BI$82,BB$3,0) ->  | BC123: =VLOOKUP($A123,#REF!,2,0)-VLOOKUP($A123,$A$4:$BI$82,BC$3,0) ->  | BD123: =VLOOKUP($A123,#REF!,2,0)-VLOOKUP($A123,$A$4:$BI$82,BD$3,0) ->  | BE123: =VLOOKUP($A123,#REF!,2,0)-VLOOKUP($A123,$A$4:$BI$82,BE$3,0) ->  | BF123: =VLOOKUP($A123,#REF!,2,0)-VLOOKUP($A123,$A$4:$BI$82,BF$3,0) ->  | BG123: =VLOOKUP($A123,#REF!,2,0)-VLOOKUP($A123,$A$4:$BI$82,BG$3,0) ->  | BH123: =VLOOKUP($A123,#REF!,2,0)-VLOOKUP($A123,$A$4:$BI$82,BH$3,0) ->  | BI123: =VLOOKUP($A123,#REF!,2,0)-VLOOKUP($A123,$A$4:$BI$82,BI$3,0) -> 
A124: Pedregal Power Company, S. de R.L. | M124: =VLOOKUP($A124,#REF!,3,0) ->  | N124: =VLOOKUP($A124,#REF!,2,0)-VLOOKUP($A124,$A$4:$BI$82,N$3,0) ->  | O124: =VLOOKUP($A124,#REF!,2,0)-VLOOKUP($A124,$A$4:$BI$82,O$3,0) ->  | P124: =VLOOKUP($A124,#REF!,2,0)-VLOOKUP($A124,$A$4:$BI$82,P$3,0) ->  | Q124: =VLOOKUP($A124,#REF!,2,0)-VLOOKUP($A124,$A$4:$BI$82,Q$3,0) ->  | R124: =VLOOKUP($A124,#REF!,2,0)-VLOOKUP($A124,$A$4:$BI$82,R$3,0) ->  | S124: =VLOOKUP($A124,#REF!,2,0)-VLOOKUP($A124,$A$4:$BI$82,S$3,0) ->  | T124: =VLOOKUP($A124,#REF!,2,0)-VLOOKUP($A124,$A$4:$BI$82,T$3,0) ->  | U124: =VLOOKUP($A124,#REF!,2,0)-VLOOKUP($A124,$A$4:$BI$82,U$3,0) ->  | V124: =VLOOKUP($A124,#REF!,2,0)-VLOOKUP($A124,$A$4:$BI$82,V$3,0) ->  | W124: =VLOOKUP($A124,#REF!,2,0)-VLOOKUP($A124,$A$4:$BI$82,W$3,0) ->  | X124: =VLOOKUP($A124,#REF!,2,0)-VLOOKUP($A124,$A$4:$BI$82,X$3,0) ->  | Y124: =VLOOKUP($A124,#REF!,2,0)-VLOOKUP($A124,$A$4:$BI$82,Y$3,0) ->  | Z124: =VLOOKUP($A124,#REF!,2,0)-VLOOKUP($A124,$A$4:$BI$82,Z$3,0) ->  | AA124: =VLOOKUP($A124,#REF!,2,0)-VLOOKUP($A124,$A$4:$BI$82,AA$3,0) ->  | AB124: =VLOOKUP($A124,#REF!,2,0)-VLOOKUP($A124,$A$4:$BI$82,AB$3,0) ->  | AC124: =VLOOKUP($A124,#REF!,2,0)-VLOOKUP($A124,$A$4:$BI$82,AC$3,0) ->  | AD124: =VLOOKUP($A124,#REF!,2,0)-VLOOKUP($A124,$A$4:$BI$82,AD$3,0) ->  | AE124: =VLOOKUP($A124,#REF!,2,0)-VLOOKUP($A124,$A$4:$BI$82,AE$3,0) ->  | AF124: =VLOOKUP($A124,#REF!,2,0)-VLOOKUP($A124,$A$4:$BI$82,AF$3,0) ->  | AG124: =VLOOKUP($A124,#REF!,2,0)-VLOOKUP($A124,$A$4:$BI$82,AG$3,0) ->  | AH124: =VLOOKUP($A124,#REF!,2,0)-VLOOKUP($A124,$A$4:$BI$82,AH$3,0) ->  | AI124: =VLOOKUP($A124,#REF!,2,0)-VLOOKUP($A124,$A$4:$BI$82,AI$3,0) ->  | AJ124: =VLOOKUP($A124,#REF!,2,0)-VLOOKUP($A124,$A$4:$BI$82,AJ$3,0) ->  | AK124: =VLOOKUP($A124,#REF!,2,0)-VLOOKUP($A124,$A$4:$BI$82,AK$3,0) ->  | AL124: =VLOOKUP($A124,#REF!,2,0)-VLOOKUP($A124,$A$4:$BI$82,AL$3,0) ->  | AM124: =VLOOKUP($A124,#REF!,2,0)-VLOOKUP($A124,$A$4:$BI$82,AM$3,0) ->  | AN124: =VLOOKUP($A124,#REF!,2,0)-VLOOKUP($A124,$A$4:$BI$82,AN$3,0) ->  | AO124: =VLOOKUP($A124,#REF!,2,0)-VLOOKUP($A124,$A$4:$BI$82,AO$3,0) ->  | AP124: =VLOOKUP($A124,#REF!,2,0)-VLOOKUP($A124,$A$4:$BI$82,AP$3,0) ->  | AQ124: =VLOOKUP($A124,#REF!,2,0)-VLOOKUP($A124,$A$4:$BI$82,AQ$3,0) ->  | AR124: =VLOOKUP($A124,#REF!,2,0)-VLOOKUP($A124,$A$4:$BI$82,AR$3,0) ->  | AS124: =VLOOKUP($A124,#REF!,2,0)-VLOOKUP($A124,$A$4:$BI$82,AS$3,0) ->  | AT124: =VLOOKUP($A124,#REF!,2,0)-VLOOKUP($A124,$A$4:$BI$82,AT$3,0) ->  | AU124: =VLOOKUP($A124,#REF!,2,0)-VLOOKUP($A124,$A$4:$BI$82,AU$3,0) ->  | AV124: =VLOOKUP($A124,#REF!,2,0)-VLOOKUP($A124,$A$4:$BI$82,AV$3,0) ->  | AW124: =VLOOKUP($A124,#REF!,2,0)-VLOOKUP($A124,$A$4:$BI$82,AW$3,0) ->  | AX124: =VLOOKUP($A124,#REF!,2,0)-VLOOKUP($A124,$A$4:$BI$82,AX$3,0) ->  | AY124: =VLOOKUP($A124,#REF!,2,0)-VLOOKUP($A124,$A$4:$BI$82,AY$3,0) ->  | AZ124: =VLOOKUP($A124,#REF!,2,0)-VLOOKUP($A124,$A$4:$BI$82,AZ$3,0) ->  | BA124: =VLOOKUP($A124,#REF!,2,0)-VLOOKUP($A124,$A$4:$BI$82,BA$3,0) ->  | BB124: =VLOOKUP($A124,#REF!,2,0)-VLOOKUP($A124,$A$4:$BI$82,BB$3,0) ->  | BC124: =VLOOKUP($A124,#REF!,2,0)-VLOOKUP($A124,$A$4:$BI$82,BC$3,0) ->  | BD124: =VLOOKUP($A124,#REF!,2,0)-VLOOKUP($A124,$A$4:$BI$82,BD$3,0) ->  | BE124: =VLOOKUP($A124,#REF!,2,0)-VLOOKUP($A124,$A$4:$BI$82,BE$3,0) ->  | BF124: =VLOOKUP($A124,#REF!,2,0)-VLOOKUP($A124,$A$4:$BI$82,BF$3,0) ->  | BG124: =VLOOKUP($A124,#REF!,2,0)-VLOOKUP($A124,$A$4:$BI$82,BG$3,0) ->  | BH124: =VLOOKUP($A124,#REF!,2,0)-VLOOKUP($A124,$A$4:$BI$82,BH$3,0) ->  | BI124: =VLOOKUP($A124,#REF!,2,0)-VLOOKUP($A124,$A$4:$BI$82,BI$3,0) -> 
A125: Saltos del Francolí, S.A. | M125: =VLOOKUP($A125,#REF!,3,0) ->  | N125: =VLOOKUP($A125,#REF!,2,0)-VLOOKUP($A125,$A$4:$BI$82,N$3,0) ->  | O125: =VLOOKUP($A125,#REF!,2,0)-VLOOKUP($A125,$A$4:$BI$82,O$3,0) ->  | P125: =VLOOKUP($A125,#REF!,2,0)-VLOOKUP($A125,$A$4:$BI$82,P$3,0) ->  | Q125: =VLOOKUP($A125,#REF!,2,0)-VLOOKUP($A125,$A$4:$BI$82,Q$3,0) ->  | R125: =VLOOKUP($A125,#REF!,2,0)-VLOOKUP($A125,$A$4:$BI$82,R$3,0) ->  | S125: =VLOOKUP($A125,#REF!,2,0)-VLOOKUP($A125,$A$4:$BI$82,S$3,0) ->  | T125: =VLOOKUP($A125,#REF!,2,0)-VLOOKUP($A125,$A$4:$BI$82,T$3,0) ->  | U125: =VLOOKUP($A125,#REF!,2,0)-VLOOKUP($A125,$A$4:$BI$82,U$3,0) ->  | V125: =VLOOKUP($A125,#REF!,2,0)-VLOOKUP($A125,$A$4:$BI$82,V$3,0) ->  | W125: =VLOOKUP($A125,#REF!,2,0)-VLOOKUP($A125,$A$4:$BI$82,W$3,0) ->  | X125: =VLOOKUP($A125,#REF!,2,0)-VLOOKUP($A125,$A$4:$BI$82,X$3,0) ->  | Y125: =VLOOKUP($A125,#REF!,2,0)-VLOOKUP($A125,$A$4:$BI$82,Y$3,0) ->  | Z125: =VLOOKUP($A125,#REF!,2,0)-VLOOKUP($A125,$A$4:$BI$82,Z$3,0) ->  | AA125: =VLOOKUP($A125,#REF!,2,0)-VLOOKUP($A125,$A$4:$BI$82,AA$3,0) ->  | AB125: =VLOOKUP($A125,#REF!,2,0)-VLOOKUP($A125,$A$4:$BI$82,AB$3,0) ->  | AC125: =VLOOKUP($A125,#REF!,2,0)-VLOOKUP($A125,$A$4:$BI$82,AC$3,0) ->  | AD125: =VLOOKUP($A125,#REF!,2,0)-VLOOKUP($A125,$A$4:$BI$82,AD$3,0) ->  | AE125: =VLOOKUP($A125,#REF!,2,0)-VLOOKUP($A125,$A$4:$BI$82,AE$3,0) ->  | AF125: =VLOOKUP($A125,#REF!,2,0)-VLOOKUP($A125,$A$4:$BI$82,AF$3,0) ->  | AG125: =VLOOKUP($A125,#REF!,2,0)-VLOOKUP($A125,$A$4:$BI$82,AG$3,0) ->  | AH125: =VLOOKUP($A125,#REF!,2,0)-VLOOKUP($A125,$A$4:$BI$82,AH$3,0) ->  | AI125: =VLOOKUP($A125,#REF!,2,0)-VLOOKUP($A125,$A$4:$BI$82,AI$3,0) ->  | AJ125: =VLOOKUP($A125,#REF!,2,0)-VLOOKUP($A125,$A$4:$BI$82,AJ$3,0) ->  | AK125: =VLOOKUP($A125,#REF!,2,0)-VLOOKUP($A125,$A$4:$BI$82,AK$3,0) ->  | AL125: =VLOOKUP($A125,#REF!,2,0)-VLOOKUP($A125,$A$4:$BI$82,AL$3,0) ->  | AM125: =VLOOKUP($A125,#REF!,2,0)-VLOOKUP($A125,$A$4:$BI$82,AM$3,0) ->  | AN125: =VLOOKUP($A125,#REF!,2,0)-VLOOKUP($A125,$A$4:$BI$82,AN$3,0) ->  | AO125: =VLOOKUP($A125,#REF!,2,0)-VLOOKUP($A125,$A$4:$BI$82,AO$3,0) ->  | AP125: =VLOOKUP($A125,#REF!,2,0)-VLOOKUP($A125,$A$4:$BI$82,AP$3,0) ->  | AQ125: =VLOOKUP($A125,#REF!,2,0)-VLOOKUP($A125,$A$4:$BI$82,AQ$3,0) ->  | AR125: =VLOOKUP($A125,#REF!,2,0)-VLOOKUP($A125,$A$4:$BI$82,AR$3,0) ->  | AS125: =VLOOKUP($A125,#REF!,2,0)-VLOOKUP($A125,$A$4:$BI$82,AS$3,0) ->  | AT125: =VLOOKUP($A125,#REF!,2,0)-VLOOKUP($A125,$A$4:$BI$82,AT$3,0) ->  | AU125: =VLOOKUP($A125,#REF!,2,0)-VLOOKUP($A125,$A$4:$BI$82,AU$3,0) ->  | AV125: =VLOOKUP($A125,#REF!,2,0)-VLOOKUP($A125,$A$4:$BI$82,AV$3,0) ->  | AW125: =VLOOKUP($A125,#REF!,2,0)-VLOOKUP($A125,$A$4:$BI$82,AW$3,0) ->  | AX125: =VLOOKUP($A125,#REF!,2,0)-VLOOKUP($A125,$A$4:$BI$82,AX$3,0) ->  | AY125: =VLOOKUP($A125,#REF!,2,0)-VLOOKUP($A125,$A$4:$BI$82,AY$3,0) ->  | AZ125: =VLOOKUP($A125,#REF!,2,0)-VLOOKUP($A125,$A$4:$BI$82,AZ$3,0) ->  | BA125: =VLOOKUP($A125,#REF!,2,0)-VLOOKUP($A125,$A$4:$BI$82,BA$3,0) ->  | BB125: =VLOOKUP($A125,#REF!,2,0)-VLOOKUP($A125,$A$4:$BI$82,BB$3,0) ->  | BC125: =VLOOKUP($A125,#REF!,2,0)-VLOOKUP($A125,$A$4:$BI$82,BC$3,0) ->  | BD125: =VLOOKUP($A125,#REF!,2,0)-VLOOKUP($A125,$A$4:$BI$82,BD$3,0) ->  | BE125: =VLOOKUP($A125,#REF!,2,0)-VLOOKUP($A125,$A$4:$BI$82,BE$3,0) ->  | BF125: =VLOOKUP($A125,#REF!,2,0)-VLOOKUP($A125,$A$4:$BI$82,BF$3,0) ->  | BG125: =VLOOKUP($A125,#REF!,2,0)-VLOOKUP($A125,$A$4:$BI$82,BG$3,0) ->  | BH125: =VLOOKUP($A125,#REF!,2,0)-VLOOKUP($A125,$A$4:$BI$82,BH$3,0) ->  | BI125: =VLOOKUP($A125,#REF!,2,0)-VLOOKUP($A125,$A$4:$BI$82,BI$3,0) -> 
A126: Valley Rise Investment Corp. | M126: =VLOOKUP($A126,#REF!,3,0) ->  | N126: =VLOOKUP($A126,#REF!,2,0)-VLOOKUP($A126,$A$4:$BI$82,N$3,0) ->  | O126: =VLOOKUP($A126,#REF!,2,0)-VLOOKUP($A126,$A$4:$BI$82,O$3,0) ->  | P126: =VLOOKUP($A126,#REF!,2,0)-VLOOKUP($A126,$A$4:$BI$82,P$3,0) ->  | Q126: =VLOOKUP($A126,#REF!,2,0)-VLOOKUP($A126,$A$4:$BI$82,Q$3,0) ->  | R126: =VLOOKUP($A126,#REF!,2,0)-VLOOKUP($A126,$A$4:$BI$82,R$3,0) ->  | S126: =VLOOKUP($A126,#REF!,2,0)-VLOOKUP($A126,$A$4:$BI$82,S$3,0) ->  | T126: =VLOOKUP($A126,#REF!,2,0)-VLOOKUP($A126,$A$4:$BI$82,T$3,0) ->  | U126: =VLOOKUP($A126,#REF!,2,0)-VLOOKUP($A126,$A$4:$BI$82,U$3,0) ->  | V126: =VLOOKUP($A126,#REF!,2,0)-VLOOKUP($A126,$A$4:$BI$82,V$3,0) ->  | W126: =VLOOKUP($A126,#REF!,2,0)-VLOOKUP($A126,$A$4:$BI$82,W$3,0) ->  | X126: =VLOOKUP($A126,#REF!,2,0)-VLOOKUP($A126,$A$4:$BI$82,X$3,0) ->  | Y126: =VLOOKUP($A126,#REF!,2,0)-VLOOKUP($A126,$A$4:$BI$82,Y$3,0) ->  | Z126: =VLOOKUP($A126,#REF!,2,0)-VLOOKUP($A126,$A$4:$BI$82,Z$3,0) ->  | AA126: =VLOOKUP($A126,#REF!,2,0)-VLOOKUP($A126,$A$4:$BI$82,AA$3,0) ->  | AB126: =VLOOKUP($A126,#REF!,2,0)-VLOOKUP($A126,$A$4:$BI$82,AB$3,0) ->  | AC126: =VLOOKUP($A126,#REF!,2,0)-VLOOKUP($A126,$A$4:$BI$82,AC$3,0) ->  | AD126: =VLOOKUP($A126,#REF!,2,0)-VLOOKUP($A126,$A$4:$BI$82,AD$3,0) ->  | AE126: =VLOOKUP($A126,#REF!,2,0)-VLOOKUP($A126,$A$4:$BI$82,AE$3,0) ->  | AF126: =VLOOKUP($A126,#REF!,2,0)-VLOOKUP($A126,$A$4:$BI$82,AF$3,0) ->  | AG126: =VLOOKUP($A126,#REF!,2,0)-VLOOKUP($A126,$A$4:$BI$82,AG$3,0) ->  | AH126: =VLOOKUP($A126,#REF!,2,0)-VLOOKUP($A126,$A$4:$BI$82,AH$3,0) ->  | AI126: =VLOOKUP($A126,#REF!,2,0)-VLOOKUP($A126,$A$4:$BI$82,AI$3,0) ->  | AJ126: =VLOOKUP($A126,#REF!,2,0)-VLOOKUP($A126,$A$4:$BI$82,AJ$3,0) ->  | AK126: =VLOOKUP($A126,#REF!,2,0)-VLOOKUP($A126,$A$4:$BI$82,AK$3,0) ->  | AL126: =VLOOKUP($A126,#REF!,2,0)-VLOOKUP($A126,$A$4:$BI$82,AL$3,0) ->  | AM126: =VLOOKUP($A126,#REF!,2,0)-VLOOKUP($A126,$A$4:$BI$82,AM$3,0) ->  | AN126: =VLOOKUP($A126,#REF!,2,0)-VLOOKUP($A126,$A$4:$BI$82,AN$3,0) ->  | AO126: =VLOOKUP($A126,#REF!,2,0)-VLOOKUP($A126,$A$4:$BI$82,AO$3,0) ->  | AP126: =VLOOKUP($A126,#REF!,2,0)-VLOOKUP($A126,$A$4:$BI$82,AP$3,0) ->  | AQ126: =VLOOKUP($A126,#REF!,2,0)-VLOOKUP($A126,$A$4:$BI$82,AQ$3,0) ->  | AR126: =VLOOKUP($A126,#REF!,2,0)-VLOOKUP($A126,$A$4:$BI$82,AR$3,0) ->  | AS126: =VLOOKUP($A126,#REF!,2,0)-VLOOKUP($A126,$A$4:$BI$82,AS$3,0) ->  | AT126: =VLOOKUP($A126,#REF!,2,0)-VLOOKUP($A126,$A$4:$BI$82,AT$3,0) ->  | AU126: =VLOOKUP($A126,#REF!,2,0)-VLOOKUP($A126,$A$4:$BI$82,AU$3,0) ->  | AV126: =VLOOKUP($A126,#REF!,2,0)-VLOOKUP($A126,$A$4:$BI$82,AV$3,0) ->  | AW126: =VLOOKUP($A126,#REF!,2,0)-VLOOKUP($A126,$A$4:$BI$82,AW$3,0) ->  | AX126: =VLOOKUP($A126,#REF!,2,0)-VLOOKUP($A126,$A$4:$BI$82,AX$3,0) ->  | AY126: =VLOOKUP($A126,#REF!,2,0)-VLOOKUP($A126,$A$4:$BI$82,AY$3,0) ->  | AZ126: =VLOOKUP($A126,#REF!,2,0)-VLOOKUP($A126,$A$4:$BI$82,AZ$3,0) ->  | BA126: =VLOOKUP($A126,#REF!,2,0)-VLOOKUP($A126,$A$4:$BI$82,BA$3,0) ->  | BB126: =VLOOKUP($A126,#REF!,2,0)-VLOOKUP($A126,$A$4:$BI$82,BB$3,0) ->  | BC126: =VLOOKUP($A126,#REF!,2,0)-VLOOKUP($A126,$A$4:$BI$82,BC$3,0) ->  | BD126: =VLOOKUP($A126,#REF!,2,0)-VLOOKUP($A126,$A$4:$BI$82,BD$3,0) ->  | BE126: =VLOOKUP($A126,#REF!,2,0)-VLOOKUP($A126,$A$4:$BI$82,BE$3,0) ->  | BF126: =VLOOKUP($A126,#REF!,2,0)-VLOOKUP($A126,$A$4:$BI$82,BF$3,0) ->  | BG126: =VLOOKUP($A126,#REF!,2,0)-VLOOKUP($A126,$A$4:$BI$82,BG$3,0) ->  | BH126: =VLOOKUP($A126,#REF!,2,0)-VLOOKUP($A126,$A$4:$BI$82,BH$3,0) ->  | BI126: =VLOOKUP($A126,#REF!,2,0)-VLOOKUP($A126,$A$4:$BI$82,BI$3,0) -> 
A127: Celsia Centroamérica, S.A. | M127: =VLOOKUP($A127,#REF!,3,0) ->  | N127: =VLOOKUP($A127,#REF!,2,0)-VLOOKUP($A127,$A$4:$BI$82,N$3,0) ->  | O127: =VLOOKUP($A127,#REF!,2,0)-VLOOKUP($A127,$A$4:$BI$82,O$3,0) ->  | P127: =VLOOKUP($A127,#REF!,2,0)-VLOOKUP($A127,$A$4:$BI$82,P$3,0) ->  | Q127: =VLOOKUP($A127,#REF!,2,0)-VLOOKUP($A127,$A$4:$BI$82,Q$3,0) ->  | R127: =VLOOKUP($A127,#REF!,2,0)-VLOOKUP($A127,$A$4:$BI$82,R$3,0) ->  | S127: =VLOOKUP($A127,#REF!,2,0)-VLOOKUP($A127,$A$4:$BI$82,S$3,0) ->  | T127: =VLOOKUP($A127,#REF!,2,0)-VLOOKUP($A127,$A$4:$BI$82,T$3,0) ->  | U127: =VLOOKUP($A127,#REF!,2,0)-VLOOKUP($A127,$A$4:$BI$82,U$3,0) ->  | V127: =VLOOKUP($A127,#REF!,2,0)-VLOOKUP($A127,$A$4:$BI$82,V$3,0) ->  | W127: =VLOOKUP($A127,#REF!,2,0)-VLOOKUP($A127,$A$4:$BI$82,W$3,0) ->  | X127: =VLOOKUP($A127,#REF!,2,0)-VLOOKUP($A127,$A$4:$BI$82,X$3,0) ->  | Y127: =VLOOKUP($A127,#REF!,2,0)-VLOOKUP($A127,$A$4:$BI$82,Y$3,0) ->  | Z127: =VLOOKUP($A127,#REF!,2,0)-VLOOKUP($A127,$A$4:$BI$82,Z$3,0) ->  | AA127: =VLOOKUP($A127,#REF!,2,0)-VLOOKUP($A127,$A$4:$BI$82,AA$3,0) ->  | AB127: =VLOOKUP($A127,#REF!,2,0)-VLOOKUP($A127,$A$4:$BI$82,AB$3,0) ->  | AC127: =VLOOKUP($A127,#REF!,2,0)-VLOOKUP($A127,$A$4:$BI$82,AC$3,0) ->  | AD127: =VLOOKUP($A127,#REF!,2,0)-VLOOKUP($A127,$A$4:$BI$82,AD$3,0) ->  | AE127: =VLOOKUP($A127,#REF!,2,0)-VLOOKUP($A127,$A$4:$BI$82,AE$3,0) ->  | AF127: =VLOOKUP($A127,#REF!,2,0)-VLOOKUP($A127,$A$4:$BI$82,AF$3,0) ->  | AG127: =VLOOKUP($A127,#REF!,2,0)-VLOOKUP($A127,$A$4:$BI$82,AG$3,0) ->  | AH127: =VLOOKUP($A127,#REF!,2,0)-VLOOKUP($A127,$A$4:$BI$82,AH$3,0) ->  | AI127: =VLOOKUP($A127,#REF!,2,0)-VLOOKUP($A127,$A$4:$BI$82,AI$3,0) ->  | AJ127: =VLOOKUP($A127,#REF!,2,0)-VLOOKUP($A127,$A$4:$BI$82,AJ$3,0) ->  | AK127: =VLOOKUP($A127,#REF!,2,0)-VLOOKUP($A127,$A$4:$BI$82,AK$3,0) ->  | AL127: =VLOOKUP($A127,#REF!,2,0)-VLOOKUP($A127,$A$4:$BI$82,AL$3,0) ->  | AM127: =VLOOKUP($A127,#REF!,2,0)-VLOOKUP($A127,$A$4:$BI$82,AM$3,0) ->  | AN127: =VLOOKUP($A127,#REF!,2,0)-VLOOKUP($A127,$A$4:$BI$82,AN$3,0) ->  | AO127: =VLOOKUP($A127,#REF!,2,0)-VLOOKUP($A127,$A$4:$BI$82,AO$3,0) ->  | AP127: =VLOOKUP($A127,#REF!,2,0)-VLOOKUP($A127,$A$4:$BI$82,AP$3,0) ->  | AQ127: =VLOOKUP($A127,#REF!,2,0)-VLOOKUP($A127,$A$4:$BI$82,AQ$3,0) ->  | AR127: =VLOOKUP($A127,#REF!,2,0)-VLOOKUP($A127,$A$4:$BI$82,AR$3,0) ->  | AS127: =VLOOKUP($A127,#REF!,2,0)-VLOOKUP($A127,$A$4:$BI$82,AS$3,0) ->  | AT127: =VLOOKUP($A127,#REF!,2,0)-VLOOKUP($A127,$A$4:$BI$82,AT$3,0) ->  | AU127: =VLOOKUP($A127,#REF!,2,0)-VLOOKUP($A127,$A$4:$BI$82,AU$3,0) ->  | AV127: =VLOOKUP($A127,#REF!,2,0)-VLOOKUP($A127,$A$4:$BI$82,AV$3,0) ->  | AW127: =VLOOKUP($A127,#REF!,2,0)-VLOOKUP($A127,$A$4:$BI$82,AW$3,0) ->  | AX127: =VLOOKUP($A127,#REF!,2,0)-VLOOKUP($A127,$A$4:$BI$82,AX$3,0) ->  | AY127: =VLOOKUP($A127,#REF!,2,0)-VLOOKUP($A127,$A$4:$BI$82,AY$3,0) ->  | AZ127: =VLOOKUP($A127,#REF!,2,0)-VLOOKUP($A127,$A$4:$BI$82,AZ$3,0) ->  | BA127: =VLOOKUP($A127,#REF!,2,0)-VLOOKUP($A127,$A$4:$BI$82,BA$3,0) ->  | BB127: =VLOOKUP($A127,#REF!,2,0)-VLOOKUP($A127,$A$4:$BI$82,BB$3,0) ->  | BC127: =VLOOKUP($A127,#REF!,2,0)-VLOOKUP($A127,$A$4:$BI$82,BC$3,0) ->  | BD127: =VLOOKUP($A127,#REF!,2,0)-VLOOKUP($A127,$A$4:$BI$82,BD$3,0) ->  | BE127: =VLOOKUP($A127,#REF!,2,0)-VLOOKUP($A127,$A$4:$BI$82,BE$3,0) ->  | BF127: =VLOOKUP($A127,#REF!,2,0)-VLOOKUP($A127,$A$4:$BI$82,BF$3,0) ->  | BG127: =VLOOKUP($A127,#REF!,2,0)-VLOOKUP($A127,$A$4:$BI$82,BG$3,0) ->  | BH127: =VLOOKUP($A127,#REF!,2,0)-VLOOKUP($A127,$A$4:$BI$82,BH$3,0) ->  | BI127: =VLOOKUP($A127,#REF!,2,0)-VLOOKUP($A127,$A$4:$BI$82,BI$3,0) -> 
A128: Generadora Fotovoltaica Chiriquí, S.A. | M128: =VLOOKUP($A128,#REF!,3,0) ->  | N128: =VLOOKUP($A128,#REF!,2,0)-VLOOKUP($A128,$A$4:$BI$82,N$3,0) ->  | O128: =VLOOKUP($A128,#REF!,2,0)-VLOOKUP($A128,$A$4:$BI$82,O$3,0) ->  | P128: =VLOOKUP($A128,#REF!,2,0)-VLOOKUP($A128,$A$4:$BI$82,P$3,0) ->  | Q128: =VLOOKUP($A128,#REF!,2,0)-VLOOKUP($A128,$A$4:$BI$82,Q$3,0) ->  | R128: =VLOOKUP($A128,#REF!,2,0)-VLOOKUP($A128,$A$4:$BI$82,R$3,0) ->  | S128: =VLOOKUP($A128,#REF!,2,0)-VLOOKUP($A128,$A$4:$BI$82,S$3,0) ->  | T128: =VLOOKUP($A128,#REF!,2,0)-VLOOKUP($A128,$A$4:$BI$82,T$3,0) ->  | U128: =VLOOKUP($A128,#REF!,2,0)-VLOOKUP($A128,$A$4:$BI$82,U$3,0) ->  | V128: =VLOOKUP($A128,#REF!,2,0)-VLOOKUP($A128,$A$4:$BI$82,V$3,0) ->  | W128: =VLOOKUP($A128,#REF!,2,0)-VLOOKUP($A128,$A$4:$BI$82,W$3,0) ->  | X128: =VLOOKUP($A128,#REF!,2,0)-VLOOKUP($A128,$A$4:$BI$82,X$3,0) ->  | Y128: =VLOOKUP($A128,#REF!,2,0)-VLOOKUP($A128,$A$4:$BI$82,Y$3,0) ->  | Z128: =VLOOKUP($A128,#REF!,2,0)-VLOOKUP($A128,$A$4:$BI$82,Z$3,0) ->  | AA128: =VLOOKUP($A128,#REF!,2,0)-VLOOKUP($A128,$A$4:$BI$82,AA$3,0) ->  | AB128: =VLOOKUP($A128,#REF!,2,0)-VLOOKUP($A128,$A$4:$BI$82,AB$3,0) ->  | AC128: =VLOOKUP($A128,#REF!,2,0)-VLOOKUP($A128,$A$4:$BI$82,AC$3,0) ->  | AD128: =VLOOKUP($A128,#REF!,2,0)-VLOOKUP($A128,$A$4:$BI$82,AD$3,0) ->  | AE128: =VLOOKUP($A128,#REF!,2,0)-VLOOKUP($A128,$A$4:$BI$82,AE$3,0) ->  | AF128: =VLOOKUP($A128,#REF!,2,0)-VLOOKUP($A128,$A$4:$BI$82,AF$3,0) ->  | AG128: =VLOOKUP($A128,#REF!,2,0)-VLOOKUP($A128,$A$4:$BI$82,AG$3,0) ->  | AH128: =VLOOKUP($A128,#REF!,2,0)-VLOOKUP($A128,$A$4:$BI$82,AH$3,0) ->  | AI128: =VLOOKUP($A128,#REF!,2,0)-VLOOKUP($A128,$A$4:$BI$82,AI$3,0) ->  | AJ128: =VLOOKUP($A128,#REF!,2,0)-VLOOKUP($A128,$A$4:$BI$82,AJ$3,0) ->  | AK128: =VLOOKUP($A128,#REF!,2,0)-VLOOKUP($A128,$A$4:$BI$82,AK$3,0) ->  | AL128: =VLOOKUP($A128,#REF!,2,0)-VLOOKUP($A128,$A$4:$BI$82,AL$3,0) ->  | AM128: =VLOOKUP($A128,#REF!,2,0)-VLOOKUP($A128,$A$4:$BI$82,AM$3,0) ->  | AN128: =VLOOKUP($A128,#REF!,2,0)-VLOOKUP($A128,$A$4:$BI$82,AN$3,0) ->  | AO128: =VLOOKUP($A128,#REF!,2,0)-VLOOKUP($A128,$A$4:$BI$82,AO$3,0) ->  | AP128: =VLOOKUP($A128,#REF!,2,0)-VLOOKUP($A128,$A$4:$BI$82,AP$3,0) ->  | AQ128: =VLOOKUP($A128,#REF!,2,0)-VLOOKUP($A128,$A$4:$BI$82,AQ$3,0) ->  | AR128: =VLOOKUP($A128,#REF!,2,0)-VLOOKUP($A128,$A$4:$BI$82,AR$3,0) ->  | AS128: =VLOOKUP($A128,#REF!,2,0)-VLOOKUP($A128,$A$4:$BI$82,AS$3,0) ->  | AT128: =VLOOKUP($A128,#REF!,2,0)-VLOOKUP($A128,$A$4:$BI$82,AT$3,0) ->  | AU128: =VLOOKUP($A128,#REF!,2,0)-VLOOKUP($A128,$A$4:$BI$82,AU$3,0) ->  | AV128: =VLOOKUP($A128,#REF!,2,0)-VLOOKUP($A128,$A$4:$BI$82,AV$3,0) ->  | AW128: =VLOOKUP($A128,#REF!,2,0)-VLOOKUP($A128,$A$4:$BI$82,AW$3,0) ->  | AX128: =VLOOKUP($A128,#REF!,2,0)-VLOOKUP($A128,$A$4:$BI$82,AX$3,0) ->  | AY128: =VLOOKUP($A128,#REF!,2,0)-VLOOKUP($A128,$A$4:$BI$82,AY$3,0) ->  | AZ128: =VLOOKUP($A128,#REF!,2,0)-VLOOKUP($A128,$A$4:$BI$82,AZ$3,0) ->  | BA128: =VLOOKUP($A128,#REF!,2,0)-VLOOKUP($A128,$A$4:$BI$82,BA$3,0) ->  | BB128: =VLOOKUP($A128,#REF!,2,0)-VLOOKUP($A128,$A$4:$BI$82,BB$3,0) ->  | BC128: =VLOOKUP($A128,#REF!,2,0)-VLOOKUP($A128,$A$4:$BI$82,BC$3,0) ->  | BD128: =VLOOKUP($A128,#REF!,2,0)-VLOOKUP($A128,$A$4:$BI$82,BD$3,0) ->  | BE128: =VLOOKUP($A128,#REF!,2,0)-VLOOKUP($A128,$A$4:$BI$82,BE$3,0) ->  | BF128: =VLOOKUP($A128,#REF!,2,0)-VLOOKUP($A128,$A$4:$BI$82,BF$3,0) ->  | BG128: =VLOOKUP($A128,#REF!,2,0)-VLOOKUP($A128,$A$4:$BI$82,BG$3,0) ->  | BH128: =VLOOKUP($A128,#REF!,2,0)-VLOOKUP($A128,$A$4:$BI$82,BH$3,0) ->  | BI128: =VLOOKUP($A128,#REF!,2,0)-VLOOKUP($A128,$A$4:$BI$82,BI$3,0) -> 
A129: Hidro Boquerón, S.A. | M129: =VLOOKUP($A129,#REF!,3,0) ->  | N129: =VLOOKUP($A129,#REF!,2,0)-VLOOKUP($A129,$A$4:$BI$82,N$3,0) ->  | O129: =VLOOKUP($A129,#REF!,2,0)-VLOOKUP($A129,$A$4:$BI$82,O$3,0) ->  | P129: =VLOOKUP($A129,#REF!,2,0)-VLOOKUP($A129,$A$4:$BI$82,P$3,0) ->  | Q129: =VLOOKUP($A129,#REF!,2,0)-VLOOKUP($A129,$A$4:$BI$82,Q$3,0) ->  | R129: =VLOOKUP($A129,#REF!,2,0)-VLOOKUP($A129,$A$4:$BI$82,R$3,0) ->  | S129: =VLOOKUP($A129,#REF!,2,0)-VLOOKUP($A129,$A$4:$BI$82,S$3,0) ->  | T129: =VLOOKUP($A129,#REF!,2,0)-VLOOKUP($A129,$A$4:$BI$82,T$3,0) ->  | U129: =VLOOKUP($A129,#REF!,2,0)-VLOOKUP($A129,$A$4:$BI$82,U$3,0) ->  | V129: =VLOOKUP($A129,#REF!,2,0)-VLOOKUP($A129,$A$4:$BI$82,V$3,0) ->  | W129: =VLOOKUP($A129,#REF!,2,0)-VLOOKUP($A129,$A$4:$BI$82,W$3,0) ->  | X129: =VLOOKUP($A129,#REF!,2,0)-VLOOKUP($A129,$A$4:$BI$82,X$3,0) ->  | Y129: =VLOOKUP($A129,#REF!,2,0)-VLOOKUP($A129,$A$4:$BI$82,Y$3,0) ->  | Z129: =VLOOKUP($A129,#REF!,2,0)-VLOOKUP($A129,$A$4:$BI$82,Z$3,0) ->  | AA129: =VLOOKUP($A129,#REF!,2,0)-VLOOKUP($A129,$A$4:$BI$82,AA$3,0) ->  | AB129: =VLOOKUP($A129,#REF!,2,0)-VLOOKUP($A129,$A$4:$BI$82,AB$3,0) ->  | AC129: =VLOOKUP($A129,#REF!,2,0)-VLOOKUP($A129,$A$4:$BI$82,AC$3,0) ->  | AD129: =VLOOKUP($A129,#REF!,2,0)-VLOOKUP($A129,$A$4:$BI$82,AD$3,0) ->  | AE129: =VLOOKUP($A129,#REF!,2,0)-VLOOKUP($A129,$A$4:$BI$82,AE$3,0) ->  | AF129: =VLOOKUP($A129,#REF!,2,0)-VLOOKUP($A129,$A$4:$BI$82,AF$3,0) ->  | AG129: =VLOOKUP($A129,#REF!,2,0)-VLOOKUP($A129,$A$4:$BI$82,AG$3,0) ->  | AH129: =VLOOKUP($A129,#REF!,2,0)-VLOOKUP($A129,$A$4:$BI$82,AH$3,0) ->  | AI129: =VLOOKUP($A129,#REF!,2,0)-VLOOKUP($A129,$A$4:$BI$82,AI$3,0) ->  | AJ129: =VLOOKUP($A129,#REF!,2,0)-VLOOKUP($A129,$A$4:$BI$82,AJ$3,0) ->  | AK129: =VLOOKUP($A129,#REF!,2,0)-VLOOKUP($A129,$A$4:$BI$82,AK$3,0) ->  | AL129: =VLOOKUP($A129,#REF!,2,0)-VLOOKUP($A129,$A$4:$BI$82,AL$3,0) ->  | AM129: =VLOOKUP($A129,#REF!,2,0)-VLOOKUP($A129,$A$4:$BI$82,AM$3,0) ->  | AN129: =VLOOKUP($A129,#REF!,2,0)-VLOOKUP($A129,$A$4:$BI$82,AN$3,0) ->  | AO129: =VLOOKUP($A129,#REF!,2,0)-VLOOKUP($A129,$A$4:$BI$82,AO$3,0) ->  | AP129: =VLOOKUP($A129,#REF!,2,0)-VLOOKUP($A129,$A$4:$BI$82,AP$3,0) ->  | AQ129: =VLOOKUP($A129,#REF!,2,0)-VLOOKUP($A129,$A$4:$BI$82,AQ$3,0) ->  | AR129: =VLOOKUP($A129,#REF!,2,0)-VLOOKUP($A129,$A$4:$BI$82,AR$3,0) ->  | AS129: =VLOOKUP($A129,#REF!,2,0)-VLOOKUP($A129,$A$4:$BI$82,AS$3,0) ->  | AT129: =VLOOKUP($A129,#REF!,2,0)-VLOOKUP($A129,$A$4:$BI$82,AT$3,0) ->  | AU129: =VLOOKUP($A129,#REF!,2,0)-VLOOKUP($A129,$A$4:$BI$82,AU$3,0) ->  | AV129: =VLOOKUP($A129,#REF!,2,0)-VLOOKUP($A129,$A$4:$BI$82,AV$3,0) ->  | AW129: =VLOOKUP($A129,#REF!,2,0)-VLOOKUP($A129,$A$4:$BI$82,AW$3,0) ->  | AX129: =VLOOKUP($A129,#REF!,2,0)-VLOOKUP($A129,$A$4:$BI$82,AX$3,0) ->  | AY129: =VLOOKUP($A129,#REF!,2,0)-VLOOKUP($A129,$A$4:$BI$82,AY$3,0) ->  | AZ129: =VLOOKUP($A129,#REF!,2,0)-VLOOKUP($A129,$A$4:$BI$82,AZ$3,0) ->  | BA129: =VLOOKUP($A129,#REF!,2,0)-VLOOKUP($A129,$A$4:$BI$82,BA$3,0) ->  | BB129: =VLOOKUP($A129,#REF!,2,0)-VLOOKUP($A129,$A$4:$BI$82,BB$3,0) ->  | BC129: =VLOOKUP($A129,#REF!,2,0)-VLOOKUP($A129,$A$4:$BI$82,BC$3,0) ->  | BD129: =VLOOKUP($A129,#REF!,2,0)-VLOOKUP($A129,$A$4:$BI$82,BD$3,0) ->  | BE129: =VLOOKUP($A129,#REF!,2,0)-VLOOKUP($A129,$A$4:$BI$82,BE$3,0) ->  | BF129: =VLOOKUP($A129,#REF!,2,0)-VLOOKUP($A129,$A$4:$BI$82,BF$3,0) ->  | BG129: =VLOOKUP($A129,#REF!,2,0)-VLOOKUP($A129,$A$4:$BI$82,BG$3,0) ->  | BH129: =VLOOKUP($A129,#REF!,2,0)-VLOOKUP($A129,$A$4:$BI$82,BH$3,0) ->  | BI129: =VLOOKUP($A129,#REF!,2,0)-VLOOKUP($A129,$A$4:$BI$82,BI$3,0) -> 
A130: Generadora del Istmo S.A., | M130: =VLOOKUP($A130,#REF!,3,0) ->  | N130: =VLOOKUP($A130,#REF!,2,0)-VLOOKUP($A130,$A$4:$BI$82,N$3,0) ->  | O130: =VLOOKUP($A130,#REF!,2,0)-VLOOKUP($A130,$A$4:$BI$82,O$3,0) ->  | P130: =VLOOKUP($A130,#REF!,2,0)-VLOOKUP($A130,$A$4:$BI$82,P$3,0) ->  | Q130: =VLOOKUP($A130,#REF!,2,0)-VLOOKUP($A130,$A$4:$BI$82,Q$3,0) ->  | R130: =VLOOKUP($A130,#REF!,2,0)-VLOOKUP($A130,$A$4:$BI$82,R$3,0) ->  | S130: =VLOOKUP($A130,#REF!,2,0)-VLOOKUP($A130,$A$4:$BI$82,S$3,0) ->  | T130: =VLOOKUP($A130,#REF!,2,0)-VLOOKUP($A130,$A$4:$BI$82,T$3,0) ->  | U130: =VLOOKUP($A130,#REF!,2,0)-VLOOKUP($A130,$A$4:$BI$82,U$3,0) ->  | V130: =VLOOKUP($A130,#REF!,2,0)-VLOOKUP($A130,$A$4:$BI$82,V$3,0) ->  | W130: =VLOOKUP($A130,#REF!,2,0)-VLOOKUP($A130,$A$4:$BI$82,W$3,0) ->  | X130: =VLOOKUP($A130,#REF!,2,0)-VLOOKUP($A130,$A$4:$BI$82,X$3,0) ->  | Y130: =VLOOKUP($A130,#REF!,2,0)-VLOOKUP($A130,$A$4:$BI$82,Y$3,0) ->  | Z130: =VLOOKUP($A130,#REF!,2,0)-VLOOKUP($A130,$A$4:$BI$82,Z$3,0) ->  | AA130: =VLOOKUP($A130,#REF!,2,0)-VLOOKUP($A130,$A$4:$BI$82,AA$3,0) ->  | AB130: =VLOOKUP($A130,#REF!,2,0)-VLOOKUP($A130,$A$4:$BI$82,AB$3,0) ->  | AC130: =VLOOKUP($A130,#REF!,2,0)-VLOOKUP($A130,$A$4:$BI$82,AC$3,0) ->  | AD130: =VLOOKUP($A130,#REF!,2,0)-VLOOKUP($A130,$A$4:$BI$82,AD$3,0) ->  | AE130: =VLOOKUP($A130,#REF!,2,0)-VLOOKUP($A130,$A$4:$BI$82,AE$3,0) ->  | AF130: =VLOOKUP($A130,#REF!,2,0)-VLOOKUP($A130,$A$4:$BI$82,AF$3,0) ->  | AG130: =VLOOKUP($A130,#REF!,2,0)-VLOOKUP($A130,$A$4:$BI$82,AG$3,0) ->  | AH130: =VLOOKUP($A130,#REF!,2,0)-VLOOKUP($A130,$A$4:$BI$82,AH$3,0) ->  | AI130: =VLOOKUP($A130,#REF!,2,0)-VLOOKUP($A130,$A$4:$BI$82,AI$3,0) ->  | AJ130: =VLOOKUP($A130,#REF!,2,0)-VLOOKUP($A130,$A$4:$BI$82,AJ$3,0) ->  | AK130: =VLOOKUP($A130,#REF!,2,0)-VLOOKUP($A130,$A$4:$BI$82,AK$3,0) ->  | AL130: =VLOOKUP($A130,#REF!,2,0)-VLOOKUP($A130,$A$4:$BI$82,AL$3,0) ->  | AM130: =VLOOKUP($A130,#REF!,2,0)-VLOOKUP($A130,$A$4:$BI$82,AM$3,0) ->  | AN130: =VLOOKUP($A130,#REF!,2,0)-VLOOKUP($A130,$A$4:$BI$82,AN$3,0) ->  | AO130: =VLOOKUP($A130,#REF!,2,0)-VLOOKUP($A130,$A$4:$BI$82,AO$3,0) ->  | AP130: =VLOOKUP($A130,#REF!,2,0)-VLOOKUP($A130,$A$4:$BI$82,AP$3,0) ->  | AQ130: =VLOOKUP($A130,#REF!,2,0)-VLOOKUP($A130,$A$4:$BI$82,AQ$3,0) ->  | AR130: =VLOOKUP($A130,#REF!,2,0)-VLOOKUP($A130,$A$4:$BI$82,AR$3,0) ->  | AS130: =VLOOKUP($A130,#REF!,2,0)-VLOOKUP($A130,$A$4:$BI$82,AS$3,0) ->  | AT130: =VLOOKUP($A130,#REF!,2,0)-VLOOKUP($A130,$A$4:$BI$82,AT$3,0) ->  | AU130: =VLOOKUP($A130,#REF!,2,0)-VLOOKUP($A130,$A$4:$BI$82,AU$3,0) ->  | AV130: =VLOOKUP($A130,#REF!,2,0)-VLOOKUP($A130,$A$4:$BI$82,AV$3,0) ->  | AW130: =VLOOKUP($A130,#REF!,2,0)-VLOOKUP($A130,$A$4:$BI$82,AW$3,0) ->  | AX130: =VLOOKUP($A130,#REF!,2,0)-VLOOKUP($A130,$A$4:$BI$82,AX$3,0) ->  | AY130: =VLOOKUP($A130,#REF!,2,0)-VLOOKUP($A130,$A$4:$BI$82,AY$3,0) ->  | AZ130: =VLOOKUP($A130,#REF!,2,0)-VLOOKUP($A130,$A$4:$BI$82,AZ$3,0) ->  | BA130: =VLOOKUP($A130,#REF!,2,0)-VLOOKUP($A130,$A$4:$BI$82,BA$3,0) ->  | BB130: =VLOOKUP($A130,#REF!,2,0)-VLOOKUP($A130,$A$4:$BI$82,BB$3,0) ->  | BC130: =VLOOKUP($A130,#REF!,2,0)-VLOOKUP($A130,$A$4:$BI$82,BC$3,0) ->  | BD130: =VLOOKUP($A130,#REF!,2,0)-VLOOKUP($A130,$A$4:$BI$82,BD$3,0) ->  | BE130: =VLOOKUP($A130,#REF!,2,0)-VLOOKUP($A130,$A$4:$BI$82,BE$3,0) ->  | BF130: =VLOOKUP($A130,#REF!,2,0)-VLOOKUP($A130,$A$4:$BI$82,BF$3,0) ->  | BG130: =VLOOKUP($A130,#REF!,2,0)-VLOOKUP($A130,$A$4:$BI$82,BG$3,0) ->  | BH130: =VLOOKUP($A130,#REF!,2,0)-VLOOKUP($A130,$A$4:$BI$82,BH$3,0) ->  | BI130: =VLOOKUP($A130,#REF!,2,0)-VLOOKUP($A130,$A$4:$BI$82,BI$3,0) -> 
A131: HIDRO CANDELA | M131: =VLOOKUP($A131,#REF!,3,0) ->  | N131: =VLOOKUP($A131,#REF!,2,0)-VLOOKUP($A131,$A$4:$BI$82,N$3,0) ->  | O131: =VLOOKUP($A131,#REF!,2,0)-VLOOKUP($A131,$A$4:$BI$82,O$3,0) ->  | P131: =VLOOKUP($A131,#REF!,2,0)-VLOOKUP($A131,$A$4:$BI$82,P$3,0) ->  | Q131: =VLOOKUP($A131,#REF!,2,0)-VLOOKUP($A131,$A$4:$BI$82,Q$3,0) ->  | R131: =VLOOKUP($A131,#REF!,2,0)-VLOOKUP($A131,$A$4:$BI$82,R$3,0) ->  | S131: =VLOOKUP($A131,#REF!,2,0)-VLOOKUP($A131,$A$4:$BI$82,S$3,0) ->  | T131: =VLOOKUP($A131,#REF!,2,0)-VLOOKUP($A131,$A$4:$BI$82,T$3,0) ->  | U131: =VLOOKUP($A131,#REF!,2,0)-VLOOKUP($A131,$A$4:$BI$82,U$3,0) ->  | V131: =VLOOKUP($A131,#REF!,2,0)-VLOOKUP($A131,$A$4:$BI$82,V$3,0) ->  | W131: =VLOOKUP($A131,#REF!,2,0)-VLOOKUP($A131,$A$4:$BI$82,W$3,0) ->  | X131: =VLOOKUP($A131,#REF!,2,0)-VLOOKUP($A131,$A$4:$BI$82,X$3,0) ->  | Y131: =VLOOKUP($A131,#REF!,2,0)-VLOOKUP($A131,$A$4:$BI$82,Y$3,0) ->  | Z131: =VLOOKUP($A131,#REF!,2,0)-VLOOKUP($A131,$A$4:$BI$82,Z$3,0) ->  | AA131: =VLOOKUP($A131,#REF!,2,0)-VLOOKUP($A131,$A$4:$BI$82,AA$3,0) ->  | AB131: =VLOOKUP($A131,#REF!,2,0)-VLOOKUP($A131,$A$4:$BI$82,AB$3,0) ->  | AC131: =VLOOKUP($A131,#REF!,2,0)-VLOOKUP($A131,$A$4:$BI$82,AC$3,0) ->  | AD131: =VLOOKUP($A131,#REF!,2,0)-VLOOKUP($A131,$A$4:$BI$82,AD$3,0) ->  | AE131: =VLOOKUP($A131,#REF!,2,0)-VLOOKUP($A131,$A$4:$BI$82,AE$3,0) ->  | AF131: =VLOOKUP($A131,#REF!,2,0)-VLOOKUP($A131,$A$4:$BI$82,AF$3,0) ->  | AG131: =VLOOKUP($A131,#REF!,2,0)-VLOOKUP($A131,$A$4:$BI$82,AG$3,0) ->  | AH131: =VLOOKUP($A131,#REF!,2,0)-VLOOKUP($A131,$A$4:$BI$82,AH$3,0) ->  | AI131: =VLOOKUP($A131,#REF!,2,0)-VLOOKUP($A131,$A$4:$BI$82,AI$3,0) ->  | AJ131: =VLOOKUP($A131,#REF!,2,0)-VLOOKUP($A131,$A$4:$BI$82,AJ$3,0) ->  | AK131: =VLOOKUP($A131,#REF!,2,0)-VLOOKUP($A131,$A$4:$BI$82,AK$3,0) ->  | AL131: =VLOOKUP($A131,#REF!,2,0)-VLOOKUP($A131,$A$4:$BI$82,AL$3,0) ->  | AM131: =VLOOKUP($A131,#REF!,2,0)-VLOOKUP($A131,$A$4:$BI$82,AM$3,0) ->  | AN131: =VLOOKUP($A131,#REF!,2,0)-VLOOKUP($A131,$A$4:$BI$82,AN$3,0) ->  | AO131: =VLOOKUP($A131,#REF!,2,0)-VLOOKUP($A131,$A$4:$BI$82,AO$3,0) ->  | AP131: =VLOOKUP($A131,#REF!,2,0)-VLOOKUP($A131,$A$4:$BI$82,AP$3,0) ->  | AQ131: =VLOOKUP($A131,#REF!,2,0)-VLOOKUP($A131,$A$4:$BI$82,AQ$3,0) ->  | AR131: =VLOOKUP($A131,#REF!,2,0)-VLOOKUP($A131,$A$4:$BI$82,AR$3,0) ->  | AS131: =VLOOKUP($A131,#REF!,2,0)-VLOOKUP($A131,$A$4:$BI$82,AS$3,0) ->  | AT131: =VLOOKUP($A131,#REF!,2,0)-VLOOKUP($A131,$A$4:$BI$82,AT$3,0) ->  | AU131: =VLOOKUP($A131,#REF!,2,0)-VLOOKUP($A131,$A$4:$BI$82,AU$3,0) ->  | AV131: =VLOOKUP($A131,#REF!,2,0)-VLOOKUP($A131,$A$4:$BI$82,AV$3,0) ->  | AW131: =VLOOKUP($A131,#REF!,2,0)-VLOOKUP($A131,$A$4:$BI$82,AW$3,0) ->  | AX131: =VLOOKUP($A131,#REF!,2,0)-VLOOKUP($A131,$A$4:$BI$82,AX$3,0) ->  | AY131: =VLOOKUP($A131,#REF!,2,0)-VLOOKUP($A131,$A$4:$BI$82,AY$3,0) ->  | AZ131: =VLOOKUP($A131,#REF!,2,0)-VLOOKUP($A131,$A$4:$BI$82,AZ$3,0) ->  | BA131: =VLOOKUP($A131,#REF!,2,0)-VLOOKUP($A131,$A$4:$BI$82,BA$3,0) ->  | BB131: =VLOOKUP($A131,#REF!,2,0)-VLOOKUP($A131,$A$4:$BI$82,BB$3,0) ->  | BC131: =VLOOKUP($A131,#REF!,2,0)-VLOOKUP($A131,$A$4:$BI$82,BC$3,0) ->  | BD131: =VLOOKUP($A131,#REF!,2,0)-VLOOKUP($A131,$A$4:$BI$82,BD$3,0) ->  | BE131: =VLOOKUP($A131,#REF!,2,0)-VLOOKUP($A131,$A$4:$BI$82,BE$3,0) ->  | BF131: =VLOOKUP($A131,#REF!,2,0)-VLOOKUP($A131,$A$4:$BI$82,BF$3,0) ->  | BG131: =VLOOKUP($A131,#REF!,2,0)-VLOOKUP($A131,$A$4:$BI$82,BG$3,0) ->  | BH131: =VLOOKUP($A131,#REF!,2,0)-VLOOKUP($A131,$A$4:$BI$82,BH$3,0) ->  | BI131: =VLOOKUP($A131,#REF!,2,0)-VLOOKUP($A131,$A$4:$BI$82,BI$3,0) -> 
A132: Celsia Centroamérica, S.A. | M132: =VLOOKUP($A132,#REF!,3,0) ->  | N132: =VLOOKUP($A132,#REF!,2,0)-VLOOKUP($A132,$A$4:$BI$82,N$3,0) ->  | O132: =VLOOKUP($A132,#REF!,2,0)-VLOOKUP($A132,$A$4:$BI$82,O$3,0) ->  | P132: =VLOOKUP($A132,#REF!,2,0)-VLOOKUP($A132,$A$4:$BI$82,P$3,0) ->  | Q132: =VLOOKUP($A132,#REF!,2,0)-VLOOKUP($A132,$A$4:$BI$82,Q$3,0) ->  | R132: =VLOOKUP($A132,#REF!,2,0)-VLOOKUP($A132,$A$4:$BI$82,R$3,0) ->  | S132: =VLOOKUP($A132,#REF!,2,0)-VLOOKUP($A132,$A$4:$BI$82,S$3,0) ->  | T132: =VLOOKUP($A132,#REF!,2,0)-VLOOKUP($A132,$A$4:$BI$82,T$3,0) ->  | U132: =VLOOKUP($A132,#REF!,2,0)-VLOOKUP($A132,$A$4:$BI$82,U$3,0) ->  | V132: =VLOOKUP($A132,#REF!,2,0)-VLOOKUP($A132,$A$4:$BI$82,V$3,0) ->  | W132: =VLOOKUP($A132,#REF!,2,0)-VLOOKUP($A132,$A$4:$BI$82,W$3,0) ->  | X132: =VLOOKUP($A132,#REF!,2,0)-VLOOKUP($A132,$A$4:$BI$82,X$3,0) ->  | Y132: =VLOOKUP($A132,#REF!,2,0)-VLOOKUP($A132,$A$4:$BI$82,Y$3,0) ->  | Z132: =VLOOKUP($A132,#REF!,2,0)-VLOOKUP($A132,$A$4:$BI$82,Z$3,0) ->  | AA132: =VLOOKUP($A132,#REF!,2,0)-VLOOKUP($A132,$A$4:$BI$82,AA$3,0) ->  | AB132: =VLOOKUP($A132,#REF!,2,0)-VLOOKUP($A132,$A$4:$BI$82,AB$3,0) ->  | AC132: =VLOOKUP($A132,#REF!,2,0)-VLOOKUP($A132,$A$4:$BI$82,AC$3,0) ->  | AD132: =VLOOKUP($A132,#REF!,2,0)-VLOOKUP($A132,$A$4:$BI$82,AD$3,0) ->  | AE132: =VLOOKUP($A132,#REF!,2,0)-VLOOKUP($A132,$A$4:$BI$82,AE$3,0) ->  | AF132: =VLOOKUP($A132,#REF!,2,0)-VLOOKUP($A132,$A$4:$BI$82,AF$3,0) ->  | AG132: =VLOOKUP($A132,#REF!,2,0)-VLOOKUP($A132,$A$4:$BI$82,AG$3,0) ->  | AH132: =VLOOKUP($A132,#REF!,2,0)-VLOOKUP($A132,$A$4:$BI$82,AH$3,0) ->  | AI132: =VLOOKUP($A132,#REF!,2,0)-VLOOKUP($A132,$A$4:$BI$82,AI$3,0) ->  | AJ132: =VLOOKUP($A132,#REF!,2,0)-VLOOKUP($A132,$A$4:$BI$82,AJ$3,0) ->  | AK132: =VLOOKUP($A132,#REF!,2,0)-VLOOKUP($A132,$A$4:$BI$82,AK$3,0) ->  | AL132: =VLOOKUP($A132,#REF!,2,0)-VLOOKUP($A132,$A$4:$BI$82,AL$3,0) ->  | AM132: =VLOOKUP($A132,#REF!,2,0)-VLOOKUP($A132,$A$4:$BI$82,AM$3,0) ->  | AN132: =VLOOKUP($A132,#REF!,2,0)-VLOOKUP($A132,$A$4:$BI$82,AN$3,0) ->  | AO132: =VLOOKUP($A132,#REF!,2,0)-VLOOKUP($A132,$A$4:$BI$82,AO$3,0) ->  | AP132: =VLOOKUP($A132,#REF!,2,0)-VLOOKUP($A132,$A$4:$BI$82,AP$3,0) ->  | AQ132: =VLOOKUP($A132,#REF!,2,0)-VLOOKUP($A132,$A$4:$BI$82,AQ$3,0) ->  | AR132: =VLOOKUP($A132,#REF!,2,0)-VLOOKUP($A132,$A$4:$BI$82,AR$3,0) ->  | AS132: =VLOOKUP($A132,#REF!,2,0)-VLOOKUP($A132,$A$4:$BI$82,AS$3,0) ->  | AT132: =VLOOKUP($A132,#REF!,2,0)-VLOOKUP($A132,$A$4:$BI$82,AT$3,0) ->  | AU132: =VLOOKUP($A132,#REF!,2,0)-VLOOKUP($A132,$A$4:$BI$82,AU$3,0) ->  | AV132: =VLOOKUP($A132,#REF!,2,0)-VLOOKUP($A132,$A$4:$BI$82,AV$3,0) ->  | AW132: =VLOOKUP($A132,#REF!,2,0)-VLOOKUP($A132,$A$4:$BI$82,AW$3,0) ->  | AX132: =VLOOKUP($A132,#REF!,2,0)-VLOOKUP($A132,$A$4:$BI$82,AX$3,0) ->  | AY132: =VLOOKUP($A132,#REF!,2,0)-VLOOKUP($A132,$A$4:$BI$82,AY$3,0) ->  | AZ132: =VLOOKUP($A132,#REF!,2,0)-VLOOKUP($A132,$A$4:$BI$82,AZ$3,0) ->  | BA132: =VLOOKUP($A132,#REF!,2,0)-VLOOKUP($A132,$A$4:$BI$82,BA$3,0) ->  | BB132: =VLOOKUP($A132,#REF!,2,0)-VLOOKUP($A132,$A$4:$BI$82,BB$3,0) ->  | BC132: =VLOOKUP($A132,#REF!,2,0)-VLOOKUP($A132,$A$4:$BI$82,BC$3,0) ->  | BD132: =VLOOKUP($A132,#REF!,2,0)-VLOOKUP($A132,$A$4:$BI$82,BD$3,0) ->  | BE132: =VLOOKUP($A132,#REF!,2,0)-VLOOKUP($A132,$A$4:$BI$82,BE$3,0) ->  | BF132: =VLOOKUP($A132,#REF!,2,0)-VLOOKUP($A132,$A$4:$BI$82,BF$3,0) ->  | BG132: =VLOOKUP($A132,#REF!,2,0)-VLOOKUP($A132,$A$4:$BI$82,BG$3,0) ->  | BH132: =VLOOKUP($A132,#REF!,2,0)-VLOOKUP($A132,$A$4:$BI$82,BH$3,0) ->  | BI132: =VLOOKUP($A132,#REF!,2,0)-VLOOKUP($A132,$A$4:$BI$82,BI$3,0) -> 
A133: TROPITERMICA | M133: =VLOOKUP($A133,#REF!,3,0) ->  | N133: =VLOOKUP($A133,#REF!,2,0)-VLOOKUP($A133,$A$4:$BI$82,N$3,0) ->  | O133: =VLOOKUP($A133,#REF!,2,0)-VLOOKUP($A133,$A$4:$BI$82,O$3,0) ->  | P133: =VLOOKUP($A133,#REF!,2,0)-VLOOKUP($A133,$A$4:$BI$82,P$3,0) ->  | Q133: =VLOOKUP($A133,#REF!,2,0)-VLOOKUP($A133,$A$4:$BI$82,Q$3,0) ->  | R133: =VLOOKUP($A133,#REF!,2,0)-VLOOKUP($A133,$A$4:$BI$82,R$3,0) ->  | S133: =VLOOKUP($A133,#REF!,2,0)-VLOOKUP($A133,$A$4:$BI$82,S$3,0) ->  | T133: =VLOOKUP($A133,#REF!,2,0)-VLOOKUP($A133,$A$4:$BI$82,T$3,0) ->  | U133: =VLOOKUP($A133,#REF!,2,0)-VLOOKUP($A133,$A$4:$BI$82,U$3,0) ->  | V133: =VLOOKUP($A133,#REF!,2,0)-VLOOKUP($A133,$A$4:$BI$82,V$3,0) ->  | W133: =VLOOKUP($A133,#REF!,2,0)-VLOOKUP($A133,$A$4:$BI$82,W$3,0) ->  | X133: =VLOOKUP($A133,#REF!,2,0)-VLOOKUP($A133,$A$4:$BI$82,X$3,0) ->  | Y133: =VLOOKUP($A133,#REF!,2,0)-VLOOKUP($A133,$A$4:$BI$82,Y$3,0) ->  | Z133: =VLOOKUP($A133,#REF!,2,0)-VLOOKUP($A133,$A$4:$BI$82,Z$3,0) ->  | AA133: =VLOOKUP($A133,#REF!,2,0)-VLOOKUP($A133,$A$4:$BI$82,AA$3,0) ->  | AB133: =VLOOKUP($A133,#REF!,2,0)-VLOOKUP($A133,$A$4:$BI$82,AB$3,0) ->  | AC133: =VLOOKUP($A133,#REF!,2,0)-VLOOKUP($A133,$A$4:$BI$82,AC$3,0) ->  | AD133: =VLOOKUP($A133,#REF!,2,0)-VLOOKUP($A133,$A$4:$BI$82,AD$3,0) ->  | AE133: =VLOOKUP($A133,#REF!,2,0)-VLOOKUP($A133,$A$4:$BI$82,AE$3,0) ->  | AF133: =VLOOKUP($A133,#REF!,2,0)-VLOOKUP($A133,$A$4:$BI$82,AF$3,0) ->  | AG133: =VLOOKUP($A133,#REF!,2,0)-VLOOKUP($A133,$A$4:$BI$82,AG$3,0) ->  | AH133: =VLOOKUP($A133,#REF!,2,0)-VLOOKUP($A133,$A$4:$BI$82,AH$3,0) ->  | AI133: =VLOOKUP($A133,#REF!,2,0)-VLOOKUP($A133,$A$4:$BI$82,AI$3,0) ->  | AJ133: =VLOOKUP($A133,#REF!,2,0)-VLOOKUP($A133,$A$4:$BI$82,AJ$3,0) ->  | AK133: =VLOOKUP($A133,#REF!,2,0)-VLOOKUP($A133,$A$4:$BI$82,AK$3,0) ->  | AL133: =VLOOKUP($A133,#REF!,2,0)-VLOOKUP($A133,$A$4:$BI$82,AL$3,0) ->  | AM133: =VLOOKUP($A133,#REF!,2,0)-VLOOKUP($A133,$A$4:$BI$82,AM$3,0) ->  | AN133: =VLOOKUP($A133,#REF!,2,0)-VLOOKUP($A133,$A$4:$BI$82,AN$3,0) ->  | AO133: =VLOOKUP($A133,#REF!,2,0)-VLOOKUP($A133,$A$4:$BI$82,AO$3,0) ->  | AP133: =VLOOKUP($A133,#REF!,2,0)-VLOOKUP($A133,$A$4:$BI$82,AP$3,0) ->  | AQ133: =VLOOKUP($A133,#REF!,2,0)-VLOOKUP($A133,$A$4:$BI$82,AQ$3,0) ->  | AR133: =VLOOKUP($A133,#REF!,2,0)-VLOOKUP($A133,$A$4:$BI$82,AR$3,0) ->  | AS133: =VLOOKUP($A133,#REF!,2,0)-VLOOKUP($A133,$A$4:$BI$82,AS$3,0) ->  | AT133: =VLOOKUP($A133,#REF!,2,0)-VLOOKUP($A133,$A$4:$BI$82,AT$3,0) ->  | AU133: =VLOOKUP($A133,#REF!,2,0)-VLOOKUP($A133,$A$4:$BI$82,AU$3,0) ->  | AV133: =VLOOKUP($A133,#REF!,2,0)-VLOOKUP($A133,$A$4:$BI$82,AV$3,0) ->  | AW133: =VLOOKUP($A133,#REF!,2,0)-VLOOKUP($A133,$A$4:$BI$82,AW$3,0) ->  | AX133: =VLOOKUP($A133,#REF!,2,0)-VLOOKUP($A133,$A$4:$BI$82,AX$3,0) ->  | AY133: =VLOOKUP($A133,#REF!,2,0)-VLOOKUP($A133,$A$4:$BI$82,AY$3,0) ->  | AZ133: =VLOOKUP($A133,#REF!,2,0)-VLOOKUP($A133,$A$4:$BI$82,AZ$3,0) ->  | BA133: =VLOOKUP($A133,#REF!,2,0)-VLOOKUP($A133,$A$4:$BI$82,BA$3,0) ->  | BB133: =VLOOKUP($A133,#REF!,2,0)-VLOOKUP($A133,$A$4:$BI$82,BB$3,0) ->  | BC133: =VLOOKUP($A133,#REF!,2,0)-VLOOKUP($A133,$A$4:$BI$82,BC$3,0) ->  | BD133: =VLOOKUP($A133,#REF!,2,0)-VLOOKUP($A133,$A$4:$BI$82,BD$3,0) ->  | BE133: =VLOOKUP($A133,#REF!,2,0)-VLOOKUP($A133,$A$4:$BI$82,BE$3,0) ->  | BF133: =VLOOKUP($A133,#REF!,2,0)-VLOOKUP($A133,$A$4:$BI$82,BF$3,0) ->  | BG133: =VLOOKUP($A133,#REF!,2,0)-VLOOKUP($A133,$A$4:$BI$82,BG$3,0) ->  | BH133: =VLOOKUP($A133,#REF!,2,0)-VLOOKUP($A133,$A$4:$BI$82,BH$3,0) ->  | BI133: =VLOOKUP($A133,#REF!,2,0)-VLOOKUP($A133,$A$4:$BI$82,BI$3,0) -> 
A135: Total Oferta Disponible | N135: =+SUMIF(N86:N133,">0",N86:N133) -> 0 | O135: 0 | P135: 0 | Q135: 0 | R135: 0 | S135: 0 | T135: 0 | U135: 0 | V135: 0 | W135: 0 | X135: 0 | Y135: 0 | Z135: 0 | AA135: 0 | AB135: 0 | AC135: 0 | AD135: 0 | AE135: 0 | AF135: 0 | AG135: 0 | AH135: 0 | AI135: 0 | AJ135: 0 | AK135: 0 | AL135: 0 | AM135: 0 | AN135: 0 | AO135: 0 | AP135: 0 | AQ135: 0 | AR135: 0 | AS135: 0 | AT135: 0 | AU135: 0 | AV135: 0 | AW135: 0 | AX135: 0 | AY135: 0 | AZ135: 0 | BA135: 0 | BB135: 0 | BC135: 0 | BD135: 0 | BE135: 0 | BF135: 0 | BG135: 0 | BH135: 0 | BI135: 0
A136: Total Oferta Disponible * 75% | N136: =N135*0.75 -> 0 | O136: =O135*0.75 -> 0 | P136: 0 | Q136: 0 | R136: 0 | S136: 0 | T136: 0 | U136: 0 | V136: 0 | W136: 0 | X136: 0 | Y136: 0 | Z136: 0 | AA136: 0 | AB136: 0 | AC136: 0 | AD136: 0 | AE136: 0 | AF136: 0 | AG136: 0 | AH136: 0 | AI136: 0 | AJ136: 0 | AK136: 0 | AL136: 0 | AM136: 0 | AN136: 0 | AO136: 0 | AP136: 0 | AQ136: 0 | AR136: 0 | AS136: 0 | AT136: 0 | AU136: 0 | AV136: 0 | AW136: 0 | AX136: 0 | AY136: 0 | AZ136: 0 | BA136: 0 | BB136: 0 | BC136: 0 | BD136: 0 | BE136: 0 | BF136: 0 | BG136: 0 | BH136: 0 | BI136: 0
A137: Compran o comprarían en contratos de reserva- Martano y NGP | N137: =+SUMIF(N86:N133,"<0",N86:N133)-N120-N122 -> 
A138: Compran o Comprarían en contratos de rserva + PNGP y MARTANO | N138: =+SUMIF(N86:N133,"<0",N86:N133) -> 0 | O138: 0 | P138: 0 | Q138: 0 | R138: 0 | S138: 0 | T138: 0 | U138: 0 | V138: 0 | W138: 0 | X138: 0 | Y138: 0 | Z138: 0 | AA138: 0 | AB138: 0 | AC138: 0 | AD138: 0 | AE138: 0 | AF138: 0 | AG138: 0 | AH138: 0 | AI138: 0 | AJ138: 0 | AK138: 0 | AL138: 0 | AM138: 0 | AN138: 0 | AO138: 0 | AP138: 0 | AQ138: 0 | AR138: 0 | AS138: 0 | AT138: 0 | AU138: 0 | AV138: 0 | AW138: 0 | AX138: 0 | AY138: 0 | AZ138: 0 | BA138: 0 | BB138: 0 | BC138: 0 | BD138: 0 | BE138: 0 | BF138: 0 | BG138: 0 | BH138: 0 | BI138: 0
A140: Oferta Disponible* 75% - Contratos de Reserva (Sinolam y PNGP respaldado con sus unidades) | N140: =N136+N137 ->  | O140: =O136+O137 ->  | W140: =W136+W137 -> 
A141: Oferta Disponible *75% - Contratos de Reserva (Sinolam y PNGP cedido) | N141: =N136+N138 -> 0 | O141: =O136+O138 -> 0 | P141: 0 | Q141: 0 | R141: 0 | S141: 0 | T141: 0 | U141: 0 | V141: 0 | W141: 0 | X141: 0 | Y141: 0 | Z141: 0 | AA141: 0 | AB141: 0 | AC141: 0 | AD141: 0 | AE141: 0 | AF141: 0 | AG141: 0 | AH141: 0 | AI141: 0 | AJ141: 0 | AK141: 0 | AL141: 0 | AM141: 0 | AN141: 0 | AO141: 0 | AP141: 0 | AQ141: 0 | AR141: 0 | AS141: 0 | AT141: 0 | AU141: 0 | AV141: 0 | AW141: 0 | AX141: 0 | AY141: 0 | AZ141: 0 | BA141: 0 | BB141: 0 | BC141: 0 | BD141: 0 | BE141: 0 | BF141: 0 | BG141: 0 | BH141: 0 | BI141: 0
N144: 2020-01-01 | O144: 2020-02-01 | P144: 2020-03-01 | Q144: 2020-04-01 | R144: 2020-05-01 | S144: 2020-06-01 | T144: 2020-07-01 | U144: 2020-08-01 | V144: 2020-09-01 | W144: 2020-10-01 | X144: 2020-11-01 | Y144: 2020-12-01 | Z144: 2021-01-01 | AA144: 2021-02-01 | AB144: 2021-03-01 | AC144: 2021-04-01 | AD144: 2021-05-01 | AE144: 2021-06-01 | AF144: 2021-07-01 | AG144: 2021-08-01 | AH144: 2021-09-01 | AI144: 2021-10-01 | AJ144: 2021-11-01 | AK144: 2021-12-01 | AL144: 2022-01-01 | AM144: 2022-02-01 | AN144: 2022-03-01 | AO144: 2022-04-01 | AP144: 2022-05-01 | AQ144: 2022-06-01 | AR144: 2022-07-01 | AS144: 2022-08-01 | AT144: 2022-09-01 | AU144: 2022-10-01 | AV144: 2022-11-01 | AW144: 2022-12-01 | AX144: 2023-01-01 | AY144: 2023-02-01 | AZ144: 2023-03-01 | BA144: 2023-04-01 | BB144: 2023-05-01 | BC144: 2023-06-01 | BD144: 2023-07-01 | BE144: 2023-08-01 | BF144: 2023-09-01 | BG144: 2023-10-01 | BH144: 2023-11-01 | BI144: 2023-12-01
A145: Oferta Hidro | N145: =+SUMIFS(N86:N133,$M$86:$M$133,"H",N86:N133,">=0")*0.75 -> 0 | O145: =+SUMIFS(O86:O133,$M$86:$M$133,"H",O86:O133,">=0")*0.75 -> 0 | P145: 0 | Q145: 0 | R145: 0 | S145: 0 | T145: 0 | U145: 0 | V145: 0 | W145: 0 | X145: 0 | Y145: 0 | Z145: 0 | AA145: 0 | AB145: 0 | AC145: 0 | AD145: 0 | AE145: 0 | AF145: 0 | AG145: 0 | AH145: 0 | AI145: 0 | AJ145: 0 | AK145: 0 | AL145: 0 | AM145: 0 | AN145: 0 | AO145: 0 | AP145: 0 | AQ145: 0 | AR145: 0 | AS145: 0 | AT145: 0 | AU145: 0 | AV145: 0 | AW145: 0 | AX145: 0 | AY145: 0 | AZ145: 0 | BA145: 0 | BB145: 0 | BC145: 0 | BD145: 0 | BE145: 0 | BF145: 0 | BG145: 0 | BH145: 0 | BI145: 0
A146: Oferta Térmica | N146: =+SUMIFS(N86:N133,$M$86:$M$133,"T",N86:N133,">=0")*0.75 -> 0 | O146: =+SUMIFS(O86:O133,$M$86:$M$133,"T",O86:O133,">=0")*0.75 -> 0 | P146: 0 | Q146: 0 | R146: 0 | S146: 0 | T146: 0 | U146: 0 | V146: 0 | W146: 0 | X146: 0 | Y146: 0 | Z146: 0 | AA146: 0 | AB146: 0 | AC146: 0 | AD146: 0 | AE146: 0 | AF146: 0 | AG146: 0 | AH146: 0 | AI146: 0 | AJ146: 0 | AK146: 0 | AL146: 0 | AM146: 0 | AN146: 0 | AO146: 0 | AP146: 0 | AQ146: 0 | AR146: 0 | AS146: 0 | AT146: 0 | AU146: 0 | AV146: 0 | AW146: 0 | AX146: 0 | AY146: 0 | AZ146: 0 | BA146: 0 | BB146: 0 | BC146: 0 | BD146: 0 | BE146: 0 | BF146: 0 | BG146: 0 | BH146: 0 | BI146: 0
A147: Total Oferta (MW) | N147: =N145+N146 -> 0 | O147: =O145+O146 -> 0 | P147: 0 | Q147: 0 | R147: 0 | S147: 0 | T147: 0 | U147: 0 | V147: 0 | W147: 0 | X147: 0 | Y147: 0 | Z147: 0 | AA147: 0 | AB147: 0 | AC147: 0 | AD147: 0 | AE147: 0 | AF147: 0 | AG147: 0 | AH147: 0 | AI147: 0 | AJ147: 0 | AK147: 0 | AL147: 0 | AM147: 0 | AN147: 0 | AO147: 0 | AP147: 0 | AQ147: 0 | AR147: 0 | AS147: 0 | AT147: 0 | AU147: 0 | AV147: 0 | AW147: 0 | AX147: 0 | AY147: 0 | AZ147: 0 | BA147: 0 | BB147: 0 | BC147: 0 | BD147: 0 | BE147: 0 | BF147: 0 | BG147: 0 | BH147: 0 | BI147: 0
A148: Requerimiento (MW) | Q148: 298.2962123 | R148: 271.1112005 | S148: 294.948604 | T148: 343.8483182 | U148: 388.4856764 | V148: 400.5801121 | W148: 431.5837778 | X148: 381.3168786 | Y148: 320.8999894 | Z148: 371.6088435 | AA148: 403.4412599 | AB148: 491.3773654 | AC148: 527.0829519 | AD148: 497.8281222 | AE148: 638.0331309 | AF148: 576.0903711 | AG148: 625.7874722 | AH148: 612.6776348 | AI148: 612.9376891 | AJ148: 558.3833403 | AK148: 600.7074844 | AL148: 251.6648043 | AM148: 262.7238454 | AN148: 280.0273488 | AO148: 308.6568656 | AP148: 283.317051 | AQ148: 399.5084677 | AR148: 346.7380585 | AS148: 388.0326403 | AT148: 376.5550339 | AU148: 378.2481663 | AV148: 332.188065 | AW148: 369.5964184
A149: Relación Oferta Requerimiento | Q149: =Q147/Q148 -> 0 | R149: 0 | S149: 0 | T149: 0 | U149: 0 | V149: 0 | W149: 0 | X149: 0 | Y149: 0 | Z149: 0 | AA149: 0 | AB149: 0 | AC149: 0 | AD149: 0 | AE149: 0 | AF149: 0 | AG149: 0 | AH149: 0 | AI149: 0 | AJ149: 0 | AK149: 0 | AL149: 0 | AM149: 0 | AN149: 0 | AO149: 0 | AP149: 0 | AQ149: 0 | AR149: 0 | AS149: 0 | AT149: 0 | AU149: 0 | AV149: 0 | AW149: 0
AW150: =+MIN(Q149:AW149) -> 0
A156: Oferta Disponible
A157: AES Panamá, S.R.L. | N157: =N86*0.75/N$136 ->  | O157: =O86*0.75/O$136 -> 
A158: Alternegy, S.A. | O158: =O87*0.75/O$136 -> 
A159: Autoridad del Canal de Panamá
A160: Bahía Las Minas Corp.,
A161: Bontex, S.A.
A162: Caldera Energy Corp. | AX162: =AX91*0.75/AX$136 -> 
A163: Consorcio Energyst - International
A164: Corporación de Energía del Istmo LTD, S.A.
A165: Desarrollos Hidroeléctricos Corp.
A166: Electrogeneradora del Istmo, S.A.
A167: Electron Investment, S.A.
A168: Empresa Nacional de Energía, S.A. | W168: =W97*0.75/W$136 -> 
A169: Enel Fortuna, S.A.
A170: Enel Green Power, S.A.
A171: Energía y Servicios de Panamá, S.A.
A172: Fountain Intertrade Corp.
A173: Gas Natural Atlántico, S. de R.L. | AQ173: =AQ102*0.75/AQ$136 -> 
A174: Generadora Alto Valle, S.A.
A175: Generadora del Atlántico, S.A.
A176: Generadora Pedregalito, S.A.
A177: Generadora Río Chico, S.A.
A178: Hidro Panamá, S.A.
A179: Hidroecológica del Teribe, S.A. | P179: =P108*0.75/P$136 -> 
A180: Hidroeléctrica Bajos del Totuma, S.A.
A181: Hidroeléctrica San Lorenzo, S.A.
A182: Hidroibérica, S.A.
A183: HidroPiedra, S.A.
A184: Hydro Caisán, S.A. | AJ184: =AJ113*0.75/AJ$136 -> 
A185: Ideal Panamá, S.A.
A186: Istmus Hydro Power, Corp.
A187: Jinro Corp
A188: Kanan Overseas I, Inc
A189: Las Perlas Norte, S.A. | BD189: =BD118*0.75/BD$136 -> 
A190: Las Perlas Sur, S.A.
A191: Martano, Inc
A192: Pan-Am Generating Limited
A193: Panama NG Power, S.A.
A194: Paso Ancho Hydro Power Corporation
A195: Pedregal Power Company, S. de R.L. | AC195: =AC124*0.75/AC$136 -> 
A196: Saltos del Francolí, S.A.
A197: Valley Rise Investment Corp.
A198: Celsia Centroamérica, S.A.
A199: Generadora Fotovoltaica Chiriquí, S.A.
A200: Hidro Boquerón, S.A. | AW200: =AW129*0.75/AW$136 -> 
A201: Generadora del Istmo S.A.,
A202: HIDRO CANDELA
A203: Celsia Centroamérica, S.A.
A204: TROPITERMICA
A208: empresas con más del 10% de la oferta | N208: =(N86+N89+N104+N98+N121)*0.75 ->  | O208: =(O86+O89+O104+O98+O121)*0.75 -> 

Sheet PF por Gupo (hidden)
C4: Centrales Térmicas | D4: Potencia Firme de Largo Plazo MW
C5: ACP | D5: 79.97
C6: AES _Estrella de Mar | D6: 0
C7: BLM Carbón | D7: 74.05
C8: BLM Ciclo Combinado | D8: 82.06
C9: CELSIA CENTROAMÉRICA
D10: 68.17
C11: ENERGYST | D11: 0
C12: GANA (Gas Natural Atlántico) | D12: 354.71
C13: GENA | D13: 138.01
C14: JINRO | D14: 53.04
C15: KANAN | D15: 88.5
C16: MINERAPMA | D16: 0
C17: PAN-AM | D17: 134.82
C18: PEDREGAL | D18: 49.07
C19: TROPITERMICA | D19: 4.66
C20: URBALIA | D20: 7.05
D21: =SUM(D5:D20) -> 1134.11 | E21: =D21-D7-D14-D15-D18 -> 869.45
C26: Centrales Hidráulicas | D26: Potencia Firme de Largo Plazo MW
C27: ENEL FORTUNA | D27: 290.21
C28: AES PANAMÁ | D28: =SUM(D29:D32) -> 306.55
C29: Bayano | D29: 160.12
C30: Estí | D30: 112.67
C31: La Estrella | D31: 16.13
C32: Los Valles | D32: 17.63
C33: AES Changuinola | D33: 175.33
C34: ESEPSA | D34: =SUM(D35:D38) -> 7.31
C35: La Yeguada | D35: 3
C36: Los Algarrobos | D36: 2.41
C37: Macho de Monte | D37: 0.8
C38: Dolega | D38: 1.1
C39: ISTMUS (Concepción) | D39: 2.49
C40: HIDRO PANAMÁ | D40: 0.74
C41: HIDRO CANDELA | D41: 0.1297
C42: CELSIA BONTEX (Gualaca) | D42: 23.04
C43: CELSIA ALTERNEGY | D43: =SUM(D44:D45) -> 80.71
C44: Lorena | D44: 30.62
C45: Prudencia | D45: 50.09
C46: IDEAL | D46: =D47+D48 -> 51.16
C47: Bajo de Mina | D47: 20.07
C48: Baitún | D48: 31.09
C49: SALTOS DEL FRANCOLÍ | D49: =D50+D51 -> 4.452
C50: Los Planetas I | D50: 1.102
C51: Los Planetas II | D51: 3.35
C52: HIDRO BOQUERÓN (Macano) | D52: 0.898
C53: CALDERA ENERGY CORP. (Mendre) | D53: 3.9243
C54: PASO ANCHO | D54: 3.08
C55: HIDRO IBÉRICA (El Fraile) | D55: 1.498
C56: ELECTROGEN DEL ISTMO (Mendre 2) | D56: 1.556
C57: LAS PERLAS NORTE | D57: 2.4613
C58: LAS PERLAS SUR | D58: 2.4613
C59: ALTO VALLE (Cochea) | D59: 3.064
C60: GENERADORA PEDREGALITO | D60: 2.043
C61: RÍO CHICO (Pedregalito II) | D61: 0.376
C62: HIDRO PIEDRA | D62: =D63+D64 -> 3.09
C63: RP490 | D63: 1.78
C64: La Cuchilla | D64: 1.31
C65: HIDRO CAISÁN (El Alto) | D65: 22.14
C66: EISA | D66: =SUM(D67:D68) -> 57.51
C67: Pando | D67: 25.13
C68: Monte Lirio | D68: 32.38
C69: SAN LORENZO | D69: 1.333
C70: HIDROECOLÓGICA DEL TERIBE (Bonyic) | D70: 22.22
C71: EMNADESA | D71: =SUM(D72:D73) -> 1.872
C72: Bugaba I | D72: 0.511
C73: Bugaba II | D73: 1.361
C74: FOUNTAIN | D74: =SUM(D75:D77) -> 19.354
C75: La Potra | D75: 8.662
C76: La Potra G4 | D76: 2.03
C77: Salsipuedes | D77: 8.662
C78: CORPISTMO (Las Cruces) | D78: 3.17
C79: GENERADORA DEL ISTMO (Barro Blanco) | D79: 11.57
C80: BAJO DE TOTUMA | D80: 2.04
C81: DHC SAN ANDRES | D81: 2.538
B82: frai | D82: =D27+D28+D33+D34+D39+D40+D41+D42+D43+D46+D49+D52+D53+D54+D55+D56+D57+D58+D59+D60+D61+D62+D65+D66+D69+D70+D71+D74+D78+D79+D80+D81 -> 1110.3206
E83: =D82+D21 -> 2244.4306
G87: AES | H87: =D28+D33+D6+D12 -> 836.59 | I87: H | J87: =VLOOKUP(G87,$K$87:$K$116,1,0) -> AES | K87: AES | L87: =H87*0.15 -> 125.4885
G88: CELSIA | H88: =D43+D42+D7+D8+D10 -> 328.03 | I88: H | J88: =VLOOKUP(G88,$K$87:$K$116,1,0) -> CELSIA | K88: ENEL
G89: Autoridad del Canal de Panamá | H89: =D5 -> 79.97 | I89: T | J89: Autoridad del Canal de Panamá | K89: CELSIA
G90: Corporación de Energía del Istmo LTD, S.A. | H90: =D78 -> 3.17 | I90: H | J90: Corporación de Energía del Istmo LTD, S.A. | K90: PANAM/GENISA
G91: Desarrollos Hidroeléctricos Corp. | H91: =D81 -> 2.538 | I91: H | J91: Desarrollos Hidroeléctricos Corp. | K91: Kanan Overseas I, Inc
G92: Electron Investment, S.A. | H92: =D66 -> 57.51 | I92: H | J92: Electron Investment, S.A. | K92: Generadora del Atlántico, S.A.
G93: Empresa de Generación Eléctrica, S.A. | H93: 0 | K93: Electron Investment, S.A.
G94: Empresa Nacional de Energía, S.A. | H94: =D71 -> 1.872 | I94: H | J94: Empresa Nacional de Energía, S.A. | K94: Jinro Corp
G95: Enel | H95: =D27 -> 290.21 | I95: H | J95: ENEL | K95: PANA POWER HOLDING
G96: Enel Green Power, S.A. | H96: 0 | K96: Fountain Intertrade Corp.
G97: Energía y Servicios de Panamá, S.A. | H97: =D34 -> 7.31 | I97: H | J97: Energía y Servicios de Panamá, S.A. | K97: Hidroecológica del Teribe, S.A.
G98: Fountain Intertrade Corp. | H98: =D74 -> 19.354 | I98: H | J98: Fountain Intertrade Corp. | K98: Pedregal Power Company, S. de R.L.
G99: Generadora del Atlántico, S.A. | H99: =D13 -> 138.01 | I99: T | J99: Generadora del Atlántico, S.A. | K99: Corporación de Energía del Istmo LTD, S.A.
G100: PANA POWER HOLDING | H100: =D60+D61+D59+D53+D56+D65 -> 33.1033 | I100: H | J100: PANA POWER HOLDING | K100: Hidrotenencias
G101: Hidro Panamá, S.A. | H101: =D40 -> 0.74 | I101: H | J101: Hidro Panamá, S.A. | K101: Empresa Nacional de Energía, S.A.
G102: Hidroecológica del Teribe, S.A. | H102: =D70 -> 22.22 | I102: H | J102: Hidroecológica del Teribe, S.A. | K102: Energía y Servicios de Panamá, S.A.
G103: Hidroeléctrica Bajos del Totuma, S.A. | H103: =D80 -> 2.04 | I103: H | J103: Hidroeléctrica Bajos del Totuma, S.A. | K103: Generadora Río Chico, S.A.
G104: Hidroeléctrica San Lorenzo, S.A. | H104: =D69 -> 1.333 | I104: H | J104: Hidroeléctrica San Lorenzo, S.A. | K104: Desarrollos Hidroeléctricos Corp.
G105: Hidroibérica, S.A. | H105: =D55 -> 1.498 | I105: H | J105: Hidroibérica, S.A. | K105: HidroPiedra, S.A.
G106: HidroPiedra, S.A. | H106: =D62 -> 3.09 | I106: H | J106: HidroPiedra, S.A. | K106: Hidroeléctrica San Lorenzo, S.A.
G107: Ideal Panamá, S.A. | H107: =D46 -> 51.16 | I107: H | J107: Ideal Panamá, S.A. | K107: Saltos del Francolí, S.A.
G108: Hidrotenencias | H108: =D39+D57+D58 -> 7.4126 | I108: H | J108: Hidrotenencias | K108: Panama NG Power, S.A.
G109: Jinro Corp | H109: =D14 -> 53.04 | I109: T | J109: Jinro Corp | K109: Hidroibérica, S.A.
G110: Kanan Overseas I, Inc | H110: =D15 -> 88.5 | I110: T | J110: Kanan Overseas I, Inc | K110: Ideal Panamá, S.A.
G111: Martano, Inc | H111: 0 | I111: T | J111: Martano, Inc | K111: Hidro Panamá, S.A.
G112: PANAM/GENISA | H112: =D54+D79+D17 -> 149.47 | I112: T | J112: PANAM/GENISA | K112: Valley Rise Investment Corp.
G113: Panama NG Power, S.A. | H113: 0 | I113: T | J113: Panama NG Power, S.A. | K113: Hidroeléctrica Bajos del Totuma, S.A.
G114: Pedregal Power Company, S. de R.L. | H114: =D18 -> 49.07 | I114: T | J114: Pedregal Power Company, S. de R.L. | K114: Autoridad del Canal de Panamá
G115: Saltos del Francolí, S.A. | H115: =D49 -> 4.452 | I115: H | J115: Saltos del Francolí, S.A. | K115: Consorcio Energyst - International
G116: Valley Rise Investment Corp. | H116: 0 | I116: T | J116: Valley Rise Investment Corp. | K116: Martano, Inc
G117: Generadora Fotovoltaica Chiriquí, S.A.
G118: Hidro Boquerón, S.A. | H118: =D52 -> 0.898 | I118: H
G119: HIDRO CANDELA | H119: 0.1297 | I119: H
G120: TROPITERMICA | H120: 4.66 | I120: T
G121: URBALIA | H121: =D20 -> 7.05
H122: =SUM(H87:H121) -> 2244.4306
H126: =E83-H122 -> 0
